Workbook

Sheet Quantities
O1: Segment 1 | Q1: Segment 2 | S1: Segment 3
A2: 1 | B2: 2 | C2: 3 | D2: 4 | E2: 5 | F2: 6 | G2: 7 | H2: 8 | I2: 9 | J2: 10 | K2: 11 | L2: 12 | M2: 13 | N2: 14 | O2: 15 | P2: 16 | Q2: 17 | R2: 18 | S2: 19 | T2: 20 | U2: 21 | V2: 22 | W2: 23 | X2: 24 | Y2: 25 | Z2: 26 | AA2: 27 | AB2: 28 | AC2: 29 | AD2: 30 | AE2: 31 | AF2: 32 | AG2: 33 | AH2: 34 | AI2: 35 | AJ2: 36 | AK2: 37 | AL2: 38 | AM2: 39 | AN2: 40
A3: Item | B3: Facility | C3: Sub Area or Destination for Cover Material | D3: Description | E3: Area (sf) | F3: Volume (cy) | G3: Push Distance (ft) | H3: Coarse Regrading and Fine Grading (%) | I3: One-Way Scraper Haul (ft) | J3: Scraper Grade (%) | K3: Down Drains (ft) | L3: Downdrain Dissipater (ea) | M3: Channels (ft) | N3: Bench Grading (ft) | O3: Distance (ft) | P3: Average Grade (%) | Q3: Distance (ft) | R3: Average Grade (%) | S3: Distance (ft) | T3: Average Grade (%) | U3: Cover Depth (In) | V3: Swell Factor (%) | W3: Material Factor for Coarse Regrading | X3: Material Factor for Fine Grading Cover | Y3: Material Weight for Coarse Regrading (lb/cy) | Z3: Material Weight for Fine Grading Cover (lb/cy) | AA3: Ripping Length (ft) | AB3: Breach Dams (cy) | AC3: Start of Reclamation Year | AD3: Reclamation Complete | AE3: Temporary Fence (ft) | AF3: Berm (ft) | AG3: Chain Link Fence (ft) | AH3: Vehicle Gates | AI3: Signs Posted Every 500 ft | AJ3: Grade Control Wall (cy concrete) | AK3: Channel | AL3: Replace Infrastructure | AM3: Plug and Abandon Well (ft) | AN3: Replace Well (ft)
A4: 1000 | B4: EMW Waste | C4: EMW-0 | D4: Entire Stockpile | E4: =SUM(E5:E6) -> 3229843 | F4: =SUM(F5:F6) -> 5369700 | H4: - | O4: =O36 -> 2100 | P4: =P36 -> -0.0380952381 | Q4: 3800 | R4: 0.07631578947 | S4: 0 | T4: 0 | U4: 12 | V4: 0 | W4: 1 | X4: 1.2 | Y4: 3600 | Z4: 3600 | AA4: 1000 | AB4: - | AC4: 2028-01-01 | AD4: 2030-12-31 | AG4: 0 | AH4: 0 | AI4: =Quantities[[#This Row],[Chain Link Fence (ft)]]/500 -> 0
A5: 1001 | B5: EMW Waste | C5: EMW-1 | D5: Outslopes-West Pullback | E5: 1479242 | F5: 3800000 | H5: =H6 -> -0.2857142857 | U5: 12 | V5: 0 | W5: 1 | X5: 1.2 | Y5: 3600 | Z5: 3600 | AA5: 1000 | AB5: - | AC5: =AC4 -> 2028-01-01 | AD5: =AD4 -> 2030-12-31 | AG5: 0 | AH5: 0 | AI5: =Quantities[[#This Row],[Chain Link Fence (ft)]]/500 -> 0
A6: 1002 | B6: EMW Waste | C6: EMW-2 | D6: Outslopes | E6: 1750601 | F6: 1569700 | G6: 200 | H6: =-1/3.5 -> -0.2857142857 | K6: 1325 | L6: 2 | M6: 13438 | N6: =Quantities[[#This Row],[Channels (ft)]] -> 13438 | U6: 12 | V6: 0 | W6: 1 | X6: 1.2 | Y6: 3600 | Z6: 3600 | AA6: 1000 | AB6: - | AC6: =AC5 -> 2028-01-01 | AD6: =AD5 -> 2030-12-31 | AG6: 0 | AH6: 0 | AI6: =Quantities[[#This Row],[Chain Link Fence (ft)]]/500 -> 0
A7: 1100 | B7: 6HW Waste | C7: 6HW-0 | D7: Entire Stockpile | E7: =SUM(E8:E8) -> 3102014 | F7: =SUM(F8:F8) -> 2200000 | H7: - | O7: =O39 -> 500 | P7: =P39 -> -0.084 | Q7: 700 | R7: 0.0137 | S7: 3000 | T7: 0.08 | U7: 12 | V7: 0 | W7: 1 | X7: 1.2 | Y7: 3600 | Z7: 3600 | AA7: 1000 | AB7: - | AC7: 2028-01-01 | AD7: 2029-12-31 | AG7: 0 | AH7: 0 | AI7: =Quantities[[#This Row],[Chain Link Fence (ft)]]/500 -> 0
A8: 1101 | B8: 6HW Waste | C8: 6HW-1 | D8: Reclaimed Slope Area | E8: 3102014 | F8: =2200000*Quantities[[#This Row],[Area (sf)]]/E7 -> 2200000 | G8: 200 | H8: =-1/3.5 -> -0.2857142857 | I8: 1820 | J8: -0.157 | K8: 781 | L8: 1 | M8: =Quantities[[#This Row],[Bench Grading (ft)]] -> 13200 | N8: 13200 | U8: 12 | V8: 0 | W8: 1 | X8: 1.2 | Y8: 3600 | Z8: 3600 | AA8: 1000 | AB8: - | AC8: 2028-01-01 | AD8: 2029-12-31 | AG8: 0 | AH8: 0 | AI8: =Quantities[[#This Row],[Chain Link Fence (ft)]]/500 -> 0
A9: 1102 | B9: 6HW Waste | C9: 6HW-2 | D9: Slope Area Within Pit Waiver Area | E9: 0 | U9: 12 | V9: 0 | W9: 1 | X9: 1.2 | Y9: 3600 | Z9: 3600 | AA9: 1000 | AB9: - | AC9: 2028-01-01 | AD9: 2029-12-31 | AG9: 0 | AH9: 0 | AI9: =Quantities[[#This Row],[Chain Link Fence (ft)]]/500 -> 0
A10: 1200 | B10: Haul Roads | C10: HR-0 | D10: Haul Roads | E10: =SUM(E12:E14) -> 1701733.63 | F10: =F11 -> 28732.6 | G10: 200 | H10: 0.02 | O10: =O40 -> 2660 | P10: =P40 -> -0.07117819549 | Q10: 1500 | R10: 0.06657555556 | S10: 1000 | T10: 0.08 | U10: 0 | V10: 0 | W10: 1 | X10: 1.2 | Y10: 3600 | Z10: 3600 | AA10: 1000 | AB10: - | AC10: 2028-01-01 | AD10: 2030-12-31 | AG10: 0 | AH10: 0 | AI10: =Quantities[[#This Row],[Chain Link Fence (ft)]]/500 -> 0
A11: 1201 | B11: Haul Roads | C11: HR-1 | D11: Oak Grove Wash Fill Removal | E11: 0 | F11: 28732.6 | G11: 200 | H11: 0.02 | U11: 0 | V11: 0 | W11: 1 | X11: 1.2 | Y11: 3600 | Z11: 3600 | AA11: 1000 | AC11: 2028-01-01 | AD11: 2030-12-31 | AF11: =2087+357+7927+7546 -> 1949-01-19 | AG11: 0 | AH11: 0 | AI11: =Quantities[[#This Row],[Chain Link Fence (ft)]]/500 -> 0
A12: 1202 | B12: Haul Roads | C12: HR-2 | D12: Northern Emma Haul Road | E12: 1071806.63 | F12: 0 | G12: 200 | H12: 0.02 | U12: 0 | V12: 0 | W12: 1 | X12: 1.2 | Y12: 3600 | Z12: 3600 | AA12: 1000 | AB12: - | AC12: =$AC$10 -> 2028-01-01 | AD12: =$AD$10 -> 2030-12-31 | AG12: 0 | AH12: 0 | AI12: =Quantities[[#This Row],[Chain Link Fence (ft)]]/500 -> 0
A13: 1203 | B13: Haul Roads | C13: HR-3 | D13: Southern Emma Haul Road | E13: 418727 | F13: 0 | G13: 200 | H13: 0.02 | U13: 0 | V13: 0 | W13: 1 | X13: 1.2 | Y13: 3600 | Z13: 3600 | AA13: 1000 | AC13: =$AC$10 -> 2028-01-01 | AD13: =$AD$10 -> 2030-12-31 | AG13: 0 | AI13: =Quantities[[#This Row],[Chain Link Fence (ft)]]/500 -> 0
A14: 1204 | B14: Haul Roads | C14: HR-4 | D14: In-Pit Haul Road | E14: 211200 | F14: 0 | G14: 200 | H14: 0.02 | U14: 0 | V14: 0 | W14: 1 | X14: 1.2 | Y14: 3600 | Z14: 3600 | AA14: 1000 | AB14: - | AC14: 2028-01-01 | AD14: 2030-12-31 | AG14: 0 | AH14: 0 | AI14: =Quantities[[#This Row],[Chain Link Fence (ft)]]/500 -> 0
A15: 1300 | B15: Emma Backfill Areas | C15: OP-0 | D15: Open Pit | E15: =SUM(E18,E19,E21) -> 1685980.53 | F15: =F16 -> 76780.08 | G15: 200 | K15: 0 | L15: 0 | M15: 0 | N15: 0 | O15: =O41 -> 5380 | P15: =P41 -> -0.0829 | Q15: 0 | R15: 0 | S15: 0 | T15: 0 | U15: 12 | V15: 0 | W15: 1 | X15: 1.2 | Y15: 3600 | Z15: 3600 | AA15: 1000 | AB15: - | AC15: 2028-01-01 | AD15: 2030-12-31 | AG15: 0 | AH15: 0 | AI15: =Quantities[[#This Row],[Chain Link Fence (ft)]]/500 -> 0
A16: 1301 | B16: Emma Backfill Areas | C16: OP-1 | D16: Collection Sump | E16: 134081.4 | F16: 76780.08 | G16: 200 | H16: =1/2 -> 0.5 | O16: =O37 -> 3780 | P16: =P37 -> -0.0792 | Q16: 2750 | R16: 0.0398 | S16: 4850 | T16: -0.0948 | V16: 0 | W16: 1 | X16: 1.2 | Y16: 3600 | Z16: 3600 | AA16: 1000 | AB16: - | AC16: =$AC$15 -> 2028-01-01 | AD16: =$AD$15 -> 2030-12-31 | AG16: 120 | AH16: 1 | AI16: 0
A17: 1302 | B17: Emma Backfill Areas | C17: OP-2 | D17: Collection Sump- Operational Surface Area | E17: =AVERAGE(26900,36829) -> 31864.5 | F17: 0 | G17: 200 | H17: 0.01 | V17: 0 | W17: 1 | X17: 1.2 | Y17: 3600 | Z17: 3600 | AA17: 1000 | AC17: =$AC$15 -> 2028-01-01 | AD17: =$AD$15 -> 2030-12-31 | AG17: 0 | AH17: 0 | AI17: =Quantities[[#This Row],[Chain Link Fence (ft)]]/500 -> 0
A18: 1303 | B18: Emma Backfill Areas | C18: OP-3 | D18: Upper North | E18: 265180.47 | F18: 0 | G18: 200 | H18: =1/3 -> 0.3333333333 | V18: 0 | W18: 1 | X18: 1.2 | Y18: 3600 | Z18: 3600 | AA18: 1000 | AB18: - | AC18: =$AC$15 -> 2028-01-01 | AD18: =$AD$15 -> 2030-12-31 | AG18: 0 | AH18: 0 | AI18: =Quantities[[#This Row],[Chain Link Fence (ft)]]/500 -> 0
A19: 1304 | B19: Emma Backfill Areas | C19: OP-4 | D19: Upper South | E19: 844753.56 | F19: 0 | G19: 200 | H19: 0.3333333333 | V19: 0 | W19: 1 | X19: 1.2 | Y19: 3600 | Z19: 3600 | AA19: 1000 | AB19: - | AC19: =$AC$15 -> 2028-01-01 | AD19: =$AD$15 -> 2030-12-31 | AG19: 0 | AH19: 0 | AI19: =Quantities[[#This Row],[Chain Link Fence (ft)]]/500 -> 0
A20: 1305 | B20: Emma Backfill Areas | C20: OP-5 | D20: Upper East | E20: 205884.42 | F20: 0 | G20: 200 | H20: 0.02 | V20: 0 | W20: 1 | X20: 1.2 | Y20: 3600 | Z20: 3600 | AA20: 1000 | AB20: - | AC20: 2026-01-01 | AD20: 2026-12-31 | AG20: 0 | AH20: 0 | AI20: =Quantities[[#This Row],[Chain Link Fence (ft)]]/500 -> 0
A21: 1306 | B21: Emma Backfill Areas | C21: OP-6 | D21: South Main | E21: 576046.5 | F21: 0 | G21: 200 | H21: =1/3 -> 0.3333333333 | V21: 0 | W21: 1 | X21: 1.2 | Y21: 3600 | Z21: 3600 | AA21: 1000 | AB21: - | AC21: =$AC$15 -> 2028-01-01 | AD21: =$AD$15 -> 2030-12-31 | AG21: 0 | AH21: 0 | AI21: =Quantities[[#This Row],[Chain Link Fence (ft)]]/500 -> 0
A22: 1400 | B22: Soil Stockpile | C22: SS-0 | D22: Entire Footprint | E22: 361548 | G22: 200 | H22: 0.01 | K22: - | L22: - | M22: - | N22: - | V22: 0 | W22: 1 | X22: 1.2 | Y22: 3600 | Z22: 3600 | AA22: 1000 | AB22: - | AC22: 2031-01-01 | AD22: 2031-12-31 | AG22: 0 | AH22: 0 | AI22: =Quantities[[#This Row],[Chain Link Fence (ft)]]/500 -> 0
A23: 1500 | B23: Allowance for Other Disturbed Areas | C23: Unplanned Disturbance Area | D23: Unplanned Disturbance Area | E23: =10*43560 -> 435600 | G23: 200 | H23: 0.01 | K23: - | L23: - | M23: - | N23: - | O23: =O42 -> 2660 | P23: =P42 -> -0.07117819549 | Q23: 1500 | R23: 0.06657555556 | S23: 1000 | T23: 0.08 | U23: 12 | V23: 0 | W23: 1 | X23: 1.2 | Y23: 3600 | Z23: 3600 | AA23: 1000 | AB23: - | AC23: 2028-01-01 | AD23: 2030-12-31 | AG23: 0 | AH23: 0 | AI23: =Quantities[[#This Row],[Chain Link Fence (ft)]]/500 -> 0
A24: 5000 | B24: Soil Stockpile | C24: =A4 -> 1000 | D24: Cover Material | E24: =VLOOKUP(Quantities[[#This Row],[Sub Area or Destination for Cover Material]],$A$4:$E$23,$E$2) -> 3229843 | O24: =O4 -> 2100 | P24: -0.0380952381 | Q24: 3800 | R24: 0.07631578947 | S24: 0 | T24: 0 | U24: 12 | V24: 0.08 | W24: 1 | X24: 1.2 | Y24: 3600 | Z24: 3600 | AA24: 1000
A25: 5001 | B25: Soil Stockpile | C25: =A7 -> 1100 | D25: Cover Material | E25: =VLOOKUP(Quantities[[#This Row],[Sub Area or Destination for Cover Material]],$A$4:$E$23,$E$2) -> 3102014 | O25: =O7 -> 500 | P25: -0.084 | Q25: 700 | R25: 0.0137 | S25: 3000 | T25: 0.08 | U25: 12 | V25: 0.08 | W25: 1 | X25: 1.2 | Y25: 3600 | Z25: 3600 | AA25: 1000
A26: 5002 | B26: Soil Stockpile | C26: =A15 -> 1300 | D26: Cover Material | E26: =VLOOKUP(Quantities[[#This Row],[Sub Area or Destination for Cover Material]],$A$4:$E$23,$E$2) -> 1685980.53 | O26: =O15 -> 5380 | P26: -0.0829 | Q26: 0 | R26: 0 | S26: 0 | T26: 0 | U26: 12 | V26: 0.08 | W26: 1 | X26: 1.2 | Y26: 3600 | Z26: 3600 | AA26: 1000
A27: 5003 | B27: EMW | C27: =A16 -> 1301 | D27: Fill Material | E27: =VLOOKUP(Quantities[[#This Row],[Sub Area or Destination for Cover Material]],$A$4:$E$23,$E$2) -> 134081.4 | O27: =O16 -> 3780 | P27: -0.0792 | Q27: 2750 | R27: 0.0398 | S27: 4850 | T27: -0.0948 | V27: 0.08 | W27: 1 | X27: 1.2 | Y27: 3600 | Z27: 3600 | AA27: 1000
A28: 5004 | B28: Soil Stockpile | C28: =A23 -> 1500 | D28: Cover Material | E28: =VLOOKUP(Quantities[[#This Row],[Sub Area or Destination for Cover Material]],$A$4:$E$23,$E$2) -> 435600 | O28: =O23 -> 2660 | P28: =P23 -> -0.07117819549 | Q28: 1500 | R28: 0.06657555556 | S28: 1000 | T28: 0.08 | U28: 12 | V28: 0.08 | W28: 1 | X28: 1.2 | Y28: 3600 | Z28: 3600 | AA28: 1000
A34: Data from 2021 Emma Mine CCP
O36: =7500-5400 -> 2100 | P36: =(6060-6140)/O36 -> -0.0380952381 | Q36: =11300-7500 -> 3800 | R36: =(6350-6060)/Quantities[[#This Row],[Distance (ft) ]] -> 0.07631578947 | S36: 0 | T36: 0 | U36: Topsoil to EMW
O37: 3780 | P37: -0.0792 | Q37: 2750 | R37: 0.0398 | S37: 4850 | T37: -0.0948 | U37: EMW to Pit
O38: 3030 | P38: -0.066 | Q38: 12894 | R38: 0.0078 | S38: =Q36 -> 3800 | T38: =R36 -> 0.07631578947 | U38: 5A to EMW
O39: 500 | P39: -0.084 | Q39: 700 | R39: =AVERAGE(0.0257,0.0017) -> 0.0137 | S39: =(4200-1200) -> 3000 | T39: =(6330-6090)/S39 -> 0.08 | U39: Topsoil to 6HW (Along Nothern Emma Haul Road)
O40: =AVERAGE(O36,O39,O41) -> 2660 | P40: =((P36*O36+P39*O39+O41*P41)/SUM(O36,O39,O41)) -> -0.07117819549 | Q40: =AVERAGE(Q36,Q39,Q41) -> 1500 | R40: =((R36*Q36+R39*Q39+Q41*R41)/SUM(Q36,Q39,Q41)) -> 0.06657555556 | S40: 1000 | T40: =((T36*S36+T39*S39+S41*T41)/SUM(S36,S39,S41)) -> 0.08 | U40: Topsoil to Haul Roads
O41: =5380 -> 5380 | P41: -0.0829 | Q41: 0 | R41: 0 | S41: 0 | T41: 0 | U41: Topsoil to Pit
O42: =O40 -> 2660 | P42: =P40 -> -0.07117819549 | Q42: 1500 | R42: 0.06657555556 | S42: 1000 | T42: 0.08 | U42: Avg Topsoil Haul
O101: =SUMPRODUCT(O64:O82,$F$64:$F$82)/SUM($F$64:$F$82) -> 

Sheet Activity-Material_Codes
A1: Item | B1: Activity | C1: Description
A2: - | B2: - | C2: Place holder for item
A3: A | B3: Grade | C3: Rough grading original material or fine grading cover material
A4: B | B4: Dozer Assist | C4: Dozer is used to assist loader or shovel at cover stockpile or assist scrapers during rough grading
A5: C | B5: Load | C5: Cover material is loaded at borrow areas onto haul trucks
A6: D | B6: Haul | C6: Haul trucks transport cover material from borrow areas to destination stockpiles
A7: E | B7: Rip | C7: Tops of stockpiles are ripped before placing cover to compensate for compaction of soil during rough grading. Stockpiles are also ripped before rough grading with a scraper. Borrow stockpile ripped before revegetation.
A8: F | B8: Grade Benches | C8: Benches are graded at stockpiles and tailings after fine grading
A9: G | B9: Construct Downdrains | C9: Downdrains are constructed after fine grading and consist of articulated concrete blocks (ACB's)
A10: Gb | B10: Construct Downdrain Dissipators | C10: Energy dissipators are specified as part of the downdrains
A11: H | B11: Construct Channels w/ Riprap | C11: Channels are constructed after final grading. Construction includes excavation and wasting, riprap production, riprap and filter placement, and final grading.
A12: Hb | B12: Construct Channels w/o Riprap | C12: Channels are constructed after final grading. Construction includes excavation and wasting and final grading.
A13: I | B13: Construct Top/Outslope Channels | C13: Top and outslope channels are included with H and Hb for this RCE
A14: J | B14: Revegetate | C14: Occurs after final grading and channel construction and includes tractor rental and maintenance, fuel, scarifying, discing, drill seeding, mulching, crimping, seed, and mulch
A15: Jb | B15: Manual Seeding | C15: Seeding for areas inaccesible by heavy equipment
A16: K | B16: Perforate Liner | C16: Reservoir liners are perforated prior to reclamation
A17: L | B17: Replace Infrastructure | C17: Replacing infrastructure is not part of this RCE
A18: M | B18: Post-Closure O&M | C18: Includes vegetation maintenance for 12 years after reclamation and erosion control, road maintenance, and groundwater monitoring for 100 years after reclamation
A19: N | B19: Plug and Abandon Well | C19: Well borehole is backfilled with cement grout
A20: O | B20: Replace Well | C20: Includes borehole drilling, casing, and cementing
A21: P | B21: Road Maintenance | C21: Dust suppression and road maintenance with water truck and motor grader
A22: Q | B22: Construct Haul Road | C22: For shorter hauls etc.
A23: R | B23: Construct Berms | C23: Berming for stormwater runoff control
A24: Sa | B24: Chain Link Fence | C24: Fencing for pit area
A25: Sb | B25: Livestock Fence | C25: Temporary fencing for revegetated areas
A26: T | B26: Build Grade Control Walls | C26: Grade Control Walls not included with this RCE
A27: U | B27: Vehicle Gates | C27: Limited access around open pits
A28: V | B28: Signs Every 500 ft | C28: Warning signs posted every 500 feet around open pits
A29: W | B29: Deadman Diversion Channel | C29: Used to construct Deadman Diversion
A30: X | B30: Shade Balls | C30: Floating plastic balls for bird determent
A33: Item | B33: Material | C33: Description
A34: - | B34: - | C34: Placeholder
A35: a | B35: Existing Ground | C35: Existing ground before rough grading
A36: b | B36: Cover | C36: Cover material from cover stockpiles, before being placed at destination location
A37: c | B37: Rough Graded Material | C37: Exisiting ground after rough grading
A38: d | B38: Placed Cover | C38: Cover material after being placed at destination location
A39: e | B39: Final Grade | C39: Facility material and cover material after rough grading and fine grading
A40: f | B40: Fill/Stockpile Material | C40: Material used to construct Deadman Diversion. May also include material used backfill pit/ponds or stockpile material used in pullback.
A43: Not all activites are used in this RCE. Other activities are kept for alternatives and testing purposes and to maintain spreadsheet integrity

Sheet Unit Rates
G1: ='1 General'!C1 -> Emma Mine
G2: Unit Rates Worksheet
G3: ='1 General'!C3 -> 44512
B4: Unit Rates
A10: Code | B10: Activity | C10: Base Per Unit Cost | D10: Fuel Per Unit Cost | E10: Units | F10: Source | G10: Reference
A11: U1 | B11: Fuel | C11: 2.71 | D11: 0 | E11: gal | F11: - | G11: Diesel fuel cost is estimated by correlating historical local quotes with public data, as agreed upon in November 2018 discussions with the agencies. Fuel cost includes direct and indirect costs at $2.71/gal, calculated 9/02/2021.
A12: U2a | B12: Revegetation | C12: =Revegetation_UC!C76-UnitRates[[#This Row],[Fuel Per Unit Cost]] -> 852.4512062 | D12: =Revegetation_UC!C23 -> 4.456595 | E12: ac | F12: Revegetation Unit Cost Sheet | G12: See unit rates calculations - Cost is based on a calculated unit rate that includes tractor rental and maintenance, fuel, scarifying, discing, drill seeding, mulching, crimping, seed, and mulch.
A13: U2b | B13: Seed | C13: =(210)*(1+0.02)^(2021-2018) -> 222.85368 | D13: 0 | E13: ac | F13: Quote | G13: Rocky Mountain Reclamation, 4/2018, est. cost for seed at 8.9 PLS/ac, $210/ac. Escalated 2% 2018-2021= $222.85/ac
A14: U2c | B14: Mulch | C14: =(245)*(1+0.02)^(2021-2018) -> 259.99596 | D14: 0 | E14: ton | F14: Quote | G14: Rocky Mountain Reclamation, 4/2018, est. cost for hay mulch (nox. weed free, native), $245/ton). Escalated 2% 2018-2021= $260.00/ton
A15: U2d | B15: Manual Seeding | C15: =672*0.37 -> 248.64 | D15: 0 | E15: day | F15: Means Line Item 329343.10 0560 | G15: Planting, trees, shurbs, and ground cover, medium soil, bare root seedlings, 3" to 5", inlcudes planting only
A16: U3 | B16: Bench Grading Stockpile | C16: ='Bench Grading_UC'!Z11 -> 1.596599655 | D16: ='Bench Grading_UC'!AA11 -> 0.4215073565 | E16: ft | F16: Bench Grading Unit Cost Sheet | G16: See unit rates calculations
A17: U4 | B17: Bench Grading Tailings Pond | C17: ='Bench Grading_UC'!Z21 -> 1.596599655 | D17: ='Bench Grading_UC'!AA21 -> 0.4215073565 | E17: ft | F17: Bench Grading Unit Cost Sheet | G17: See unit rates calculations
A18: U6 | B18: Downdrain Construction | C18: =Downdrain_UC!F18 -> 392.0426242 | D18: 0 | E18: ft | F18: Downdrain Unit Cost Sheet | G18: See unit rates calculations
A19: U7 | B19: Downdrain Dissipater | C19: =Downdrain_UC!F35 -> 15106.89076 | D19: 0 | E19: ea | F19: Downdrain Unit Cost Sheet | G19: See unit rates calculations
A20: U8a | B20: Channel Construction w/ Riprap | C20: =Channel_UC!W13 -> 7.016362399 | D20: =Channel_UC!X13 -> 1.239517196 | E20: ft | F20: Channel Unit Cost Sheet | G20: See unit rates calculations
A21: U8b | B21: Channel Construction w/o Riprap | C21: =Channel_UC!W8 -> 0.478578714 | D21: =Channel_UC!X8 -> 0.1312208117 | E21: ft | F21: Channel Unit Cost Sheet | G21: See unit rates calculations
A22: U9 | B22: Erosion Control | C22: ='2 Full Site O&M'!E134 -> 2919.119091 | D22: ='2 Full Site O&M'!F134 -> 344.712 | E22: day | F22: Modified Crew B-13A | G22: Erosion control for O&M - includes 1 foreman, 2 laborers, 1 equipment operator, 2 truck drivers, 1 loader (4 cy), 2 dump trucks (8 cy)
A23: U10 | B23: Structure Demolition | C23: 0.23 | D23: 0 | E23: cf | F23: Means Line Item 024116.13 0100 | G23: Building demolition, large urban projects, mixture of types, excludes foundation demolition, dump fees
A24: U11 | B24: Concrete Slab Demolition | C24: 0.62 | D24: 0 | E24: sf | F24: Means Line Item 024116.17 0400 | G24: Building footings and foundations demolition, floors, concrete slab on grade, plain concrete, 6" thick, excludes disposal costs and dump fees
A25: U12 | B25: Storage Tank Demolition | C25: 1059.54 | D25: 0 | E25: ea | F25: Means Line Item 130505.75 0530 | G25: Selective Demolition - Storage Tanks, steel tank, single wall, above ground, not including foundations, pumps or piping, 5,000 thru 10,000 gallon
A26: U13 | B26: Storage Tank Demolition | C26: 2098.05 | D26: 0 | E26: ea | F26: Means Line Item 130505.75 0540 | G26: Steel tank, single wall, above ground, 15,000 thru 30,000 gallon, selective demolition, excluding foundation, pumps or piping
A27: U14a | B27: Power Line Demolition | C27: 0.63 | D27: 0 | E27: ft | F27: Means Line Item 260505.10 0370 | G27: Electrical Demolition - Nonmetallic sheathed cable 3 wire; assume similar enough in cost to overhead powerlines.
A28: U14b | B28: Power Line Demolition | C28: =(710.4+444+410.4+216.2+407.6+509.6+1152+491.6)*D62 -> 3699.2136 | D28: 0 | E28: day | F28: Crew B-12N Crew B-17 Crew B-68C | G28: Bare Costs: 2-laborers (B17: $44.40/hr, $710.40/day), 1-equipment operator (light) (B17: $55.50/hr, $444/day), 1-truck driver (heavy) (B17: $51.30/hr, $410.4/day), 1-48 HP backhoe loader (B17: $216.20/day), 1-8 cy 220 HP dump truck (B17: $407.60/day), 1-electrician (B68C: $63.70/hr, $509.60/day), 1-25-ton hydraulic crane (B12N: $1152/day), 1-crane operator (B12N: $61.45/hr, $491.60/day); Multiplied by Location Adjustment
A29: U15 | B29: Power Pole Demolition | C29: 220.56 | D29: 0 | E29: ea | F29: Means Line Item 024113.80 0200 | G29: Selective Demolition - wood utility poles 35-45 ft high
A30: U16 | B30: Demo Pipeline (small HDPE pipe) | C30: ='6"-8" Pipeline_UC'!D20 -> 1.499898863 | D30: 0 | E30: ft | F30: Pipeline Demo Sheet | G30: Selective demolition water, process water HDPE piping; (6 to 8-inch diameter); excludes excavation
A31: U17 | B31: Demo Pipeline (large HDPE pipe) | C31: ='20"-36" Pipeline_UC'!D20 -> 3.704767125 | D31: 0 | E31: ft | F31: Pipeline Demo Sheet | G31: Selective demolition water, process water HDPE piping (20 to 36-inch diameter); excludes excavation
A32: U18 | B32: Well Plug & Abandon | C32: =18.17*(1+0.02)^(2021-2019) -> 18.904068 | D32: 0 | E32: ft | F32: Quote | G32: Unit cost of $18.17/ft is based on a July 2019 direct quote from Layne, A Granite Company (formerly Layne Christensen Company) for a total of 172,631 ft of well and exploration borehole abandonment over 300 days (575 ft/day); the unit cost includes 1 mobilization ($15,000) and 1 demobilization ($15,000) spread over 300 days at 575 ft/day. Escalated 2% 2019-2021 = $18.90
A33: U19 | B33: Well Replacement | C33: =(173500/3000)*(1+0.02)^(2021-2011) -> 70.49851062 | D33: 0 | E33: ft | F33: Quote | G33: Wilcox Professional Services, 8/2011, est. cost for 5 ½ in bore, $173,500 for 3000 ft total ($57.83/ft). Escalated 2% 2011-2021= $70.50/ft
A34: U20 | B34: Seepage Collection Replacement | C34: 133355.9403 | D34: 0 | E34: ea | G34: Est. cost from 2019 Tyrone RCE
A35: U21 | B35: Reinforced Concrete Wall Demolition | C35: =1789.5/8*D62 -> 190.58175 | D35: 0 | E35: hr | F35: Means Crew B-12C | G35: Standard Union Crew: 1 equipment operator (crane), 1 laborer, 1 hydraulic excavator, 2 cy, approximately 40 hrs to demo 200 ft reinforced concrete dam.
A36: U22 | B36: Disc harrow attachment, for tractor | C36: 670.65 | D36: 0 | E36: month | F36: Means Line Item 015433.20 1500 | G36: Equipment rental costs
A37: U23 | B37: Cast-In-Place Concrete | C37: 262.58 | D37: 0 | E37: cy | F37: Means Line Item 033053.40 6200 | G37: Structural concrete, in place, gravity retaining wall (3000 psi), includes forms and reinforcement
A38: U24 | B38: Cleanup & Disposal of Wastes Requiring Special Handling | C38: 334.41 | D38: 0 | E38: ton | F38: Means Line Item 028120.10 1120/1130 | G38: Solid pickup; average of minimum and maximum
A39: U25 | B39: Tranportation of Wastes Requiring Special Handling | C39: 4.78 | D39: 0 | E39: mile | F39: Means Line Item 028120.10 1260/1270 | G39: Transporation to disposal site (Truckload = 80 drums or 25 cy or 18 tons); average of minimum and maximum
A40: U26 | B40: Road Maintenance | C40: ='2 Full Site O&M'!K132 -> 875.4036364 | D40: ='2 Full Site O&M'!L132 -> 222.32 | E40: month | G40: Road maintenance for O&M - includes one 14M motor grader and one 6,000-gal water truck
A41: U27 | B41: Berming | C41: =Berm_UC!Y10 -> 0.364420133 | D41: 0 | E41: ft | F41: See Berm Unit Cost Sheet | G41: See unit rates calculations
A42: U28 | B42: Livestock Fencing | C42: =154.97/1000 -> 0.15497 | D42: 0 | E42: ft | F42: Means Line Item 323126.20 0020 | G42: Wire fencing & gates, wire fencing general, barbed wire, galvanized, domestic steel, standard, 12-3/4 ga.
A43: U29 | B43: Chain Link Fencing | C43: 24.65 | D43: 0 | E43: ft | F43: Means Line Item 323113.20 0800 | G43: Fence, chain link industrial, galvanized steel, 6 ga. wire, 2" posts @ 10' OC, 6' high, includes excavation, & concrete, excludes barbed wire
A44: U30 | B44: Vehicle Gates, Pit Perimeters | C44: 957.01 | D44: 0 | E44: ea | F44: Means Line Item 323113.20 5070 | G44: Fence, chain link industrial, double swing gates, 6' high, 20' opening, includes excavation, posts & hardware in concrete
A45: U31 | B45: Signs every 500 ft., pit perimeters | C45: 73.63 | D45: 0 | E45: ea | F45: Means Line Item 101453.20 0600 | G45: Signs, guide and directional signs, reflectorized, 12" x 18", excludes posts
A46: U32 | B46: Fire Hydrant Demolition | C46: 398.83 | D46: 0 | E46: ea | F46: Means Line Item 024113.23 0900 | G46: Utility removal, hydrants, fire, remove only, excludes hauling
A47: U33 | B47: Culvert Removal | C47: 12.46 | D47: 0 | E47: ft | F47: Means Line Item 024113.40 0190 | G47: Selective demolition, metal drainage piping, CMP, steel, 48"-60", diameter, excludes excavation
A48: U34 | B48: Grade Control Wall | C48: 170.79 | D48: 0 | E48: cy | F48: Means Line Item 033053.40 3945 | G48: Structural concrete, in place, continuous strip footing (3000 psi), 36" wide x 12" deep, unreinforced, includes forms(4 uses), concrete (Portland cement Type I), placing and finishing, excludes reinforcing
A49: U35 | B49: Sludge Removal | C49: 305.54 | D49: 0 | E49: ea | F49: Means Line Item 026510.30 0320 | G49: Removal of underground storage tanks, petroleum storage tanks, non-leaking, remove sludge, water and remaining product from tank bottom of tank with vacuum truck, 9,000 - 12,000 gallon tank
A50: U36 | B50: Earth Fill Removal (dozer excavate, haul, spread) | C50: 5.2 | D50: 0 | E50: cy | F50: Means Line Item 312316.46 6070 | G50: Excavating, bulk, dozer, open site, bank measure, common earth, 700 HP dozer, 300' haul
A51: U43 | B51: Electric Rate | C51: 0.0587 | D51: 0 | E51: kWh | F51: - | G51: Industrial rate data 9/27/2021 (http://www.electricitylocal.com/states/new-mexico/silver-city/)
A52: U44 | B52: Pipeline (small HDPE pipe) | C52: 3.11 | D52: 0 | E52: ft | F52: - | G52: Piping HDPE Corrugated Type S with watertight gaskets, 4" diameter, excludes excavation or backfill
A53: U45 | B53: Pipeline (medium HDPE pipe) | C53: 10.57 | D53: 0 | E53: ft | F53: - | G53: Piping HDPE Corrugated Type S with watertight gaskets, 12" diameter, excludes excavation or backfill
A54: U46 | B54: Pipeline (large HDPE pipe) | C54: 57.17 | D54: 0 | E54: ft | F54: - | G54: Piping HDPE Corrugated Type S with watertight gaskets, 36" diameter, excludes excavation or backfill
A55: U47 | B55: HDPE liner | C55: =1.59 -> 1.59 | D55: 0 | E55: sf | F55: - | G55: Pond and reservoir liners, membrane lining systems HDPE 100,000 SF or more, 60 mil thick
A56: U48 | B56: Clay | C56: 13.51 | D56: 0 | E56: bcy | F56: - | G56: Clay, 5 CY bucket, loading and/or spreading, front end loader, track mounted
A57: U49 | B57: Pump out of Pit | C57: =#REF! ->  | D57: 0 | E57: ea | F57: - | G57: 40 gpm with 160 feet of dynamic head; 4-inch diameter, DR-11 HDPE Pipe
A58: U50 | B58: Shade Covers | C58: =359375/43560 -> 8.250114784 | D58: 0 | E58: sf | F58: - | G58: Unit rate from published project (https://www.nationalgeographic.com/science/article/150812-shade-balls-los-angeles-California-drought-water-environment)
B59: Placeholder
C62: RS Means Location Adjustment: New Mexico Las Cruces | D62: 0.852
B63: Not all unit rates are used in this RCE. Other unit rates are kept for alternatives and testing purposes and to maintain spreadsheet integrity
B64: [1] Applied to RSM derived costs only. EquipmentWatch items and items based on local quotes adjusted at base rate
B65: RS Means Online, 2021, New Mexico Las Cruces

Sheet Equipment
B1: EARTHWORK AND O&M EQUIPMENT
A2: 1 | B2: 2 | C2: 3 | D2: 4 | E2: 5 | F2: 6 | G2: 7 | H2: 8 | I2: 9 | J2: 10 | K2: 11 | L2: 12 | M2: 13 | N2: 14 | O2: 15 | P2: 16 | Q2: 17 | R2: 18 | S2: 19 | T2: 20 | U2: 21 | V2: 22 | W2: 23 | X2: 24 | Y2: 25 | Z2: 26 | AA2: 27 | AB2: 28 | AC2: 29 | AD2: 30 | AE2: 31 | AF2: 32 | AG2: 33 | AH2: 34 | AI2: 35 | AJ2: 36 | AK2: 37 | AL2: 38 | AM2: 39 | AN2: 40 | AO2: 41 | AP2: 42 | AQ2: 43 | AR2: 44 | AS2: 45 | AT2: 46 | AU2: 47 | AV2: 48 | AW2: 49 | AX2: 50 | AY2: 51 | AZ2: 52 | BA2: 53 | BB2: 54 | BC2: 55 | BD2: 56 | BE2: 57 | BF2: 58 | BG2: 59 | BH2: 60 | BI2: 61 | BJ2: 62 | BK2: 63 | BL2: 64 | BM2: 65 | BN2: 66 | BO2: 67 | BP2: 68 | BQ2: 69 | BR2: 70 | BS2: 71
M3: Dozing Production (lcy/hr)1 | O3: Haul Travel Time (min/m) = A(Eff. Grade %)4 + B(Eff. Grade %)3 + C(Eff. Grade %)2 + D(Eff. Grade %) + E
M4: Production = C(Avg. dozing distance in ft)b | O4: Loaded Uphill | T4: Empty Uphill | Y4: Loaded Downhill | AD4: Empty Downhill | AU4: Ripper Factors | BO4: Push Cycle Time D9T
A5: Code | B5: Equipment Description | C5: Equipment Type | D5: Fuel Consumption (gal/hr) | E5: Fuel Cost ($/hr) | F5: Lube Cost ($/hr) | G5: Field Parts & Ground Engaging Component Cost ($/hr) | H5: Tire Cost ($/hr) | I5: Monthly Rental Rate ($/month) | J5: Field Labor Time Cost ($/hr) | K5: Rental Cost (w/o fuel, lube, tires, or field parts) ($/hr)5 | L5: Lube, Tires, GEC, & Field Parts Adjusted Rental Cost (w/o fuel) ($/hr) | M5: C | N5: b | O5: A | P5: B | Q5: C | R5: D | S5: E | T5: A | U5: B | V5: C | W5: D | X5: E | Y5: A | Z5: B | AA5: C | AB5: D | AC5: E | AD5: A | AE5: B | AF5: C | AG5: D | AH5: E | AI5: Loaded Speed (mph)4 | AJ5: Empty Speed (mph) | AK5: Pass Overlap (ft) | AL5: Operator Factor: Coarse Regrading | AM5: Operator Factor: Fine Grading, Cover, Other Surfaces, and Channels | AN5: Visibility Factor | AO5: Elevation Factor | AP5: Direct Drive Trans. | AQ5: Production Method/ Blade Factor: Coarse and Fine Grading | AR5: Production Method/ Blade Factor: Channels, Downdrains, Benches | AS5: Work Hour (min/hr) | AT5: Effective Blade Width (ft) | AU5: Penetration (in) | AV5: Pocket Spacing (in) | AW5: Number of Pockets | AX5: Turn Time (min/pass) | AY5: Dist. b/n Passes (in) | AZ5: Net Bucket Capacity (cy) | BA5: Loader Cycle Time1 (min) | BB5: Bucket Fill Factor | BC5: Struck Capacity (cy) | BD5: Heaped Capacity (cy) | BE5: Sheepsfoot Roller Width (ft) | BF5: Max Reach at GL (in) | BG5: Swing Time (Loaded) (min) | BH5: Swing Time (Empty) (min) | BI5: Rolling Resistance (%) | BJ5: Truck Exchange Time (min) | BK5: Dump/ Maneuver Time (min) | BL5: Rated Load (lb) | BM5: Load Time (min) | BN5: Maneuver & Spread Time (min) | BO5: Boost Time (min) | BP5: Return Time and Load Time (min) | BQ5: Maneuver Time (min) | BR5: NMDOL Operator Group | BS5: NMDOL Total 2021 Rate ($/hr)
A6: - | B6: - | C6: placeholder | D6: 0 | E6: 0 | F6: 0 | G6: 0 | H6: 0 | I6: 0 | J6: 0 | K6: 0 | L6: 0 | M6: - | N6: - | O6: - | P6: - | Q6: - | R6: - | S6: - | T6: - | U6: - | V6: - | W6: - | X6: - | Y6: - | Z6: - | AA6: - | AB6: - | AC6: - | AD6: - | AE6: - | AF6: - | AG6: - | AH6: - | AI6: - | AJ6: - | AK6: - | AL6: - | AM6: - | AN6: - | AO6: - | AP6: - | AQ6: - | AR6: - | AS6: - | AT6: - | AU6: - | AV6: - | AW6: - | AX6: - | AY6: - | AZ6: - | BA6: - | BB6: - | BC6: - | BD6: - | BE6: - | BF6: - | BG6: - | BH6: - | BI6: - | BJ6: - | BK6: - | BL6: - | BM6: - | BN6: - | BO6: - | BP6: - | BQ6: - | BR6: =CONCATENATE(BR36," & ", BR21) -> Truck Driver V & Equipment Operator VIII | BS6: =BS36+BS21 -> 55.58
A7: Comb1 | B7: Cat 14M, Off-Hwy Water Tanker Truck,6,000-gal. | C7: Combo 1 | D7: =D36+D22 -> 19.54 | E7: =Equipment[[#This Row],[Fuel Consumption (gal/hr)]]*$C$57 -> 52.9534 | F7: =F22+F36 -> 12.76 | G7: =G36+G21 -> 4.73 | H7: 13.68 | I7: =I36+I21 -> 21570.72 | J7: 9.54 | K7: =K36+K21 -> 122.5609091 | L7: =L36+L21 -> 163.2709091 | M7: - | N7: - | O7: - | P7: - | Q7: - | R7: - | S7: - | T7: - | U7: - | V7: - | W7: - | X7: - | Y7: - | Z7: - | AA7: - | AB7: - | AC7: - | AD7: - | AE7: - | AF7: - | AG7: - | AH7: - | AI7: - | AJ7: - | AK7: - | AL7: - | AM7: - | AN7: - | AO7: - | AP7: - | AQ7: - | AR7: - | AS7: - | AT7: - | AU7: - | AV7: - | AW7: - | AX7: - | AY7: - | AZ7: - | BA7: - | BB7: - | BC7: - | BD7: - | BE7: - | BF7: - | BG7: - | BH7: - | BI7: - | BJ7: - | BK7: - | BL7: - | BM7: - | BN7: - | BO7: - | BP7: - | BQ7: - | BR7: =CONCATENATE(BR36," & ", BR22) -> Truck Driver V & Equipment Operator VI | BS7: =BS22+BS36 -> 53.6
A8: Dz1 | B8: Cat D11T, U Blade | C8: Dozer | D8: 26.54 | E8: =Equipment[[#This Row],[Fuel Consumption (gal/hr)]]*$C$57 -> 71.9234 | F8: 27.63 | G8: 31.45 | H8: 0 | I8: 33810.24 | J8: 6.83 | K8: =Equipment[[#This Row],[Monthly Rental Rate ($/month)]]/176 -> 192.1036364 | L8: =SUM(K8,J8,H8,F8,Equipment[[#This Row],[Field Parts & Ground Engaging Component Cost ($/hr)]]) -> 258.0136364 | M8: 155881.5879 | N8: -0.889952 | O8: - | P8: - | Q8: - | R8: - | S8: - | T8: - | U8: - | V8: - | W8: - | X8: - | Y8: - | Z8: - | AA8: - | AB8: - | AC8: - | AD8: - | AE8: - | AF8: - | AG8: - | AH8: - | AI8: =AI9 -> 2.5 | AJ8: =Equipment[[#This Row],[Loaded Speed (mph)4]] -> 2.5 | AK8: - | AL8: 1 | AM8: =AM9 -> 0.75 | AN8: 1 | AO8: 1 | AP8: 1 | AQ8: 1.2 | AR8: 1 | AS8: 50 | AT8: =18+(4/12) -> 18.33333333 | AU8: - | AV8: - | AW8: - | AX8: - | AY8: - | AZ8: - | BA8: - | BB8: - | BC8: - | BD8: - | BE8: - | BF8: - | BG8: - | BH8: - | BI8: - | BJ8: - | BK8: - | BL8: - | BM8: - | BN8: - | BO8: - | BP8: - | BQ8: - | BR8: Equipment Operator IV | BS8: =VLOOKUP(BR8,$B$65:$C$74,2) -> 28.65
A9: Dz2 | B9: Cat D11T CD | C9: Dozer6 | D9: 26.54 | E9: =Equipment[[#This Row],[Fuel Consumption (gal/hr)]]*$C$57 -> 71.9234 | F9: 18.56 | G9: 16.17 | H9: 0 | I9: 33810.24 | J9: 6.83 | K9: =Equipment[[#This Row],[Monthly Rental Rate ($/month)]]/176 -> 192.1036364 | L9: =SUM(K9,J9,H9,F9,Equipment[[#This Row],[Field Parts & Ground Engaging Component Cost ($/hr)]]) -> 233.6636364 | M9: 162758.7595 | N9: -0.866691 | O9: - | P9: - | Q9: - | R9: - | S9: - | T9: - | U9: - | V9: - | W9: - | X9: - | Y9: - | Z9: - | AA9: - | AB9: - | AC9: - | AD9: - | AE9: - | AF9: - | AG9: - | AH9: - | AI9: 2.5 | AJ9: =Equipment[[#This Row],[Loaded Speed (mph)4]] -> 2.5 | AK9: - | AL9: 1 | AM9: 0.75 | AN9: 1 | AO9: 1 | AP9: 1 | AQ9: 1.2 | AR9: 1 | AS9: 50 | AT9: 22 | AU9: - | AV9: - | AW9: - | AX9: - | AY9: - | AZ9: - | BA9: - | BB9: - | BC9: - | BD9: - | BE9: - | BF9: - | BG9: - | BH9: - | BI9: - | BJ9: - | BK9: - | BL9: - | BM9: - | BN9: - | BO9: - | BP9: - | BQ9: - | BR9: Equipment Operator IV | BS9: 28.65
A10: Dz3 | B10: Cat D9T, SU Blade | C10: Dozer | D10: 13.03 | E10: =Equipment[[#This Row],[Fuel Consumption (gal/hr)]]*$C$57 -> 35.3113 | F10: 13.31 | G10: 15.01 | H10: 0 | I10: 29704.21 | J10: 6.83 | K10: =Equipment[[#This Row],[Monthly Rental Rate ($/month)]]/176 -> 168.7739205 | L10: =SUM(K10,J10,H10,F10,Equipment[[#This Row],[Field Parts & Ground Engaging Component Cost ($/hr)]]) -> 203.9239205 | M10: 52161.03341 | N10: -0.845532 | O10: - | P10: - | Q10: - | R10: - | S10: - | T10: - | U10: - | V10: - | W10: - | X10: - | Y10: - | Z10: - | AA10: - | AB10: - | AC10: - | AD10: - | AE10: - | AF10: - | AG10: - | AH10: - | AI10: 1 | AJ10: =Equipment[[#This Row],[Loaded Speed (mph)4]] -> 1 | AK10: - | AL10: 1 | AM10: 0.75 | AN10: 1 | AO10: 1 | AP10: 1 | AQ10: 1.2 | AR10: 1 | AS10: 50 | AT10: =14 + (1/12) -> 14.08333333 | AU10: - | AV10: - | AW10: - | AX10: - | AY10: - | AZ10: - | BA10: - | BB10: - | BC10: - | BD10: - | BE10: - | BF10: - | BG10: - | BH10: - | BI10: - | BJ10: - | BK10: - | BL10: - | BM10: - | BN10: - | BO10: - | BP10: - | BQ10: - | BR10: Equipment Operator IV | BS10: 28.65
A11: Dz4 | B11: Cat D6T, SU Blade | C11: Dozer | D11: 6.55 | E11: =Equipment[[#This Row],[Fuel Consumption (gal/hr)]]*$C$57 -> 17.7505 | F11: 5.18 | G11: 5.06 | H11: 0 | I11: 8822.13 | J11: 3.96 | K11: =Equipment[[#This Row],[Monthly Rental Rate ($/month)]]/176 -> 50.12573864 | L11: =SUM(K11,J11,H11,F11,Equipment[[#This Row],[Field Parts & Ground Engaging Component Cost ($/hr)]]) -> 64.32573864 | M11: 13582.45339 | N11: -0.74851 | O11: - | P11: - | Q11: - | R11: - | S11: - | T11: - | U11: - | V11: - | W11: - | X11: - | Y11: - | Z11: - | AA11: - | AB11: - | AC11: - | AD11: - | AE11: - | AF11: - | AG11: - | AH11: - | AI11: 1 | AJ11: =Equipment[[#This Row],[Loaded Speed (mph)4]] -> 1 | AK11: - | AL11: 1 | AM11: 0.75 | AN11: 1 | AO11: 1 | AP11: 1 | AQ11: 1.2 | AR11: 1 | AS11: 50 | AT11: =10 + (8/12) -> 10.66666667 | AU11: - | AV11: - | AW11: - | AX11: - | AY11: - | AZ11: - | BA11: - | BB11: - | BC11: - | BD11: - | BE11: - | BF11: - | BG11: - | BH11: - | BI11: - | BJ11: - | BK11: - | BL11: - | BM11: - | BN11: - | BO11: - | BP11: - | BQ11: - | BR11: Equipment Operator IV | BS11: 28.65
A12: Dz5 | B12: Cat D6T XL, SU Blade | C12: Dozer | D12: 6.44 | E12: =Equipment[[#This Row],[Fuel Consumption (gal/hr)]]*$C$57 -> 17.4524 | F12: 5.2 | G12: 5.15 | H12: 0 | I12: 12622.58 | J12: 3.95 | K12: =Equipment[[#This Row],[Monthly Rental Rate ($/month)]]/176 -> 71.71920455 | L12: =SUM(K12,J12,H12,F12,Equipment[[#This Row],[Field Parts & Ground Engaging Component Cost ($/hr)]]) -> 86.01920455 | M12: 13582.45339 | N12: -0.74851 | O12: - | P12: - | Q12: - | R12: - | S12: - | T12: - | U12: - | V12: - | W12: - | X12: - | Y12: - | Z12: - | AA12: - | AB12: - | AC12: - | AD12: - | AE12: - | AF12: - | AG12: - | AH12: - | AI12: =AI11 -> 1 | AJ12: =Equipment[[#This Row],[Loaded Speed (mph)4]] -> 1 | AK12: - | AL12: 1 | AM12: 0.75 | AN12: 1 | AO12: 1 | AP12: 1 | AQ12: 1.2 | AR12: 1 | AS12: 50 | AT12: =10 + (8/12) -> 10.66666667 | AU12: - | AV12: - | AW12: - | AX12: - | AY12: - | AZ12: - | BA12: - | BB12: - | BC12: - | BD12: - | BE12: - | BF12: - | BG12: - | BH12: - | BI12: - | BJ12: - | BK12: - | BL12: - | BM12: - | BN12: - | BO12: - | BP12: - | BQ12: - | BR12: Equipment Operator IV | BS12: 28.65
A13: Ex1 | B13: Cat 319D L | C13: Excavator | D13: 2.43 | E13: =Equipment[[#This Row],[Fuel Consumption (gal/hr)]]*$C$57 -> 6.5853 | F13: 2.5 | G13: 2.01 | H13: 0 | I13: 6787 | J13: 4.7 | K13: =Equipment[[#This Row],[Monthly Rental Rate ($/month)]]/176 -> 38.5625 | L13: =SUM(K13,J13,H13,F13,Equipment[[#This Row],[Field Parts & Ground Engaging Component Cost ($/hr)]]) -> 47.7725 | M13: - | N13: - | O13: - | P13: - | Q13: - | R13: - | S13: - | T13: - | U13: - | V13: - | W13: - | X13: - | Y13: - | Z13: - | AA13: - | AB13: - | AC13: - | AD13: - | AE13: - | AF13: - | AG13: - | AH13: - | AI13: - | AJ13: - | AK13: - | AL13: - | AM13: - | AN13: - | AO13: - | AP13: - | AQ13: - | AR13: - | AS13: 50 | AT13: - | AU13: - | AV13: - | AW13: - | AX13: - | AY13: - | AZ13: - | BA13: - | BB13: 0.875 | BC13: - | BD13: 1 | BE13: 3 | BF13: 380 | BG13: 0.09 | BH13: 0.07 | BI13: - | BJ13: - | BK13: - | BL13: - | BM13: - | BN13: - | BO13: - | BP13: - | BQ13: - | BR13: Equipment Operator VI | BS13: 28.95
A14: Ld1 | B14: Cat 992K | C14: Loader | D14: 19.49 | E14: =Equipment[[#This Row],[Fuel Consumption (gal/hr)]]*$C$57 -> 52.8179 | F14: 21.01 | G14: 8.77 | H14: 55.78 | I14: 25012.53 | J14: 4.16 | K14: =Equipment[[#This Row],[Monthly Rental Rate ($/month)]]/176 -> 142.1166477 | L14: =SUM(K14,J14,H14,F14,Equipment[[#This Row],[Field Parts & Ground Engaging Component Cost ($/hr)]]) -> 231.8366477 | M14: - | N14: - | O14: - | P14: - | Q14: - | R14: - | S14: - | T14: - | U14: - | V14: - | W14: - | X14: - | Y14: - | Z14: - | AA14: - | AB14: - | AC14: - | AD14: - | AE14: - | AF14: - | AG14: - | AH14: - | AI14: 7.6 | AJ14: 12.8 | AK14: - | AL14: - | AM14: - | AN14: - | AO14: - | AP14: - | AQ14: - | AR14: - | AS14: 50 | AT14: - | AU14: - | AV14: - | AW14: - | AX14: - | AY14: - | AZ14: =Equipment[[#This Row],[Bucket Fill Factor]]*Equipment[[#This Row],[Heaped Capacity (cy)]] -> 14 | BA14: 0.65 | BB14: 0.875 | BC14: - | BD14: 16 | BE14: - | BF14: - | BG14: - | BH14: - | BI14: - | BJ14: - | BK14: - | BL14: - | BM14: - | BN14: - | BO14: - | BP14: - | BQ14: - | BR14: Equipment Operator VII | BS14: 28.97
A15: Ld2 | B15: Cat 988H | C15: Loader | D15: 9.13 | E15: =Equipment[[#This Row],[Fuel Consumption (gal/hr)]]*$C$57 -> 24.7423 | F15: 9.14 | G15: 3.68 | H15: 13.79 | I15: 15921.37 | J15: 4.16 | K15: =Equipment[[#This Row],[Monthly Rental Rate ($/month)]]/176 -> 90.46232955 | L15: =SUM(K15,J15,H15,F15,Equipment[[#This Row],[Field Parts & Ground Engaging Component Cost ($/hr)]]) -> 121.2323295 | M15: - | N15: - | O15: - | P15: - | Q15: - | R15: - | S15: - | T15: - | U15: - | V15: - | W15: - | X15: - | Y15: - | Z15: - | AA15: - | AB15: - | AC15: - | AD15: - | AE15: - | AF15: - | AG15: - | AH15: - | AI15: 7.3 | AJ15: 12.9 | AK15: - | AL15: - | AM15: - | AN15: - | AO15: - | AP15: - | AQ15: - | AR15: - | AS15: 50 | AT15: - | AU15: - | AV15: - | AW15: - | AX15: - | AY15: - | AZ15: =Equipment[[#This Row],[Bucket Fill Factor]]*Equipment[[#This Row],[Heaped Capacity (cy)]] -> 7.28875 | BA15: 0.575 | BB15: 0.875 | BC15: - | BD15: 8.33 | BE15: - | BF15: - | BG15: - | BH15: - | BI15: - | BJ15: - | BK15: - | BL15: - | BM15: - | BN15: - | BO15: - | BP15: - | BQ15: - | BR15: Equipment Operator VII | BS15: 28.97
A16: Ld3 | B16: Cat 980H | C16: Loader | D16: 5.35 | E16: =Equipment[[#This Row],[Fuel Consumption (gal/hr)]]*$C$57 -> 14.4985 | F16: 4.73 | G16: 1.78 | H16: 8.37 | I16: 11620.94 | J16: 4.16 | K16: =Equipment[[#This Row],[Monthly Rental Rate ($/month)]]/176 -> 66.02806818 | L16: =SUM(K16,J16,H16,F16,Equipment[[#This Row],[Field Parts & Ground Engaging Component Cost ($/hr)]]) -> 85.06806818 | M16: - | N16: - | O16: - | P16: - | Q16: - | R16: - | S16: - | T16: - | U16: - | V16: - | W16: - | X16: - | Y16: - | Z16: - | AA16: - | AB16: - | AC16: - | AD16: - | AE16: - | AF16: - | AG16: - | AH16: - | AI16: 7.3 | AJ16: 12.9 | AK16: - | AL16: - | AM16: - | AN16: - | AO16: - | AP16: - | AQ16: - | AR16: - | AS16: 50 | AT16: - | AU16: - | AV16: - | AW16: - | AX16: - | AY16: - | AZ16: =Equipment[[#This Row],[Bucket Fill Factor]]*Equipment[[#This Row],[Heaped Capacity (cy)]] -> 6.5625 | BA16: 0.525 | BB16: 0.875 | BC16: - | BD16: 7.5 | BE16: - | BF16: - | BG16: - | BH16: - | BI16: - | BJ16: - | BK16: - | BL16: - | BM16: - | BN16: - | BO16: - | BP16: - | BQ16: - | BR16: Equipment Operator VII | BS16: 28.97
A17: Ld4 | B17: Cat 966H | C17: Loader | D17: 3.86 | E17: =Equipment[[#This Row],[Fuel Consumption (gal/hr)]]*$C$57 -> 10.4606 | F17: 3.79 | G17: 1.51 | H17: 5.18 | I17: 9039.66 | J17: 4.16 | K17: =Equipment[[#This Row],[Monthly Rental Rate ($/month)]]/176 -> 51.36170455 | L17: =SUM(K17,J17,H17,F17,Equipment[[#This Row],[Field Parts & Ground Engaging Component Cost ($/hr)]]) -> 66.00170455 | M17: - | N17: - | O17: - | P17: - | Q17: - | R17: - | S17: - | T17: - | U17: - | V17: - | W17: - | X17: - | Y17: - | Z17: - | AA17: - | AB17: - | AC17: - | AD17: - | AE17: - | AF17: - | AG17: - | AH17: - | AI17: 7.8 | AJ17: 13.7 | AK17: - | AL17: - | AM17: - | AN17: - | AO17: - | AP17: - | AQ17: - | AR17: - | AS17: 50 | AT17: - | AU17: - | AV17: - | AW17: - | AX17: - | AY17: - | AZ17: =Equipment[[#This Row],[Bucket Fill Factor]]*Equipment[[#This Row],[Heaped Capacity (cy)]] -> 4.8125 | BA17: 0.525 | BB17: 0.875 | BC17: - | BD17: 5.5 | BE17: - | BF17: - | BG17: - | BH17: - | BI17: - | BJ17: - | BK17: - | BL17: - | BM17: - | BN17: - | BO17: - | BP17: - | BQ17: - | BR17: Equipment Operator VII | BS17: 28.97
A18: Ld5 | B18: Cat 993K | C18: Loader | D18: 23.11 | E18: =Equipment[[#This Row],[Fuel Consumption (gal/hr)]]*$C$57 -> 62.6281 | F18: 25.12 | G18: 10.52 | H18: 66.92 | I18: 25012.53 | J18: 4.16 | K18: =Equipment[[#This Row],[Monthly Rental Rate ($/month)]]/176 -> 142.1166477 | L18: =SUM(K18,J18,H18,F18,Equipment[[#This Row],[Field Parts & Ground Engaging Component Cost ($/hr)]]) -> 248.8366477 | M18: - | N18: - | O18: - | P18: - | Q18: - | R18: - | S18: - | T18: - | U18: - | V18: - | W18: - | X18: - | Y18: - | Z18: - | AA18: - | AB18: - | AC18: - | AD18: - | AE18: - | AF18: - | AG18: - | AH18: - | AI18: 7.4 | AJ18: 12.7 | AK18: - | AL18: - | AM18: - | AN18: - | AO18: - | AP18: - | AQ18: - | AR18: - | AS18: 50 | AU18: - | AV18: - | AW18: - | AX18: - | AY18: - | AZ18: =Equipment[[#This Row],[Bucket Fill Factor]]*Equipment[[#This Row],[Heaped Capacity (cy)]] -> 17.5 | BA18: 0.65 | BB18: 0.875 | BC18: - | BD18: 20 | BE18: - | BF18: - | BG18: - | BH18: - | BJ18: - | BK18: - | BL18: - | BM18: - | BO18: - | BP18: - | BR18: Equipment Operator VII | BS18: 28.97
A19: Mg1 | B19: Cat 16M - Final Grading | C19: Motor Grader | D19: 9.5 | E19: =Equipment[[#This Row],[Fuel Consumption (gal/hr)]]*$C$57 -> 25.745 | F19: 6.01 | G19: 2.45 | H19: 5.49 | I19: 12233.46 | J19: 2.08 | K19: =Equipment[[#This Row],[Monthly Rental Rate ($/month)]]/176 -> 69.50829545 | L19: =SUM(K19,J19,H19,F19,Equipment[[#This Row],[Field Parts & Ground Engaging Component Cost ($/hr)]]) -> 85.53829545 | M19: - | N19: - | O19: - | P19: - | Q19: - | R19: - | S19: - | T19: - | U19: - | V19: - | W19: - | X19: - | Y19: - | Z19: - | AA19: - | AB19: - | AC19: - | AD19: - | AE19: - | AF19: - | AG19: - | AH19: - | AI19: 2.5 | AJ19: =Equipment[[#This Row],[Loaded Speed (mph)4]] -> 2.5 | AK19: 2 | AL19: - | AM19: 0.75 | AN19: 1 | AO19: 1 | AP19: 1 | AQ19: 1.2 | AR19: 1 | AS19: 50 | AT19: 16 | AU19: - | AV19: - | AW19: - | AX19: - | AY19: - | AZ19: - | BA19: - | BB19: - | BC19: - | BD19: - | BE19: - | BF19: - | BG19: - | BH19: - | BI19: - | BJ19: - | BK19: - | BL19: - | BM19: - | BN19: - | BO19: - | BP19: - | BQ19: - | BR19: Equipment Operator VIII | BS19: 30.93
A20: Mg1b | B20: Cat 16M - Rough Grading | C20: Motor Grader | D20: =D19 -> 9.5 | E20: =E19 -> 25.745 | F20: 6.01 | G20: 2.45 | H20: 5.49 | I20: 12233.46 | J20: 2.08 | K20: 69.50829545 | L20: 85.53829545 | M20: - | N20: - | O20: - | P20: - | Q20: - | R20: - | S20: - | T20: - | U20: - | V20: - | W20: - | X20: - | Y20: - | Z20: - | AA20: - | AB20: - | AC20: - | AD20: - | AE20: - | AF20: - | AG20: - | AH20: - | AI20: 2.5 | AJ20: =Equipment[[#This Row],[Loaded Speed (mph)4]] -> 2.5 | AK20: 2 | AL20: - | AM20: 0.75 | AN20: 1 | AO20: 1 | AP20: 1 | AQ20: 1.2 | AR20: 1 | AS20: 50 | AT20: 16 | AU20: - | AV20: - | AW20: - | AX20: - | AY20: - | AZ20: - | BA20: - | BB20: - | BC20: - | BD20: - | BE20: - | BF20: - | BG20: - | BH20: - | BI20: - | BJ20: - | BK20: - | BL20: - | BM20: - | BN20: - | BO20: - | BP20: - | BQ20: - | BR20: Equipment Operator VI | BS20: 28.95
A21: Mg2 | B21: Cat 14M - Final Grading | C21: Motor Grader | D21: 8.29 | E21: =Equipment[[#This Row],[Fuel Consumption (gal/hr)]]*$C$57 -> 22.4659 | F21: 6.5 | G21: 3.25 | H21: 7.26 | I21: 12233.46 | J21: 2.08 | K21: =Equipment[[#This Row],[Monthly Rental Rate ($/month)]]/176 -> 69.50829545 | L21: =SUM(K21,J21,H21,F21,Equipment[[#This Row],[Field Parts & Ground Engaging Component Cost ($/hr)]]) -> 88.59829545 | M21: - | N21: - | O21: - | P21: - | Q21: - | R21: - | S21: - | T21: - | U21: - | V21: - | W21: - | X21: - | Y21: - | Z21: - | AA21: - | AB21: - | AC21: - | AD21: - | AE21: - | AF21: - | AG21: - | AH21: - | AI21: 2.5 | AJ21: =Equipment[[#This Row],[Loaded Speed (mph)4]] -> 2.5 | AK21: 2 | AL21: - | AM21: 0.75 | AN21: 1 | AO21: 1 | AP21: 1 | AQ21: 1.2 | AR21: 1 | AS21: 50 | AT21: 14 | AU21: - | AV21: - | AW21: - | AX21: - | AY21: - | AZ21: - | BA21: - | BB21: - | BC21: - | BD21: - | BE21: - | BF21: - | BG21: - | BH21: - | BI21: - | BJ21: - | BK21: - | BL21: - | BM21: - | BN21: - | BO21: - | BP21: - | BQ21: - | BR21: Equipment Operator VIII | BS21: 30.93
A22: Mg2b | B22: Cat 14M - Rough Grading | C22: Motor Grader | D22: 8.29 | E22: =Equipment[[#This Row],[Fuel Consumption (gal/hr)]]*$C$57 -> 22.4659 | F22: 6.5 | G22: 3.25 | H22: 7.26 | I22: 12233.46 | J22: 2.08 | K22: =Equipment[[#This Row],[Monthly Rental Rate ($/month)]]/176 -> 69.50829545 | L22: =SUM(K22,J22,H22,F22,Equipment[[#This Row],[Field Parts & Ground Engaging Component Cost ($/hr)]]) -> 88.59829545 | M22: - | N22: - | O22: - | P22: - | Q22: - | R22: - | S22: - | T22: - | U22: - | V22: - | W22: - | X22: - | Y22: - | Z22: - | AA22: - | AB22: - | AC22: - | AD22: - | AE22: - | AF22: - | AG22: - | AH22: - | AI22: 2.5 | AJ22: =Equipment[[#This Row],[Loaded Speed (mph)4]] -> 2.5 | AK22: 2 | AL22: - | AM22: 0.75 | AN22: 1 | AO22: 1 | AP22: 1 | AQ22: 1.2 | AR22: 1 | AS22: 50 | AT22: 14 | AU22: - | AV22: - | AW22: - | AX22: - | AY22: - | AZ22: - | BA22: - | BB22: - | BC22: - | BD22: - | BE22: - | BF22: - | BG22: - | BH22: - | BI22: - | BJ22: - | BK22: - | BL22: - | BM22: - | BN22: - | BO22: - | BP22: - | BQ22: - | BR22: Equipment Operator VI | BS22: 28.95
A23: Mu1 | B23: Finn B260 | C23: Mulcher | D23: 4.13 | E23: =Equipment[[#This Row],[Fuel Consumption (gal/hr)]]*$C$57 -> 11.1923 | F23: 1.64 | G23: 0.15 | H23: 0.6 | I23: 2167.95 | J23: 1.29 | K23: =Equipment[[#This Row],[Monthly Rental Rate ($/month)]]/176 -> 12.31789773 | L23: =SUM(K23,J23,H23,F23,Equipment[[#This Row],[Field Parts & Ground Engaging Component Cost ($/hr)]]) -> 15.99789773 | N23: - | O23: - | P23: - | Q23: - | R23: - | S23: - | T23: - | U23: - | V23: - | W23: - | X23: - | Y23: - | Z23: - | AA23: - | AB23: - | AC23: - | AD23: - | AE23: - | AF23: - | AG23: - | AH23: - | AI23: - | AJ23: - | AK23: - | AL23: - | AM23: - | AN23: - | AO23: - | AP23: - | AQ23: - | AR23: - | AS23: 50 | AT23: - | AU23: - | AV23: - | AW23: - | AX23: - | AY23: - | AZ23: - | BA23: - | BB23: - | BC23: - | BD23: - | BE23: - | BF23: - | BG23: - | BH23: - | BI23: - | BJ23: - | BK23: - | BL23: - | BM23: - | BN23: - | BO23: - | BP23: - | BQ23: - | BR23: Truck Driver III | BS23: 24.57
A24: Rp1 | B24: Cat D11T CD Multi-shank (w/ MSR-359H) | C24: Dozer w/ Ripper | D24: =D9 -> 26.54 | E24: =Equipment[[#This Row],[Fuel Consumption (gal/hr)]]*$C$57 -> 71.9234 | F24: =0.37+F9 -> 18.93 | G24: =1.87+G9 -> 18.04 | H24: =H9 -> 0 | I24: =2345.15+I9 -> 36155.39 | J24: =1.62+J9 -> 8.45 | K24: =Equipment[[#This Row],[Monthly Rental Rate ($/month)]]/176 -> 205.4283523 | L24: =SUM(K24,J24,H24,F24,Equipment[[#This Row],[Field Parts & Ground Engaging Component Cost ($/hr)]]) -> 250.8483523 | M24: - | N24: - | O24: - | P24: - | Q24: - | R24: - | S24: - | T24: - | U24: - | V24: - | W24: - | X24: - | Y24: - | Z24: - | AA24: - | AB24: - | AC24: - | AD24: - | AE24: - | AF24: - | AG24: - | AH24: - | AI24: 1 | AJ24: =Equipment[[#This Row],[Loaded Speed (mph)4]] -> 1 | AK24: - | AL24: - | AM24: - | AN24: - | AO24: - | AP24: - | AQ24: - | AR24: - | AS24: 50 | AT24: - | AU24: 18 | AV24: =(4*12)+11 -> 59 | AW24: 3 | AX24: 0.25 | AY24: =Equipment[[#This Row],[Pocket Spacing (in)]] -> 59 | AZ24: - | BA24: - | BB24: - | BC24: - | BD24: - | BE24: - | BF24: - | BG24: - | BH24: - | BI24: - | BJ24: - | BK24: - | BL24: - | BM24: - | BN24: - | BO24: - | BP24: - | BQ24: - | BR24: Equipment Operator IV | BS24: 28.65
A25: Rp2 | B25: MSR-189H | C25: Ripper Attachment | D25: 0 | E25: =Equipment[[#This Row],[Fuel Consumption (gal/hr)]]*$C$57 -> 0 | F25: 0.15 | G25: 0.93 | H25: 0 | I25: 898.9 | J25: 0.59 | K25: =Equipment[[#This Row],[Monthly Rental Rate ($/month)]]/176 -> 5.107386364 | L25: =SUM(K25,J25,H25,F25,Equipment[[#This Row],[Field Parts & Ground Engaging Component Cost ($/hr)]]) -> 6.777386364 | M25: - | N25: - | O25: - | P25: - | Q25: - | R25: - | S25: - | T25: - | U25: - | V25: - | W25: - | X25: - | Y25: - | Z25: - | AA25: - | AB25: - | AC25: - | AD25: - | AE25: - | AF25: - | AG25: - | AH25: - | AI25: - | AJ25: - | AK25: - | AL25: - | AM25: - | AN25: - | AO25: - | AP25: - | AQ25: - | AR25: - | AS25: 50 | AT25: - | AU25: - | AV25: - | AW25: - | AX25: - | AY25: - | AZ25: - | BA25: - | BB25: - | BC25: - | BD25: - | BE25: - | BF25: - | BG25: - | BH25: - | BI25: - | BJ25: - | BK25: - | BL25: - | BM25: - | BN25: - | BO25: - | BP25: - | BQ25: - | BR25: - | BS25: -
A26: Sc1 | B26: Cat 637G | C26: Scraper | D26: 39.81 | E26: =Equipment[[#This Row],[Fuel Consumption (gal/hr)]]*$C$57 -> 107.8851 | F26: 25.4 | G26: 8.89 | H26: 8.35 | I26: 27596.56 | J26: 13.24 | K26: =Equipment[[#This Row],[Monthly Rental Rate ($/month)]]/176 -> 156.7986364 | L26: =SUM(K26,J26,H26,F26,Equipment[[#This Row],[Field Parts & Ground Engaging Component Cost ($/hr)]]) -> 212.6786364 | M26: - | N26: - | O26: 3.2483 | P26: -1.9562 | Q26: 0.4337 | R26: -0.0026 | S26: 0.001 | T26: 0 | U26: -0.3247 | V26: 0.1601 | W26: -0.0038 | X26: 0.0011 | Y26: 0.6464 | Z26: -0.6147 | AA26: 0.1749 | AB26: -0.0004 | AC26: 0.0011 | AD26: 0 | AE26: 0 | AF26: 0.0367 | AG26: 0.0018 | AH26: 0.0009 | AI26: 33 | AJ26: =Equipment[[#This Row],[Loaded Speed (mph)4]] -> 33 | AK26: - | AL26: - | AM26: - | AN26: - | AO26: - | AP26: - | AQ26: - | AR26: - | AS26: 50 | AT26: - | AU26: - | AV26: - | AW26: - | AX26: - | AY26: - | AZ26: - | BA26: - | BB26: - | BC26: 24 | BD26: 34 | BE26: - | BF26: - | BG26: - | BH26: - | BI26: 0.025 | BJ26: - | BK26: - | BL26: 81600 | BM26: 0.85 | BN26: 0.65 | BO26: 0.1 | BP26: =Equipment[[#This Row],[Load Time (min)]]*1.4 -> 1.19 | BQ26: 0.15 | BR26: Equipment Operator IV | BS26: =VLOOKUP(BR26,$B$65:$C$74,2) -> 28.65
A27: Sc2 | B27: Cat 657G | C27: Scraper | D27: 48.35 | E27: =Equipment[[#This Row],[Fuel Consumption (gal/hr)]]*$C$57 -> 131.0285 | F27: 35.22 | G27: 14.03 | H27: 13.18 | I27: 27596.56 | J27: 13.24 | K27: =Equipment[[#This Row],[Monthly Rental Rate ($/month)]]/176 -> 156.7986364 | L27: =SUM(K27,J27,H27,F27,Equipment[[#This Row],[Field Parts & Ground Engaging Component Cost ($/hr)]]) -> 232.4686364 | M27: - | N27: - | O27: 0.3036 | P27: -0.4512 | Q27: 0.2181 | R27: -0.0034 | S27: 0.0013 | T27: 0 | U27: -0.1016 | V27: 0.0774 | W27: -0.0013 | X27: 0.0012 | Y27: 0 | Z27: -0.1612 | AA27: 0.1031 | AB27: -0.0081 | AC27: 0.0016 | AD27: 0 | AE27: 0.1668 | AF27: -0.094 | AG27: 0.0207 | AH27: 0.0004 | AI27: 33 | AJ27: =Equipment[[#This Row],[Loaded Speed (mph)4]] -> 33 | AK27: - | AL27: - | AM27: - | AN27: - | AO27: - | AP27: - | AQ27: - | AR27: - | AS27: 50 | AT27: - | AU27: - | AV27: - | AW27: - | AX27: - | AY27: - | AZ27: - | BA27: - | BB27: - | BC27: 32 | BD27: 44 | BE27: - | BF27: - | BG27: - | BH27: - | BI27: 0.025 | BJ27: - | BK27: - | BL27: 104000 | BM27: 0.85 | BN27: 0.65 | BO27: 0.1 | BP27: 1.19 | BQ27: 0.15 | BR27: Equipment Operator IV | BS27: 28.65
A28: Sh1 | B28: Hitachi EX3600-5 | C28: Shovel2,7 | D28: 82.72 | E28: =Equipment[[#This Row],[Fuel Consumption (gal/hr)]]*$C$57 -> 224.1712 | F28: 60 | G28: 40.67 | H28: 0 | I28: 69269 | J28: 14.94 | K28: =Equipment[[#This Row],[Monthly Rental Rate ($/month)]]/176 -> 393.5738636 | L28: =SUM(K28,J28,H28,F28,Equipment[[#This Row],[Field Parts & Ground Engaging Component Cost ($/hr)]]) -> 509.1838636 | M28: - | N28: - | O28: - | P28: - | Q28: - | R28: - | S28: - | T28: - | U28: - | V28: - | W28: - | X28: - | Y28: - | Z28: - | AA28: - | AB28: - | AC28: - | AD28: - | AE28: - | AF28: - | AG28: - | AH28: - | AI28: - | AJ28: - | AK28: - | AL28: - | AM28: - | AN28: - | AO28: - | AP28: - | AQ28: - | AR28: - | AS28: 50 | AT28: - | AU28: - | AV28: - | AW28: - | AX28: - | AY28: - | AZ28: =Equipment[[#This Row],[Heaped Capacity (cy)]]*Equipment[[#This Row],[Bucket Fill Factor]] -> 28.085 | BA28: 0.45 | BB28: 1.025 | BC28: - | BD28: 27.4 | BE28: - | BF28: - | BG28: - | BH28: - | BI28: - | BJ28: - | BK28: - | BL28: - | BM28: - | BN28: - | BO28: - | BP28: - | BQ28: - | BR28: Equipment Operator VII | BS28: 28.97
A29: Tc1 | B29: Deere 7430 | C29: Tractor | D29: 5.98 | E29: =Equipment[[#This Row],[Fuel Consumption (gal/hr)]]*$C$57 -> 16.2058 | F29: 2.83 | G29: 0.48 | H29: 0.8 | I29: 3677.82 | J29: 2.62 | K29: =Equipment[[#This Row],[Monthly Rental Rate ($/month)]]/176 -> 20.89670455 | L29: =SUM(K29,J29,H29,F29,Equipment[[#This Row],[Field Parts & Ground Engaging Component Cost ($/hr)]]) -> 27.62670455 | M29: - | N29: - | O29: - | P29: - | Q29: - | R29: - | S29: - | T29: - | U29: - | V29: - | W29: - | X29: - | Y29: - | Z29: - | AA29: - | AB29: - | AC29: - | AD29: - | AE29: - | AF29: - | AG29: - | AH29: - | AI29: 3 | AJ29: =Equipment[[#This Row],[Loaded Speed (mph)4]] -> 3 | AK29: - | AL29: - | AM29: - | AN29: - | AO29: - | AP29: - | AQ29: - | AR29: - | AS29: 50 | AT29: 12 | AU29: - | AV29: - | AW29: - | AX29: - | AY29: - | AZ29: - | BA29: - | BB29: - | BC29: - | BD29: - | BE29: - | BF29: - | BG29: - | BH29: - | BI29: - | BJ29: - | BK29: - | BL29: - | BM29: - | BN29: - | BO29: - | BP29: - | BQ29: - | BR29: Truck Driver III | BS29: 24.57
A30: Tk1 | B30: Komatsu HD-1500 5 | C30: Truck7 | D30: 26.86 | E30: =Equipment[[#This Row],[Fuel Consumption (gal/hr)]]*$C$57 -> 72.7906 | F30: 19.76 | G30: 1.33 | H30: 18.78 | I30: 25211.93 | J30: 7.72 | K30: =Equipment[[#This Row],[Monthly Rental Rate ($/month)]]/176 -> 143.2496023 | L30: =SUM(K30,J30,H30,F30,Equipment[[#This Row],[Field Parts & Ground Engaging Component Cost ($/hr)]]) -> 190.8396023 | M30: - | N30: - | O30: 4.494 | P30: -2.4571 | Q30: 0.6319 | R30: -0.0051 | S30: 0.0011 | T30: 0 | U30: -0.2561 | V30: 0.1351 | W30: -0.0004 | X30: 0.001 | Y30: 0 | Z30: 0 | AA30: 0.0856 | AB30: 0.0135 | AC30: 0.0009 | AD30: 0 | AE30: 0 | AF30: 0 | AG30: 0.0143 | AH30: 0.0005 | AI30: 35.1 | AJ30: =Equipment[[#This Row],[Loaded Speed (mph)4]] -> 35.1 | AK30: - | AL30: - | AM30: - | AN30: - | AO30: - | AP30: - | AQ30: - | AR30: - | AS30: 50 | AT30: - | AU30: - | AV30: - | AW30: - | AX30: - | AY30: - | AZ30: - | BA30: - | BB30: - | BC30: 71 | BD30: 102 | BE30: - | BF30: - | BG30: - | BH30: - | BI30: 0.025 | BJ30: 0.7 | BK30: 1.1 | BL30: - | BM30: - | BN30: - | BO30: - | BP30: - | BQ30: - | BR30: Truck Driver VIII | BS30: 25.16
A31: Tk2 | B31: Cat 769D | C31: Truck | D31: 8.31 | E31: =Equipment[[#This Row],[Fuel Consumption (gal/hr)]]*$C$57 -> 22.5201 | F31: 8.39 | G31: 1.06 | H31: 9.8 | I31: 13458.16 | J31: 4.46 | K31: =Equipment[[#This Row],[Monthly Rental Rate ($/month)]]/176 -> 76.46681818 | L31: =SUM(K31,J31,H31,F31,Equipment[[#This Row],[Field Parts & Ground Engaging Component Cost ($/hr)]]) -> 100.1768182 | M31: - | N31: - | O31: 0.5429 | P31: -0.487 | Q31: 0.1823 | R31: 0.0151 | S31: 0.0007 | T31: 0 | U31: 0.0224 | V31: -0.0076 | W31: 0.0141 | X31: 0.0007 | Y31: 0 | Z31: 0 | AA31: -0.0808 | AB31: 0.426 | AC31: -0.0008 | AD31: 5.6146 | AE31: -3.6353 | AF31: 0.7823 | AG31: -0.0535 | AH31: 0.002 | AI31: 47 | AJ31: =Equipment[[#This Row],[Loaded Speed (mph)4]] -> 47 | AK31: - | AL31: - | AM31: - | AN31: - | AO31: - | AP31: - | AQ31: - | AR31: - | AS31: 50 | AT31: - | AU31: - | AV31: - | AW31: - | AX31: - | AY31: - | AZ31: - | BA31: - | BB31: - | BC31: 22.2 | BD31: 31.7 | BE31: - | BF31: - | BG31: - | BH31: - | BI31: 0.025 | BJ31: 0.7 | BK31: 1.1 | BL31: - | BM31: - | BN31: - | BO31: - | BP31: - | BQ31: - | BR31: Truck Driver VII | BS31: 24.65
A32: Tk3 | B32: Cat 725 | C32: Truck | D32: 6.02 | E32: =Equipment[[#This Row],[Fuel Consumption (gal/hr)]]*$C$57 -> 16.3142 | F32: 5.59 | G32: 0.83 | H32: 8.6 | I32: 9821.52 | J32: 3.47 | K32: =Equipment[[#This Row],[Monthly Rental Rate ($/month)]]/176 -> 55.80409091 | L32: =SUM(K32,J32,H32,F32,Equipment[[#This Row],[Field Parts & Ground Engaging Component Cost ($/hr)]]) -> 74.29409091 | M32: - | N32: - | O32: 0.1363 | P32: 0.1636 | Q32: -0.04 | R32: 0.0342 | S32: 0.0009 | T32: 0 | U32: -0.024 | V32: 0.0309 | W32: 0.0099 | X32: 0.001 | Y32: 0 | Z32: 2.5262 | AA32: -0.7562 | AB32: 0.095 | AC32: -0.002 | AD32: 0 | AE32: 0 | AF32: 0 | AG32: 0.0103 | AH32: 0.0009 | AI32: 34 | AJ32: =Equipment[[#This Row],[Loaded Speed (mph)4]] -> 34 | AK32: - | AL32: - | AM32: - | AN32: - | AO32: - | AP32: - | AQ32: - | AR32: - | AS32: 50 | AT32: - | AU32: - | AV32: - | AW32: - | AX32: - | AY32: - | AZ32: - | BA32: - | BB32: - | BC32: 14.3 | BD32: 18.8 | BE32: - | BF32: - | BG32: - | BH32: - | BI32: 0.025 | BJ32: 0.7 | BK32: 1.1 | BL32: - | BM32: - | BN32: - | BO32: - | BP32: - | BQ32: - | BR32: Truck Driver VI | BS32: 24.65
A33: Tk4 | B33: Komatsu 730E | C33: Truck3 | D33: 28.6 | E33: =Equipment[[#This Row],[Fuel Consumption (gal/hr)]]*$C$57 -> 77.506 | F33: 19.19 | G33: 1.8 | H33: 21.21 | I33: 29356.97 | J33: 12.35 | K33: =Equipment[[#This Row],[Monthly Rental Rate ($/month)]]/176 -> 166.8009659 | L33: =SUM(K33,J33,H33,F33,Equipment[[#This Row],[Field Parts & Ground Engaging Component Cost ($/hr)]]) -> 221.3509659 | M33: - | N33: - | O33: 7.5599 | P33: -2.711 | Q33: 0.4209 | R33: 0.005 | S33: 0.0011 | T33: 0 | U33: -0.0689 | V33: 0.0501 | W33: 0.0052 | X33: 0.001 | Y33: - | Z33: -1.1878 | AA33: 0.325 | AB33: 0.0042 | AC33: 0.001 | AD33: -3.4907 | AE33: 2.4171 | AF33: -0.55 | AG33: 0.0643 | AH33: -0.0011 | AI33: 35.5 | AJ33: =Equipment[[#This Row],[Loaded Speed (mph)4]] -> 35.5 | AK33: - | AL33: - | AM33: - | AN33: - | AO33: - | AP33: - | AQ33: - | AR33: - | AS33: 50 | AT33: - | AU33: - | AV33: - | AW33: - | AX33: - | AY33: - | AZ33: - | BA33: - | BB33: - | BC33: 101 | BD33: 145 | BE33: - | BF33: - | BG33: - | BH33: - | BI33: 0.025 | BJ33: 0.7 | BK33: 1.1 | BL33: - | BM33: - | BN33: - | BO33: - | BP33: - | BQ33: - | BR33: Truck Driver VIII | BS33: 25.16
A34: Tk5 | B34: Cat 777F | C34: Truck | D34: 13.94 | E34: =Equipment[[#This Row],[Fuel Consumption (gal/hr)]]*$C$57 -> 37.7774 | F34: 18.85 | G34: 2.8 | H34: 24.83 | I34: 54000 | J34: 6.6 | K34: =Equipment[[#This Row],[Monthly Rental Rate ($/month)]]/176 -> 306.8181818 | L34: =SUM(K34,J34,H34,F34,Equipment[[#This Row],[Field Parts & Ground Engaging Component Cost ($/hr)]]) -> 359.8981818 | M34: - | N34: - | O34: 6.4372 | P34: -3.2933 | Q34: 0.6548 | R34: -0.005 | S34: 0.0009 | T34: 0 | U34: -0.0197 | V34: 0.0276 | W34: 0.011 | X34: 0.0008 | Y34: 2.147 | Z34: -1.9812 | AA34: 0.5102 | AB34: -0.0158 | AC34: 0.0009 | AD34: 0.7651 | AE34: -0.3831 | AF34: 0.0898 | AG34: -0.0001 | AH34: 0.0008 | AI34: 40.1 | AJ34: =Equipment[[#This Row],[Loaded Speed (mph)4]] -> 40.1 | AK34: - | AL34: - | AM34: - | AN34: - | AO34: - | AP34: - | AQ34: - | AR34: - | AS34: 50 | AT34: - | AU34: - | AV34: - | AW34: - | AX34: - | AY34: - | AZ34: - | BA34: - | BB34: - | BC34: 54.8 | BD34: 78.8 | BE34: - | BF34: - | BG34: - | BH34: - | BI34: 0.025 | BJ34: 0.7 | BK34: 1.1 | BL34: - | BM34: - | BN34: - | BO34: - | BP34: - | BQ34: - | BR34: Truck Driver VIII | BS34: 25.16
A35: Tk6 | B35: Cat 740 | C35: Truck | D35: 8.07 | E35: =Equipment[[#This Row],[Fuel Consumption (gal/hr)]]*$C$57 -> 21.8697 | F35: 7.63 | G35: 0.94 | H35: 10.64 | I35: 17608.63 | J35: 4.48 | K35: =Equipment[[#This Row],[Monthly Rental Rate ($/month)]]/176 -> 100.0490341 | L35: =SUM(K35,J35,H35,F35,Equipment[[#This Row],[Field Parts & Ground Engaging Component Cost ($/hr)]]) -> 123.7390341 | M35: - | N35: - | O35: 0 | P35: 0.0816 | Q35: 0.0156 | R35: 0.0275 | S35: 0.001 | T35: 0.7129 | U35: -0.6368 | V35: 0.1914 | W35: -0.0045 | X35: 0.0011 | Y35: 0 | Z35: 2.047 | AA35: -0.7996 | AB35: 0.122 | AC35: -0.0031 | AD35: 0 | AE35: -0.2405 | AF35: 0.1502 | AG35: -0.015 | AH35: 0.0014 | AI35: 34 | AJ35: =Equipment[[#This Row],[Loaded Speed (mph)4]] -> 34 | AK35: - | AL35: - | AM35: - | AN35: - | AO35: - | AP35: - | AQ35: - | AR35: - | AS35: 50 | AT35: - | AU35: - | AV35: - | AW35: - | AX35: - | AY35: - | AZ35: - | BA35: - | BB35: - | BC35: 23.3 | BD35: 30.2 | BE35: - | BF35: - | BG35: - | BH35: - | BI35: 0.025 | BJ35: 0.7 | BK35: 1.1 | BL35: - | BM35: - | BN35: - | BO35: - | BP35: - | BQ35: - | BR35: Truck Driver VII | BS35: 24.65
A36: Tw1 | B36: Off-Hwy Water Tanker Truck,6,000-gal. | C36: WaterTruck | D36: 11.25 | E36: =Equipment[[#This Row],[Fuel Consumption (gal/hr)]]*$C$57 -> 30.4875 | F36: 6.26 | G36: 1.48 | H36: 6.42 | I36: 9337.26 | J36: 7.46 | K36: =Equipment[[#This Row],[Monthly Rental Rate ($/month)]]/176 -> 53.05261364 | L36: =SUM(K36,J36,H36,F36,Equipment[[#This Row],[Field Parts & Ground Engaging Component Cost ($/hr)]]) -> 74.67261364 | M36: - | N36: - | O36: - | P36: - | Q36: - | R36: - | S36: - | T36: - | U36: - | V36: - | W36: - | X36: - | Y36: - | Z36: - | AA36: - | AB36: - | AC36: - | AD36: - | AE36: - | AF36: - | AG36: - | AH36: - | AI36: - | AJ36: - | AK36: - | AL36: - | AM36: - | AN36: - | AO36: - | AP36: - | AQ36: - | AR36: - | AS36: 50 | AT36: - | AU36: - | AV36: - | AW36: - | AX36: - | AY36: - | AZ36: - | BA36: - | BB36: - | BC36: - | BD36: - | BE36: - | BF36: - | BG36: - | BH36: - | BI36: - | BJ36: - | BK36: - | BL36: - | BM36: - | BN36: - | BO36: - | BP36: - | BQ36: - | BR36: Truck Driver V | BS36: 24.65
A37: Tw2 | B37: Off-Hwy Water Tanker Truck,10,000-gal. | C37: WaterTruck | D37: 15.35 | E37: =Equipment[[#This Row],[Fuel Consumption (gal/hr)]]*$C$57 -> 41.5985 | F37: 9.19 | G37: 2.43 | H37: 10.47 | I37: 13459.02 | J37: 10.65 | K37: =Equipment[[#This Row],[Monthly Rental Rate ($/month)]]/176 -> 76.47170455 | L37: =SUM(K37,J37,H37,F37,Equipment[[#This Row],[Field Parts & Ground Engaging Component Cost ($/hr)]]) -> 109.2117045 | M37: - | N37: - | O37: - | P37: - | Q37: - | R37: - | S37: - | T37: - | U37: - | V37: - | W37: - | X37: - | Y37: - | Z37: - | AA37: - | AB37: - | AC37: - | AD37: - | AE37: - | AF37: - | AG37: - | AH37: - | AI37: - | AJ37: - | AK37: - | AL37: - | AM37: - | AN37: - | AO37: - | AP37: - | AQ37: - | AR37: - | AS37: 50 | AT37: - | AU37: - | AV37: - | AW37: - | AX37: - | AY37: - | AZ37: - | BA37: - | BB37: - | BC37: - | BD37: - | BE37: - | BF37: - | BG37: - | BH37: - | BI37: - | BJ37: - | BK37: - | BL37: - | BM37: - | BN37: - | BO37: - | BP37: - | BQ37: - | BR37: Truck Driver VIII | BS37: 25.16
A38: X1 | B38: 2 Deck Screening Plant (5X16, 48X60) | C38: ScreenPlant | D38: 4.85 | E38: =Equipment[[#This Row],[Fuel Consumption (gal/hr)]]*$C$57 -> 13.1435 | F38: 2.44 | G38: 1.15 | H38: 0.4 | I38: 12697.08 | J38: 4.61 | K38: =Equipment[[#This Row],[Monthly Rental Rate ($/month)]]/176 -> 72.1425 | L38: =SUM(K38,J38,H38,F38,Equipment[[#This Row],[Field Parts & Ground Engaging Component Cost ($/hr)]]) -> 80.7425 | M38: - | N38: - | O38: - | P38: - | Q38: - | R38: - | S38: - | T38: - | U38: - | V38: - | W38: - | X38: - | Y38: - | Z38: - | AA38: - | AB38: - | AC38: - | AD38: - | AE38: - | AF38: - | AG38: - | AH38: - | AI38: - | AJ38: - | AK38: - | AL38: - | AM38: - | AN38: - | AO38: - | AP38: - | AQ38: - | AR38: - | AS38: 50 | AT38: - | AU38: - | AV38: - | AW38: - | AX38: - | AY38: - | AZ38: - | BA38: - | BB38: - | BC38: - | BD38: - | BE38: - | BF38: - | BG38: - | BH38: - | BI38: - | BJ38: - | BK38: - | BL38: - | BM38: - | BN38: - | BO38: - | BP38: - | BQ38: - | BR38: Laborer I | BS38: 23.88
A39: X2 | B39: 3 Deck Screening Plant (5X16, 48X60) | C39: ScreenPlant | D39: 4.85 | E39: =Equipment[[#This Row],[Fuel Consumption (gal/hr)]]*$C$57 -> 13.1435 | F39: 2.48 | G39: 1.24 | H39: 0.39 | I39: 17872.04 | J39: 4.77 | K39: =Equipment[[#This Row],[Monthly Rental Rate ($/month)]]/176 -> 101.5456818 | L39: =SUM(K39,J39,H39,F39,Equipment[[#This Row],[Field Parts & Ground Engaging Component Cost ($/hr)]]) -> 110.4256818 | M39: - | N39: - | O39: - | P39: - | Q39: - | R39: - | S39: - | T39: - | U39: - | V39: - | W39: - | X39: - | Y39: - | Z39: - | AA39: - | AB39: - | AC39: - | AD39: - | AE39: - | AF39: - | AG39: - | AH39: - | AI39: - | AJ39: - | AK39: - | AL39: - | AM39: - | AN39: - | AO39: - | AP39: - | AQ39: - | AR39: - | AS39: 50 | AT39: - | AU39: - | AV39: - | AW39: - | AX39: - | AY39: - | AZ39: - | BA39: - | BB39: - | BC39: - | BD39: - | BE39: - | BF39: - | BG39: - | BH39: - | BI39: - | BJ39: - | BK39: - | BL39: - | BM39: - | BN39: - | BO39: - | BP39: - | BQ39: - | BR39: Laborer I | BS39: 23.88
A40: X3 | B40: 1 Deck Screening Plant (5X16, 48X60) | C40: ScreenPlant | D40: 4.85 | E40: =Equipment[[#This Row],[Fuel Consumption (gal/hr)]]*$C$57 -> 13.1435 | F40: 2.42 | G40: 1.14 | H40: 0.39 | I40: 11625 | J40: 4.61 | K40: =Equipment[[#This Row],[Monthly Rental Rate ($/month)]]/176 -> 66.05113636 | L40: =SUM(K40,J40,H40,F40,Equipment[[#This Row],[Field Parts & Ground Engaging Component Cost ($/hr)]]) -> 74.61113636 | M40: - | N40: - | O40: - | P40: - | Q40: - | R40: - | S40: - | T40: - | U40: - | V40: - | W40: - | X40: - | Y40: - | Z40: - | AA40: - | AB40: - | AC40: - | AD40: - | AE40: - | AF40: - | AG40: - | AH40: - | AI40: - | AJ40: - | AK40: - | AL40: - | AM40: - | AN40: - | AO40: - | AP40: - | AQ40: - | AR40: - | AS40: 50 | AT40: - | AU40: - | AV40: - | AW40: - | AX40: - | AY40: - | AZ40: - | BA40: - | BB40: - | BC40: - | BD40: - | BE40: - | BF40: - | BG40: - | BH40: - | BI40: - | BJ40: - | BK40: - | BL40: - | BM40: - | BN40: - | BO40: - | BP40: - | BQ40: - | BR40: Laborer I | BS40: 23.88
A41: X4 | B41: 3 Deck Screening Plant (5X16, 42X60) | C41: ScreenPlant | D41: 4.85 | E41: =Equipment[[#This Row],[Fuel Consumption (gal/hr)]]*$C$57 -> 13.1435 | F41: 2.43 | G41: 1.16 | H41: 0.37 | I41: 17872.04 | J41: 4.77 | K41: =Equipment[[#This Row],[Monthly Rental Rate ($/month)]]/176 -> 101.5456818 | L41: =SUM(K41,J41,H41,F41,Equipment[[#This Row],[Field Parts & Ground Engaging Component Cost ($/hr)]]) -> 110.2756818 | M41: - | N41: - | O41: - | P41: - | Q41: - | R41: - | S41: - | T41: - | U41: - | V41: - | W41: - | X41: - | Y41: - | Z41: - | AA41: - | AB41: - | AC41: - | AD41: - | AE41: - | AF41: - | AG41: - | AH41: - | AI41: - | AJ41: - | AK41: - | AL41: - | AM41: - | AN41: - | AO41: - | AP41: - | AQ41: - | AR41: - | AS41: 50 | AT41: - | AU41: - | AV41: - | AW41: - | AX41: - | AY41: - | AZ41: - | BA41: - | BB41: - | BC41: - | BD41: - | BE41: - | BF41: - | BG41: - | BH41: - | BI41: - | BJ41: - | BK41: - | BL41: - | BM41: - | BN41: - | BO41: - | BP41: - | BQ41: - | BR41: Laborer I | BS41: 23.88
B43: NOTES
B44: 1 Loader Cycle Time = load, dump, and maneuver time
B45: 2 Performance information is unavailable for the Hitachi EX3600-5; therefore, performance information for the Caterpillar 5230B FS has been used
B46: 3 Performance information is unavailable for the Komatsu 730E; therefore, performance information for the Caterpillar 789D has been used
B47: 4 Maximum loaded speed listed for trucks and scrapers
B48: 5 Equipment costs use 176 max work hours per month (from Bluebook)
B49: 6 Fuel consumption assumed to be the same for the D11T and D11T CD (fuel consumption information unavailble for the D11T CD in EquipmentWatch)
B50: 7 Rental rates and component costs for Hitachi EX3600-5 and Komatsu HD-1500 5 from Oct 2021
B52: Not all equipment is used in this RCE. Extra equiment is kept for alternatives and testing purposes and to maintain spreadsheet integrity
B55: FUEL
D56: Reference
B57: Earthwork Oil Broker Quote ($/gal) | C57: ='Unit Rates'!C11 -> 2.71 | D57: 2
B61: EARTHWORK AND O&M LABOR
C62: Total 2021
B63: NMDOL Type A | C63: Rate
B64: Operator Group | C64: ($/hr) | D64: Reference
B65: Equipment Operator IV | C65: 28.65 | D65: 3
B66: Equipment Operator V | C66: 28.77 | D66: 3
B67: Equipment Operator VI | C67: 28.95 | D67: 3
B68: Equipment Operator VII | C68: 28.97 | D68: 3
B69: Equipment Operator VIII | C69: 30.93 | D69: 3
B70: Laborer I | C70: 23.88 | D70: 3
B71: Laborer II | C71: 24.63 | D71: 3
B72: Truck Driver III | C72: 24.57 | D72: 3
B73: Truck Driver V | C73: 24.65 | D73: 3
B74: Truck Driver VIII | C74: 25.16 | D74: 3
B79: Equipment costs use 176 max work hours per month (from Bluebook)
B81: References
B82: 1. Equipment unit rates from EquipmentWatch Custom Cost Evaluator January 2021 (http://www.equipmentwatch.com). See attachments for rate development. Excavator capacity and maximum reach at ground level from EquipmentWatch.
B83: 2. Diesel fuel cost is estimated based on a predictive equation developed by correlating U.S. No. 2 diesel retail prices (U.S. Energy Information Administration) and FMI local fuel quotes, as agreed upon in November 2018 discussions with the agencies. The correlation is based on a dataset for the period from 1995-2018. Fuel cost includes direct and indirect costs.
B84: 3. Labor rates based on New Mexico Department of Labor (NMDOL) Type H (Heavy Engineering) 2021 labor rates. Rates include base hourly wage, fringe benefit, and apprenticeship contribution rates.
B85: https://www.dws.state.nm.us/Portals/0/DM/LaborRelations/Prevailing_Wage_Poster_H_2021.pdf
B86: 4. Production and Haul rates from Caterpillar Performance Handbook; Equipment paramters from Caterpillar Performance Handbook

Sheet 1 General
C1: Emma Mine
C2: Stockpile Spreadsheet Worksheet #1
A3: General Information | C3: 44512
A5: Applicant | B5: Emma Mine
B6: Freeport McMoRan Tyrone Inc.
B7: Tyrone, New Mexico 88065
A11: Disturbed Surface Area (acres) | B11: ='18b Facility Characteristics'!L9 -> 249.2351924
A14: Type of Operation | B14: Surface/Copper
A18: Current value of earthwork and O&M before escalation and discounting | B18: ='17 Sum'!D18+'3 Full Site O&M Summ'!D17 -> 7837334.292
C23: Stockpiles,
C24: Reservoirs, Haul Roads
A25: EOY 2026 Mine Plan | C25: and Disturbed Areas

Sheet 2 Demo
I1: ='1 General'!C1 -> Emma Mine
I2: Stockpile Spreadsheet Worksheet #2
A3: Demolition | I3: ='1 General'!C3 -> 44512
A10: Item | B10: Material | C10: Quantity | D10: Unit | E10: Unit Cost ($/unit) | F10: Direct Item Cost ($) | G10: Reference | H10: Means Line Item | I10: Description
A11: Culvert Removal | B11: CMP | C11: =400*2 -> 800 | D11: ft | E11: ='Unit Rates'!C47 -> 12.46 | F11: =Demo[[#This Row],[Quantity]]*Demo[[#This Row],[Unit Cost ($/unit)]] -> 9968 | G11: R.S. Means | H11: 024113.40 0190 | I11: ='Unit Rates'!G47 -> Selective demolition, metal drainage piping, CMP, steel, 48"-60", diameter, excludes excavation
E14: Total Direct Cost: | F14: =SUM(F11:F11) -> 9968
A22: Data Sources:

Sheet 3 Material
K1: ='1 General'!C1 -> Emma Mine
K2: Stockpile Spreadsheet Worksheet #3
F3: Material Handling Plan Summary Sheet | K3: ='1 General'!$C$3 -> 44512
F4: All activities for the Emma RCE are listed on this sheet and carried through the succeeding worksheets of the RCE. The column labeled ID contains the codes for the facility location, activity, material and equipment used for that particular row of work. The description lists the activity, top or outslope (if applicable), and the material. The source location lists the stockpile name (or sub-area) for the location of the activity. If borrow material is involved, it is transported from a borrow stockpile to a destination stockpile. Blank cells indicate that that column is not relevant to a particular activity.
F6: Notes and Assumptions:
A7: Truck = | B7: Tk4 | F7: 1 - Haul/Push Distance based on 2021 Emma CCP drawings 2 - Haul Grades based on 2021 Emma CCP drawings 3 - Grade Factors from 2021 Emma CCP drawings
A8: Shovel = | B8: Sh1
A14: Item | B14: Activity | C14: Material | D14: Eq | E14: ID | F14: Description | G14: Source Location 1 | H14: Destination Location 2 | I14: Total Haul/Push Distance (ft)1 | J14: Grade (%)2,3 | K14: Equipment
A15: =Quantities!$A$6 -> 1002 | B15: A | C15: a | D15: Dz2 | E15: =CONCATENATE(TEXT(A15,"0"),"-",B15,"-",C15,"-",D15) -> 1002-A-a-Dz2 | F15: =IF(D15="Comb1",CONCATENATE(VLOOKUP(B15,'Activity-Material_Codes'!$A$2:$B$28,Quantities!$B$2),"-",VLOOKUP(A15,Quantities[],Quantities!$D$2)), CONCATENATE( VLOOKUP(B15,'Activity-Material_Codes'!$A$2:$B$30,Quantities!$B$2), IF(AND(B15="B",C15="a"), " Scraper Grading", ""), IF(C15="b","","-"), IF(C15="b","",VLOOKUP(A15,Quantities[],Quantities!$D$2)), IF(LEFT(TEXT(A15,"0"),1)="5","","-"), IF(LEFT(TEXT(A15,"0"),1)="5","",VLOOKUP(C15,'Activity-Material_Codes'!$A$34:$B$40,Quantities!$B$2)) )) -> Grade-Outslopes-Existing Ground | G15: =IF(C15="f",VLOOKUP(A15,Quantities[],Quantities!$B$2), CONCATENATE( IF(OR(RIGHT(TEXT($A15,"0"),Quantities!$B$2)="00",LEFT(TEXT($A15,"0"),1)="5",OR($C15="b",$C15="f")),"",VLOOKUP($A15,Quantities[],Quantities!$B$2)), IF(LEFT(TEXT($A15,"0"),1)="5",""," "), IF(OR(C15="a",C15="c",C15="d",C15="e"),IF(OR(RIGHT(TEXT($A15,"0"),Quantities!$B$2)="00",LEFT(TEXT($A15,"0"),1)="5"),VLOOKUP($A15,Quantities[],Quantities!$B$2),""), IF(LEFT(TEXT($A15,"0"),1)="5",VLOOKUP($A15,Quantities[],Quantities!$B$2), VLOOKUP(INDEX(Quantities!$A$24:$A$25,MATCH($A15,Quantities!$C$24:$C$25)),Quantities!$A$24:$B$25,Quantities!$B$2))))) -> EMW Waste | H15: =IF(LEFT(TEXT(A15,"0"),1)="5", VLOOKUP(VLOOKUP(A15,Quantities!$A$4:$D$25,Quantities!$C$2),Quantities!$A$4:$D$25,Quantities!$C$2), IF(OR(C15="a",C15="c",C15="d",C15="e"), "-", IF(RIGHT(TEXT(A15,"0"),2)="00",VLOOKUP(A15,Quantities[],Quantities!$B$2), IF(C15="f",VLOOKUP(A15,Quantities[],Quantities!$B$2), VLOOKUP(A15,Quantities[],Quantities!$C$2)) ))) -> - | I15: =IF(OR(AND(LEFT(D15,2)="Sc",B15="A",OR(C15="d",C15="f")),AND(C15="f",B15="D")), SUM(VLOOKUP($A15,Quantities[],Quantities!$O$2),VLOOKUP($A15,Quantities[],Quantities!$Q$2),VLOOKUP($A15,Quantities[],Quantities!$S$2),VLOOKUP($A15,Quantities[],Quantities!$I$2)), IF(AND(LEFT(D15,2)="Sc",OR(C15="a",C15="f")), VLOOKUP(A15,Quantities[],Quantities!$I$2), IF(AND(B15="D",C15="b"), VLOOKUP(INDEX(Quantities!$A$24:$A$25,MATCH($A15,Quantities!$C$24:$C$25)),Quantities!$A$24:$AN$25,Quantities!$O$2)+ VLOOKUP(INDEX(Quantities!$A$24:$A$25,MATCH($A15,Quantities!$C$24:$C$25)),Quantities!$A$24:$AN$25,Quantities!$Q$2)+ VLOOKUP(INDEX(Quantities!$A$24:$A$25,MATCH($A15,Quantities!$C$24:$C$25)),Quantities!$A$24:$AN$25,Quantities!$S$2), IF(OR(B15="D",B15="Q"), SUM(VLOOKUP($A15,Quantities[],Quantities!$O$2),VLOOKUP($A15,Quantities[],Quantities!$Q$2),VLOOKUP($A15,Quantities[],Quantities!$S$2)), VLOOKUP(A15,Quantities[],Quantities!$G$2) )))) -> 200 | J15: =IF(LEFT(D15,2)="Mg", VLOOKUP(A15,Quantities[],Quantities!$H$2), IF(OR(AND(LEFT(D15,2)="Sc",B15="A",OR(C15="d",C15="f"))), (SUM(VLOOKUP($A15,Quantities[],Quantities!$P$2)*VLOOKUP($A15,Quantities[],Quantities!$O$2),VLOOKUP($A15,Quantities[],Quantities!$R$2)*VLOOKUP($A15,Quantities[],Quantities!$Q$2),VLOOKUP($A15,Quantities[],Quantities!$T$2)*VLOOKUP($A15,Quantities[],Quantities!$S$2)))/SUM(VLOOKUP($A15,Quantities[],Quantities!$O$2),VLOOKUP($A15,Quantities[],Quantities!$Q$2),VLOOKUP($A15,Quantities[],Quantities!$S$2)), IF(AND(LEFT(D15,2)="Sc",OR(C15="a",C15="f")), VLOOKUP(A15,Quantities[],Quantities!$J$2), IF(AND(B15="D",C15="b", (VLOOKUP(INDEX(Quantities!$A$24:$A$25,MATCH($A15,Quantities!$C$24:$C$25)),Quantities[],Quantities!$O$2)+VLOOKUP(INDEX(Quantities!$A$24:$A$25,MATCH($A15,Quantities!$C$24:$C$25)),Quantities[],Quantities!$Q$2)+VLOOKUP(INDEX(Quantities!$A$24:$A$25,MATCH($A15,Quantities!$C$24:$C$25)),Quantities[],Quantities!$S$2))>0), (VLOOKUP(INDEX(Quantities!$A$24:$A$25,MATCH($A15,Quantities!$C$24:$C$25)),Quantities[],Quantities!$P$2)*VLOOKUP(INDEX(Quantities!$A$24:$A$25,MATCH($A15,Quantities!$C$24:$C$25)),Quantities[],Quantities!$O$2) +VLOOKUP(INDEX(Quantities!$A$24:$A$25,MATCH($A15,Quantities!$C$24:$C$25)),Quantities[],Quantities!$R$2)*VLOOKUP(INDEX(Quantities!$A$24:$A$25,MATCH($A15,Quantities!$C$24:$C$25)),Quantities[],Quantities!$Q$2) +VLOOKUP(INDEX(Quantities!$A$24:$A$25,MATCH($A15,Quantities!$C$24:$C$25)),Quantities[],Quantities!$T$2)*VLOOKUP(INDEX(Quantities!$A$24:$A$25,MATCH($A15,Quantities!$C$24:$C$25)),Quantities[],Quantities!$S$2))/ (VLOOKUP(INDEX(Quantities!$A$24:$A$25,MATCH($A15,Quantities!$C$24:$C$25)),Quantities[],Quantities!$O$2)+VLOOKUP(INDEX(Quantities!$A$24:$A$25,MATCH($A15,Quantities!$C$24:$C$25)),Quantities[],Quantities!$Q$2)+VLOOKUP(A15,Quantities[],Quantities!$S$2)), IF(AND(B15="D", (VLOOKUP(A15,Quantities[],Quantities!$O$2)+VLOOKUP(A15,Quantities[],Quantities!$Q$2)+VLOOKUP(A15,Quantities[],Quantities!$S$2))>0), (VLOOKUP(A15,Quantities[],Quantities!$P$2)*VLOOKUP(A15,Quantities[],Quantities!$O$2) +VLOOKUP(A15,Quantities[],Quantities!$R$2)*VLOOKUP(A15,Quantities[],Quantities!$Q$2) +VLOOKUP(A15,Quantities[],Quantities!$T$2)*VLOOKUP(A15,Quantities[],Quantities!$S$2))/ (VLOOKUP(A15,Quantities[],Quantities!$O$2)+VLOOKUP(A15,Quantities[],Quantities!$Q$2)+VLOOKUP(A15,Quantities[],Quantities!$S$2)), IF($B15="Q", (SUM(VLOOKUP($A15,Quantities[],Quantities!$P$2)*VLOOKUP($A15,Quantities[],Quantities!$O$2),VLOOKUP($A15,Quantities[],Quantities!$R$2)*VLOOKUP($A15,Quantities[],Quantities!$Q$2),VLOOKUP($A15,Quantities[],Quantities!$T$2)*VLOOKUP($A15,Quantities[],Quantities!$S$2)))/SUM(VLOOKUP($A15,Quantities[],Quantities!$O$2),VLOOKUP($A15,Quantities[],Quantities!$Q$2),VLOOKUP($A15,Quantities[],Quantities!$S$2)), VLOOKUP(A15,Quantities[],Quantities!$H$2) )))))) -> -0.2857142857 | K15: =IF(LEFT(D15,1)="U","-",VLOOKUP(D15,Equipment[],Equipment!$B$2)) -> Cat D11T CD
A16: =Quantities!$A$8 -> 1101 | B16: A | C16: a | D16: Sc2 | E16: 1101-A-a-Sc2 | F16: =IF(D16="Comb1",CONCATENATE(VLOOKUP(B16,'Activity-Material_Codes'!$A$2:$B$28,Quantities!$B$2),"-",VLOOKUP(A16,Quantities[],Quantities!$D$2)), CONCATENATE( VLOOKUP(B16,'Activity-Material_Codes'!$A$2:$B$30,Quantities!$B$2), IF(AND(B16="B",C16="a"), " Scraper Grading", ""), IF(C16="b","","-"), IF(C16="b","",VLOOKUP(A16,Quantities[],Quantities!$D$2)), IF(LEFT(TEXT(A16,"0"),1)="5","","-"), IF(LEFT(TEXT(A16,"0"),1)="5","",VLOOKUP(C16,'Activity-Material_Codes'!$A$34:$B$40,Quantities!$B$2)) )) -> Grade-Reclaimed Slope Area-Existing Ground | G16: =IF(C16="f",VLOOKUP(A16,Quantities[],Quantities!$B$2), CONCATENATE( IF(OR(RIGHT(TEXT($A16,"0"),Quantities!$B$2)="00",LEFT(TEXT($A16,"0"),1)="5",OR($C16="b",$C16="f")),"",VLOOKUP($A16,Quantities[],Quantities!$B$2)), IF(LEFT(TEXT($A16,"0"),1)="5",""," "), IF(OR(C16="a",C16="c",C16="d",C16="e"),IF(OR(RIGHT(TEXT($A16,"0"),Quantities!$B$2)="00",LEFT(TEXT($A16,"0"),1)="5"),VLOOKUP($A16,Quantities[],Quantities!$B$2),""), IF(LEFT(TEXT($A16,"0"),1)="5",VLOOKUP($A16,Quantities[],Quantities!$B$2), VLOOKUP(INDEX(Quantities!$A$24:$A$25,MATCH($A16,Quantities!$C$24:$C$25)),Quantities!$A$24:$B$25,Quantities!$B$2))))) -> 6HW Waste | H16: =IF(LEFT(TEXT(A16,"0"),1)="5", VLOOKUP(VLOOKUP(A16,Quantities!$A$4:$D$25,Quantities!$C$2),Quantities!$A$4:$D$25,Quantities!$C$2), IF(OR(C16="a",C16="c",C16="d",C16="e"), "-", IF(RIGHT(TEXT(A16,"0"),2)="00",VLOOKUP(A16,Quantities[],Quantities!$B$2), IF(C16="f",VLOOKUP(A16,Quantities[],Quantities!$B$2), VLOOKUP(A16,Quantities[],Quantities!$C$2)) ))) -> - | I16: =IF(OR(AND(LEFT(D16,2)="Sc",B16="A",OR(C16="d",C16="f")),AND(C16="f",B16="D")), SUM(VLOOKUP($A16,Quantities[],Quantities!$O$2),VLOOKUP($A16,Quantities[],Quantities!$Q$2),VLOOKUP($A16,Quantities[],Quantities!$S$2),VLOOKUP($A16,Quantities[],Quantities!$I$2)), IF(AND(LEFT(D16,2)="Sc",OR(C16="a",C16="f")), VLOOKUP(A16,Quantities[],Quantities!$I$2), IF(AND(B16="D",C16="b"), VLOOKUP(INDEX(Quantities!$A$24:$A$25,MATCH($A16,Quantities!$C$24:$C$25)),Quantities!$A$24:$AN$25,Quantities!$O$2)+ VLOOKUP(INDEX(Quantities!$A$24:$A$25,MATCH($A16,Quantities!$C$24:$C$25)),Quantities!$A$24:$AN$25,Quantities!$Q$2)+ VLOOKUP(INDEX(Quantities!$A$24:$A$25,MATCH($A16,Quantities!$C$24:$C$25)),Quantities!$A$24:$AN$25,Quantities!$S$2), IF(OR(B16="D",B16="Q"), SUM(VLOOKUP($A16,Quantities[],Quantities!$O$2),VLOOKUP($A16,Quantities[],Quantities!$Q$2),VLOOKUP($A16,Quantities[],Quantities!$S$2)), VLOOKUP(A16,Quantities[],Quantities!$G$2) )))) -> 1820 | J16: =IF(LEFT(D16,2)="Mg", VLOOKUP(A16,Quantities[],Quantities!$H$2), IF(OR(AND(LEFT(D16,2)="Sc",B16="A",OR(C16="d",C16="f"))), (SUM(VLOOKUP($A16,Quantities[],Quantities!$P$2)*VLOOKUP($A16,Quantities[],Quantities!$O$2),VLOOKUP($A16,Quantities[],Quantities!$R$2)*VLOOKUP($A16,Quantities[],Quantities!$Q$2),VLOOKUP($A16,Quantities[],Quantities!$T$2)*VLOOKUP($A16,Quantities[],Quantities!$S$2)))/SUM(VLOOKUP($A16,Quantities[],Quantities!$O$2),VLOOKUP($A16,Quantities[],Quantities!$Q$2),VLOOKUP($A16,Quantities[],Quantities!$S$2)), IF(AND(LEFT(D16,2)="Sc",OR(C16="a",C16="f")), VLOOKUP(A16,Quantities[],Quantities!$J$2), IF(AND(B16="D",C16="b", (VLOOKUP(INDEX(Quantities!$A$24:$A$25,MATCH($A16,Quantities!$C$24:$C$25)),Quantities[],Quantities!$O$2)+VLOOKUP(INDEX(Quantities!$A$24:$A$25,MATCH($A16,Quantities!$C$24:$C$25)),Quantities[],Quantities!$Q$2)+VLOOKUP(INDEX(Quantities!$A$24:$A$25,MATCH($A16,Quantities!$C$24:$C$25)),Quantities[],Quantities!$S$2))>0), (VLOOKUP(INDEX(Quantities!$A$24:$A$25,MATCH($A16,Quantities!$C$24:$C$25)),Quantities[],Quantities!$P$2)*VLOOKUP(INDEX(Quantities!$A$24:$A$25,MATCH($A16,Quantities!$C$24:$C$25)),Quantities[],Quantities!$O$2) +VLOOKUP(INDEX(Quantities!$A$24:$A$25,MATCH($A16,Quantities!$C$24:$C$25)),Quantities[],Quantities!$R$2)*VLOOKUP(INDEX(Quantities!$A$24:$A$25,MATCH($A16,Quantities!$C$24:$C$25)),Quantities[],Quantities!$Q$2) +VLOOKUP(INDEX(Quantities!$A$24:$A$25,MATCH($A16,Quantities!$C$24:$C$25)),Quantities[],Quantities!$T$2)*VLOOKUP(INDEX(Quantities!$A$24:$A$25,MATCH($A16,Quantities!$C$24:$C$25)),Quantities[],Quantities!$S$2))/ (VLOOKUP(INDEX(Quantities!$A$24:$A$25,MATCH($A16,Quantities!$C$24:$C$25)),Quantities[],Quantities!$O$2)+VLOOKUP(INDEX(Quantities!$A$24:$A$25,MATCH($A16,Quantities!$C$24:$C$25)),Quantities[],Quantities!$Q$2)+VLOOKUP(A16,Quantities[],Quantities!$S$2)), IF(AND(B16="D", (VLOOKUP(A16,Quantities[],Quantities!$O$2)+VLOOKUP(A16,Quantities[],Quantities!$Q$2)+VLOOKUP(A16,Quantities[],Quantities!$S$2))>0), (VLOOKUP(A16,Quantities[],Quantities!$P$2)*VLOOKUP(A16,Quantities[],Quantities!$O$2) +VLOOKUP(A16,Quantities[],Quantities!$R$2)*VLOOKUP(A16,Quantities[],Quantities!$Q$2) +VLOOKUP(A16,Quantities[],Quantities!$T$2)*VLOOKUP(A16,Quantities[],Quantities!$S$2))/ (VLOOKUP(A16,Quantities[],Quantities!$O$2)+VLOOKUP(A16,Quantities[],Quantities!$Q$2)+VLOOKUP(A16,Quantities[],Quantities!$S$2)), IF($B16="Q", (SUM(VLOOKUP($A16,Quantities[],Quantities!$P$2)*VLOOKUP($A16,Quantities[],Quantities!$O$2),VLOOKUP($A16,Quantities[],Quantities!$R$2)*VLOOKUP($A16,Quantities[],Quantities!$Q$2),VLOOKUP($A16,Quantities[],Quantities!$T$2)*VLOOKUP($A16,Quantities[],Quantities!$S$2)))/SUM(VLOOKUP($A16,Quantities[],Quantities!$O$2),VLOOKUP($A16,Quantities[],Quantities!$Q$2),VLOOKUP($A16,Quantities[],Quantities!$S$2)), VLOOKUP(A16,Quantities[],Quantities!$H$2) )))))) -> -0.157 | K16: =IF(LEFT(D16,1)="U","-",VLOOKUP(D16,Equipment[],Equipment!$B$2)) -> Cat 657G
A17: =Quantities!$A$16 -> 1301 | B17: A | C17: f | D17: Dz2 | E17: =CONCATENATE(TEXT(A17,"0"),"-",B17,"-",C17,"-",D17) -> 1301-A-f-Dz2 | F17: =IF(D17="Comb1",CONCATENATE(VLOOKUP(B17,'Activity-Material_Codes'!$A$2:$B$28,Quantities!$B$2),"-",VLOOKUP(A17,Quantities[],Quantities!$D$2)), CONCATENATE( VLOOKUP(B17,'Activity-Material_Codes'!$A$2:$B$30,Quantities!$B$2), IF(AND(B17="B",C17="a"), " Scraper Grading", ""), IF(C17="b","","-"), IF(C17="b","",VLOOKUP(A17,Quantities[],Quantities!$D$2)), IF(LEFT(TEXT(A17,"0"),1)="5","","-"), IF(LEFT(TEXT(A17,"0"),1)="5","",VLOOKUP(C17,'Activity-Material_Codes'!$A$34:$B$40,Quantities!$B$2)) )) -> Grade-Collection Sump-Fill/Stockpile Material | G17: =IF(C17="f",VLOOKUP(A17,Quantities[],Quantities!$B$2), CONCATENATE( IF(OR(RIGHT(TEXT($A17,"0"),Quantities!$B$2)="00",LEFT(TEXT($A17,"0"),1)="5",OR($C17="b",$C17="f")),"",VLOOKUP($A17,Quantities[],Quantities!$B$2)), IF(LEFT(TEXT($A17,"0"),1)="5",""," "), IF(OR(C17="a",C17="c",C17="d",C17="e"),IF(OR(RIGHT(TEXT($A17,"0"),Quantities!$B$2)="00",LEFT(TEXT($A17,"0"),1)="5"),VLOOKUP($A17,Quantities[],Quantities!$B$2),""), IF(LEFT(TEXT($A17,"0"),1)="5",VLOOKUP($A17,Quantities[],Quantities!$B$2), VLOOKUP(INDEX(Quantities!$A$24:$A$25,MATCH($A17,Quantities!$C$24:$C$25)),Quantities!$A$24:$B$25,Quantities!$B$2))))) -> Emma Backfill Areas | H17: =IF(LEFT(TEXT(A17,"0"),1)="5", VLOOKUP(VLOOKUP(A17,Quantities!$A$4:$D$25,Quantities!$C$2),Quantities!$A$4:$D$25,Quantities!$C$2), IF(OR(C17="a",C17="c",C17="d",C17="e"), "-", IF(RIGHT(TEXT(A17,"0"),2)="00",VLOOKUP(A17,Quantities[],Quantities!$B$2), IF(C17="f",VLOOKUP(A17,Quantities[],Quantities!$B$2), VLOOKUP(A17,Quantities[],Quantities!$C$2)) ))) -> Emma Backfill Areas | I17: =IF(OR(AND(LEFT(D17,2)="Sc",B17="A",OR(C17="d",C17="f")),AND(C17="f",B17="D")), SUM(VLOOKUP($A17,Quantities[],Quantities!$O$2),VLOOKUP($A17,Quantities[],Quantities!$Q$2),VLOOKUP($A17,Quantities[],Quantities!$S$2),VLOOKUP($A17,Quantities[],Quantities!$I$2)), IF(AND(LEFT(D17,2)="Sc",OR(C17="a",C17="f")), VLOOKUP(A17,Quantities[],Quantities!$I$2), IF(AND(B17="D",C17="b"), VLOOKUP(INDEX(Quantities!$A$24:$A$25,MATCH($A17,Quantities!$C$24:$C$25)),Quantities!$A$24:$AN$25,Quantities!$O$2)+ VLOOKUP(INDEX(Quantities!$A$24:$A$25,MATCH($A17,Quantities!$C$24:$C$25)),Quantities!$A$24:$AN$25,Quantities!$Q$2)+ VLOOKUP(INDEX(Quantities!$A$24:$A$25,MATCH($A17,Quantities!$C$24:$C$25)),Quantities!$A$24:$AN$25,Quantities!$S$2), IF(OR(B17="D",B17="Q"), SUM(VLOOKUP($A17,Quantities[],Quantities!$O$2),VLOOKUP($A17,Quantities[],Quantities!$Q$2),VLOOKUP($A17,Quantities[],Quantities!$S$2)), VLOOKUP(A17,Quantities[],Quantities!$G$2) )))) -> 200 | J17: =IF(LEFT(D17,2)="Mg", VLOOKUP(A17,Quantities[],Quantities!$H$2), IF(OR(AND(LEFT(D17,2)="Sc",B17="A",OR(C17="d",C17="f"))), (SUM(VLOOKUP($A17,Quantities[],Quantities!$P$2)*VLOOKUP($A17,Quantities[],Quantities!$O$2),VLOOKUP($A17,Quantities[],Quantities!$R$2)*VLOOKUP($A17,Quantities[],Quantities!$Q$2),VLOOKUP($A17,Quantities[],Quantities!$T$2)*VLOOKUP($A17,Quantities[],Quantities!$S$2)))/SUM(VLOOKUP($A17,Quantities[],Quantities!$O$2),VLOOKUP($A17,Quantities[],Quantities!$Q$2),VLOOKUP($A17,Quantities[],Quantities!$S$2)), IF(AND(LEFT(D17,2)="Sc",OR(C17="a",C17="f")), VLOOKUP(A17,Quantities[],Quantities!$J$2), IF(AND(B17="D",C17="b", (VLOOKUP(INDEX(Quantities!$A$24:$A$25,MATCH($A17,Quantities!$C$24:$C$25)),Quantities[],Quantities!$O$2)+VLOOKUP(INDEX(Quantities!$A$24:$A$25,MATCH($A17,Quantities!$C$24:$C$25)),Quantities[],Quantities!$Q$2)+VLOOKUP(INDEX(Quantities!$A$24:$A$25,MATCH($A17,Quantities!$C$24:$C$25)),Quantities[],Quantities!$S$2))>0), (VLOOKUP(INDEX(Quantities!$A$24:$A$25,MATCH($A17,Quantities!$C$24:$C$25)),Quantities[],Quantities!$P$2)*VLOOKUP(INDEX(Quantities!$A$24:$A$25,MATCH($A17,Quantities!$C$24:$C$25)),Quantities[],Quantities!$O$2) +VLOOKUP(INDEX(Quantities!$A$24:$A$25,MATCH($A17,Quantities!$C$24:$C$25)),Quantities[],Quantities!$R$2)*VLOOKUP(INDEX(Quantities!$A$24:$A$25,MATCH($A17,Quantities!$C$24:$C$25)),Quantities[],Quantities!$Q$2) +VLOOKUP(INDEX(Quantities!$A$24:$A$25,MATCH($A17,Quantities!$C$24:$C$25)),Quantities[],Quantities!$T$2)*VLOOKUP(INDEX(Quantities!$A$24:$A$25,MATCH($A17,Quantities!$C$24:$C$25)),Quantities[],Quantities!$S$2))/ (VLOOKUP(INDEX(Quantities!$A$24:$A$25,MATCH($A17,Quantities!$C$24:$C$25)),Quantities[],Quantities!$O$2)+VLOOKUP(INDEX(Quantities!$A$24:$A$25,MATCH($A17,Quantities!$C$24:$C$25)),Quantities[],Quantities!$Q$2)+VLOOKUP(A17,Quantities[],Quantities!$S$2)), IF(AND(B17="D", (VLOOKUP(A17,Quantities[],Quantities!$O$2)+VLOOKUP(A17,Quantities[],Quantities!$Q$2)+VLOOKUP(A17,Quantities[],Quantities!$S$2))>0), (VLOOKUP(A17,Quantities[],Quantities!$P$2)*VLOOKUP(A17,Quantities[],Quantities!$O$2) +VLOOKUP(A17,Quantities[],Quantities!$R$2)*VLOOKUP(A17,Quantities[],Quantities!$Q$2) +VLOOKUP(A17,Quantities[],Quantities!$T$2)*VLOOKUP(A17,Quantities[],Quantities!$S$2))/ (VLOOKUP(A17,Quantities[],Quantities!$O$2)+VLOOKUP(A17,Quantities[],Quantities!$Q$2)+VLOOKUP(A17,Quantities[],Quantities!$S$2)), IF($B17="Q", (SUM(VLOOKUP($A17,Quantities[],Quantities!$P$2)*VLOOKUP($A17,Quantities[],Quantities!$O$2),VLOOKUP($A17,Quantities[],Quantities!$R$2)*VLOOKUP($A17,Quantities[],Quantities!$Q$2),VLOOKUP($A17,Quantities[],Quantities!$T$2)*VLOOKUP($A17,Quantities[],Quantities!$S$2)))/SUM(VLOOKUP($A17,Quantities[],Quantities!$O$2),VLOOKUP($A17,Quantities[],Quantities!$Q$2),VLOOKUP($A17,Quantities[],Quantities!$S$2)), VLOOKUP(A17,Quantities[],Quantities!$H$2) )))))) -> 0.5 | K17: =IF(LEFT(D17,1)="U","-",VLOOKUP(D17,Equipment[],Equipment!$B$2)) -> Cat D11T CD
A18: =Quantities!$A$22 -> 1400 | B18: A | C18: a | D18: Dz2 | E18: 1400-A-a-Dz2 | F18: =IF(D18="Comb1",CONCATENATE(VLOOKUP(B18,'Activity-Material_Codes'!$A$2:$B$28,Quantities!$B$2),"-",VLOOKUP(A18,Quantities[],Quantities!$D$2)), CONCATENATE( VLOOKUP(B18,'Activity-Material_Codes'!$A$2:$B$30,Quantities!$B$2), IF(AND(B18="B",C18="a"), " Scraper Grading", ""), IF(C18="b","","-"), IF(C18="b","",VLOOKUP(A18,Quantities[],Quantities!$D$2)), IF(LEFT(TEXT(A18,"0"),1)="5","","-"), IF(LEFT(TEXT(A18,"0"),1)="5","",VLOOKUP(C18,'Activity-Material_Codes'!$A$34:$B$40,Quantities!$B$2)) )) -> Grade-Entire Footprint-Existing Ground | G18: =IF(C18="f",VLOOKUP(A18,Quantities[],Quantities!$B$2), CONCATENATE( IF(OR(RIGHT(TEXT($A18,"0"),Quantities!$B$2)="00",LEFT(TEXT($A18,"0"),1)="5",OR($C18="b",$C18="f")),"",VLOOKUP($A18,Quantities[],Quantities!$B$2)), IF(LEFT(TEXT($A18,"0"),1)="5",""," "), IF(OR(C18="a",C18="c",C18="d",C18="e"),IF(OR(RIGHT(TEXT($A18,"0"),Quantities!$B$2)="00",LEFT(TEXT($A18,"0"),1)="5"),VLOOKUP($A18,Quantities[],Quantities!$B$2),""), IF(LEFT(TEXT($A18,"0"),1)="5",VLOOKUP($A18,Quantities[],Quantities!$B$2), VLOOKUP(INDEX(Quantities!$A$24:$A$25,MATCH($A18,Quantities!$C$24:$C$25)),Quantities!$A$24:$B$25,Quantities!$B$2))))) -> Soil Stockpile | H18: =IF(LEFT(TEXT(A18,"0"),1)="5", VLOOKUP(VLOOKUP(A18,Quantities!$A$4:$D$25,Quantities!$C$2),Quantities!$A$4:$D$25,Quantities!$C$2), IF(OR(C18="a",C18="c",C18="d",C18="e"), "-", IF(RIGHT(TEXT(A18,"0"),2)="00",VLOOKUP(A18,Quantities[],Quantities!$B$2), IF(C18="f",VLOOKUP(A18,Quantities[],Quantities!$B$2), VLOOKUP(A18,Quantities[],Quantities!$C$2)) ))) -> - | I18: =IF(OR(AND(LEFT(D18,2)="Sc",B18="A",OR(C18="d",C18="f")),AND(C18="f",B18="D")), SUM(VLOOKUP($A18,Quantities[],Quantities!$O$2),VLOOKUP($A18,Quantities[],Quantities!$Q$2),VLOOKUP($A18,Quantities[],Quantities!$S$2),VLOOKUP($A18,Quantities[],Quantities!$I$2)), IF(AND(LEFT(D18,2)="Sc",OR(C18="a",C18="f")), VLOOKUP(A18,Quantities[],Quantities!$I$2), IF(AND(B18="D",C18="b"), VLOOKUP(INDEX(Quantities!$A$24:$A$25,MATCH($A18,Quantities!$C$24:$C$25)),Quantities!$A$24:$AN$25,Quantities!$O$2)+ VLOOKUP(INDEX(Quantities!$A$24:$A$25,MATCH($A18,Quantities!$C$24:$C$25)),Quantities!$A$24:$AN$25,Quantities!$Q$2)+ VLOOKUP(INDEX(Quantities!$A$24:$A$25,MATCH($A18,Quantities!$C$24:$C$25)),Quantities!$A$24:$AN$25,Quantities!$S$2), IF(OR(B18="D",B18="Q"), SUM(VLOOKUP($A18,Quantities[],Quantities!$O$2),VLOOKUP($A18,Quantities[],Quantities!$Q$2),VLOOKUP($A18,Quantities[],Quantities!$S$2)), VLOOKUP(A18,Quantities[],Quantities!$G$2) )))) -> 200 | J18: =IF(LEFT(D18,2)="Mg", VLOOKUP(A18,Quantities[],Quantities!$H$2), IF(OR(AND(LEFT(D18,2)="Sc",B18="A",OR(C18="d",C18="f"))), (SUM(VLOOKUP($A18,Quantities[],Quantities!$P$2)*VLOOKUP($A18,Quantities[],Quantities!$O$2),VLOOKUP($A18,Quantities[],Quantities!$R$2)*VLOOKUP($A18,Quantities[],Quantities!$Q$2),VLOOKUP($A18,Quantities[],Quantities!$T$2)*VLOOKUP($A18,Quantities[],Quantities!$S$2)))/SUM(VLOOKUP($A18,Quantities[],Quantities!$O$2),VLOOKUP($A18,Quantities[],Quantities!$Q$2),VLOOKUP($A18,Quantities[],Quantities!$S$2)), IF(AND(LEFT(D18,2)="Sc",OR(C18="a",C18="f")), VLOOKUP(A18,Quantities[],Quantities!$J$2), IF(AND(B18="D",C18="b", (VLOOKUP(INDEX(Quantities!$A$24:$A$25,MATCH($A18,Quantities!$C$24:$C$25)),Quantities[],Quantities!$O$2)+VLOOKUP(INDEX(Quantities!$A$24:$A$25,MATCH($A18,Quantities!$C$24:$C$25)),Quantities[],Quantities!$Q$2)+VLOOKUP(INDEX(Quantities!$A$24:$A$25,MATCH($A18,Quantities!$C$24:$C$25)),Quantities[],Quantities!$S$2))>0), (VLOOKUP(INDEX(Quantities!$A$24:$A$25,MATCH($A18,Quantities!$C$24:$C$25)),Quantities[],Quantities!$P$2)*VLOOKUP(INDEX(Quantities!$A$24:$A$25,MATCH($A18,Quantities!$C$24:$C$25)),Quantities[],Quantities!$O$2) +VLOOKUP(INDEX(Quantities!$A$24:$A$25,MATCH($A18,Quantities!$C$24:$C$25)),Quantities[],Quantities!$R$2)*VLOOKUP(INDEX(Quantities!$A$24:$A$25,MATCH($A18,Quantities!$C$24:$C$25)),Quantities[],Quantities!$Q$2) +VLOOKUP(INDEX(Quantities!$A$24:$A$25,MATCH($A18,Quantities!$C$24:$C$25)),Quantities[],Quantities!$T$2)*VLOOKUP(INDEX(Quantities!$A$24:$A$25,MATCH($A18,Quantities!$C$24:$C$25)),Quantities[],Quantities!$S$2))/ (VLOOKUP(INDEX(Quantities!$A$24:$A$25,MATCH($A18,Quantities!$C$24:$C$25)),Quantities[],Quantities!$O$2)+VLOOKUP(INDEX(Quantities!$A$24:$A$25,MATCH($A18,Quantities!$C$24:$C$25)),Quantities[],Quantities!$Q$2)+VLOOKUP(A18,Quantities[],Quantities!$S$2)), IF(AND(B18="D", (VLOOKUP(A18,Quantities[],Quantities!$O$2)+VLOOKUP(A18,Quantities[],Quantities!$Q$2)+VLOOKUP(A18,Quantities[],Quantities!$S$2))>0), (VLOOKUP(A18,Quantities[],Quantities!$P$2)*VLOOKUP(A18,Quantities[],Quantities!$O$2) +VLOOKUP(A18,Quantities[],Quantities!$R$2)*VLOOKUP(A18,Quantities[],Quantities!$Q$2) +VLOOKUP(A18,Quantities[],Quantities!$T$2)*VLOOKUP(A18,Quantities[],Quantities!$S$2))/ (VLOOKUP(A18,Quantities[],Quantities!$O$2)+VLOOKUP(A18,Quantities[],Quantities!$Q$2)+VLOOKUP(A18,Quantities[],Quantities!$S$2)), IF($B18="Q", (SUM(VLOOKUP($A18,Quantities[],Quantities!$P$2)*VLOOKUP($A18,Quantities[],Quantities!$O$2),VLOOKUP($A18,Quantities[],Quantities!$R$2)*VLOOKUP($A18,Quantities[],Quantities!$Q$2),VLOOKUP($A18,Quantities[],Quantities!$T$2)*VLOOKUP($A18,Quantities[],Quantities!$S$2)))/SUM(VLOOKUP($A18,Quantities[],Quantities!$O$2),VLOOKUP($A18,Quantities[],Quantities!$Q$2),VLOOKUP($A18,Quantities[],Quantities!$S$2)), VLOOKUP(A18,Quantities[],Quantities!$H$2) )))))) -> 0.01 | K18: =IF(LEFT(D18,1)="U","-",VLOOKUP(D18,Equipment[],Equipment!$B$2)) -> Cat D11T CD
A19: =Quantities!$A$23 -> 1500 | B19: A | C19: a | D19: Dz2 | E19: 1500-A-a-Dz2 | F19: =IF(D19="Comb1",CONCATENATE(VLOOKUP(B19,'Activity-Material_Codes'!$A$2:$B$28,Quantities!$B$2),"-",VLOOKUP(A19,Quantities[],Quantities!$D$2)), CONCATENATE( VLOOKUP(B19,'Activity-Material_Codes'!$A$2:$B$30,Quantities!$B$2), IF(AND(B19="B",C19="a"), " Scraper Grading", ""), IF(C19="b","","-"), IF(C19="b","",VLOOKUP(A19,Quantities[],Quantities!$D$2)), IF(LEFT(TEXT(A19,"0"),1)="5","","-"), IF(LEFT(TEXT(A19,"0"),1)="5","",VLOOKUP(C19,'Activity-Material_Codes'!$A$34:$B$40,Quantities!$B$2)) )) -> Grade-Unplanned Disturbance Area-Existing Ground | G19: =IF(C19="f",VLOOKUP(A19,Quantities[],Quantities!$B$2), CONCATENATE( IF(OR(RIGHT(TEXT($A19,"0"),Quantities!$B$2)="00",LEFT(TEXT($A19,"0"),1)="5",OR($C19="b",$C19="f")),"",VLOOKUP($A19,Quantities[],Quantities!$B$2)), IF(LEFT(TEXT($A19,"0"),1)="5",""," "), IF(OR(C19="a",C19="c",C19="d",C19="e"),IF(OR(RIGHT(TEXT($A19,"0"),Quantities!$B$2)="00",LEFT(TEXT($A19,"0"),1)="5"),VLOOKUP($A19,Quantities[],Quantities!$B$2),""), IF(LEFT(TEXT($A19,"0"),1)="5",VLOOKUP($A19,Quantities[],Quantities!$B$2), VLOOKUP(INDEX(Quantities!$A$24:$A$25,MATCH($A19,Quantities!$C$24:$C$25)),Quantities!$A$24:$B$25,Quantities!$B$2))))) -> Allowance for Other Disturbed Areas | H19: =IF(LEFT(TEXT(A19,"0"),1)="5", VLOOKUP(VLOOKUP(A19,Quantities!$A$4:$D$25,Quantities!$C$2),Quantities!$A$4:$D$25,Quantities!$C$2), IF(OR(C19="a",C19="c",C19="d",C19="e"), "-", IF(RIGHT(TEXT(A19,"0"),2)="00",VLOOKUP(A19,Quantities[],Quantities!$B$2), IF(C19="f",VLOOKUP(A19,Quantities[],Quantities!$B$2), VLOOKUP(A19,Quantities[],Quantities!$C$2)) ))) -> - | I19: =IF(OR(AND(LEFT(D19,2)="Sc",B19="A",OR(C19="d",C19="f")),AND(C19="f",B19="D")), SUM(VLOOKUP($A19,Quantities[],Quantities!$O$2),VLOOKUP($A19,Quantities[],Quantities!$Q$2),VLOOKUP($A19,Quantities[],Quantities!$S$2),VLOOKUP($A19,Quantities[],Quantities!$I$2)), IF(AND(LEFT(D19,2)="Sc",OR(C19="a",C19="f")), VLOOKUP(A19,Quantities[],Quantities!$I$2), IF(AND(B19="D",C19="b"), VLOOKUP(INDEX(Quantities!$A$24:$A$25,MATCH($A19,Quantities!$C$24:$C$25)),Quantities!$A$24:$AN$25,Quantities!$O$2)+ VLOOKUP(INDEX(Quantities!$A$24:$A$25,MATCH($A19,Quantities!$C$24:$C$25)),Quantities!$A$24:$AN$25,Quantities!$Q$2)+ VLOOKUP(INDEX(Quantities!$A$24:$A$25,MATCH($A19,Quantities!$C$24:$C$25)),Quantities!$A$24:$AN$25,Quantities!$S$2), IF(OR(B19="D",B19="Q"), SUM(VLOOKUP($A19,Quantities[],Quantities!$O$2),VLOOKUP($A19,Quantities[],Quantities!$Q$2),VLOOKUP($A19,Quantities[],Quantities!$S$2)), VLOOKUP(A19,Quantities[],Quantities!$G$2) )))) -> 200 | J19: =IF(LEFT(D19,2)="Mg", VLOOKUP(A19,Quantities[],Quantities!$H$2), IF(OR(AND(LEFT(D19,2)="Sc",B19="A",OR(C19="d",C19="f"))), (SUM(VLOOKUP($A19,Quantities[],Quantities!$P$2)*VLOOKUP($A19,Quantities[],Quantities!$O$2),VLOOKUP($A19,Quantities[],Quantities!$R$2)*VLOOKUP($A19,Quantities[],Quantities!$Q$2),VLOOKUP($A19,Quantities[],Quantities!$T$2)*VLOOKUP($A19,Quantities[],Quantities!$S$2)))/SUM(VLOOKUP($A19,Quantities[],Quantities!$O$2),VLOOKUP($A19,Quantities[],Quantities!$Q$2),VLOOKUP($A19,Quantities[],Quantities!$S$2)), IF(AND(LEFT(D19,2)="Sc",OR(C19="a",C19="f")), VLOOKUP(A19,Quantities[],Quantities!$J$2), IF(AND(B19="D",C19="b", (VLOOKUP(INDEX(Quantities!$A$24:$A$25,MATCH($A19,Quantities!$C$24:$C$25)),Quantities[],Quantities!$O$2)+VLOOKUP(INDEX(Quantities!$A$24:$A$25,MATCH($A19,Quantities!$C$24:$C$25)),Quantities[],Quantities!$Q$2)+VLOOKUP(INDEX(Quantities!$A$24:$A$25,MATCH($A19,Quantities!$C$24:$C$25)),Quantities[],Quantities!$S$2))>0), (VLOOKUP(INDEX(Quantities!$A$24:$A$25,MATCH($A19,Quantities!$C$24:$C$25)),Quantities[],Quantities!$P$2)*VLOOKUP(INDEX(Quantities!$A$24:$A$25,MATCH($A19,Quantities!$C$24:$C$25)),Quantities[],Quantities!$O$2) +VLOOKUP(INDEX(Quantities!$A$24:$A$25,MATCH($A19,Quantities!$C$24:$C$25)),Quantities[],Quantities!$R$2)*VLOOKUP(INDEX(Quantities!$A$24:$A$25,MATCH($A19,Quantities!$C$24:$C$25)),Quantities[],Quantities!$Q$2) +VLOOKUP(INDEX(Quantities!$A$24:$A$25,MATCH($A19,Quantities!$C$24:$C$25)),Quantities[],Quantities!$T$2)*VLOOKUP(INDEX(Quantities!$A$24:$A$25,MATCH($A19,Quantities!$C$24:$C$25)),Quantities[],Quantities!$S$2))/ (VLOOKUP(INDEX(Quantities!$A$24:$A$25,MATCH($A19,Quantities!$C$24:$C$25)),Quantities[],Quantities!$O$2)+VLOOKUP(INDEX(Quantities!$A$24:$A$25,MATCH($A19,Quantities!$C$24:$C$25)),Quantities[],Quantities!$Q$2)+VLOOKUP(A19,Quantities[],Quantities!$S$2)), IF(AND(B19="D", (VLOOKUP(A19,Quantities[],Quantities!$O$2)+VLOOKUP(A19,Quantities[],Quantities!$Q$2)+VLOOKUP(A19,Quantities[],Quantities!$S$2))>0), (VLOOKUP(A19,Quantities[],Quantities!$P$2)*VLOOKUP(A19,Quantities[],Quantities!$O$2) +VLOOKUP(A19,Quantities[],Quantities!$R$2)*VLOOKUP(A19,Quantities[],Quantities!$Q$2) +VLOOKUP(A19,Quantities[],Quantities!$T$2)*VLOOKUP(A19,Quantities[],Quantities!$S$2))/ (VLOOKUP(A19,Quantities[],Quantities!$O$2)+VLOOKUP(A19,Quantities[],Quantities!$Q$2)+VLOOKUP(A19,Quantities[],Quantities!$S$2)), IF($B19="Q", (SUM(VLOOKUP($A19,Quantities[],Quantities!$P$2)*VLOOKUP($A19,Quantities[],Quantities!$O$2),VLOOKUP($A19,Quantities[],Quantities!$R$2)*VLOOKUP($A19,Quantities[],Quantities!$Q$2),VLOOKUP($A19,Quantities[],Quantities!$T$2)*VLOOKUP($A19,Quantities[],Quantities!$S$2)))/SUM(VLOOKUP($A19,Quantities[],Quantities!$O$2),VLOOKUP($A19,Quantities[],Quantities!$Q$2),VLOOKUP($A19,Quantities[],Quantities!$S$2)), VLOOKUP(A19,Quantities[],Quantities!$H$2) )))))) -> 0.01 | K19: =IF(LEFT(D19,1)="U","-",VLOOKUP(D19,Equipment[],Equipment!$B$2)) -> Cat D11T CD
A20: =Quantities!$A$8 -> 1101 | B20: E | C20: a | D20: Rp1 | E20: 1101-E-a-Rp1 | F20: =IF(D20="Comb1",CONCATENATE(VLOOKUP(B20,'Activity-Material_Codes'!$A$2:$B$28,Quantities!$B$2),"-",VLOOKUP(A20,Quantities[],Quantities!$D$2)), CONCATENATE( VLOOKUP(B20,'Activity-Material_Codes'!$A$2:$B$30,Quantities!$B$2), IF(AND(B20="B",C20="a"), " Scraper Grading", ""), IF(C20="b","","-"), IF(C20="b","",VLOOKUP(A20,Quantities[],Quantities!$D$2)), IF(LEFT(TEXT(A20,"0"),1)="5","","-"), IF(LEFT(TEXT(A20,"0"),1)="5","",VLOOKUP(C20,'Activity-Material_Codes'!$A$34:$B$40,Quantities!$B$2)) )) -> Rip-Reclaimed Slope Area-Existing Ground | G20: =IF(C20="f",VLOOKUP(A20,Quantities[],Quantities!$B$2), CONCATENATE( IF(OR(RIGHT(TEXT($A20,"0"),Quantities!$B$2)="00",LEFT(TEXT($A20,"0"),1)="5",OR($C20="b",$C20="f")),"",VLOOKUP($A20,Quantities[],Quantities!$B$2)), IF(LEFT(TEXT($A20,"0"),1)="5",""," "), IF(OR(C20="a",C20="c",C20="d",C20="e"),IF(OR(RIGHT(TEXT($A20,"0"),Quantities!$B$2)="00",LEFT(TEXT($A20,"0"),1)="5"),VLOOKUP($A20,Quantities[],Quantities!$B$2),""), IF(LEFT(TEXT($A20,"0"),1)="5",VLOOKUP($A20,Quantities[],Quantities!$B$2), VLOOKUP(INDEX(Quantities!$A$24:$A$25,MATCH($A20,Quantities!$C$24:$C$25)),Quantities!$A$24:$B$25,Quantities!$B$2))))) -> 6HW Waste | H20: =IF(LEFT(TEXT(A20,"0"),1)="5", VLOOKUP(VLOOKUP(A20,Quantities!$A$4:$D$25,Quantities!$C$2),Quantities!$A$4:$D$25,Quantities!$C$2), IF(OR(C20="a",C20="c",C20="d",C20="e"), "-", IF(RIGHT(TEXT(A20,"0"),2)="00",VLOOKUP(A20,Quantities[],Quantities!$B$2), IF(C20="f",VLOOKUP(A20,Quantities[],Quantities!$B$2), VLOOKUP(A20,Quantities[],Quantities!$C$2)) ))) -> - | I20: =IF(OR(AND(LEFT(D20,2)="Sc",B20="A",OR(C20="d",C20="f")),AND(C20="f",B20="D")), SUM(VLOOKUP($A20,Quantities[],Quantities!$O$2),VLOOKUP($A20,Quantities[],Quantities!$Q$2),VLOOKUP($A20,Quantities[],Quantities!$S$2),VLOOKUP($A20,Quantities[],Quantities!$I$2)), IF(AND(LEFT(D20,2)="Sc",OR(C20="a",C20="f")), VLOOKUP(A20,Quantities[],Quantities!$I$2), IF(AND(B20="D",C20="b"), VLOOKUP(INDEX(Quantities!$A$24:$A$25,MATCH($A20,Quantities!$C$24:$C$25)),Quantities!$A$24:$AN$25,Quantities!$O$2)+ VLOOKUP(INDEX(Quantities!$A$24:$A$25,MATCH($A20,Quantities!$C$24:$C$25)),Quantities!$A$24:$AN$25,Quantities!$Q$2)+ VLOOKUP(INDEX(Quantities!$A$24:$A$25,MATCH($A20,Quantities!$C$24:$C$25)),Quantities!$A$24:$AN$25,Quantities!$S$2), IF(OR(B20="D",B20="Q"), SUM(VLOOKUP($A20,Quantities[],Quantities!$O$2),VLOOKUP($A20,Quantities[],Quantities!$Q$2),VLOOKUP($A20,Quantities[],Quantities!$S$2)), VLOOKUP(A20,Quantities[],Quantities!$G$2) )))) -> 200 | J20: =IF(LEFT(D20,2)="Mg", VLOOKUP(A20,Quantities[],Quantities!$H$2), IF(OR(AND(LEFT(D20,2)="Sc",B20="A",OR(C20="d",C20="f"))), (SUM(VLOOKUP($A20,Quantities[],Quantities!$P$2)*VLOOKUP($A20,Quantities[],Quantities!$O$2),VLOOKUP($A20,Quantities[],Quantities!$R$2)*VLOOKUP($A20,Quantities[],Quantities!$Q$2),VLOOKUP($A20,Quantities[],Quantities!$T$2)*VLOOKUP($A20,Quantities[],Quantities!$S$2)))/SUM(VLOOKUP($A20,Quantities[],Quantities!$O$2),VLOOKUP($A20,Quantities[],Quantities!$Q$2),VLOOKUP($A20,Quantities[],Quantities!$S$2)), IF(AND(LEFT(D20,2)="Sc",OR(C20="a",C20="f")), VLOOKUP(A20,Quantities[],Quantities!$J$2), IF(AND(B20="D",C20="b", (VLOOKUP(INDEX(Quantities!$A$24:$A$25,MATCH($A20,Quantities!$C$24:$C$25)),Quantities[],Quantities!$O$2)+VLOOKUP(INDEX(Quantities!$A$24:$A$25,MATCH($A20,Quantities!$C$24:$C$25)),Quantities[],Quantities!$Q$2)+VLOOKUP(INDEX(Quantities!$A$24:$A$25,MATCH($A20,Quantities!$C$24:$C$25)),Quantities[],Quantities!$S$2))>0), (VLOOKUP(INDEX(Quantities!$A$24:$A$25,MATCH($A20,Quantities!$C$24:$C$25)),Quantities[],Quantities!$P$2)*VLOOKUP(INDEX(Quantities!$A$24:$A$25,MATCH($A20,Quantities!$C$24:$C$25)),Quantities[],Quantities!$O$2) +VLOOKUP(INDEX(Quantities!$A$24:$A$25,MATCH($A20,Quantities!$C$24:$C$25)),Quantities[],Quantities!$R$2)*VLOOKUP(INDEX(Quantities!$A$24:$A$25,MATCH($A20,Quantities!$C$24:$C$25)),Quantities[],Quantities!$Q$2) +VLOOKUP(INDEX(Quantities!$A$24:$A$25,MATCH($A20,Quantities!$C$24:$C$25)),Quantities[],Quantities!$T$2)*VLOOKUP(INDEX(Quantities!$A$24:$A$25,MATCH($A20,Quantities!$C$24:$C$25)),Quantities[],Quantities!$S$2))/ (VLOOKUP(INDEX(Quantities!$A$24:$A$25,MATCH($A20,Quantities!$C$24:$C$25)),Quantities[],Quantities!$O$2)+VLOOKUP(INDEX(Quantities!$A$24:$A$25,MATCH($A20,Quantities!$C$24:$C$25)),Quantities[],Quantities!$Q$2)+VLOOKUP(A20,Quantities[],Quantities!$S$2)), IF(AND(B20="D", (VLOOKUP(A20,Quantities[],Quantities!$O$2)+VLOOKUP(A20,Quantities[],Quantities!$Q$2)+VLOOKUP(A20,Quantities[],Quantities!$S$2))>0), (VLOOKUP(A20,Quantities[],Quantities!$P$2)*VLOOKUP(A20,Quantities[],Quantities!$O$2) +VLOOKUP(A20,Quantities[],Quantities!$R$2)*VLOOKUP(A20,Quantities[],Quantities!$Q$2) +VLOOKUP(A20,Quantities[],Quantities!$T$2)*VLOOKUP(A20,Quantities[],Quantities!$S$2))/ (VLOOKUP(A20,Quantities[],Quantities!$O$2)+VLOOKUP(A20,Quantities[],Quantities!$Q$2)+VLOOKUP(A20,Quantities[],Quantities!$S$2)), IF($B20="Q", (SUM(VLOOKUP($A20,Quantities[],Quantities!$P$2)*VLOOKUP($A20,Quantities[],Quantities!$O$2),VLOOKUP($A20,Quantities[],Quantities!$R$2)*VLOOKUP($A20,Quantities[],Quantities!$Q$2),VLOOKUP($A20,Quantities[],Quantities!$T$2)*VLOOKUP($A20,Quantities[],Quantities!$S$2)))/SUM(VLOOKUP($A20,Quantities[],Quantities!$O$2),VLOOKUP($A20,Quantities[],Quantities!$Q$2),VLOOKUP($A20,Quantities[],Quantities!$S$2)), VLOOKUP(A20,Quantities[],Quantities!$H$2) )))))) -> -0.2857142857 | K20: =IF(LEFT(D20,1)="U","-",VLOOKUP(D20,Equipment[],Equipment!$B$2)) -> Cat D11T CD Multi-shank (w/ MSR-359H)
A21: =Quantities!$A$10 -> 1200 | B21: E | C21: a | D21: Rp1 | E21: 1200-E-a-Rp1 | F21: =IF(D21="Comb1",CONCATENATE(VLOOKUP(B21,'Activity-Material_Codes'!$A$2:$B$28,Quantities!$B$2),"-",VLOOKUP(A21,Quantities[],Quantities!$D$2)), CONCATENATE( VLOOKUP(B21,'Activity-Material_Codes'!$A$2:$B$30,Quantities!$B$2), IF(AND(B21="B",C21="a"), " Scraper Grading", ""), IF(C21="b","","-"), IF(C21="b","",VLOOKUP(A21,Quantities[],Quantities!$D$2)), IF(LEFT(TEXT(A21,"0"),1)="5","","-"), IF(LEFT(TEXT(A21,"0"),1)="5","",VLOOKUP(C21,'Activity-Material_Codes'!$A$34:$B$40,Quantities!$B$2)) )) -> Rip-Haul Roads-Existing Ground | G21: =IF(C21="f",VLOOKUP(A21,Quantities[],Quantities!$B$2), CONCATENATE( IF(OR(RIGHT(TEXT($A21,"0"),Quantities!$B$2)="00",LEFT(TEXT($A21,"0"),1)="5",OR($C21="b",$C21="f")),"",VLOOKUP($A21,Quantities[],Quantities!$B$2)), IF(LEFT(TEXT($A21,"0"),1)="5",""," "), IF(OR(C21="a",C21="c",C21="d",C21="e"),IF(OR(RIGHT(TEXT($A21,"0"),Quantities!$B$2)="00",LEFT(TEXT($A21,"0"),1)="5"),VLOOKUP($A21,Quantities[],Quantities!$B$2),""), IF(LEFT(TEXT($A21,"0"),1)="5",VLOOKUP($A21,Quantities[],Quantities!$B$2), VLOOKUP(INDEX(Quantities!$A$24:$A$25,MATCH($A21,Quantities!$C$24:$C$25)),Quantities!$A$24:$B$25,Quantities!$B$2))))) -> Haul Roads | H21: =IF(LEFT(TEXT(A21,"0"),1)="5", VLOOKUP(VLOOKUP(A21,Quantities!$A$4:$D$25,Quantities!$C$2),Quantities!$A$4:$D$25,Quantities!$C$2), IF(OR(C21="a",C21="c",C21="d",C21="e"), "-", IF(RIGHT(TEXT(A21,"0"),2)="00",VLOOKUP(A21,Quantities[],Quantities!$B$2), IF(C21="f",VLOOKUP(A21,Quantities[],Quantities!$B$2), VLOOKUP(A21,Quantities[],Quantities!$C$2)) ))) -> - | I21: =IF(OR(AND(LEFT(D21,2)="Sc",B21="A",OR(C21="d",C21="f")),AND(C21="f",B21="D")), SUM(VLOOKUP($A21,Quantities[],Quantities!$O$2),VLOOKUP($A21,Quantities[],Quantities!$Q$2),VLOOKUP($A21,Quantities[],Quantities!$S$2),VLOOKUP($A21,Quantities[],Quantities!$I$2)), IF(AND(LEFT(D21,2)="Sc",OR(C21="a",C21="f")), VLOOKUP(A21,Quantities[],Quantities!$I$2), IF(AND(B21="D",C21="b"), VLOOKUP(INDEX(Quantities!$A$24:$A$25,MATCH($A21,Quantities!$C$24:$C$25)),Quantities!$A$24:$AN$25,Quantities!$O$2)+ VLOOKUP(INDEX(Quantities!$A$24:$A$25,MATCH($A21,Quantities!$C$24:$C$25)),Quantities!$A$24:$AN$25,Quantities!$Q$2)+ VLOOKUP(INDEX(Quantities!$A$24:$A$25,MATCH($A21,Quantities!$C$24:$C$25)),Quantities!$A$24:$AN$25,Quantities!$S$2), IF(OR(B21="D",B21="Q"), SUM(VLOOKUP($A21,Quantities[],Quantities!$O$2),VLOOKUP($A21,Quantities[],Quantities!$Q$2),VLOOKUP($A21,Quantities[],Quantities!$S$2)), VLOOKUP(A21,Quantities[],Quantities!$G$2) )))) -> 200 | J21: =IF(LEFT(D21,2)="Mg", VLOOKUP(A21,Quantities[],Quantities!$H$2), IF(OR(AND(LEFT(D21,2)="Sc",B21="A",OR(C21="d",C21="f"))), (SUM(VLOOKUP($A21,Quantities[],Quantities!$P$2)*VLOOKUP($A21,Quantities[],Quantities!$O$2),VLOOKUP($A21,Quantities[],Quantities!$R$2)*VLOOKUP($A21,Quantities[],Quantities!$Q$2),VLOOKUP($A21,Quantities[],Quantities!$T$2)*VLOOKUP($A21,Quantities[],Quantities!$S$2)))/SUM(VLOOKUP($A21,Quantities[],Quantities!$O$2),VLOOKUP($A21,Quantities[],Quantities!$Q$2),VLOOKUP($A21,Quantities[],Quantities!$S$2)), IF(AND(LEFT(D21,2)="Sc",OR(C21="a",C21="f")), VLOOKUP(A21,Quantities[],Quantities!$J$2), IF(AND(B21="D",C21="b", (VLOOKUP(INDEX(Quantities!$A$24:$A$25,MATCH($A21,Quantities!$C$24:$C$25)),Quantities[],Quantities!$O$2)+VLOOKUP(INDEX(Quantities!$A$24:$A$25,MATCH($A21,Quantities!$C$24:$C$25)),Quantities[],Quantities!$Q$2)+VLOOKUP(INDEX(Quantities!$A$24:$A$25,MATCH($A21,Quantities!$C$24:$C$25)),Quantities[],Quantities!$S$2))>0), (VLOOKUP(INDEX(Quantities!$A$24:$A$25,MATCH($A21,Quantities!$C$24:$C$25)),Quantities[],Quantities!$P$2)*VLOOKUP(INDEX(Quantities!$A$24:$A$25,MATCH($A21,Quantities!$C$24:$C$25)),Quantities[],Quantities!$O$2) +VLOOKUP(INDEX(Quantities!$A$24:$A$25,MATCH($A21,Quantities!$C$24:$C$25)),Quantities[],Quantities!$R$2)*VLOOKUP(INDEX(Quantities!$A$24:$A$25,MATCH($A21,Quantities!$C$24:$C$25)),Quantities[],Quantities!$Q$2) +VLOOKUP(INDEX(Quantities!$A$24:$A$25,MATCH($A21,Quantities!$C$24:$C$25)),Quantities[],Quantities!$T$2)*VLOOKUP(INDEX(Quantities!$A$24:$A$25,MATCH($A21,Quantities!$C$24:$C$25)),Quantities[],Quantities!$S$2))/ (VLOOKUP(INDEX(Quantities!$A$24:$A$25,MATCH($A21,Quantities!$C$24:$C$25)),Quantities[],Quantities!$O$2)+VLOOKUP(INDEX(Quantities!$A$24:$A$25,MATCH($A21,Quantities!$C$24:$C$25)),Quantities[],Quantities!$Q$2)+VLOOKUP(A21,Quantities[],Quantities!$S$2)), IF(AND(B21="D", (VLOOKUP(A21,Quantities[],Quantities!$O$2)+VLOOKUP(A21,Quantities[],Quantities!$Q$2)+VLOOKUP(A21,Quantities[],Quantities!$S$2))>0), (VLOOKUP(A21,Quantities[],Quantities!$P$2)*VLOOKUP(A21,Quantities[],Quantities!$O$2) +VLOOKUP(A21,Quantities[],Quantities!$R$2)*VLOOKUP(A21,Quantities[],Quantities!$Q$2) +VLOOKUP(A21,Quantities[],Quantities!$T$2)*VLOOKUP(A21,Quantities[],Quantities!$S$2))/ (VLOOKUP(A21,Quantities[],Quantities!$O$2)+VLOOKUP(A21,Quantities[],Quantities!$Q$2)+VLOOKUP(A21,Quantities[],Quantities!$S$2)), IF($B21="Q", (SUM(VLOOKUP($A21,Quantities[],Quantities!$P$2)*VLOOKUP($A21,Quantities[],Quantities!$O$2),VLOOKUP($A21,Quantities[],Quantities!$R$2)*VLOOKUP($A21,Quantities[],Quantities!$Q$2),VLOOKUP($A21,Quantities[],Quantities!$T$2)*VLOOKUP($A21,Quantities[],Quantities!$S$2)))/SUM(VLOOKUP($A21,Quantities[],Quantities!$O$2),VLOOKUP($A21,Quantities[],Quantities!$Q$2),VLOOKUP($A21,Quantities[],Quantities!$S$2)), VLOOKUP(A21,Quantities[],Quantities!$H$2) )))))) -> 0.02 | K21: =IF(LEFT(D21,1)="U","-",VLOOKUP(D21,Equipment[],Equipment!$B$2)) -> Cat D11T CD Multi-shank (w/ MSR-359H)
A22: =Quantities!$A$22 -> 1400 | B22: E | C22: c | D22: Rp1 | E22: 1400-E-c-Rp1 | F22: =IF(D22="Comb1",CONCATENATE(VLOOKUP(B22,'Activity-Material_Codes'!$A$2:$B$28,Quantities!$B$2),"-",VLOOKUP(A22,Quantities[],Quantities!$D$2)), CONCATENATE( VLOOKUP(B22,'Activity-Material_Codes'!$A$2:$B$30,Quantities!$B$2), IF(AND(B22="B",C22="a"), " Scraper Grading", ""), IF(C22="b","","-"), IF(C22="b","",VLOOKUP(A22,Quantities[],Quantities!$D$2)), IF(LEFT(TEXT(A22,"0"),1)="5","","-"), IF(LEFT(TEXT(A22,"0"),1)="5","",VLOOKUP(C22,'Activity-Material_Codes'!$A$34:$B$40,Quantities!$B$2)) )) -> Rip-Entire Footprint-Rough Graded Material | G22: =IF(C22="f",VLOOKUP(A22,Quantities[],Quantities!$B$2), CONCATENATE( IF(OR(RIGHT(TEXT($A22,"0"),Quantities!$B$2)="00",LEFT(TEXT($A22,"0"),1)="5",OR($C22="b",$C22="f")),"",VLOOKUP($A22,Quantities[],Quantities!$B$2)), IF(LEFT(TEXT($A22,"0"),1)="5",""," "), IF(OR(C22="a",C22="c",C22="d",C22="e"),IF(OR(RIGHT(TEXT($A22,"0"),Quantities!$B$2)="00",LEFT(TEXT($A22,"0"),1)="5"),VLOOKUP($A22,Quantities[],Quantities!$B$2),""), IF(LEFT(TEXT($A22,"0"),1)="5",VLOOKUP($A22,Quantities[],Quantities!$B$2), VLOOKUP(INDEX(Quantities!$A$24:$A$25,MATCH($A22,Quantities!$C$24:$C$25)),Quantities!$A$24:$B$25,Quantities!$B$2))))) -> Soil Stockpile | H22: =IF(LEFT(TEXT(A22,"0"),1)="5", VLOOKUP(VLOOKUP(A22,Quantities!$A$4:$D$25,Quantities!$C$2),Quantities!$A$4:$D$25,Quantities!$C$2), IF(OR(C22="a",C22="c",C22="d",C22="e"), "-", IF(RIGHT(TEXT(A22,"0"),2)="00",VLOOKUP(A22,Quantities[],Quantities!$B$2), IF(C22="f",VLOOKUP(A22,Quantities[],Quantities!$B$2), VLOOKUP(A22,Quantities[],Quantities!$C$2)) ))) -> - | I22: =IF(OR(AND(LEFT(D22,2)="Sc",B22="A",OR(C22="d",C22="f")),AND(C22="f",B22="D")), SUM(VLOOKUP($A22,Quantities[],Quantities!$O$2),VLOOKUP($A22,Quantities[],Quantities!$Q$2),VLOOKUP($A22,Quantities[],Quantities!$S$2),VLOOKUP($A22,Quantities[],Quantities!$I$2)), IF(AND(LEFT(D22,2)="Sc",OR(C22="a",C22="f")), VLOOKUP(A22,Quantities[],Quantities!$I$2), IF(AND(B22="D",C22="b"), VLOOKUP(INDEX(Quantities!$A$24:$A$25,MATCH($A22,Quantities!$C$24:$C$25)),Quantities!$A$24:$AN$25,Quantities!$O$2)+ VLOOKUP(INDEX(Quantities!$A$24:$A$25,MATCH($A22,Quantities!$C$24:$C$25)),Quantities!$A$24:$AN$25,Quantities!$Q$2)+ VLOOKUP(INDEX(Quantities!$A$24:$A$25,MATCH($A22,Quantities!$C$24:$C$25)),Quantities!$A$24:$AN$25,Quantities!$S$2), IF(OR(B22="D",B22="Q"), SUM(VLOOKUP($A22,Quantities[],Quantities!$O$2),VLOOKUP($A22,Quantities[],Quantities!$Q$2),VLOOKUP($A22,Quantities[],Quantities!$S$2)), VLOOKUP(A22,Quantities[],Quantities!$G$2) )))) -> 200 | J22: =IF(LEFT(D22,2)="Mg", VLOOKUP(A22,Quantities[],Quantities!$H$2), IF(OR(AND(LEFT(D22,2)="Sc",B22="A",OR(C22="d",C22="f"))), (SUM(VLOOKUP($A22,Quantities[],Quantities!$P$2)*VLOOKUP($A22,Quantities[],Quantities!$O$2),VLOOKUP($A22,Quantities[],Quantities!$R$2)*VLOOKUP($A22,Quantities[],Quantities!$Q$2),VLOOKUP($A22,Quantities[],Quantities!$T$2)*VLOOKUP($A22,Quantities[],Quantities!$S$2)))/SUM(VLOOKUP($A22,Quantities[],Quantities!$O$2),VLOOKUP($A22,Quantities[],Quantities!$Q$2),VLOOKUP($A22,Quantities[],Quantities!$S$2)), IF(AND(LEFT(D22,2)="Sc",OR(C22="a",C22="f")), VLOOKUP(A22,Quantities[],Quantities!$J$2), IF(AND(B22="D",C22="b", (VLOOKUP(INDEX(Quantities!$A$24:$A$25,MATCH($A22,Quantities!$C$24:$C$25)),Quantities[],Quantities!$O$2)+VLOOKUP(INDEX(Quantities!$A$24:$A$25,MATCH($A22,Quantities!$C$24:$C$25)),Quantities[],Quantities!$Q$2)+VLOOKUP(INDEX(Quantities!$A$24:$A$25,MATCH($A22,Quantities!$C$24:$C$25)),Quantities[],Quantities!$S$2))>0), (VLOOKUP(INDEX(Quantities!$A$24:$A$25,MATCH($A22,Quantities!$C$24:$C$25)),Quantities[],Quantities!$P$2)*VLOOKUP(INDEX(Quantities!$A$24:$A$25,MATCH($A22,Quantities!$C$24:$C$25)),Quantities[],Quantities!$O$2) +VLOOKUP(INDEX(Quantities!$A$24:$A$25,MATCH($A22,Quantities!$C$24:$C$25)),Quantities[],Quantities!$R$2)*VLOOKUP(INDEX(Quantities!$A$24:$A$25,MATCH($A22,Quantities!$C$24:$C$25)),Quantities[],Quantities!$Q$2) +VLOOKUP(INDEX(Quantities!$A$24:$A$25,MATCH($A22,Quantities!$C$24:$C$25)),Quantities[],Quantities!$T$2)*VLOOKUP(INDEX(Quantities!$A$24:$A$25,MATCH($A22,Quantities!$C$24:$C$25)),Quantities[],Quantities!$S$2))/ (VLOOKUP(INDEX(Quantities!$A$24:$A$25,MATCH($A22,Quantities!$C$24:$C$25)),Quantities[],Quantities!$O$2)+VLOOKUP(INDEX(Quantities!$A$24:$A$25,MATCH($A22,Quantities!$C$24:$C$25)),Quantities[],Quantities!$Q$2)+VLOOKUP(A22,Quantities[],Quantities!$S$2)), IF(AND(B22="D", (VLOOKUP(A22,Quantities[],Quantities!$O$2)+VLOOKUP(A22,Quantities[],Quantities!$Q$2)+VLOOKUP(A22,Quantities[],Quantities!$S$2))>0), (VLOOKUP(A22,Quantities[],Quantities!$P$2)*VLOOKUP(A22,Quantities[],Quantities!$O$2) +VLOOKUP(A22,Quantities[],Quantities!$R$2)*VLOOKUP(A22,Quantities[],Quantities!$Q$2) +VLOOKUP(A22,Quantities[],Quantities!$T$2)*VLOOKUP(A22,Quantities[],Quantities!$S$2))/ (VLOOKUP(A22,Quantities[],Quantities!$O$2)+VLOOKUP(A22,Quantities[],Quantities!$Q$2)+VLOOKUP(A22,Quantities[],Quantities!$S$2)), IF($B22="Q", (SUM(VLOOKUP($A22,Quantities[],Quantities!$P$2)*VLOOKUP($A22,Quantities[],Quantities!$O$2),VLOOKUP($A22,Quantities[],Quantities!$R$2)*VLOOKUP($A22,Quantities[],Quantities!$Q$2),VLOOKUP($A22,Quantities[],Quantities!$T$2)*VLOOKUP($A22,Quantities[],Quantities!$S$2)))/SUM(VLOOKUP($A22,Quantities[],Quantities!$O$2),VLOOKUP($A22,Quantities[],Quantities!$Q$2),VLOOKUP($A22,Quantities[],Quantities!$S$2)), VLOOKUP(A22,Quantities[],Quantities!$H$2) )))))) -> 0.01 | K22: =IF(LEFT(D22,1)="U","-",VLOOKUP(D22,Equipment[],Equipment!$B$2)) -> Cat D11T CD Multi-shank (w/ MSR-359H)
A23: =Quantities!$A$23 -> 1500 | B23: E | C23: c | D23: Rp1 | E23: 1500-E-c-Rp1 | F23: =IF(D23="Comb1",CONCATENATE(VLOOKUP(B23,'Activity-Material_Codes'!$A$2:$B$28,Quantities!$B$2),"-",VLOOKUP(A23,Quantities[],Quantities!$D$2)), CONCATENATE( VLOOKUP(B23,'Activity-Material_Codes'!$A$2:$B$30,Quantities!$B$2), IF(AND(B23="B",C23="a"), " Scraper Grading", ""), IF(C23="b","","-"), IF(C23="b","",VLOOKUP(A23,Quantities[],Quantities!$D$2)), IF(LEFT(TEXT(A23,"0"),1)="5","","-"), IF(LEFT(TEXT(A23,"0"),1)="5","",VLOOKUP(C23,'Activity-Material_Codes'!$A$34:$B$40,Quantities!$B$2)) )) -> Rip-Unplanned Disturbance Area-Rough Graded Material | G23: =IF(C23="f",VLOOKUP(A23,Quantities[],Quantities!$B$2), CONCATENATE( IF(OR(RIGHT(TEXT($A23,"0"),Quantities!$B$2)="00",LEFT(TEXT($A23,"0"),1)="5",OR($C23="b",$C23="f")),"",VLOOKUP($A23,Quantities[],Quantities!$B$2)), IF(LEFT(TEXT($A23,"0"),1)="5",""," "), IF(OR(C23="a",C23="c",C23="d",C23="e"),IF(OR(RIGHT(TEXT($A23,"0"),Quantities!$B$2)="00",LEFT(TEXT($A23,"0"),1)="5"),VLOOKUP($A23,Quantities[],Quantities!$B$2),""), IF(LEFT(TEXT($A23,"0"),1)="5",VLOOKUP($A23,Quantities[],Quantities!$B$2), VLOOKUP(INDEX(Quantities!$A$24:$A$25,MATCH($A23,Quantities!$C$24:$C$25)),Quantities!$A$24:$B$25,Quantities!$B$2))))) -> Allowance for Other Disturbed Areas | H23: =IF(LEFT(TEXT(A23,"0"),1)="5", VLOOKUP(VLOOKUP(A23,Quantities!$A$4:$D$25,Quantities!$C$2),Quantities!$A$4:$D$25,Quantities!$C$2), IF(OR(C23="a",C23="c",C23="d",C23="e"), "-", IF(RIGHT(TEXT(A23,"0"),2)="00",VLOOKUP(A23,Quantities[],Quantities!$B$2), IF(C23="f",VLOOKUP(A23,Quantities[],Quantities!$B$2), VLOOKUP(A23,Quantities[],Quantities!$C$2)) ))) -> - | I23: =IF(OR(AND(LEFT(D23,2)="Sc",B23="A",OR(C23="d",C23="f")),AND(C23="f",B23="D")), SUM(VLOOKUP($A23,Quantities[],Quantities!$O$2),VLOOKUP($A23,Quantities[],Quantities!$Q$2),VLOOKUP($A23,Quantities[],Quantities!$S$2),VLOOKUP($A23,Quantities[],Quantities!$I$2)), IF(AND(LEFT(D23,2)="Sc",OR(C23="a",C23="f")), VLOOKUP(A23,Quantities[],Quantities!$I$2), IF(AND(B23="D",C23="b"), VLOOKUP(INDEX(Quantities!$A$24:$A$25,MATCH($A23,Quantities!$C$24:$C$25)),Quantities!$A$24:$AN$25,Quantities!$O$2)+ VLOOKUP(INDEX(Quantities!$A$24:$A$25,MATCH($A23,Quantities!$C$24:$C$25)),Quantities!$A$24:$AN$25,Quantities!$Q$2)+ VLOOKUP(INDEX(Quantities!$A$24:$A$25,MATCH($A23,Quantities!$C$24:$C$25)),Quantities!$A$24:$AN$25,Quantities!$S$2), IF(OR(B23="D",B23="Q"), SUM(VLOOKUP($A23,Quantities[],Quantities!$O$2),VLOOKUP($A23,Quantities[],Quantities!$Q$2),VLOOKUP($A23,Quantities[],Quantities!$S$2)), VLOOKUP(A23,Quantities[],Quantities!$G$2) )))) -> 200 | J23: =IF(LEFT(D23,2)="Mg", VLOOKUP(A23,Quantities[],Quantities!$H$2), IF(OR(AND(LEFT(D23,2)="Sc",B23="A",OR(C23="d",C23="f"))), (SUM(VLOOKUP($A23,Quantities[],Quantities!$P$2)*VLOOKUP($A23,Quantities[],Quantities!$O$2),VLOOKUP($A23,Quantities[],Quantities!$R$2)*VLOOKUP($A23,Quantities[],Quantities!$Q$2),VLOOKUP($A23,Quantities[],Quantities!$T$2)*VLOOKUP($A23,Quantities[],Quantities!$S$2)))/SUM(VLOOKUP($A23,Quantities[],Quantities!$O$2),VLOOKUP($A23,Quantities[],Quantities!$Q$2),VLOOKUP($A23,Quantities[],Quantities!$S$2)), IF(AND(LEFT(D23,2)="Sc",OR(C23="a",C23="f")), VLOOKUP(A23,Quantities[],Quantities!$J$2), IF(AND(B23="D",C23="b", (VLOOKUP(INDEX(Quantities!$A$24:$A$25,MATCH($A23,Quantities!$C$24:$C$25)),Quantities[],Quantities!$O$2)+VLOOKUP(INDEX(Quantities!$A$24:$A$25,MATCH($A23,Quantities!$C$24:$C$25)),Quantities[],Quantities!$Q$2)+VLOOKUP(INDEX(Quantities!$A$24:$A$25,MATCH($A23,Quantities!$C$24:$C$25)),Quantities[],Quantities!$S$2))>0), (VLOOKUP(INDEX(Quantities!$A$24:$A$25,MATCH($A23,Quantities!$C$24:$C$25)),Quantities[],Quantities!$P$2)*VLOOKUP(INDEX(Quantities!$A$24:$A$25,MATCH($A23,Quantities!$C$24:$C$25)),Quantities[],Quantities!$O$2) +VLOOKUP(INDEX(Quantities!$A$24:$A$25,MATCH($A23,Quantities!$C$24:$C$25)),Quantities[],Quantities!$R$2)*VLOOKUP(INDEX(Quantities!$A$24:$A$25,MATCH($A23,Quantities!$C$24:$C$25)),Quantities[],Quantities!$Q$2) +VLOOKUP(INDEX(Quantities!$A$24:$A$25,MATCH($A23,Quantities!$C$24:$C$25)),Quantities[],Quantities!$T$2)*VLOOKUP(INDEX(Quantities!$A$24:$A$25,MATCH($A23,Quantities!$C$24:$C$25)),Quantities[],Quantities!$S$2))/ (VLOOKUP(INDEX(Quantities!$A$24:$A$25,MATCH($A23,Quantities!$C$24:$C$25)),Quantities[],Quantities!$O$2)+VLOOKUP(INDEX(Quantities!$A$24:$A$25,MATCH($A23,Quantities!$C$24:$C$25)),Quantities[],Quantities!$Q$2)+VLOOKUP(A23,Quantities[],Quantities!$S$2)), IF(AND(B23="D", (VLOOKUP(A23,Quantities[],Quantities!$O$2)+VLOOKUP(A23,Quantities[],Quantities!$Q$2)+VLOOKUP(A23,Quantities[],Quantities!$S$2))>0), (VLOOKUP(A23,Quantities[],Quantities!$P$2)*VLOOKUP(A23,Quantities[],Quantities!$O$2) +VLOOKUP(A23,Quantities[],Quantities!$R$2)*VLOOKUP(A23,Quantities[],Quantities!$Q$2) +VLOOKUP(A23,Quantities[],Quantities!$T$2)*VLOOKUP(A23,Quantities[],Quantities!$S$2))/ (VLOOKUP(A23,Quantities[],Quantities!$O$2)+VLOOKUP(A23,Quantities[],Quantities!$Q$2)+VLOOKUP(A23,Quantities[],Quantities!$S$2)), IF($B23="Q", (SUM(VLOOKUP($A23,Quantities[],Quantities!$P$2)*VLOOKUP($A23,Quantities[],Quantities!$O$2),VLOOKUP($A23,Quantities[],Quantities!$R$2)*VLOOKUP($A23,Quantities[],Quantities!$Q$2),VLOOKUP($A23,Quantities[],Quantities!$T$2)*VLOOKUP($A23,Quantities[],Quantities!$S$2)))/SUM(VLOOKUP($A23,Quantities[],Quantities!$O$2),VLOOKUP($A23,Quantities[],Quantities!$Q$2),VLOOKUP($A23,Quantities[],Quantities!$S$2)), VLOOKUP(A23,Quantities[],Quantities!$H$2) )))))) -> 0.01 | K23: =IF(LEFT(D23,1)="U","-",VLOOKUP(D23,Equipment[],Equipment!$B$2)) -> Cat D11T CD Multi-shank (w/ MSR-359H)
A24: =Quantities!$A$4 -> 1000 | B24: B | C24: b | D24: Dz2 | E24: 1000-B-b-Dz2 | F24: =IF(D24="Comb1",CONCATENATE(VLOOKUP(B24,'Activity-Material_Codes'!$A$2:$B$28,Quantities!$B$2),"-",VLOOKUP(A24,Quantities[],Quantities!$D$2)), CONCATENATE( VLOOKUP(B24,'Activity-Material_Codes'!$A$2:$B$30,Quantities!$B$2), IF(AND(B24="B",C24="a"), " Scraper Grading", ""), IF(C24="b","","-"), IF(C24="b","",VLOOKUP(A24,Quantities[],Quantities!$D$2)), IF(LEFT(TEXT(A24,"0"),1)="5","","-"), IF(LEFT(TEXT(A24,"0"),1)="5","",VLOOKUP(C24,'Activity-Material_Codes'!$A$34:$B$40,Quantities!$B$2)) )) -> Dozer Assist-Cover | G24: =IF(C24="f",VLOOKUP(A24,Quantities[],Quantities!$B$2), CONCATENATE( IF(OR(RIGHT(TEXT($A24,"0"),Quantities!$B$2)="00",LEFT(TEXT($A24,"0"),1)="5",OR($C24="b",$C24="f")),"",VLOOKUP($A24,Quantities[],Quantities!$B$2)), IF(LEFT(TEXT($A24,"0"),1)="5",""," "), IF(OR(C24="a",C24="c",C24="d",C24="e"),IF(OR(RIGHT(TEXT($A24,"0"),Quantities!$B$2)="00",LEFT(TEXT($A24,"0"),1)="5"),VLOOKUP($A24,Quantities[],Quantities!$B$2),""), IF(LEFT(TEXT($A24,"0"),1)="5",VLOOKUP($A24,Quantities[],Quantities!$B$2), VLOOKUP(INDEX(Quantities!$A$24:$A$25,MATCH($A24,Quantities!$C$24:$C$25)),Quantities!$A$24:$B$25,Quantities!$B$2))))) -> Soil Stockpile | H24: =IF(LEFT(TEXT(A24,"0"),1)="5", VLOOKUP(VLOOKUP(A24,Quantities!$A$4:$D$25,Quantities!$C$2),Quantities!$A$4:$D$25,Quantities!$C$2), IF(OR(C24="a",C24="c",C24="d",C24="e"), "-", IF(RIGHT(TEXT(A24,"0"),2)="00",VLOOKUP(A24,Quantities[],Quantities!$B$2), IF(C24="f",VLOOKUP(A24,Quantities[],Quantities!$B$2), VLOOKUP(A24,Quantities[],Quantities!$C$2)) ))) -> EMW Waste | I24: =IF(OR(AND(LEFT(D24,2)="Sc",B24="A",OR(C24="d",C24="f")),AND(C24="f",B24="D")), SUM(VLOOKUP($A24,Quantities[],Quantities!$O$2),VLOOKUP($A24,Quantities[],Quantities!$Q$2),VLOOKUP($A24,Quantities[],Quantities!$S$2),VLOOKUP($A24,Quantities[],Quantities!$I$2)), IF(AND(LEFT(D24,2)="Sc",OR(C24="a",C24="f")), VLOOKUP(A24,Quantities[],Quantities!$I$2), IF(AND(B24="D",C24="b"), VLOOKUP(INDEX(Quantities!$A$24:$A$25,MATCH($A24,Quantities!$C$24:$C$25)),Quantities!$A$24:$AN$25,Quantities!$O$2)+ VLOOKUP(INDEX(Quantities!$A$24:$A$25,MATCH($A24,Quantities!$C$24:$C$25)),Quantities!$A$24:$AN$25,Quantities!$Q$2)+ VLOOKUP(INDEX(Quantities!$A$24:$A$25,MATCH($A24,Quantities!$C$24:$C$25)),Quantities!$A$24:$AN$25,Quantities!$S$2), IF(OR(B24="D",B24="Q"), SUM(VLOOKUP($A24,Quantities[],Quantities!$O$2),VLOOKUP($A24,Quantities[],Quantities!$Q$2),VLOOKUP($A24,Quantities[],Quantities!$S$2)), VLOOKUP(A24,Quantities[],Quantities!$G$2) )))) -> 0 | J24: =IF(LEFT(D24,2)="Mg", VLOOKUP(A24,Quantities[],Quantities!$H$2), IF(OR(AND(LEFT(D24,2)="Sc",B24="A",OR(C24="d",C24="f"))), (SUM(VLOOKUP($A24,Quantities[],Quantities!$P$2)*VLOOKUP($A24,Quantities[],Quantities!$O$2),VLOOKUP($A24,Quantities[],Quantities!$R$2)*VLOOKUP($A24,Quantities[],Quantities!$Q$2),VLOOKUP($A24,Quantities[],Quantities!$T$2)*VLOOKUP($A24,Quantities[],Quantities!$S$2)))/SUM(VLOOKUP($A24,Quantities[],Quantities!$O$2),VLOOKUP($A24,Quantities[],Quantities!$Q$2),VLOOKUP($A24,Quantities[],Quantities!$S$2)), IF(AND(LEFT(D24,2)="Sc",OR(C24="a",C24="f")), VLOOKUP(A24,Quantities[],Quantities!$J$2), IF(AND(B24="D",C24="b", (VLOOKUP(INDEX(Quantities!$A$24:$A$25,MATCH($A24,Quantities!$C$24:$C$25)),Quantities[],Quantities!$O$2)+VLOOKUP(INDEX(Quantities!$A$24:$A$25,MATCH($A24,Quantities!$C$24:$C$25)),Quantities[],Quantities!$Q$2)+VLOOKUP(INDEX(Quantities!$A$24:$A$25,MATCH($A24,Quantities!$C$24:$C$25)),Quantities[],Quantities!$S$2))>0), (VLOOKUP(INDEX(Quantities!$A$24:$A$25,MATCH($A24,Quantities!$C$24:$C$25)),Quantities[],Quantities!$P$2)*VLOOKUP(INDEX(Quantities!$A$24:$A$25,MATCH($A24,Quantities!$C$24:$C$25)),Quantities[],Quantities!$O$2) +VLOOKUP(INDEX(Quantities!$A$24:$A$25,MATCH($A24,Quantities!$C$24:$C$25)),Quantities[],Quantities!$R$2)*VLOOKUP(INDEX(Quantities!$A$24:$A$25,MATCH($A24,Quantities!$C$24:$C$25)),Quantities[],Quantities!$Q$2) +VLOOKUP(INDEX(Quantities!$A$24:$A$25,MATCH($A24,Quantities!$C$24:$C$25)),Quantities[],Quantities!$T$2)*VLOOKUP(INDEX(Quantities!$A$24:$A$25,MATCH($A24,Quantities!$C$24:$C$25)),Quantities[],Quantities!$S$2))/ (VLOOKUP(INDEX(Quantities!$A$24:$A$25,MATCH($A24,Quantities!$C$24:$C$25)),Quantities[],Quantities!$O$2)+VLOOKUP(INDEX(Quantities!$A$24:$A$25,MATCH($A24,Quantities!$C$24:$C$25)),Quantities[],Quantities!$Q$2)+VLOOKUP(A24,Quantities[],Quantities!$S$2)), IF(AND(B24="D", (VLOOKUP(A24,Quantities[],Quantities!$O$2)+VLOOKUP(A24,Quantities[],Quantities!$Q$2)+VLOOKUP(A24,Quantities[],Quantities!$S$2))>0), (VLOOKUP(A24,Quantities[],Quantities!$P$2)*VLOOKUP(A24,Quantities[],Quantities!$O$2) +VLOOKUP(A24,Quantities[],Quantities!$R$2)*VLOOKUP(A24,Quantities[],Quantities!$Q$2) +VLOOKUP(A24,Quantities[],Quantities!$T$2)*VLOOKUP(A24,Quantities[],Quantities!$S$2))/ (VLOOKUP(A24,Quantities[],Quantities!$O$2)+VLOOKUP(A24,Quantities[],Quantities!$Q$2)+VLOOKUP(A24,Quantities[],Quantities!$S$2)), IF($B24="Q", (SUM(VLOOKUP($A24,Quantities[],Quantities!$P$2)*VLOOKUP($A24,Quantities[],Quantities!$O$2),VLOOKUP($A24,Quantities[],Quantities!$R$2)*VLOOKUP($A24,Quantities[],Quantities!$Q$2),VLOOKUP($A24,Quantities[],Quantities!$T$2)*VLOOKUP($A24,Quantities[],Quantities!$S$2)))/SUM(VLOOKUP($A24,Quantities[],Quantities!$O$2),VLOOKUP($A24,Quantities[],Quantities!$Q$2),VLOOKUP($A24,Quantities[],Quantities!$S$2)), VLOOKUP(A24,Quantities[],Quantities!$H$2) )))))) -> - | K24: =IF(LEFT(D24,1)="U","-",VLOOKUP(D24,Equipment[],Equipment!$B$2)) -> Cat D11T CD
A25: =Quantities!$A$7 -> 1100 | B25: B | C25: b | D25: Dz2 | E25: 1100-B-b-Dz2 | F25: =IF(D25="Comb1",CONCATENATE(VLOOKUP(B25,'Activity-Material_Codes'!$A$2:$B$28,Quantities!$B$2),"-",VLOOKUP(A25,Quantities[],Quantities!$D$2)), CONCATENATE( VLOOKUP(B25,'Activity-Material_Codes'!$A$2:$B$30,Quantities!$B$2), IF(AND(B25="B",C25="a"), " Scraper Grading", ""), IF(C25="b","","-"), IF(C25="b","",VLOOKUP(A25,Quantities[],Quantities!$D$2)), IF(LEFT(TEXT(A25,"0"),1)="5","","-"), IF(LEFT(TEXT(A25,"0"),1)="5","",VLOOKUP(C25,'Activity-Material_Codes'!$A$34:$B$40,Quantities!$B$2)) )) -> Dozer Assist-Cover | G25: =IF(C25="f",VLOOKUP(A25,Quantities[],Quantities!$B$2), CONCATENATE( IF(OR(RIGHT(TEXT($A25,"0"),Quantities!$B$2)="00",LEFT(TEXT($A25,"0"),1)="5",OR($C25="b",$C25="f")),"",VLOOKUP($A25,Quantities[],Quantities!$B$2)), IF(LEFT(TEXT($A25,"0"),1)="5",""," "), IF(OR(C25="a",C25="c",C25="d",C25="e"),IF(OR(RIGHT(TEXT($A25,"0"),Quantities!$B$2)="00",LEFT(TEXT($A25,"0"),1)="5"),VLOOKUP($A25,Quantities[],Quantities!$B$2),""), IF(LEFT(TEXT($A25,"0"),1)="5",VLOOKUP($A25,Quantities[],Quantities!$B$2), VLOOKUP(INDEX(Quantities!$A$24:$A$25,MATCH($A25,Quantities!$C$24:$C$25)),Quantities!$A$24:$B$25,Quantities!$B$2))))) -> Soil Stockpile | H25: =IF(LEFT(TEXT(A25,"0"),1)="5", VLOOKUP(VLOOKUP(A25,Quantities!$A$4:$D$25,Quantities!$C$2),Quantities!$A$4:$D$25,Quantities!$C$2), IF(OR(C25="a",C25="c",C25="d",C25="e"), "-", IF(RIGHT(TEXT(A25,"0"),2)="00",VLOOKUP(A25,Quantities[],Quantities!$B$2), IF(C25="f",VLOOKUP(A25,Quantities[],Quantities!$B$2), VLOOKUP(A25,Quantities[],Quantities!$C$2)) ))) -> 6HW Waste | I25: =IF(OR(AND(LEFT(D25,2)="Sc",B25="A",OR(C25="d",C25="f")),AND(C25="f",B25="D")), SUM(VLOOKUP($A25,Quantities[],Quantities!$O$2),VLOOKUP($A25,Quantities[],Quantities!$Q$2),VLOOKUP($A25,Quantities[],Quantities!$S$2),VLOOKUP($A25,Quantities[],Quantities!$I$2)), IF(AND(LEFT(D25,2)="Sc",OR(C25="a",C25="f")), VLOOKUP(A25,Quantities[],Quantities!$I$2), IF(AND(B25="D",C25="b"), VLOOKUP(INDEX(Quantities!$A$24:$A$25,MATCH($A25,Quantities!$C$24:$C$25)),Quantities!$A$24:$AN$25,Quantities!$O$2)+ VLOOKUP(INDEX(Quantities!$A$24:$A$25,MATCH($A25,Quantities!$C$24:$C$25)),Quantities!$A$24:$AN$25,Quantities!$Q$2)+ VLOOKUP(INDEX(Quantities!$A$24:$A$25,MATCH($A25,Quantities!$C$24:$C$25)),Quantities!$A$24:$AN$25,Quantities!$S$2), IF(OR(B25="D",B25="Q"), SUM(VLOOKUP($A25,Quantities[],Quantities!$O$2),VLOOKUP($A25,Quantities[],Quantities!$Q$2),VLOOKUP($A25,Quantities[],Quantities!$S$2)), VLOOKUP(A25,Quantities[],Quantities!$G$2) )))) -> 0 | J25: =IF(LEFT(D25,2)="Mg", VLOOKUP(A25,Quantities[],Quantities!$H$2), IF(OR(AND(LEFT(D25,2)="Sc",B25="A",OR(C25="d",C25="f"))), (SUM(VLOOKUP($A25,Quantities[],Quantities!$P$2)*VLOOKUP($A25,Quantities[],Quantities!$O$2),VLOOKUP($A25,Quantities[],Quantities!$R$2)*VLOOKUP($A25,Quantities[],Quantities!$Q$2),VLOOKUP($A25,Quantities[],Quantities!$T$2)*VLOOKUP($A25,Quantities[],Quantities!$S$2)))/SUM(VLOOKUP($A25,Quantities[],Quantities!$O$2),VLOOKUP($A25,Quantities[],Quantities!$Q$2),VLOOKUP($A25,Quantities[],Quantities!$S$2)), IF(AND(LEFT(D25,2)="Sc",OR(C25="a",C25="f")), VLOOKUP(A25,Quantities[],Quantities!$J$2), IF(AND(B25="D",C25="b", (VLOOKUP(INDEX(Quantities!$A$24:$A$25,MATCH($A25,Quantities!$C$24:$C$25)),Quantities[],Quantities!$O$2)+VLOOKUP(INDEX(Quantities!$A$24:$A$25,MATCH($A25,Quantities!$C$24:$C$25)),Quantities[],Quantities!$Q$2)+VLOOKUP(INDEX(Quantities!$A$24:$A$25,MATCH($A25,Quantities!$C$24:$C$25)),Quantities[],Quantities!$S$2))>0), (VLOOKUP(INDEX(Quantities!$A$24:$A$25,MATCH($A25,Quantities!$C$24:$C$25)),Quantities[],Quantities!$P$2)*VLOOKUP(INDEX(Quantities!$A$24:$A$25,MATCH($A25,Quantities!$C$24:$C$25)),Quantities[],Quantities!$O$2) +VLOOKUP(INDEX(Quantities!$A$24:$A$25,MATCH($A25,Quantities!$C$24:$C$25)),Quantities[],Quantities!$R$2)*VLOOKUP(INDEX(Quantities!$A$24:$A$25,MATCH($A25,Quantities!$C$24:$C$25)),Quantities[],Quantities!$Q$2) +VLOOKUP(INDEX(Quantities!$A$24:$A$25,MATCH($A25,Quantities!$C$24:$C$25)),Quantities[],Quantities!$T$2)*VLOOKUP(INDEX(Quantities!$A$24:$A$25,MATCH($A25,Quantities!$C$24:$C$25)),Quantities[],Quantities!$S$2))/ (VLOOKUP(INDEX(Quantities!$A$24:$A$25,MATCH($A25,Quantities!$C$24:$C$25)),Quantities[],Quantities!$O$2)+VLOOKUP(INDEX(Quantities!$A$24:$A$25,MATCH($A25,Quantities!$C$24:$C$25)),Quantities[],Quantities!$Q$2)+VLOOKUP(A25,Quantities[],Quantities!$S$2)), IF(AND(B25="D", (VLOOKUP(A25,Quantities[],Quantities!$O$2)+VLOOKUP(A25,Quantities[],Quantities!$Q$2)+VLOOKUP(A25,Quantities[],Quantities!$S$2))>0), (VLOOKUP(A25,Quantities[],Quantities!$P$2)*VLOOKUP(A25,Quantities[],Quantities!$O$2) +VLOOKUP(A25,Quantities[],Quantities!$R$2)*VLOOKUP(A25,Quantities[],Quantities!$Q$2) +VLOOKUP(A25,Quantities[],Quantities!$T$2)*VLOOKUP(A25,Quantities[],Quantities!$S$2))/ (VLOOKUP(A25,Quantities[],Quantities!$O$2)+VLOOKUP(A25,Quantities[],Quantities!$Q$2)+VLOOKUP(A25,Quantities[],Quantities!$S$2)), IF($B25="Q", (SUM(VLOOKUP($A25,Quantities[],Quantities!$P$2)*VLOOKUP($A25,Quantities[],Quantities!$O$2),VLOOKUP($A25,Quantities[],Quantities!$R$2)*VLOOKUP($A25,Quantities[],Quantities!$Q$2),VLOOKUP($A25,Quantities[],Quantities!$T$2)*VLOOKUP($A25,Quantities[],Quantities!$S$2)))/SUM(VLOOKUP($A25,Quantities[],Quantities!$O$2),VLOOKUP($A25,Quantities[],Quantities!$Q$2),VLOOKUP($A25,Quantities[],Quantities!$S$2)), VLOOKUP(A25,Quantities[],Quantities!$H$2) )))))) -> - | K25: =IF(LEFT(D25,1)="U","-",VLOOKUP(D25,Equipment[],Equipment!$B$2)) -> Cat D11T CD
A26: =Quantities!$A$8 -> 1101 | B26: B | C26: a | D26: Dz3 | E26: 1101-B-a-Dz3 | F26: =IF(D26="Comb1",CONCATENATE(VLOOKUP(B26,'Activity-Material_Codes'!$A$2:$B$28,Quantities!$B$2),"-",VLOOKUP(A26,Quantities[],Quantities!$D$2)), CONCATENATE( VLOOKUP(B26,'Activity-Material_Codes'!$A$2:$B$30,Quantities!$B$2), IF(AND(B26="B",C26="a"), " Scraper Grading", ""), IF(C26="b","","-"), IF(C26="b","",VLOOKUP(A26,Quantities[],Quantities!$D$2)), IF(LEFT(TEXT(A26,"0"),1)="5","","-"), IF(LEFT(TEXT(A26,"0"),1)="5","",VLOOKUP(C26,'Activity-Material_Codes'!$A$34:$B$40,Quantities!$B$2)) )) -> Dozer Assist Scraper Grading-Reclaimed Slope Area-Existing Ground | G26: =IF(C26="f",VLOOKUP(A26,Quantities[],Quantities!$B$2), CONCATENATE( IF(OR(RIGHT(TEXT($A26,"0"),Quantities!$B$2)="00",LEFT(TEXT($A26,"0"),1)="5",OR($C26="b",$C26="f")),"",VLOOKUP($A26,Quantities[],Quantities!$B$2)), IF(LEFT(TEXT($A26,"0"),1)="5",""," "), IF(OR(C26="a",C26="c",C26="d",C26="e"),IF(OR(RIGHT(TEXT($A26,"0"),Quantities!$B$2)="00",LEFT(TEXT($A26,"0"),1)="5"),VLOOKUP($A26,Quantities[],Quantities!$B$2),""), IF(LEFT(TEXT($A26,"0"),1)="5",VLOOKUP($A26,Quantities[],Quantities!$B$2), VLOOKUP(INDEX(Quantities!$A$24:$A$25,MATCH($A26,Quantities!$C$24:$C$25)),Quantities!$A$24:$B$25,Quantities!$B$2))))) -> 6HW Waste | H26: =IF(LEFT(TEXT(A26,"0"),1)="5", VLOOKUP(VLOOKUP(A26,Quantities!$A$4:$D$25,Quantities!$C$2),Quantities!$A$4:$D$25,Quantities!$C$2), IF(OR(C26="a",C26="c",C26="d",C26="e"), "-", IF(RIGHT(TEXT(A26,"0"),2)="00",VLOOKUP(A26,Quantities[],Quantities!$B$2), IF(C26="f",VLOOKUP(A26,Quantities[],Quantities!$B$2), VLOOKUP(A26,Quantities[],Quantities!$C$2)) ))) -> - | I26: =IF(OR(AND(LEFT(D26,2)="Sc",B26="A",OR(C26="d",C26="f")),AND(C26="f",B26="D")), SUM(VLOOKUP($A26,Quantities[],Quantities!$O$2),VLOOKUP($A26,Quantities[],Quantities!$Q$2),VLOOKUP($A26,Quantities[],Quantities!$S$2),VLOOKUP($A26,Quantities[],Quantities!$I$2)), IF(AND(LEFT(D26,2)="Sc",OR(C26="a",C26="f")), VLOOKUP(A26,Quantities[],Quantities!$I$2), IF(AND(B26="D",C26="b"), VLOOKUP(INDEX(Quantities!$A$24:$A$25,MATCH($A26,Quantities!$C$24:$C$25)),Quantities!$A$24:$AN$25,Quantities!$O$2)+ VLOOKUP(INDEX(Quantities!$A$24:$A$25,MATCH($A26,Quantities!$C$24:$C$25)),Quantities!$A$24:$AN$25,Quantities!$Q$2)+ VLOOKUP(INDEX(Quantities!$A$24:$A$25,MATCH($A26,Quantities!$C$24:$C$25)),Quantities!$A$24:$AN$25,Quantities!$S$2), IF(OR(B26="D",B26="Q"), SUM(VLOOKUP($A26,Quantities[],Quantities!$O$2),VLOOKUP($A26,Quantities[],Quantities!$Q$2),VLOOKUP($A26,Quantities[],Quantities!$S$2)), VLOOKUP(A26,Quantities[],Quantities!$G$2) )))) -> 200 | J26: =IF(LEFT(D26,2)="Mg", VLOOKUP(A26,Quantities[],Quantities!$H$2), IF(OR(AND(LEFT(D26,2)="Sc",B26="A",OR(C26="d",C26="f"))), (SUM(VLOOKUP($A26,Quantities[],Quantities!$P$2)*VLOOKUP($A26,Quantities[],Quantities!$O$2),VLOOKUP($A26,Quantities[],Quantities!$R$2)*VLOOKUP($A26,Quantities[],Quantities!$Q$2),VLOOKUP($A26,Quantities[],Quantities!$T$2)*VLOOKUP($A26,Quantities[],Quantities!$S$2)))/SUM(VLOOKUP($A26,Quantities[],Quantities!$O$2),VLOOKUP($A26,Quantities[],Quantities!$Q$2),VLOOKUP($A26,Quantities[],Quantities!$S$2)), IF(AND(LEFT(D26,2)="Sc",OR(C26="a",C26="f")), VLOOKUP(A26,Quantities[],Quantities!$J$2), IF(AND(B26="D",C26="b", (VLOOKUP(INDEX(Quantities!$A$24:$A$25,MATCH($A26,Quantities!$C$24:$C$25)),Quantities[],Quantities!$O$2)+VLOOKUP(INDEX(Quantities!$A$24:$A$25,MATCH($A26,Quantities!$C$24:$C$25)),Quantities[],Quantities!$Q$2)+VLOOKUP(INDEX(Quantities!$A$24:$A$25,MATCH($A26,Quantities!$C$24:$C$25)),Quantities[],Quantities!$S$2))>0), (VLOOKUP(INDEX(Quantities!$A$24:$A$25,MATCH($A26,Quantities!$C$24:$C$25)),Quantities[],Quantities!$P$2)*VLOOKUP(INDEX(Quantities!$A$24:$A$25,MATCH($A26,Quantities!$C$24:$C$25)),Quantities[],Quantities!$O$2) +VLOOKUP(INDEX(Quantities!$A$24:$A$25,MATCH($A26,Quantities!$C$24:$C$25)),Quantities[],Quantities!$R$2)*VLOOKUP(INDEX(Quantities!$A$24:$A$25,MATCH($A26,Quantities!$C$24:$C$25)),Quantities[],Quantities!$Q$2) +VLOOKUP(INDEX(Quantities!$A$24:$A$25,MATCH($A26,Quantities!$C$24:$C$25)),Quantities[],Quantities!$T$2)*VLOOKUP(INDEX(Quantities!$A$24:$A$25,MATCH($A26,Quantities!$C$24:$C$25)),Quantities[],Quantities!$S$2))/ (VLOOKUP(INDEX(Quantities!$A$24:$A$25,MATCH($A26,Quantities!$C$24:$C$25)),Quantities[],Quantities!$O$2)+VLOOKUP(INDEX(Quantities!$A$24:$A$25,MATCH($A26,Quantities!$C$24:$C$25)),Quantities[],Quantities!$Q$2)+VLOOKUP(A26,Quantities[],Quantities!$S$2)), IF(AND(B26="D", (VLOOKUP(A26,Quantities[],Quantities!$O$2)+VLOOKUP(A26,Quantities[],Quantities!$Q$2)+VLOOKUP(A26,Quantities[],Quantities!$S$2))>0), (VLOOKUP(A26,Quantities[],Quantities!$P$2)*VLOOKUP(A26,Quantities[],Quantities!$O$2) +VLOOKUP(A26,Quantities[],Quantities!$R$2)*VLOOKUP(A26,Quantities[],Quantities!$Q$2) +VLOOKUP(A26,Quantities[],Quantities!$T$2)*VLOOKUP(A26,Quantities[],Quantities!$S$2))/ (VLOOKUP(A26,Quantities[],Quantities!$O$2)+VLOOKUP(A26,Quantities[],Quantities!$Q$2)+VLOOKUP(A26,Quantities[],Quantities!$S$2)), IF($B26="Q", (SUM(VLOOKUP($A26,Quantities[],Quantities!$P$2)*VLOOKUP($A26,Quantities[],Quantities!$O$2),VLOOKUP($A26,Quantities[],Quantities!$R$2)*VLOOKUP($A26,Quantities[],Quantities!$Q$2),VLOOKUP($A26,Quantities[],Quantities!$T$2)*VLOOKUP($A26,Quantities[],Quantities!$S$2)))/SUM(VLOOKUP($A26,Quantities[],Quantities!$O$2),VLOOKUP($A26,Quantities[],Quantities!$Q$2),VLOOKUP($A26,Quantities[],Quantities!$S$2)), VLOOKUP(A26,Quantities[],Quantities!$H$2) )))))) -> -0.2857142857 | K26: =IF(LEFT(D26,1)="U","-",VLOOKUP(D26,Equipment[],Equipment!$B$2)) -> Cat D9T, SU Blade
A27: =Quantities!$A$11 -> 1201 | B27: B | C27: f | D27: Dz2 | E27: 1201-B-f-Dz2 | F27: =IF(D27="Comb1",CONCATENATE(VLOOKUP(B27,'Activity-Material_Codes'!$A$2:$B$28,Quantities!$B$2),"-",VLOOKUP(A27,Quantities[],Quantities!$D$2)), CONCATENATE( VLOOKUP(B27,'Activity-Material_Codes'!$A$2:$B$30,Quantities!$B$2), IF(AND(B27="B",C27="a"), " Scraper Grading", ""), IF(C27="b","","-"), IF(C27="b","",VLOOKUP(A27,Quantities[],Quantities!$D$2)), IF(LEFT(TEXT(A27,"0"),1)="5","","-"), IF(LEFT(TEXT(A27,"0"),1)="5","",VLOOKUP(C27,'Activity-Material_Codes'!$A$34:$B$40,Quantities!$B$2)) )) -> Dozer Assist-Oak Grove Wash Fill Removal-Fill/Stockpile Material | G27: =IF(C27="f",VLOOKUP(A27,Quantities[],Quantities!$B$2), CONCATENATE( IF(OR(RIGHT(TEXT($A27,"0"),Quantities!$B$2)="00",LEFT(TEXT($A27,"0"),1)="5",OR($C27="b",$C27="f")),"",VLOOKUP($A27,Quantities[],Quantities!$B$2)), IF(LEFT(TEXT($A27,"0"),1)="5",""," "), IF(OR(C27="a",C27="c",C27="d",C27="e"),IF(OR(RIGHT(TEXT($A27,"0"),Quantities!$B$2)="00",LEFT(TEXT($A27,"0"),1)="5"),VLOOKUP($A27,Quantities[],Quantities!$B$2),""), IF(LEFT(TEXT($A27,"0"),1)="5",VLOOKUP($A27,Quantities[],Quantities!$B$2), VLOOKUP(INDEX(Quantities!$A$24:$A$25,MATCH($A27,Quantities!$C$24:$C$25)),Quantities!$A$24:$B$25,Quantities!$B$2))))) -> Haul Roads | H27: - | I27: =IF(OR(AND(LEFT(D27,2)="Sc",B27="A",OR(C27="d",C27="f")),AND(C27="f",B27="D")), SUM(VLOOKUP($A27,Quantities[],Quantities!$O$2),VLOOKUP($A27,Quantities[],Quantities!$Q$2),VLOOKUP($A27,Quantities[],Quantities!$S$2),VLOOKUP($A27,Quantities[],Quantities!$I$2)), IF(AND(LEFT(D27,2)="Sc",OR(C27="a",C27="f")), VLOOKUP(A27,Quantities[],Quantities!$I$2), IF(AND(B27="D",C27="b"), VLOOKUP(INDEX(Quantities!$A$24:$A$25,MATCH($A27,Quantities!$C$24:$C$25)),Quantities!$A$24:$AN$25,Quantities!$O$2)+ VLOOKUP(INDEX(Quantities!$A$24:$A$25,MATCH($A27,Quantities!$C$24:$C$25)),Quantities!$A$24:$AN$25,Quantities!$Q$2)+ VLOOKUP(INDEX(Quantities!$A$24:$A$25,MATCH($A27,Quantities!$C$24:$C$25)),Quantities!$A$24:$AN$25,Quantities!$S$2), IF(OR(B27="D",B27="Q"), SUM(VLOOKUP($A27,Quantities[],Quantities!$O$2),VLOOKUP($A27,Quantities[],Quantities!$Q$2),VLOOKUP($A27,Quantities[],Quantities!$S$2)), VLOOKUP(A27,Quantities[],Quantities!$G$2) )))) -> 200 | J27: =IF(LEFT(D27,2)="Mg", VLOOKUP(A27,Quantities[],Quantities!$H$2), IF(OR(AND(LEFT(D27,2)="Sc",B27="A",OR(C27="d",C27="f"))), (SUM(VLOOKUP($A27,Quantities[],Quantities!$P$2)*VLOOKUP($A27,Quantities[],Quantities!$O$2),VLOOKUP($A27,Quantities[],Quantities!$R$2)*VLOOKUP($A27,Quantities[],Quantities!$Q$2),VLOOKUP($A27,Quantities[],Quantities!$T$2)*VLOOKUP($A27,Quantities[],Quantities!$S$2)))/SUM(VLOOKUP($A27,Quantities[],Quantities!$O$2),VLOOKUP($A27,Quantities[],Quantities!$Q$2),VLOOKUP($A27,Quantities[],Quantities!$S$2)), IF(AND(LEFT(D27,2)="Sc",OR(C27="a",C27="f")), VLOOKUP(A27,Quantities[],Quantities!$J$2), IF(AND(B27="D",C27="b", (VLOOKUP(INDEX(Quantities!$A$24:$A$25,MATCH($A27,Quantities!$C$24:$C$25)),Quantities[],Quantities!$O$2)+VLOOKUP(INDEX(Quantities!$A$24:$A$25,MATCH($A27,Quantities!$C$24:$C$25)),Quantities[],Quantities!$Q$2)+VLOOKUP(INDEX(Quantities!$A$24:$A$25,MATCH($A27,Quantities!$C$24:$C$25)),Quantities[],Quantities!$S$2))>0), (VLOOKUP(INDEX(Quantities!$A$24:$A$25,MATCH($A27,Quantities!$C$24:$C$25)),Quantities[],Quantities!$P$2)*VLOOKUP(INDEX(Quantities!$A$24:$A$25,MATCH($A27,Quantities!$C$24:$C$25)),Quantities[],Quantities!$O$2) +VLOOKUP(INDEX(Quantities!$A$24:$A$25,MATCH($A27,Quantities!$C$24:$C$25)),Quantities[],Quantities!$R$2)*VLOOKUP(INDEX(Quantities!$A$24:$A$25,MATCH($A27,Quantities!$C$24:$C$25)),Quantities[],Quantities!$Q$2) +VLOOKUP(INDEX(Quantities!$A$24:$A$25,MATCH($A27,Quantities!$C$24:$C$25)),Quantities[],Quantities!$T$2)*VLOOKUP(INDEX(Quantities!$A$24:$A$25,MATCH($A27,Quantities!$C$24:$C$25)),Quantities[],Quantities!$S$2))/ (VLOOKUP(INDEX(Quantities!$A$24:$A$25,MATCH($A27,Quantities!$C$24:$C$25)),Quantities[],Quantities!$O$2)+VLOOKUP(INDEX(Quantities!$A$24:$A$25,MATCH($A27,Quantities!$C$24:$C$25)),Quantities[],Quantities!$Q$2)+VLOOKUP(A27,Quantities[],Quantities!$S$2)), IF(AND(B27="D", (VLOOKUP(A27,Quantities[],Quantities!$O$2)+VLOOKUP(A27,Quantities[],Quantities!$Q$2)+VLOOKUP(A27,Quantities[],Quantities!$S$2))>0), (VLOOKUP(A27,Quantities[],Quantities!$P$2)*VLOOKUP(A27,Quantities[],Quantities!$O$2) +VLOOKUP(A27,Quantities[],Quantities!$R$2)*VLOOKUP(A27,Quantities[],Quantities!$Q$2) +VLOOKUP(A27,Quantities[],Quantities!$T$2)*VLOOKUP(A27,Quantities[],Quantities!$S$2))/ (VLOOKUP(A27,Quantities[],Quantities!$O$2)+VLOOKUP(A27,Quantities[],Quantities!$Q$2)+VLOOKUP(A27,Quantities[],Quantities!$S$2)), IF($B27="Q", (SUM(VLOOKUP($A27,Quantities[],Quantities!$P$2)*VLOOKUP($A27,Quantities[],Quantities!$O$2),VLOOKUP($A27,Quantities[],Quantities!$R$2)*VLOOKUP($A27,Quantities[],Quantities!$Q$2),VLOOKUP($A27,Quantities[],Quantities!$T$2)*VLOOKUP($A27,Quantities[],Quantities!$S$2)))/SUM(VLOOKUP($A27,Quantities[],Quantities!$O$2),VLOOKUP($A27,Quantities[],Quantities!$Q$2),VLOOKUP($A27,Quantities[],Quantities!$S$2)), VLOOKUP(A27,Quantities[],Quantities!$H$2) )))))) -> 0.02 | K27: =IF(LEFT(D27,1)="U","-",VLOOKUP(D27,Equipment[],Equipment!$B$2)) -> Cat D11T CD
A28: =Quantities!$A$15 -> 1300 | B28: B | C28: b | D28: Dz2 | E28: 1300-B-b-Dz2 | F28: =IF(D28="Comb1",CONCATENATE(VLOOKUP(B28,'Activity-Material_Codes'!$A$2:$B$28,Quantities!$B$2),"-",VLOOKUP(A28,Quantities[],Quantities!$D$2)), CONCATENATE( VLOOKUP(B28,'Activity-Material_Codes'!$A$2:$B$30,Quantities!$B$2), IF(AND(B28="B",C28="a"), " Scraper Grading", ""), IF(C28="b","","-"), IF(C28="b","",VLOOKUP(A28,Quantities[],Quantities!$D$2)), IF(LEFT(TEXT(A28,"0"),1)="5","","-"), IF(LEFT(TEXT(A28,"0"),1)="5","",VLOOKUP(C28,'Activity-Material_Codes'!$A$34:$B$40,Quantities!$B$2)) )) -> Dozer Assist-Cover | G28: =IF(C28="f",VLOOKUP(A28,Quantities[],Quantities!$B$2), CONCATENATE( IF(OR(RIGHT(TEXT($A28,"0"),Quantities!$B$2)="00",LEFT(TEXT($A28,"0"),1)="5",OR($C28="b",$C28="f")),"",VLOOKUP($A28,Quantities[],Quantities!$B$2)), IF(LEFT(TEXT($A28,"0"),1)="5",""," "), IF(OR(C28="a",C28="c",C28="d",C28="e"),IF(OR(RIGHT(TEXT($A28,"0"),Quantities!$B$2)="00",LEFT(TEXT($A28,"0"),1)="5"),VLOOKUP($A28,Quantities[],Quantities!$B$2),""), IF(LEFT(TEXT($A28,"0"),1)="5",VLOOKUP($A28,Quantities[],Quantities!$B$2), VLOOKUP(INDEX(Quantities!$A$24:$A$25,MATCH($A28,Quantities!$C$24:$C$25)),Quantities!$A$24:$B$25,Quantities!$B$2))))) -> Soil Stockpile | H28: =IF(LEFT(TEXT(A28,"0"),1)="5", VLOOKUP(VLOOKUP(A28,Quantities!$A$4:$D$25,Quantities!$C$2),Quantities!$A$4:$D$25,Quantities!$C$2), IF(OR(C28="a",C28="c",C28="d",C28="e"), "-", IF(RIGHT(TEXT(A28,"0"),2)="00",VLOOKUP(A28,Quantities[],Quantities!$B$2), IF(C28="f",VLOOKUP(A28,Quantities[],Quantities!$B$2), VLOOKUP(A28,Quantities[],Quantities!$C$2)) ))) -> Emma Backfill Areas | I28: =IF(OR(AND(LEFT(D28,2)="Sc",B28="A",OR(C28="d",C28="f")),AND(C28="f",B28="D")), SUM(VLOOKUP($A28,Quantities[],Quantities!$O$2),VLOOKUP($A28,Quantities[],Quantities!$Q$2),VLOOKUP($A28,Quantities[],Quantities!$S$2),VLOOKUP($A28,Quantities[],Quantities!$I$2)), IF(AND(LEFT(D28,2)="Sc",OR(C28="a",C28="f")), VLOOKUP(A28,Quantities[],Quantities!$I$2), IF(AND(B28="D",C28="b"), VLOOKUP(INDEX(Quantities!$A$24:$A$25,MATCH($A28,Quantities!$C$24:$C$25)),Quantities!$A$24:$AN$25,Quantities!$O$2)+ VLOOKUP(INDEX(Quantities!$A$24:$A$25,MATCH($A28,Quantities!$C$24:$C$25)),Quantities!$A$24:$AN$25,Quantities!$Q$2)+ VLOOKUP(INDEX(Quantities!$A$24:$A$25,MATCH($A28,Quantities!$C$24:$C$25)),Quantities!$A$24:$AN$25,Quantities!$S$2), IF(OR(B28="D",B28="Q"), SUM(VLOOKUP($A28,Quantities[],Quantities!$O$2),VLOOKUP($A28,Quantities[],Quantities!$Q$2),VLOOKUP($A28,Quantities[],Quantities!$S$2)), VLOOKUP(A28,Quantities[],Quantities!$G$2) )))) -> 200 | J28: =IF(LEFT(D28,2)="Mg", VLOOKUP(A28,Quantities[],Quantities!$H$2), IF(OR(AND(LEFT(D28,2)="Sc",B28="A",OR(C28="d",C28="f"))), (SUM(VLOOKUP($A28,Quantities[],Quantities!$P$2)*VLOOKUP($A28,Quantities[],Quantities!$O$2),VLOOKUP($A28,Quantities[],Quantities!$R$2)*VLOOKUP($A28,Quantities[],Quantities!$Q$2),VLOOKUP($A28,Quantities[],Quantities!$T$2)*VLOOKUP($A28,Quantities[],Quantities!$S$2)))/SUM(VLOOKUP($A28,Quantities[],Quantities!$O$2),VLOOKUP($A28,Quantities[],Quantities!$Q$2),VLOOKUP($A28,Quantities[],Quantities!$S$2)), IF(AND(LEFT(D28,2)="Sc",OR(C28="a",C28="f")), VLOOKUP(A28,Quantities[],Quantities!$J$2), IF(AND(B28="D",C28="b", (VLOOKUP(INDEX(Quantities!$A$24:$A$25,MATCH($A28,Quantities!$C$24:$C$25)),Quantities[],Quantities!$O$2)+VLOOKUP(INDEX(Quantities!$A$24:$A$25,MATCH($A28,Quantities!$C$24:$C$25)),Quantities[],Quantities!$Q$2)+VLOOKUP(INDEX(Quantities!$A$24:$A$25,MATCH($A28,Quantities!$C$24:$C$25)),Quantities[],Quantities!$S$2))>0), (VLOOKUP(INDEX(Quantities!$A$24:$A$25,MATCH($A28,Quantities!$C$24:$C$25)),Quantities[],Quantities!$P$2)*VLOOKUP(INDEX(Quantities!$A$24:$A$25,MATCH($A28,Quantities!$C$24:$C$25)),Quantities[],Quantities!$O$2) +VLOOKUP(INDEX(Quantities!$A$24:$A$25,MATCH($A28,Quantities!$C$24:$C$25)),Quantities[],Quantities!$R$2)*VLOOKUP(INDEX(Quantities!$A$24:$A$25,MATCH($A28,Quantities!$C$24:$C$25)),Quantities[],Quantities!$Q$2) +VLOOKUP(INDEX(Quantities!$A$24:$A$25,MATCH($A28,Quantities!$C$24:$C$25)),Quantities[],Quantities!$T$2)*VLOOKUP(INDEX(Quantities!$A$24:$A$25,MATCH($A28,Quantities!$C$24:$C$25)),Quantities[],Quantities!$S$2))/ (VLOOKUP(INDEX(Quantities!$A$24:$A$25,MATCH($A28,Quantities!$C$24:$C$25)),Quantities[],Quantities!$O$2)+VLOOKUP(INDEX(Quantities!$A$24:$A$25,MATCH($A28,Quantities!$C$24:$C$25)),Quantities[],Quantities!$Q$2)+VLOOKUP(A28,Quantities[],Quantities!$S$2)), IF(AND(B28="D", (VLOOKUP(A28,Quantities[],Quantities!$O$2)+VLOOKUP(A28,Quantities[],Quantities!$Q$2)+VLOOKUP(A28,Quantities[],Quantities!$S$2))>0), (VLOOKUP(A28,Quantities[],Quantities!$P$2)*VLOOKUP(A28,Quantities[],Quantities!$O$2) +VLOOKUP(A28,Quantities[],Quantities!$R$2)*VLOOKUP(A28,Quantities[],Quantities!$Q$2) +VLOOKUP(A28,Quantities[],Quantities!$T$2)*VLOOKUP(A28,Quantities[],Quantities!$S$2))/ (VLOOKUP(A28,Quantities[],Quantities!$O$2)+VLOOKUP(A28,Quantities[],Quantities!$Q$2)+VLOOKUP(A28,Quantities[],Quantities!$S$2)), IF($B28="Q", (SUM(VLOOKUP($A28,Quantities[],Quantities!$P$2)*VLOOKUP($A28,Quantities[],Quantities!$O$2),VLOOKUP($A28,Quantities[],Quantities!$R$2)*VLOOKUP($A28,Quantities[],Quantities!$Q$2),VLOOKUP($A28,Quantities[],Quantities!$T$2)*VLOOKUP($A28,Quantities[],Quantities!$S$2)))/SUM(VLOOKUP($A28,Quantities[],Quantities!$O$2),VLOOKUP($A28,Quantities[],Quantities!$Q$2),VLOOKUP($A28,Quantities[],Quantities!$S$2)), VLOOKUP(A28,Quantities[],Quantities!$H$2) )))))) -> 0 | K28: =IF(LEFT(D28,1)="U","-",VLOOKUP(D28,Equipment[],Equipment!$B$2)) -> Cat D11T CD
A29: =Quantities!$A$16 -> 1301 | B29: B | C29: f | D29: Dz2 | E29: 1301-B-f-Dz2 | F29: =IF(D29="Comb1",CONCATENATE(VLOOKUP(B29,'Activity-Material_Codes'!$A$2:$B$28,Quantities!$B$2),"-",VLOOKUP(A29,Quantities[],Quantities!$D$2)), CONCATENATE( VLOOKUP(B29,'Activity-Material_Codes'!$A$2:$B$30,Quantities!$B$2), IF(AND(B29="B",C29="a"), " Scraper Grading", ""), IF(C29="b","","-"), IF(C29="b","",VLOOKUP(A29,Quantities[],Quantities!$D$2)), IF(LEFT(TEXT(A29,"0"),1)="5","","-"), IF(LEFT(TEXT(A29,"0"),1)="5","",VLOOKUP(C29,'Activity-Material_Codes'!$A$34:$B$40,Quantities!$B$2)) )) -> Dozer Assist-Collection Sump-Fill/Stockpile Material | G29: EMW Waste | H29: =IF(LEFT(TEXT(A29,"0"),1)="5", VLOOKUP(VLOOKUP(A29,Quantities!$A$4:$D$25,Quantities!$C$2),Quantities!$A$4:$D$25,Quantities!$C$2), IF(OR(C29="a",C29="c",C29="d",C29="e"), "-", IF(RIGHT(TEXT(A29,"0"),2)="00",VLOOKUP(A29,Quantities[],Quantities!$B$2), IF(C29="f",VLOOKUP(A29,Quantities[],Quantities!$B$2), VLOOKUP(A29,Quantities[],Quantities!$C$2)) ))) -> Emma Backfill Areas | I29: =IF(OR(AND(LEFT(D29,2)="Sc",B29="A",OR(C29="d",C29="f")),AND(C29="f",B29="D")), SUM(VLOOKUP($A29,Quantities[],Quantities!$O$2),VLOOKUP($A29,Quantities[],Quantities!$Q$2),VLOOKUP($A29,Quantities[],Quantities!$S$2),VLOOKUP($A29,Quantities[],Quantities!$I$2)), IF(AND(LEFT(D29,2)="Sc",OR(C29="a",C29="f")), VLOOKUP(A29,Quantities[],Quantities!$I$2), IF(AND(B29="D",C29="b"), VLOOKUP(INDEX(Quantities!$A$24:$A$25,MATCH($A29,Quantities!$C$24:$C$25)),Quantities!$A$24:$AN$25,Quantities!$O$2)+ VLOOKUP(INDEX(Quantities!$A$24:$A$25,MATCH($A29,Quantities!$C$24:$C$25)),Quantities!$A$24:$AN$25,Quantities!$Q$2)+ VLOOKUP(INDEX(Quantities!$A$24:$A$25,MATCH($A29,Quantities!$C$24:$C$25)),Quantities!$A$24:$AN$25,Quantities!$S$2), IF(OR(B29="D",B29="Q"), SUM(VLOOKUP($A29,Quantities[],Quantities!$O$2),VLOOKUP($A29,Quantities[],Quantities!$Q$2),VLOOKUP($A29,Quantities[],Quantities!$S$2)), VLOOKUP(A29,Quantities[],Quantities!$G$2) )))) -> 200 | J29: =IF(LEFT(D29,2)="Mg", VLOOKUP(A29,Quantities[],Quantities!$H$2), IF(OR(AND(LEFT(D29,2)="Sc",B29="A",OR(C29="d",C29="f"))), (SUM(VLOOKUP($A29,Quantities[],Quantities!$P$2)*VLOOKUP($A29,Quantities[],Quantities!$O$2),VLOOKUP($A29,Quantities[],Quantities!$R$2)*VLOOKUP($A29,Quantities[],Quantities!$Q$2),VLOOKUP($A29,Quantities[],Quantities!$T$2)*VLOOKUP($A29,Quantities[],Quantities!$S$2)))/SUM(VLOOKUP($A29,Quantities[],Quantities!$O$2),VLOOKUP($A29,Quantities[],Quantities!$Q$2),VLOOKUP($A29,Quantities[],Quantities!$S$2)), IF(AND(LEFT(D29,2)="Sc",OR(C29="a",C29="f")), VLOOKUP(A29,Quantities[],Quantities!$J$2), IF(AND(B29="D",C29="b", (VLOOKUP(INDEX(Quantities!$A$24:$A$25,MATCH($A29,Quantities!$C$24:$C$25)),Quantities[],Quantities!$O$2)+VLOOKUP(INDEX(Quantities!$A$24:$A$25,MATCH($A29,Quantities!$C$24:$C$25)),Quantities[],Quantities!$Q$2)+VLOOKUP(INDEX(Quantities!$A$24:$A$25,MATCH($A29,Quantities!$C$24:$C$25)),Quantities[],Quantities!$S$2))>0), (VLOOKUP(INDEX(Quantities!$A$24:$A$25,MATCH($A29,Quantities!$C$24:$C$25)),Quantities[],Quantities!$P$2)*VLOOKUP(INDEX(Quantities!$A$24:$A$25,MATCH($A29,Quantities!$C$24:$C$25)),Quantities[],Quantities!$O$2) +VLOOKUP(INDEX(Quantities!$A$24:$A$25,MATCH($A29,Quantities!$C$24:$C$25)),Quantities[],Quantities!$R$2)*VLOOKUP(INDEX(Quantities!$A$24:$A$25,MATCH($A29,Quantities!$C$24:$C$25)),Quantities[],Quantities!$Q$2) +VLOOKUP(INDEX(Quantities!$A$24:$A$25,MATCH($A29,Quantities!$C$24:$C$25)),Quantities[],Quantities!$T$2)*VLOOKUP(INDEX(Quantities!$A$24:$A$25,MATCH($A29,Quantities!$C$24:$C$25)),Quantities[],Quantities!$S$2))/ (VLOOKUP(INDEX(Quantities!$A$24:$A$25,MATCH($A29,Quantities!$C$24:$C$25)),Quantities[],Quantities!$O$2)+VLOOKUP(INDEX(Quantities!$A$24:$A$25,MATCH($A29,Quantities!$C$24:$C$25)),Quantities[],Quantities!$Q$2)+VLOOKUP(A29,Quantities[],Quantities!$S$2)), IF(AND(B29="D", (VLOOKUP(A29,Quantities[],Quantities!$O$2)+VLOOKUP(A29,Quantities[],Quantities!$Q$2)+VLOOKUP(A29,Quantities[],Quantities!$S$2))>0), (VLOOKUP(A29,Quantities[],Quantities!$P$2)*VLOOKUP(A29,Quantities[],Quantities!$O$2) +VLOOKUP(A29,Quantities[],Quantities!$R$2)*VLOOKUP(A29,Quantities[],Quantities!$Q$2) +VLOOKUP(A29,Quantities[],Quantities!$T$2)*VLOOKUP(A29,Quantities[],Quantities!$S$2))/ (VLOOKUP(A29,Quantities[],Quantities!$O$2)+VLOOKUP(A29,Quantities[],Quantities!$Q$2)+VLOOKUP(A29,Quantities[],Quantities!$S$2)), IF($B29="Q", (SUM(VLOOKUP($A29,Quantities[],Quantities!$P$2)*VLOOKUP($A29,Quantities[],Quantities!$O$2),VLOOKUP($A29,Quantities[],Quantities!$R$2)*VLOOKUP($A29,Quantities[],Quantities!$Q$2),VLOOKUP($A29,Quantities[],Quantities!$T$2)*VLOOKUP($A29,Quantities[],Quantities!$S$2)))/SUM(VLOOKUP($A29,Quantities[],Quantities!$O$2),VLOOKUP($A29,Quantities[],Quantities!$Q$2),VLOOKUP($A29,Quantities[],Quantities!$S$2)), VLOOKUP(A29,Quantities[],Quantities!$H$2) )))))) -> 0.5 | K29: =IF(LEFT(D29,1)="U","-",VLOOKUP(D29,Equipment[],Equipment!$B$2)) -> Cat D11T CD
A30: =Quantities!$A$23 -> 1500 | B30: B | C30: b | D30: Dz2 | E30: 1500-B-b-Dz2 | F30: =IF(D30="Comb1",CONCATENATE(VLOOKUP(B30,'Activity-Material_Codes'!$A$2:$B$28,Quantities!$B$2),"-",VLOOKUP(A30,Quantities[],Quantities!$D$2)), CONCATENATE( VLOOKUP(B30,'Activity-Material_Codes'!$A$2:$B$30,Quantities!$B$2), IF(AND(B30="B",C30="a"), " Scraper Grading", ""), IF(C30="b","","-"), IF(C30="b","",VLOOKUP(A30,Quantities[],Quantities!$D$2)), IF(LEFT(TEXT(A30,"0"),1)="5","","-"), IF(LEFT(TEXT(A30,"0"),1)="5","",VLOOKUP(C30,'Activity-Material_Codes'!$A$34:$B$40,Quantities!$B$2)) )) -> Dozer Assist-Cover | G30: =IF(C30="f",VLOOKUP(A30,Quantities[],Quantities!$B$2), CONCATENATE( IF(OR(RIGHT(TEXT($A30,"0"),Quantities!$B$2)="00",LEFT(TEXT($A30,"0"),1)="5",OR($C30="b",$C30="f")),"",VLOOKUP($A30,Quantities[],Quantities!$B$2)), IF(LEFT(TEXT($A30,"0"),1)="5",""," "), IF(OR(C30="a",C30="c",C30="d",C30="e"),IF(OR(RIGHT(TEXT($A30,"0"),Quantities!$B$2)="00",LEFT(TEXT($A30,"0"),1)="5"),VLOOKUP($A30,Quantities[],Quantities!$B$2),""), IF(LEFT(TEXT($A30,"0"),1)="5",VLOOKUP($A30,Quantities[],Quantities!$B$2), VLOOKUP(INDEX(Quantities!$A$24:$A$25,MATCH($A30,Quantities!$C$24:$C$25)),Quantities!$A$24:$B$25,Quantities!$B$2))))) -> Soil Stockpile | H30: =IF(LEFT(TEXT(A30,"0"),1)="5", VLOOKUP(VLOOKUP(A30,Quantities!$A$4:$D$25,Quantities!$C$2),Quantities!$A$4:$D$25,Quantities!$C$2), IF(OR(C30="a",C30="c",C30="d",C30="e"), "-", IF(RIGHT(TEXT(A30,"0"),2)="00",VLOOKUP(A30,Quantities[],Quantities!$B$2), IF(C30="f",VLOOKUP(A30,Quantities[],Quantities!$B$2), VLOOKUP(A30,Quantities[],Quantities!$C$2)) ))) -> Allowance for Other Disturbed Areas | I30: =IF(OR(AND(LEFT(D30,2)="Sc",B30="A",OR(C30="d",C30="f")),AND(C30="f",B30="D")), SUM(VLOOKUP($A30,Quantities[],Quantities!$O$2),VLOOKUP($A30,Quantities[],Quantities!$Q$2),VLOOKUP($A30,Quantities[],Quantities!$S$2),VLOOKUP($A30,Quantities[],Quantities!$I$2)), IF(AND(LEFT(D30,2)="Sc",OR(C30="a",C30="f")), VLOOKUP(A30,Quantities[],Quantities!$I$2), IF(AND(B30="D",C30="b"), VLOOKUP(INDEX(Quantities!$A$24:$A$25,MATCH($A30,Quantities!$C$24:$C$25)),Quantities!$A$24:$AN$25,Quantities!$O$2)+ VLOOKUP(INDEX(Quantities!$A$24:$A$25,MATCH($A30,Quantities!$C$24:$C$25)),Quantities!$A$24:$AN$25,Quantities!$Q$2)+ VLOOKUP(INDEX(Quantities!$A$24:$A$25,MATCH($A30,Quantities!$C$24:$C$25)),Quantities!$A$24:$AN$25,Quantities!$S$2), IF(OR(B30="D",B30="Q"), SUM(VLOOKUP($A30,Quantities[],Quantities!$O$2),VLOOKUP($A30,Quantities[],Quantities!$Q$2),VLOOKUP($A30,Quantities[],Quantities!$S$2)), VLOOKUP(A30,Quantities[],Quantities!$G$2) )))) -> 200 | J30: =IF(LEFT(D30,2)="Mg", VLOOKUP(A30,Quantities[],Quantities!$H$2), IF(OR(AND(LEFT(D30,2)="Sc",B30="A",OR(C30="d",C30="f"))), (SUM(VLOOKUP($A30,Quantities[],Quantities!$P$2)*VLOOKUP($A30,Quantities[],Quantities!$O$2),VLOOKUP($A30,Quantities[],Quantities!$R$2)*VLOOKUP($A30,Quantities[],Quantities!$Q$2),VLOOKUP($A30,Quantities[],Quantities!$T$2)*VLOOKUP($A30,Quantities[],Quantities!$S$2)))/SUM(VLOOKUP($A30,Quantities[],Quantities!$O$2),VLOOKUP($A30,Quantities[],Quantities!$Q$2),VLOOKUP($A30,Quantities[],Quantities!$S$2)), IF(AND(LEFT(D30,2)="Sc",OR(C30="a",C30="f")), VLOOKUP(A30,Quantities[],Quantities!$J$2), IF(AND(B30="D",C30="b", (VLOOKUP(INDEX(Quantities!$A$24:$A$25,MATCH($A30,Quantities!$C$24:$C$25)),Quantities[],Quantities!$O$2)+VLOOKUP(INDEX(Quantities!$A$24:$A$25,MATCH($A30,Quantities!$C$24:$C$25)),Quantities[],Quantities!$Q$2)+VLOOKUP(INDEX(Quantities!$A$24:$A$25,MATCH($A30,Quantities!$C$24:$C$25)),Quantities[],Quantities!$S$2))>0), (VLOOKUP(INDEX(Quantities!$A$24:$A$25,MATCH($A30,Quantities!$C$24:$C$25)),Quantities[],Quantities!$P$2)*VLOOKUP(INDEX(Quantities!$A$24:$A$25,MATCH($A30,Quantities!$C$24:$C$25)),Quantities[],Quantities!$O$2) +VLOOKUP(INDEX(Quantities!$A$24:$A$25,MATCH($A30,Quantities!$C$24:$C$25)),Quantities[],Quantities!$R$2)*VLOOKUP(INDEX(Quantities!$A$24:$A$25,MATCH($A30,Quantities!$C$24:$C$25)),Quantities[],Quantities!$Q$2) +VLOOKUP(INDEX(Quantities!$A$24:$A$25,MATCH($A30,Quantities!$C$24:$C$25)),Quantities[],Quantities!$T$2)*VLOOKUP(INDEX(Quantities!$A$24:$A$25,MATCH($A30,Quantities!$C$24:$C$25)),Quantities[],Quantities!$S$2))/ (VLOOKUP(INDEX(Quantities!$A$24:$A$25,MATCH($A30,Quantities!$C$24:$C$25)),Quantities[],Quantities!$O$2)+VLOOKUP(INDEX(Quantities!$A$24:$A$25,MATCH($A30,Quantities!$C$24:$C$25)),Quantities[],Quantities!$Q$2)+VLOOKUP(A30,Quantities[],Quantities!$S$2)), IF(AND(B30="D", (VLOOKUP(A30,Quantities[],Quantities!$O$2)+VLOOKUP(A30,Quantities[],Quantities!$Q$2)+VLOOKUP(A30,Quantities[],Quantities!$S$2))>0), (VLOOKUP(A30,Quantities[],Quantities!$P$2)*VLOOKUP(A30,Quantities[],Quantities!$O$2) +VLOOKUP(A30,Quantities[],Quantities!$R$2)*VLOOKUP(A30,Quantities[],Quantities!$Q$2) +VLOOKUP(A30,Quantities[],Quantities!$T$2)*VLOOKUP(A30,Quantities[],Quantities!$S$2))/ (VLOOKUP(A30,Quantities[],Quantities!$O$2)+VLOOKUP(A30,Quantities[],Quantities!$Q$2)+VLOOKUP(A30,Quantities[],Quantities!$S$2)), IF($B30="Q", (SUM(VLOOKUP($A30,Quantities[],Quantities!$P$2)*VLOOKUP($A30,Quantities[],Quantities!$O$2),VLOOKUP($A30,Quantities[],Quantities!$R$2)*VLOOKUP($A30,Quantities[],Quantities!$Q$2),VLOOKUP($A30,Quantities[],Quantities!$T$2)*VLOOKUP($A30,Quantities[],Quantities!$S$2)))/SUM(VLOOKUP($A30,Quantities[],Quantities!$O$2),VLOOKUP($A30,Quantities[],Quantities!$Q$2),VLOOKUP($A30,Quantities[],Quantities!$S$2)), VLOOKUP(A30,Quantities[],Quantities!$H$2) )))))) -> 0.01 | K30: =IF(LEFT(D30,1)="U","-",VLOOKUP(D30,Equipment[],Equipment!$B$2)) -> Cat D11T CD
A31: =Quantities!$A$4 -> 1000 | B31: C | C31: b | D31: =$B$8 -> Sh1 | E31: 1000-C-b-Sh1 | F31: =IF(D31="Comb1",CONCATENATE(VLOOKUP(B31,'Activity-Material_Codes'!$A$2:$B$28,Quantities!$B$2),"-",VLOOKUP(A31,Quantities[],Quantities!$D$2)), CONCATENATE( VLOOKUP(B31,'Activity-Material_Codes'!$A$2:$B$30,Quantities!$B$2), IF(AND(B31="B",C31="a"), " Scraper Grading", ""), IF(C31="b","","-"), IF(C31="b","",VLOOKUP(A31,Quantities[],Quantities!$D$2)), IF(LEFT(TEXT(A31,"0"),1)="5","","-"), IF(LEFT(TEXT(A31,"0"),1)="5","",VLOOKUP(C31,'Activity-Material_Codes'!$A$34:$B$40,Quantities!$B$2)) )) -> Load-Cover | G31: =IF(C31="f",VLOOKUP(A31,Quantities[],Quantities!$B$2), CONCATENATE( IF(OR(RIGHT(TEXT($A31,"0"),Quantities!$B$2)="00",LEFT(TEXT($A31,"0"),1)="5",OR($C31="b",$C31="f")),"",VLOOKUP($A31,Quantities[],Quantities!$B$2)), IF(LEFT(TEXT($A31,"0"),1)="5",""," "), IF(OR(C31="a",C31="c",C31="d",C31="e"),IF(OR(RIGHT(TEXT($A31,"0"),Quantities!$B$2)="00",LEFT(TEXT($A31,"0"),1)="5"),VLOOKUP($A31,Quantities[],Quantities!$B$2),""), IF(LEFT(TEXT($A31,"0"),1)="5",VLOOKUP($A31,Quantities[],Quantities!$B$2), VLOOKUP(INDEX(Quantities!$A$24:$A$25,MATCH($A31,Quantities!$C$24:$C$25)),Quantities!$A$24:$B$25,Quantities!$B$2))))) -> Soil Stockpile | H31: =IF(LEFT(TEXT(A31,"0"),1)="5", VLOOKUP(VLOOKUP(A31,Quantities!$A$4:$D$25,Quantities!$C$2),Quantities!$A$4:$D$25,Quantities!$C$2), IF(OR(C31="a",C31="c",C31="d",C31="e"), "-", IF(RIGHT(TEXT(A31,"0"),2)="00",VLOOKUP(A31,Quantities[],Quantities!$B$2), IF(C31="f",VLOOKUP(A31,Quantities[],Quantities!$B$2), VLOOKUP(A31,Quantities[],Quantities!$C$2)) ))) -> EMW Waste | I31: =IF(OR(AND(LEFT(D31,2)="Sc",B31="A",OR(C31="d",C31="f")),AND(C31="f",B31="D")), SUM(VLOOKUP($A31,Quantities[],Quantities!$O$2),VLOOKUP($A31,Quantities[],Quantities!$Q$2),VLOOKUP($A31,Quantities[],Quantities!$S$2),VLOOKUP($A31,Quantities[],Quantities!$I$2)), IF(AND(LEFT(D31,2)="Sc",OR(C31="a",C31="f")), VLOOKUP(A31,Quantities[],Quantities!$I$2), IF(AND(B31="D",C31="b"), VLOOKUP(INDEX(Quantities!$A$24:$A$25,MATCH($A31,Quantities!$C$24:$C$25)),Quantities!$A$24:$AN$25,Quantities!$O$2)+ VLOOKUP(INDEX(Quantities!$A$24:$A$25,MATCH($A31,Quantities!$C$24:$C$25)),Quantities!$A$24:$AN$25,Quantities!$Q$2)+ VLOOKUP(INDEX(Quantities!$A$24:$A$25,MATCH($A31,Quantities!$C$24:$C$25)),Quantities!$A$24:$AN$25,Quantities!$S$2), IF(OR(B31="D",B31="Q"), SUM(VLOOKUP($A31,Quantities[],Quantities!$O$2),VLOOKUP($A31,Quantities[],Quantities!$Q$2),VLOOKUP($A31,Quantities[],Quantities!$S$2)), VLOOKUP(A31,Quantities[],Quantities!$G$2) )))) -> 0 | J31: =IF(LEFT(D31,2)="Mg", VLOOKUP(A31,Quantities[],Quantities!$H$2), IF(OR(AND(LEFT(D31,2)="Sc",B31="A",OR(C31="d",C31="f"))), (SUM(VLOOKUP($A31,Quantities[],Quantities!$P$2)*VLOOKUP($A31,Quantities[],Quantities!$O$2),VLOOKUP($A31,Quantities[],Quantities!$R$2)*VLOOKUP($A31,Quantities[],Quantities!$Q$2),VLOOKUP($A31,Quantities[],Quantities!$T$2)*VLOOKUP($A31,Quantities[],Quantities!$S$2)))/SUM(VLOOKUP($A31,Quantities[],Quantities!$O$2),VLOOKUP($A31,Quantities[],Quantities!$Q$2),VLOOKUP($A31,Quantities[],Quantities!$S$2)), IF(AND(LEFT(D31,2)="Sc",OR(C31="a",C31="f")), VLOOKUP(A31,Quantities[],Quantities!$J$2), IF(AND(B31="D",C31="b", (VLOOKUP(INDEX(Quantities!$A$24:$A$25,MATCH($A31,Quantities!$C$24:$C$25)),Quantities[],Quantities!$O$2)+VLOOKUP(INDEX(Quantities!$A$24:$A$25,MATCH($A31,Quantities!$C$24:$C$25)),Quantities[],Quantities!$Q$2)+VLOOKUP(INDEX(Quantities!$A$24:$A$25,MATCH($A31,Quantities!$C$24:$C$25)),Quantities[],Quantities!$S$2))>0), (VLOOKUP(INDEX(Quantities!$A$24:$A$25,MATCH($A31,Quantities!$C$24:$C$25)),Quantities[],Quantities!$P$2)*VLOOKUP(INDEX(Quantities!$A$24:$A$25,MATCH($A31,Quantities!$C$24:$C$25)),Quantities[],Quantities!$O$2) +VLOOKUP(INDEX(Quantities!$A$24:$A$25,MATCH($A31,Quantities!$C$24:$C$25)),Quantities[],Quantities!$R$2)*VLOOKUP(INDEX(Quantities!$A$24:$A$25,MATCH($A31,Quantities!$C$24:$C$25)),Quantities[],Quantities!$Q$2) +VLOOKUP(INDEX(Quantities!$A$24:$A$25,MATCH($A31,Quantities!$C$24:$C$25)),Quantities[],Quantities!$T$2)*VLOOKUP(INDEX(Quantities!$A$24:$A$25,MATCH($A31,Quantities!$C$24:$C$25)),Quantities[],Quantities!$S$2))/ (VLOOKUP(INDEX(Quantities!$A$24:$A$25,MATCH($A31,Quantities!$C$24:$C$25)),Quantities[],Quantities!$O$2)+VLOOKUP(INDEX(Quantities!$A$24:$A$25,MATCH($A31,Quantities!$C$24:$C$25)),Quantities[],Quantities!$Q$2)+VLOOKUP(A31,Quantities[],Quantities!$S$2)), IF(AND(B31="D", (VLOOKUP(A31,Quantities[],Quantities!$O$2)+VLOOKUP(A31,Quantities[],Quantities!$Q$2)+VLOOKUP(A31,Quantities[],Quantities!$S$2))>0), (VLOOKUP(A31,Quantities[],Quantities!$P$2)*VLOOKUP(A31,Quantities[],Quantities!$O$2) +VLOOKUP(A31,Quantities[],Quantities!$R$2)*VLOOKUP(A31,Quantities[],Quantities!$Q$2) +VLOOKUP(A31,Quantities[],Quantities!$T$2)*VLOOKUP(A31,Quantities[],Quantities!$S$2))/ (VLOOKUP(A31,Quantities[],Quantities!$O$2)+VLOOKUP(A31,Quantities[],Quantities!$Q$2)+VLOOKUP(A31,Quantities[],Quantities!$S$2)), IF($B31="Q", (SUM(VLOOKUP($A31,Quantities[],Quantities!$P$2)*VLOOKUP($A31,Quantities[],Quantities!$O$2),VLOOKUP($A31,Quantities[],Quantities!$R$2)*VLOOKUP($A31,Quantities[],Quantities!$Q$2),VLOOKUP($A31,Quantities[],Quantities!$T$2)*VLOOKUP($A31,Quantities[],Quantities!$S$2)))/SUM(VLOOKUP($A31,Quantities[],Quantities!$O$2),VLOOKUP($A31,Quantities[],Quantities!$Q$2),VLOOKUP($A31,Quantities[],Quantities!$S$2)), VLOOKUP(A31,Quantities[],Quantities!$H$2) )))))) -> - | K31: =IF(LEFT(D31,1)="U","-",VLOOKUP(D31,Equipment[],Equipment!$B$2)) -> Hitachi EX3600-5
A32: =Quantities!$A$7 -> 1100 | B32: C | C32: b | D32: =B8 -> Sh1 | E32: 1100-C-b-Sh1 | F32: =IF(D32="Comb1",CONCATENATE(VLOOKUP(B32,'Activity-Material_Codes'!$A$2:$B$28,Quantities!$B$2),"-",VLOOKUP(A32,Quantities[],Quantities!$D$2)), CONCATENATE( VLOOKUP(B32,'Activity-Material_Codes'!$A$2:$B$30,Quantities!$B$2), IF(AND(B32="B",C32="a"), " Scraper Grading", ""), IF(C32="b","","-"), IF(C32="b","",VLOOKUP(A32,Quantities[],Quantities!$D$2)), IF(LEFT(TEXT(A32,"0"),1)="5","","-"), IF(LEFT(TEXT(A32,"0"),1)="5","",VLOOKUP(C32,'Activity-Material_Codes'!$A$34:$B$40,Quantities!$B$2)) )) -> Load-Cover | G32: =IF(C32="f",VLOOKUP(A32,Quantities[],Quantities!$B$2), CONCATENATE( IF(OR(RIGHT(TEXT($A32,"0"),Quantities!$B$2)="00",LEFT(TEXT($A32,"0"),1)="5",OR($C32="b",$C32="f")),"",VLOOKUP($A32,Quantities[],Quantities!$B$2)), IF(LEFT(TEXT($A32,"0"),1)="5",""," "), IF(OR(C32="a",C32="c",C32="d",C32="e"),IF(OR(RIGHT(TEXT($A32,"0"),Quantities!$B$2)="00",LEFT(TEXT($A32,"0"),1)="5"),VLOOKUP($A32,Quantities[],Quantities!$B$2),""), IF(LEFT(TEXT($A32,"0"),1)="5",VLOOKUP($A32,Quantities[],Quantities!$B$2), VLOOKUP(INDEX(Quantities!$A$24:$A$25,MATCH($A32,Quantities!$C$24:$C$25)),Quantities!$A$24:$B$25,Quantities!$B$2))))) -> Soil Stockpile | H32: =IF(LEFT(TEXT(A32,"0"),1)="5", VLOOKUP(VLOOKUP(A32,Quantities!$A$4:$D$25,Quantities!$C$2),Quantities!$A$4:$D$25,Quantities!$C$2), IF(OR(C32="a",C32="c",C32="d",C32="e"), "-", IF(RIGHT(TEXT(A32,"0"),2)="00",VLOOKUP(A32,Quantities[],Quantities!$B$2), IF(C32="f",VLOOKUP(A32,Quantities[],Quantities!$B$2), VLOOKUP(A32,Quantities[],Quantities!$C$2)) ))) -> 6HW Waste | I32: =IF(OR(AND(LEFT(D32,2)="Sc",B32="A",OR(C32="d",C32="f")),AND(C32="f",B32="D")), SUM(VLOOKUP($A32,Quantities[],Quantities!$O$2),VLOOKUP($A32,Quantities[],Quantities!$Q$2),VLOOKUP($A32,Quantities[],Quantities!$S$2),VLOOKUP($A32,Quantities[],Quantities!$I$2)), IF(AND(LEFT(D32,2)="Sc",OR(C32="a",C32="f")), VLOOKUP(A32,Quantities[],Quantities!$I$2), IF(AND(B32="D",C32="b"), VLOOKUP(INDEX(Quantities!$A$24:$A$25,MATCH($A32,Quantities!$C$24:$C$25)),Quantities!$A$24:$AN$25,Quantities!$O$2)+ VLOOKUP(INDEX(Quantities!$A$24:$A$25,MATCH($A32,Quantities!$C$24:$C$25)),Quantities!$A$24:$AN$25,Quantities!$Q$2)+ VLOOKUP(INDEX(Quantities!$A$24:$A$25,MATCH($A32,Quantities!$C$24:$C$25)),Quantities!$A$24:$AN$25,Quantities!$S$2), IF(OR(B32="D",B32="Q"), SUM(VLOOKUP($A32,Quantities[],Quantities!$O$2),VLOOKUP($A32,Quantities[],Quantities!$Q$2),VLOOKUP($A32,Quantities[],Quantities!$S$2)), VLOOKUP(A32,Quantities[],Quantities!$G$2) )))) -> 0 | J32: =IF(LEFT(D32,2)="Mg", VLOOKUP(A32,Quantities[],Quantities!$H$2), IF(OR(AND(LEFT(D32,2)="Sc",B32="A",OR(C32="d",C32="f"))), (SUM(VLOOKUP($A32,Quantities[],Quantities!$P$2)*VLOOKUP($A32,Quantities[],Quantities!$O$2),VLOOKUP($A32,Quantities[],Quantities!$R$2)*VLOOKUP($A32,Quantities[],Quantities!$Q$2),VLOOKUP($A32,Quantities[],Quantities!$T$2)*VLOOKUP($A32,Quantities[],Quantities!$S$2)))/SUM(VLOOKUP($A32,Quantities[],Quantities!$O$2),VLOOKUP($A32,Quantities[],Quantities!$Q$2),VLOOKUP($A32,Quantities[],Quantities!$S$2)), IF(AND(LEFT(D32,2)="Sc",OR(C32="a",C32="f")), VLOOKUP(A32,Quantities[],Quantities!$J$2), IF(AND(B32="D",C32="b", (VLOOKUP(INDEX(Quantities!$A$24:$A$25,MATCH($A32,Quantities!$C$24:$C$25)),Quantities[],Quantities!$O$2)+VLOOKUP(INDEX(Quantities!$A$24:$A$25,MATCH($A32,Quantities!$C$24:$C$25)),Quantities[],Quantities!$Q$2)+VLOOKUP(INDEX(Quantities!$A$24:$A$25,MATCH($A32,Quantities!$C$24:$C$25)),Quantities[],Quantities!$S$2))>0), (VLOOKUP(INDEX(Quantities!$A$24:$A$25,MATCH($A32,Quantities!$C$24:$C$25)),Quantities[],Quantities!$P$2)*VLOOKUP(INDEX(Quantities!$A$24:$A$25,MATCH($A32,Quantities!$C$24:$C$25)),Quantities[],Quantities!$O$2) +VLOOKUP(INDEX(Quantities!$A$24:$A$25,MATCH($A32,Quantities!$C$24:$C$25)),Quantities[],Quantities!$R$2)*VLOOKUP(INDEX(Quantities!$A$24:$A$25,MATCH($A32,Quantities!$C$24:$C$25)),Quantities[],Quantities!$Q$2) +VLOOKUP(INDEX(Quantities!$A$24:$A$25,MATCH($A32,Quantities!$C$24:$C$25)),Quantities[],Quantities!$T$2)*VLOOKUP(INDEX(Quantities!$A$24:$A$25,MATCH($A32,Quantities!$C$24:$C$25)),Quantities[],Quantities!$S$2))/ (VLOOKUP(INDEX(Quantities!$A$24:$A$25,MATCH($A32,Quantities!$C$24:$C$25)),Quantities[],Quantities!$O$2)+VLOOKUP(INDEX(Quantities!$A$24:$A$25,MATCH($A32,Quantities!$C$24:$C$25)),Quantities[],Quantities!$Q$2)+VLOOKUP(A32,Quantities[],Quantities!$S$2)), IF(AND(B32="D", (VLOOKUP(A32,Quantities[],Quantities!$O$2)+VLOOKUP(A32,Quantities[],Quantities!$Q$2)+VLOOKUP(A32,Quantities[],Quantities!$S$2))>0), (VLOOKUP(A32,Quantities[],Quantities!$P$2)*VLOOKUP(A32,Quantities[],Quantities!$O$2) +VLOOKUP(A32,Quantities[],Quantities!$R$2)*VLOOKUP(A32,Quantities[],Quantities!$Q$2) +VLOOKUP(A32,Quantities[],Quantities!$T$2)*VLOOKUP(A32,Quantities[],Quantities!$S$2))/ (VLOOKUP(A32,Quantities[],Quantities!$O$2)+VLOOKUP(A32,Quantities[],Quantities!$Q$2)+VLOOKUP(A32,Quantities[],Quantities!$S$2)), IF($B32="Q", (SUM(VLOOKUP($A32,Quantities[],Quantities!$P$2)*VLOOKUP($A32,Quantities[],Quantities!$O$2),VLOOKUP($A32,Quantities[],Quantities!$R$2)*VLOOKUP($A32,Quantities[],Quantities!$Q$2),VLOOKUP($A32,Quantities[],Quantities!$T$2)*VLOOKUP($A32,Quantities[],Quantities!$S$2)))/SUM(VLOOKUP($A32,Quantities[],Quantities!$O$2),VLOOKUP($A32,Quantities[],Quantities!$Q$2),VLOOKUP($A32,Quantities[],Quantities!$S$2)), VLOOKUP(A32,Quantities[],Quantities!$H$2) )))))) -> - | K32: =IF(LEFT(D32,1)="U","-",VLOOKUP(D32,Equipment[],Equipment!$B$2)) -> Hitachi EX3600-5
A33: =Quantities!$A$11 -> 1201 | B33: C | C33: f | D33: =$B$8 -> Sh1 | E33: 1201-C-f-Sh1 | F33: =IF(D33="Comb1",CONCATENATE(VLOOKUP(B33,'Activity-Material_Codes'!$A$2:$B$28,Quantities!$B$2),"-",VLOOKUP(A33,Quantities[],Quantities!$D$2)), CONCATENATE( VLOOKUP(B33,'Activity-Material_Codes'!$A$2:$B$30,Quantities!$B$2), IF(AND(B33="B",C33="a"), " Scraper Grading", ""), IF(C33="b","","-"), IF(C33="b","",VLOOKUP(A33,Quantities[],Quantities!$D$2)), IF(LEFT(TEXT(A33,"0"),1)="5","","-"), IF(LEFT(TEXT(A33,"0"),1)="5","",VLOOKUP(C33,'Activity-Material_Codes'!$A$34:$B$40,Quantities!$B$2)) )) -> Load-Oak Grove Wash Fill Removal-Fill/Stockpile Material | G33: =IF(C33="f",VLOOKUP(A33,Quantities[],Quantities!$B$2), CONCATENATE( IF(OR(RIGHT(TEXT($A33,"0"),Quantities!$B$2)="00",LEFT(TEXT($A33,"0"),1)="5",OR($C33="b",$C33="f")),"",VLOOKUP($A33,Quantities[],Quantities!$B$2)), IF(LEFT(TEXT($A33,"0"),1)="5",""," "), IF(OR(C33="a",C33="c",C33="d",C33="e"),IF(OR(RIGHT(TEXT($A33,"0"),Quantities!$B$2)="00",LEFT(TEXT($A33,"0"),1)="5"),VLOOKUP($A33,Quantities[],Quantities!$B$2),""), IF(LEFT(TEXT($A33,"0"),1)="5",VLOOKUP($A33,Quantities[],Quantities!$B$2), VLOOKUP(INDEX(Quantities!$A$24:$A$25,MATCH($A33,Quantities!$C$24:$C$25)),Quantities!$A$24:$B$25,Quantities!$B$2))))) -> Haul Roads | H33: - | I33: =IF(OR(AND(LEFT(D33,2)="Sc",B33="A",OR(C33="d",C33="f")),AND(C33="f",B33="D")), SUM(VLOOKUP($A33,Quantities[],Quantities!$O$2),VLOOKUP($A33,Quantities[],Quantities!$Q$2),VLOOKUP($A33,Quantities[],Quantities!$S$2),VLOOKUP($A33,Quantities[],Quantities!$I$2)), IF(AND(LEFT(D33,2)="Sc",OR(C33="a",C33="f")), VLOOKUP(A33,Quantities[],Quantities!$I$2), IF(AND(B33="D",C33="b"), VLOOKUP(INDEX(Quantities!$A$24:$A$25,MATCH($A33,Quantities!$C$24:$C$25)),Quantities!$A$24:$AN$25,Quantities!$O$2)+ VLOOKUP(INDEX(Quantities!$A$24:$A$25,MATCH($A33,Quantities!$C$24:$C$25)),Quantities!$A$24:$AN$25,Quantities!$Q$2)+ VLOOKUP(INDEX(Quantities!$A$24:$A$25,MATCH($A33,Quantities!$C$24:$C$25)),Quantities!$A$24:$AN$25,Quantities!$S$2), IF(OR(B33="D",B33="Q"), SUM(VLOOKUP($A33,Quantities[],Quantities!$O$2),VLOOKUP($A33,Quantities[],Quantities!$Q$2),VLOOKUP($A33,Quantities[],Quantities!$S$2)), VLOOKUP(A33,Quantities[],Quantities!$G$2) )))) -> 200 | J33: =IF(LEFT(D33,2)="Mg", VLOOKUP(A33,Quantities[],Quantities!$H$2), IF(OR(AND(LEFT(D33,2)="Sc",B33="A",OR(C33="d",C33="f"))), (SUM(VLOOKUP($A33,Quantities[],Quantities!$P$2)*VLOOKUP($A33,Quantities[],Quantities!$O$2),VLOOKUP($A33,Quantities[],Quantities!$R$2)*VLOOKUP($A33,Quantities[],Quantities!$Q$2),VLOOKUP($A33,Quantities[],Quantities!$T$2)*VLOOKUP($A33,Quantities[],Quantities!$S$2)))/SUM(VLOOKUP($A33,Quantities[],Quantities!$O$2),VLOOKUP($A33,Quantities[],Quantities!$Q$2),VLOOKUP($A33,Quantities[],Quantities!$S$2)), IF(AND(LEFT(D33,2)="Sc",OR(C33="a",C33="f")), VLOOKUP(A33,Quantities[],Quantities!$J$2), IF(AND(B33="D",C33="b", (VLOOKUP(INDEX(Quantities!$A$24:$A$25,MATCH($A33,Quantities!$C$24:$C$25)),Quantities[],Quantities!$O$2)+VLOOKUP(INDEX(Quantities!$A$24:$A$25,MATCH($A33,Quantities!$C$24:$C$25)),Quantities[],Quantities!$Q$2)+VLOOKUP(INDEX(Quantities!$A$24:$A$25,MATCH($A33,Quantities!$C$24:$C$25)),Quantities[],Quantities!$S$2))>0), (VLOOKUP(INDEX(Quantities!$A$24:$A$25,MATCH($A33,Quantities!$C$24:$C$25)),Quantities[],Quantities!$P$2)*VLOOKUP(INDEX(Quantities!$A$24:$A$25,MATCH($A33,Quantities!$C$24:$C$25)),Quantities[],Quantities!$O$2) +VLOOKUP(INDEX(Quantities!$A$24:$A$25,MATCH($A33,Quantities!$C$24:$C$25)),Quantities[],Quantities!$R$2)*VLOOKUP(INDEX(Quantities!$A$24:$A$25,MATCH($A33,Quantities!$C$24:$C$25)),Quantities[],Quantities!$Q$2) +VLOOKUP(INDEX(Quantities!$A$24:$A$25,MATCH($A33,Quantities!$C$24:$C$25)),Quantities[],Quantities!$T$2)*VLOOKUP(INDEX(Quantities!$A$24:$A$25,MATCH($A33,Quantities!$C$24:$C$25)),Quantities[],Quantities!$S$2))/ (VLOOKUP(INDEX(Quantities!$A$24:$A$25,MATCH($A33,Quantities!$C$24:$C$25)),Quantities[],Quantities!$O$2)+VLOOKUP(INDEX(Quantities!$A$24:$A$25,MATCH($A33,Quantities!$C$24:$C$25)),Quantities[],Quantities!$Q$2)+VLOOKUP(A33,Quantities[],Quantities!$S$2)), IF(AND(B33="D", (VLOOKUP(A33,Quantities[],Quantities!$O$2)+VLOOKUP(A33,Quantities[],Quantities!$Q$2)+VLOOKUP(A33,Quantities[],Quantities!$S$2))>0), (VLOOKUP(A33,Quantities[],Quantities!$P$2)*VLOOKUP(A33,Quantities[],Quantities!$O$2) +VLOOKUP(A33,Quantities[],Quantities!$R$2)*VLOOKUP(A33,Quantities[],Quantities!$Q$2) +VLOOKUP(A33,Quantities[],Quantities!$T$2)*VLOOKUP(A33,Quantities[],Quantities!$S$2))/ (VLOOKUP(A33,Quantities[],Quantities!$O$2)+VLOOKUP(A33,Quantities[],Quantities!$Q$2)+VLOOKUP(A33,Quantities[],Quantities!$S$2)), IF($B33="Q", (SUM(VLOOKUP($A33,Quantities[],Quantities!$P$2)*VLOOKUP($A33,Quantities[],Quantities!$O$2),VLOOKUP($A33,Quantities[],Quantities!$R$2)*VLOOKUP($A33,Quantities[],Quantities!$Q$2),VLOOKUP($A33,Quantities[],Quantities!$T$2)*VLOOKUP($A33,Quantities[],Quantities!$S$2)))/SUM(VLOOKUP($A33,Quantities[],Quantities!$O$2),VLOOKUP($A33,Quantities[],Quantities!$Q$2),VLOOKUP($A33,Quantities[],Quantities!$S$2)), VLOOKUP(A33,Quantities[],Quantities!$H$2) )))))) -> 0.02 | K33: =IF(LEFT(D33,1)="U","-",VLOOKUP(D33,Equipment[],Equipment!$B$2)) -> Hitachi EX3600-5
A34: =Quantities!$A$15 -> 1300 | B34: C | C34: b | D34: =D31 -> Sh1 | E34: 1300-C-b-Sh1 | F34: =IF(D34="Comb1",CONCATENATE(VLOOKUP(B34,'Activity-Material_Codes'!$A$2:$B$28,Quantities!$B$2),"-",VLOOKUP(A34,Quantities[],Quantities!$D$2)), CONCATENATE( VLOOKUP(B34,'Activity-Material_Codes'!$A$2:$B$30,Quantities!$B$2), IF(AND(B34="B",C34="a"), " Scraper Grading", ""), IF(C34="b","","-"), IF(C34="b","",VLOOKUP(A34,Quantities[],Quantities!$D$2)), IF(LEFT(TEXT(A34,"0"),1)="5","","-"), IF(LEFT(TEXT(A34,"0"),1)="5","",VLOOKUP(C34,'Activity-Material_Codes'!$A$34:$B$40,Quantities!$B$2)) )) -> Load-Cover | G34: =IF(C34="f",VLOOKUP(A34,Quantities[],Quantities!$B$2), CONCATENATE( IF(OR(RIGHT(TEXT($A34,"0"),Quantities!$B$2)="00",LEFT(TEXT($A34,"0"),1)="5",OR($C34="b",$C34="f")),"",VLOOKUP($A34,Quantities[],Quantities!$B$2)), IF(LEFT(TEXT($A34,"0"),1)="5",""," "), IF(OR(C34="a",C34="c",C34="d",C34="e"),IF(OR(RIGHT(TEXT($A34,"0"),Quantities!$B$2)="00",LEFT(TEXT($A34,"0"),1)="5"),VLOOKUP($A34,Quantities[],Quantities!$B$2),""), IF(LEFT(TEXT($A34,"0"),1)="5",VLOOKUP($A34,Quantities[],Quantities!$B$2), VLOOKUP(INDEX(Quantities!$A$24:$A$25,MATCH($A34,Quantities!$C$24:$C$25)),Quantities!$A$24:$B$25,Quantities!$B$2))))) -> Soil Stockpile | H34: =IF(LEFT(TEXT(A34,"0"),1)="5", VLOOKUP(VLOOKUP(A34,Quantities!$A$4:$D$25,Quantities!$C$2),Quantities!$A$4:$D$25,Quantities!$C$2), IF(OR(C34="a",C34="c",C34="d",C34="e"), "-", IF(RIGHT(TEXT(A34,"0"),2)="00",VLOOKUP(A34,Quantities[],Quantities!$B$2), IF(C34="f",VLOOKUP(A34,Quantities[],Quantities!$B$2), VLOOKUP(A34,Quantities[],Quantities!$C$2)) ))) -> Emma Backfill Areas | I34: =IF(OR(AND(LEFT(D34,2)="Sc",B34="A",OR(C34="d",C34="f")),AND(C34="f",B34="D")), SUM(VLOOKUP($A34,Quantities[],Quantities!$O$2),VLOOKUP($A34,Quantities[],Quantities!$Q$2),VLOOKUP($A34,Quantities[],Quantities!$S$2),VLOOKUP($A34,Quantities[],Quantities!$I$2)), IF(AND(LEFT(D34,2)="Sc",OR(C34="a",C34="f")), VLOOKUP(A34,Quantities[],Quantities!$I$2), IF(AND(B34="D",C34="b"), VLOOKUP(INDEX(Quantities!$A$24:$A$25,MATCH($A34,Quantities!$C$24:$C$25)),Quantities!$A$24:$AN$25,Quantities!$O$2)+ VLOOKUP(INDEX(Quantities!$A$24:$A$25,MATCH($A34,Quantities!$C$24:$C$25)),Quantities!$A$24:$AN$25,Quantities!$Q$2)+ VLOOKUP(INDEX(Quantities!$A$24:$A$25,MATCH($A34,Quantities!$C$24:$C$25)),Quantities!$A$24:$AN$25,Quantities!$S$2), IF(OR(B34="D",B34="Q"), SUM(VLOOKUP($A34,Quantities[],Quantities!$O$2),VLOOKUP($A34,Quantities[],Quantities!$Q$2),VLOOKUP($A34,Quantities[],Quantities!$S$2)), VLOOKUP(A34,Quantities[],Quantities!$G$2) )))) -> 200 | J34: =IF(LEFT(D34,2)="Mg", VLOOKUP(A34,Quantities[],Quantities!$H$2), IF(OR(AND(LEFT(D34,2)="Sc",B34="A",OR(C34="d",C34="f"))), (SUM(VLOOKUP($A34,Quantities[],Quantities!$P$2)*VLOOKUP($A34,Quantities[],Quantities!$O$2),VLOOKUP($A34,Quantities[],Quantities!$R$2)*VLOOKUP($A34,Quantities[],Quantities!$Q$2),VLOOKUP($A34,Quantities[],Quantities!$T$2)*VLOOKUP($A34,Quantities[],Quantities!$S$2)))/SUM(VLOOKUP($A34,Quantities[],Quantities!$O$2),VLOOKUP($A34,Quantities[],Quantities!$Q$2),VLOOKUP($A34,Quantities[],Quantities!$S$2)), IF(AND(LEFT(D34,2)="Sc",OR(C34="a",C34="f")), VLOOKUP(A34,Quantities[],Quantities!$J$2), IF(AND(B34="D",C34="b", (VLOOKUP(INDEX(Quantities!$A$24:$A$25,MATCH($A34,Quantities!$C$24:$C$25)),Quantities[],Quantities!$O$2)+VLOOKUP(INDEX(Quantities!$A$24:$A$25,MATCH($A34,Quantities!$C$24:$C$25)),Quantities[],Quantities!$Q$2)+VLOOKUP(INDEX(Quantities!$A$24:$A$25,MATCH($A34,Quantities!$C$24:$C$25)),Quantities[],Quantities!$S$2))>0), (VLOOKUP(INDEX(Quantities!$A$24:$A$25,MATCH($A34,Quantities!$C$24:$C$25)),Quantities[],Quantities!$P$2)*VLOOKUP(INDEX(Quantities!$A$24:$A$25,MATCH($A34,Quantities!$C$24:$C$25)),Quantities[],Quantities!$O$2) +VLOOKUP(INDEX(Quantities!$A$24:$A$25,MATCH($A34,Quantities!$C$24:$C$25)),Quantities[],Quantities!$R$2)*VLOOKUP(INDEX(Quantities!$A$24:$A$25,MATCH($A34,Quantities!$C$24:$C$25)),Quantities[],Quantities!$Q$2) +VLOOKUP(INDEX(Quantities!$A$24:$A$25,MATCH($A34,Quantities!$C$24:$C$25)),Quantities[],Quantities!$T$2)*VLOOKUP(INDEX(Quantities!$A$24:$A$25,MATCH($A34,Quantities!$C$24:$C$25)),Quantities[],Quantities!$S$2))/ (VLOOKUP(INDEX(Quantities!$A$24:$A$25,MATCH($A34,Quantities!$C$24:$C$25)),Quantities[],Quantities!$O$2)+VLOOKUP(INDEX(Quantities!$A$24:$A$25,MATCH($A34,Quantities!$C$24:$C$25)),Quantities[],Quantities!$Q$2)+VLOOKUP(A34,Quantities[],Quantities!$S$2)), IF(AND(B34="D", (VLOOKUP(A34,Quantities[],Quantities!$O$2)+VLOOKUP(A34,Quantities[],Quantities!$Q$2)+VLOOKUP(A34,Quantities[],Quantities!$S$2))>0), (VLOOKUP(A34,Quantities[],Quantities!$P$2)*VLOOKUP(A34,Quantities[],Quantities!$O$2) +VLOOKUP(A34,Quantities[],Quantities!$R$2)*VLOOKUP(A34,Quantities[],Quantities!$Q$2) +VLOOKUP(A34,Quantities[],Quantities!$T$2)*VLOOKUP(A34,Quantities[],Quantities!$S$2))/ (VLOOKUP(A34,Quantities[],Quantities!$O$2)+VLOOKUP(A34,Quantities[],Quantities!$Q$2)+VLOOKUP(A34,Quantities[],Quantities!$S$2)), IF($B34="Q", (SUM(VLOOKUP($A34,Quantities[],Quantities!$P$2)*VLOOKUP($A34,Quantities[],Quantities!$O$2),VLOOKUP($A34,Quantities[],Quantities!$R$2)*VLOOKUP($A34,Quantities[],Quantities!$Q$2),VLOOKUP($A34,Quantities[],Quantities!$T$2)*VLOOKUP($A34,Quantities[],Quantities!$S$2)))/SUM(VLOOKUP($A34,Quantities[],Quantities!$O$2),VLOOKUP($A34,Quantities[],Quantities!$Q$2),VLOOKUP($A34,Quantities[],Quantities!$S$2)), VLOOKUP(A34,Quantities[],Quantities!$H$2) )))))) -> 0 | K34: =IF(LEFT(D34,1)="U","-",VLOOKUP(D34,Equipment[],Equipment!$B$2)) -> Hitachi EX3600-5
A35: =Quantities!$A$16 -> 1301 | B35: C | C35: f | D35: =D33 -> Sh1 | E35: 1301-C-f-Sh1 | F35: =IF(D35="Comb1",CONCATENATE(VLOOKUP(B35,'Activity-Material_Codes'!$A$2:$B$28,Quantities!$B$2),"-",VLOOKUP(A35,Quantities[],Quantities!$D$2)), CONCATENATE( VLOOKUP(B35,'Activity-Material_Codes'!$A$2:$B$30,Quantities!$B$2), IF(AND(B35="B",C35="a"), " Scraper Grading", ""), IF(C35="b","","-"), IF(C35="b","",VLOOKUP(A35,Quantities[],Quantities!$D$2)), IF(LEFT(TEXT(A35,"0"),1)="5","","-"), IF(LEFT(TEXT(A35,"0"),1)="5","",VLOOKUP(C35,'Activity-Material_Codes'!$A$34:$B$40,Quantities!$B$2)) )) -> Load-Collection Sump-Fill/Stockpile Material | G35: EMW Waste | H35: =IF(LEFT(TEXT(A35,"0"),1)="5", VLOOKUP(VLOOKUP(A35,Quantities!$A$4:$D$25,Quantities!$C$2),Quantities!$A$4:$D$25,Quantities!$C$2), IF(OR(C35="a",C35="c",C35="d",C35="e"), "-", IF(RIGHT(TEXT(A35,"0"),2)="00",VLOOKUP(A35,Quantities[],Quantities!$B$2), IF(C35="f",VLOOKUP(A35,Quantities[],Quantities!$B$2), VLOOKUP(A35,Quantities[],Quantities!$C$2)) ))) -> Emma Backfill Areas | I35: =IF(OR(AND(LEFT(D35,2)="Sc",B35="A",OR(C35="d",C35="f")),AND(C35="f",B35="D")), SUM(VLOOKUP($A35,Quantities[],Quantities!$O$2),VLOOKUP($A35,Quantities[],Quantities!$Q$2),VLOOKUP($A35,Quantities[],Quantities!$S$2),VLOOKUP($A35,Quantities[],Quantities!$I$2)), IF(AND(LEFT(D35,2)="Sc",OR(C35="a",C35="f")), VLOOKUP(A35,Quantities[],Quantities!$I$2), IF(AND(B35="D",C35="b"), VLOOKUP(INDEX(Quantities!$A$24:$A$25,MATCH($A35,Quantities!$C$24:$C$25)),Quantities!$A$24:$AN$25,Quantities!$O$2)+ VLOOKUP(INDEX(Quantities!$A$24:$A$25,MATCH($A35,Quantities!$C$24:$C$25)),Quantities!$A$24:$AN$25,Quantities!$Q$2)+ VLOOKUP(INDEX(Quantities!$A$24:$A$25,MATCH($A35,Quantities!$C$24:$C$25)),Quantities!$A$24:$AN$25,Quantities!$S$2), IF(OR(B35="D",B35="Q"), SUM(VLOOKUP($A35,Quantities[],Quantities!$O$2),VLOOKUP($A35,Quantities[],Quantities!$Q$2),VLOOKUP($A35,Quantities[],Quantities!$S$2)), VLOOKUP(A35,Quantities[],Quantities!$G$2) )))) -> 200 | J35: =IF(LEFT(D35,2)="Mg", VLOOKUP(A35,Quantities[],Quantities!$H$2), IF(OR(AND(LEFT(D35,2)="Sc",B35="A",OR(C35="d",C35="f"))), (SUM(VLOOKUP($A35,Quantities[],Quantities!$P$2)*VLOOKUP($A35,Quantities[],Quantities!$O$2),VLOOKUP($A35,Quantities[],Quantities!$R$2)*VLOOKUP($A35,Quantities[],Quantities!$Q$2),VLOOKUP($A35,Quantities[],Quantities!$T$2)*VLOOKUP($A35,Quantities[],Quantities!$S$2)))/SUM(VLOOKUP($A35,Quantities[],Quantities!$O$2),VLOOKUP($A35,Quantities[],Quantities!$Q$2),VLOOKUP($A35,Quantities[],Quantities!$S$2)), IF(AND(LEFT(D35,2)="Sc",OR(C35="a",C35="f")), VLOOKUP(A35,Quantities[],Quantities!$J$2), IF(AND(B35="D",C35="b", (VLOOKUP(INDEX(Quantities!$A$24:$A$25,MATCH($A35,Quantities!$C$24:$C$25)),Quantities[],Quantities!$O$2)+VLOOKUP(INDEX(Quantities!$A$24:$A$25,MATCH($A35,Quantities!$C$24:$C$25)),Quantities[],Quantities!$Q$2)+VLOOKUP(INDEX(Quantities!$A$24:$A$25,MATCH($A35,Quantities!$C$24:$C$25)),Quantities[],Quantities!$S$2))>0), (VLOOKUP(INDEX(Quantities!$A$24:$A$25,MATCH($A35,Quantities!$C$24:$C$25)),Quantities[],Quantities!$P$2)*VLOOKUP(INDEX(Quantities!$A$24:$A$25,MATCH($A35,Quantities!$C$24:$C$25)),Quantities[],Quantities!$O$2) +VLOOKUP(INDEX(Quantities!$A$24:$A$25,MATCH($A35,Quantities!$C$24:$C$25)),Quantities[],Quantities!$R$2)*VLOOKUP(INDEX(Quantities!$A$24:$A$25,MATCH($A35,Quantities!$C$24:$C$25)),Quantities[],Quantities!$Q$2) +VLOOKUP(INDEX(Quantities!$A$24:$A$25,MATCH($A35,Quantities!$C$24:$C$25)),Quantities[],Quantities!$T$2)*VLOOKUP(INDEX(Quantities!$A$24:$A$25,MATCH($A35,Quantities!$C$24:$C$25)),Quantities[],Quantities!$S$2))/ (VLOOKUP(INDEX(Quantities!$A$24:$A$25,MATCH($A35,Quantities!$C$24:$C$25)),Quantities[],Quantities!$O$2)+VLOOKUP(INDEX(Quantities!$A$24:$A$25,MATCH($A35,Quantities!$C$24:$C$25)),Quantities[],Quantities!$Q$2)+VLOOKUP(A35,Quantities[],Quantities!$S$2)), IF(AND(B35="D", (VLOOKUP(A35,Quantities[],Quantities!$O$2)+VLOOKUP(A35,Quantities[],Quantities!$Q$2)+VLOOKUP(A35,Quantities[],Quantities!$S$2))>0), (VLOOKUP(A35,Quantities[],Quantities!$P$2)*VLOOKUP(A35,Quantities[],Quantities!$O$2) +VLOOKUP(A35,Quantities[],Quantities!$R$2)*VLOOKUP(A35,Quantities[],Quantities!$Q$2) +VLOOKUP(A35,Quantities[],Quantities!$T$2)*VLOOKUP(A35,Quantities[],Quantities!$S$2))/ (VLOOKUP(A35,Quantities[],Quantities!$O$2)+VLOOKUP(A35,Quantities[],Quantities!$Q$2)+VLOOKUP(A35,Quantities[],Quantities!$S$2)), IF($B35="Q", (SUM(VLOOKUP($A35,Quantities[],Quantities!$P$2)*VLOOKUP($A35,Quantities[],Quantities!$O$2),VLOOKUP($A35,Quantities[],Quantities!$R$2)*VLOOKUP($A35,Quantities[],Quantities!$Q$2),VLOOKUP($A35,Quantities[],Quantities!$T$2)*VLOOKUP($A35,Quantities[],Quantities!$S$2)))/SUM(VLOOKUP($A35,Quantities[],Quantities!$O$2),VLOOKUP($A35,Quantities[],Quantities!$Q$2),VLOOKUP($A35,Quantities[],Quantities!$S$2)), VLOOKUP(A35,Quantities[],Quantities!$H$2) )))))) -> 0.5 | K35: =IF(LEFT(D35,1)="U","-",VLOOKUP(D35,Equipment[],Equipment!$B$2)) -> Hitachi EX3600-5
A36: =Quantities!$A$23 -> 1500 | B36: C | C36: b | D36: =B8 -> Sh1 | E36: 1500-C-b-Sh1 | F36: =IF(D36="Comb1",CONCATENATE(VLOOKUP(B36,'Activity-Material_Codes'!$A$2:$B$28,Quantities!$B$2),"-",VLOOKUP(A36,Quantities[],Quantities!$D$2)), CONCATENATE( VLOOKUP(B36,'Activity-Material_Codes'!$A$2:$B$30,Quantities!$B$2), IF(AND(B36="B",C36="a"), " Scraper Grading", ""), IF(C36="b","","-"), IF(C36="b","",VLOOKUP(A36,Quantities[],Quantities!$D$2)), IF(LEFT(TEXT(A36,"0"),1)="5","","-"), IF(LEFT(TEXT(A36,"0"),1)="5","",VLOOKUP(C36,'Activity-Material_Codes'!$A$34:$B$40,Quantities!$B$2)) )) -> Load-Cover | G36: =IF(C36="f",VLOOKUP(A36,Quantities[],Quantities!$B$2), CONCATENATE( IF(OR(RIGHT(TEXT($A36,"0"),Quantities!$B$2)="00",LEFT(TEXT($A36,"0"),1)="5",OR($C36="b",$C36="f")),"",VLOOKUP($A36,Quantities[],Quantities!$B$2)), IF(LEFT(TEXT($A36,"0"),1)="5",""," "), IF(OR(C36="a",C36="c",C36="d",C36="e"),IF(OR(RIGHT(TEXT($A36,"0"),Quantities!$B$2)="00",LEFT(TEXT($A36,"0"),1)="5"),VLOOKUP($A36,Quantities[],Quantities!$B$2),""), IF(LEFT(TEXT($A36,"0"),1)="5",VLOOKUP($A36,Quantities[],Quantities!$B$2), VLOOKUP(INDEX(Quantities!$A$24:$A$25,MATCH($A36,Quantities!$C$24:$C$25)),Quantities!$A$24:$B$25,Quantities!$B$2))))) -> Soil Stockpile | H36: =IF(LEFT(TEXT(A36,"0"),1)="5", VLOOKUP(VLOOKUP(A36,Quantities!$A$4:$D$25,Quantities!$C$2),Quantities!$A$4:$D$25,Quantities!$C$2), IF(OR(C36="a",C36="c",C36="d",C36="e"), "-", IF(RIGHT(TEXT(A36,"0"),2)="00",VLOOKUP(A36,Quantities[],Quantities!$B$2), IF(C36="f",VLOOKUP(A36,Quantities[],Quantities!$B$2), VLOOKUP(A36,Quantities[],Quantities!$C$2)) ))) -> Allowance for Other Disturbed Areas | I36: =IF(OR(AND(LEFT(D36,2)="Sc",B36="A",OR(C36="d",C36="f")),AND(C36="f",B36="D")), SUM(VLOOKUP($A36,Quantities[],Quantities!$O$2),VLOOKUP($A36,Quantities[],Quantities!$Q$2),VLOOKUP($A36,Quantities[],Quantities!$S$2),VLOOKUP($A36,Quantities[],Quantities!$I$2)), IF(AND(LEFT(D36,2)="Sc",OR(C36="a",C36="f")), VLOOKUP(A36,Quantities[],Quantities!$I$2), IF(AND(B36="D",C36="b"), VLOOKUP(INDEX(Quantities!$A$24:$A$25,MATCH($A36,Quantities!$C$24:$C$25)),Quantities!$A$24:$AN$25,Quantities!$O$2)+ VLOOKUP(INDEX(Quantities!$A$24:$A$25,MATCH($A36,Quantities!$C$24:$C$25)),Quantities!$A$24:$AN$25,Quantities!$Q$2)+ VLOOKUP(INDEX(Quantities!$A$24:$A$25,MATCH($A36,Quantities!$C$24:$C$25)),Quantities!$A$24:$AN$25,Quantities!$S$2), IF(OR(B36="D",B36="Q"), SUM(VLOOKUP($A36,Quantities[],Quantities!$O$2),VLOOKUP($A36,Quantities[],Quantities!$Q$2),VLOOKUP($A36,Quantities[],Quantities!$S$2)), VLOOKUP(A36,Quantities[],Quantities!$G$2) )))) -> 200 | J36: =IF(LEFT(D36,2)="Mg", VLOOKUP(A36,Quantities[],Quantities!$H$2), IF(OR(AND(LEFT(D36,2)="Sc",B36="A",OR(C36="d",C36="f"))), (SUM(VLOOKUP($A36,Quantities[],Quantities!$P$2)*VLOOKUP($A36,Quantities[],Quantities!$O$2),VLOOKUP($A36,Quantities[],Quantities!$R$2)*VLOOKUP($A36,Quantities[],Quantities!$Q$2),VLOOKUP($A36,Quantities[],Quantities!$T$2)*VLOOKUP($A36,Quantities[],Quantities!$S$2)))/SUM(VLOOKUP($A36,Quantities[],Quantities!$O$2),VLOOKUP($A36,Quantities[],Quantities!$Q$2),VLOOKUP($A36,Quantities[],Quantities!$S$2)), IF(AND(LEFT(D36,2)="Sc",OR(C36="a",C36="f")), VLOOKUP(A36,Quantities[],Quantities!$J$2), IF(AND(B36="D",C36="b", (VLOOKUP(INDEX(Quantities!$A$24:$A$25,MATCH($A36,Quantities!$C$24:$C$25)),Quantities[],Quantities!$O$2)+VLOOKUP(INDEX(Quantities!$A$24:$A$25,MATCH($A36,Quantities!$C$24:$C$25)),Quantities[],Quantities!$Q$2)+VLOOKUP(INDEX(Quantities!$A$24:$A$25,MATCH($A36,Quantities!$C$24:$C$25)),Quantities[],Quantities!$S$2))>0), (VLOOKUP(INDEX(Quantities!$A$24:$A$25,MATCH($A36,Quantities!$C$24:$C$25)),Quantities[],Quantities!$P$2)*VLOOKUP(INDEX(Quantities!$A$24:$A$25,MATCH($A36,Quantities!$C$24:$C$25)),Quantities[],Quantities!$O$2) +VLOOKUP(INDEX(Quantities!$A$24:$A$25,MATCH($A36,Quantities!$C$24:$C$25)),Quantities[],Quantities!$R$2)*VLOOKUP(INDEX(Quantities!$A$24:$A$25,MATCH($A36,Quantities!$C$24:$C$25)),Quantities[],Quantities!$Q$2) +VLOOKUP(INDEX(Quantities!$A$24:$A$25,MATCH($A36,Quantities!$C$24:$C$25)),Quantities[],Quantities!$T$2)*VLOOKUP(INDEX(Quantities!$A$24:$A$25,MATCH($A36,Quantities!$C$24:$C$25)),Quantities[],Quantities!$S$2))/ (VLOOKUP(INDEX(Quantities!$A$24:$A$25,MATCH($A36,Quantities!$C$24:$C$25)),Quantities[],Quantities!$O$2)+VLOOKUP(INDEX(Quantities!$A$24:$A$25,MATCH($A36,Quantities!$C$24:$C$25)),Quantities[],Quantities!$Q$2)+VLOOKUP(A36,Quantities[],Quantities!$S$2)), IF(AND(B36="D", (VLOOKUP(A36,Quantities[],Quantities!$O$2)+VLOOKUP(A36,Quantities[],Quantities!$Q$2)+VLOOKUP(A36,Quantities[],Quantities!$S$2))>0), (VLOOKUP(A36,Quantities[],Quantities!$P$2)*VLOOKUP(A36,Quantities[],Quantities!$O$2) +VLOOKUP(A36,Quantities[],Quantities!$R$2)*VLOOKUP(A36,Quantities[],Quantities!$Q$2) +VLOOKUP(A36,Quantities[],Quantities!$T$2)*VLOOKUP(A36,Quantities[],Quantities!$S$2))/ (VLOOKUP(A36,Quantities[],Quantities!$O$2)+VLOOKUP(A36,Quantities[],Quantities!$Q$2)+VLOOKUP(A36,Quantities[],Quantities!$S$2)), IF($B36="Q", (SUM(VLOOKUP($A36,Quantities[],Quantities!$P$2)*VLOOKUP($A36,Quantities[],Quantities!$O$2),VLOOKUP($A36,Quantities[],Quantities!$R$2)*VLOOKUP($A36,Quantities[],Quantities!$Q$2),VLOOKUP($A36,Quantities[],Quantities!$T$2)*VLOOKUP($A36,Quantities[],Quantities!$S$2)))/SUM(VLOOKUP($A36,Quantities[],Quantities!$O$2),VLOOKUP($A36,Quantities[],Quantities!$Q$2),VLOOKUP($A36,Quantities[],Quantities!$S$2)), VLOOKUP(A36,Quantities[],Quantities!$H$2) )))))) -> 0.01 | K36: =IF(LEFT(D36,1)="U","-",VLOOKUP(D36,Equipment[],Equipment!$B$2)) -> Hitachi EX3600-5
A37: =Quantities!$A$4 -> 1000 | B37: D | C37: b | D37: =$B$7 -> Tk4 | E37: 1000-D-b-Tk4 | F37: =IF(D37="Comb1",CONCATENATE(VLOOKUP(B37,'Activity-Material_Codes'!$A$2:$B$28,Quantities!$B$2),"-",VLOOKUP(A37,Quantities[],Quantities!$D$2)), CONCATENATE( VLOOKUP(B37,'Activity-Material_Codes'!$A$2:$B$30,Quantities!$B$2), IF(AND(B37="B",C37="a"), " Scraper Grading", ""), IF(C37="b","","-"), IF(C37="b","",VLOOKUP(A37,Quantities[],Quantities!$D$2)), IF(LEFT(TEXT(A37,"0"),1)="5","","-"), IF(LEFT(TEXT(A37,"0"),1)="5","",VLOOKUP(C37,'Activity-Material_Codes'!$A$34:$B$40,Quantities!$B$2)) )) -> Haul-Cover | G37: =IF(C37="f",VLOOKUP(A37,Quantities[],Quantities!$B$2), CONCATENATE( IF(OR(RIGHT(TEXT($A37,"0"),Quantities!$B$2)="00",LEFT(TEXT($A37,"0"),1)="5",OR($C37="b",$C37="f")),"",VLOOKUP($A37,Quantities[],Quantities!$B$2)), IF(LEFT(TEXT($A37,"0"),1)="5",""," "), IF(OR(C37="a",C37="c",C37="d",C37="e"),IF(OR(RIGHT(TEXT($A37,"0"),Quantities!$B$2)="00",LEFT(TEXT($A37,"0"),1)="5"),VLOOKUP($A37,Quantities[],Quantities!$B$2),""), IF(LEFT(TEXT($A37,"0"),1)="5",VLOOKUP($A37,Quantities[],Quantities!$B$2), VLOOKUP(INDEX(Quantities!$A$24:$A$25,MATCH($A37,Quantities!$C$24:$C$25)),Quantities!$A$24:$B$25,Quantities!$B$2))))) -> Soil Stockpile | H37: =IF(LEFT(TEXT(A37,"0"),1)="5", VLOOKUP(VLOOKUP(A37,Quantities!$A$4:$D$25,Quantities!$C$2),Quantities!$A$4:$D$25,Quantities!$C$2), IF(OR(C37="a",C37="c",C37="d",C37="e"), "-", IF(RIGHT(TEXT(A37,"0"),2)="00",VLOOKUP(A37,Quantities[],Quantities!$B$2), IF(C37="f",VLOOKUP(A37,Quantities[],Quantities!$B$2), VLOOKUP(A37,Quantities[],Quantities!$C$2)) ))) -> EMW Waste | I37: =IF(OR(AND(LEFT(D37,2)="Sc",B37="A",OR(C37="d",C37="f")),AND(C37="f",B37="D")), SUM(VLOOKUP($A37,Quantities[],Quantities!$O$2),VLOOKUP($A37,Quantities[],Quantities!$Q$2),VLOOKUP($A37,Quantities[],Quantities!$S$2),VLOOKUP($A37,Quantities[],Quantities!$I$2)), IF(AND(LEFT(D37,2)="Sc",OR(C37="a",C37="f")), VLOOKUP(A37,Quantities[],Quantities!$I$2), IF(AND(B37="D",C37="b"), VLOOKUP(INDEX(Quantities!$A$24:$A$25,MATCH($A37,Quantities!$C$24:$C$25)),Quantities!$A$24:$AN$25,Quantities!$O$2)+ VLOOKUP(INDEX(Quantities!$A$24:$A$25,MATCH($A37,Quantities!$C$24:$C$25)),Quantities!$A$24:$AN$25,Quantities!$Q$2)+ VLOOKUP(INDEX(Quantities!$A$24:$A$25,MATCH($A37,Quantities!$C$24:$C$25)),Quantities!$A$24:$AN$25,Quantities!$S$2), IF(OR(B37="D",B37="Q"), SUM(VLOOKUP($A37,Quantities[],Quantities!$O$2),VLOOKUP($A37,Quantities[],Quantities!$Q$2),VLOOKUP($A37,Quantities[],Quantities!$S$2)), VLOOKUP(A37,Quantities[],Quantities!$G$2) )))) -> 5900 | J37: =IF(LEFT(D37,2)="Mg", VLOOKUP(A37,Quantities[],Quantities!$H$2), IF(OR(AND(LEFT(D37,2)="Sc",B37="A",OR(C37="d",C37="f"))), (SUM(VLOOKUP($A37,Quantities[],Quantities!$P$2)*VLOOKUP($A37,Quantities[],Quantities!$O$2),VLOOKUP($A37,Quantities[],Quantities!$R$2)*VLOOKUP($A37,Quantities[],Quantities!$Q$2),VLOOKUP($A37,Quantities[],Quantities!$T$2)*VLOOKUP($A37,Quantities[],Quantities!$S$2)))/SUM(VLOOKUP($A37,Quantities[],Quantities!$O$2),VLOOKUP($A37,Quantities[],Quantities!$Q$2),VLOOKUP($A37,Quantities[],Quantities!$S$2)), IF(AND(LEFT(D37,2)="Sc",OR(C37="a",C37="f")), VLOOKUP(A37,Quantities[],Quantities!$J$2), IF(AND(B37="D",C37="b", (VLOOKUP(INDEX(Quantities!$A$24:$A$25,MATCH($A37,Quantities!$C$24:$C$25)),Quantities[],Quantities!$O$2)+VLOOKUP(INDEX(Quantities!$A$24:$A$25,MATCH($A37,Quantities!$C$24:$C$25)),Quantities[],Quantities!$Q$2)+VLOOKUP(INDEX(Quantities!$A$24:$A$25,MATCH($A37,Quantities!$C$24:$C$25)),Quantities[],Quantities!$S$2))>0), (VLOOKUP(INDEX(Quantities!$A$24:$A$25,MATCH($A37,Quantities!$C$24:$C$25)),Quantities[],Quantities!$P$2)*VLOOKUP(INDEX(Quantities!$A$24:$A$25,MATCH($A37,Quantities!$C$24:$C$25)),Quantities[],Quantities!$O$2) +VLOOKUP(INDEX(Quantities!$A$24:$A$25,MATCH($A37,Quantities!$C$24:$C$25)),Quantities[],Quantities!$R$2)*VLOOKUP(INDEX(Quantities!$A$24:$A$25,MATCH($A37,Quantities!$C$24:$C$25)),Quantities[],Quantities!$Q$2) +VLOOKUP(INDEX(Quantities!$A$24:$A$25,MATCH($A37,Quantities!$C$24:$C$25)),Quantities[],Quantities!$T$2)*VLOOKUP(INDEX(Quantities!$A$24:$A$25,MATCH($A37,Quantities!$C$24:$C$25)),Quantities[],Quantities!$S$2))/ (VLOOKUP(INDEX(Quantities!$A$24:$A$25,MATCH($A37,Quantities!$C$24:$C$25)),Quantities[],Quantities!$O$2)+VLOOKUP(INDEX(Quantities!$A$24:$A$25,MATCH($A37,Quantities!$C$24:$C$25)),Quantities[],Quantities!$Q$2)+VLOOKUP(A37,Quantities[],Quantities!$S$2)), IF(AND(B37="D", (VLOOKUP(A37,Quantities[],Quantities!$O$2)+VLOOKUP(A37,Quantities[],Quantities!$Q$2)+VLOOKUP(A37,Quantities[],Quantities!$S$2))>0), (VLOOKUP(A37,Quantities[],Quantities!$P$2)*VLOOKUP(A37,Quantities[],Quantities!$O$2) +VLOOKUP(A37,Quantities[],Quantities!$R$2)*VLOOKUP(A37,Quantities[],Quantities!$Q$2) +VLOOKUP(A37,Quantities[],Quantities!$T$2)*VLOOKUP(A37,Quantities[],Quantities!$S$2))/ (VLOOKUP(A37,Quantities[],Quantities!$O$2)+VLOOKUP(A37,Quantities[],Quantities!$Q$2)+VLOOKUP(A37,Quantities[],Quantities!$S$2)), IF($B37="Q", (SUM(VLOOKUP($A37,Quantities[],Quantities!$P$2)*VLOOKUP($A37,Quantities[],Quantities!$O$2),VLOOKUP($A37,Quantities[],Quantities!$R$2)*VLOOKUP($A37,Quantities[],Quantities!$Q$2),VLOOKUP($A37,Quantities[],Quantities!$T$2)*VLOOKUP($A37,Quantities[],Quantities!$S$2)))/SUM(VLOOKUP($A37,Quantities[],Quantities!$O$2),VLOOKUP($A37,Quantities[],Quantities!$Q$2),VLOOKUP($A37,Quantities[],Quantities!$S$2)), VLOOKUP(A37,Quantities[],Quantities!$H$2) )))))) -> 0.03559322034 | K37: =IF(LEFT(D37,1)="U","-",VLOOKUP(D37,Equipment[],Equipment!$B$2)) -> Komatsu 730E
A38: =Quantities!$A$7 -> 1100 | B38: D | C38: b | D38: Tk4 | E38: 1100-D-b-Tk4 | F38: =IF(D38="Comb1",CONCATENATE(VLOOKUP(B38,'Activity-Material_Codes'!$A$2:$B$28,Quantities!$B$2),"-",VLOOKUP(A38,Quantities[],Quantities!$D$2)), CONCATENATE( VLOOKUP(B38,'Activity-Material_Codes'!$A$2:$B$30,Quantities!$B$2), IF(AND(B38="B",C38="a"), " Scraper Grading", ""), IF(C38="b","","-"), IF(C38="b","",VLOOKUP(A38,Quantities[],Quantities!$D$2)), IF(LEFT(TEXT(A38,"0"),1)="5","","-"), IF(LEFT(TEXT(A38,"0"),1)="5","",VLOOKUP(C38,'Activity-Material_Codes'!$A$34:$B$40,Quantities!$B$2)) )) -> Haul-Cover | G38: =IF(C38="f",VLOOKUP(A38,Quantities[],Quantities!$B$2), CONCATENATE( IF(OR(RIGHT(TEXT($A38,"0"),Quantities!$B$2)="00",LEFT(TEXT($A38,"0"),1)="5",OR($C38="b",$C38="f")),"",VLOOKUP($A38,Quantities[],Quantities!$B$2)), IF(LEFT(TEXT($A38,"0"),1)="5",""," "), IF(OR(C38="a",C38="c",C38="d",C38="e"),IF(OR(RIGHT(TEXT($A38,"0"),Quantities!$B$2)="00",LEFT(TEXT($A38,"0"),1)="5"),VLOOKUP($A38,Quantities[],Quantities!$B$2),""), IF(LEFT(TEXT($A38,"0"),1)="5",VLOOKUP($A38,Quantities[],Quantities!$B$2), VLOOKUP(INDEX(Quantities!$A$24:$A$25,MATCH($A38,Quantities!$C$24:$C$25)),Quantities!$A$24:$B$25,Quantities!$B$2))))) -> Soil Stockpile | H38: =IF(LEFT(TEXT(A38,"0"),1)="5", VLOOKUP(VLOOKUP(A38,Quantities!$A$4:$D$25,Quantities!$C$2),Quantities!$A$4:$D$25,Quantities!$C$2), IF(OR(C38="a",C38="c",C38="d",C38="e"), "-", IF(RIGHT(TEXT(A38,"0"),2)="00",VLOOKUP(A38,Quantities[],Quantities!$B$2), IF(C38="f",VLOOKUP(A38,Quantities[],Quantities!$B$2), VLOOKUP(A38,Quantities[],Quantities!$C$2)) ))) -> 6HW Waste | I38: =IF(OR(AND(LEFT(D38,2)="Sc",B38="A",OR(C38="d",C38="f")),AND(C38="f",B38="D")), SUM(VLOOKUP($A38,Quantities[],Quantities!$O$2),VLOOKUP($A38,Quantities[],Quantities!$Q$2),VLOOKUP($A38,Quantities[],Quantities!$S$2),VLOOKUP($A38,Quantities[],Quantities!$I$2)), IF(AND(LEFT(D38,2)="Sc",OR(C38="a",C38="f")), VLOOKUP(A38,Quantities[],Quantities!$I$2), IF(AND(B38="D",C38="b"), VLOOKUP(INDEX(Quantities!$A$24:$A$25,MATCH($A38,Quantities!$C$24:$C$25)),Quantities!$A$24:$AN$25,Quantities!$O$2)+ VLOOKUP(INDEX(Quantities!$A$24:$A$25,MATCH($A38,Quantities!$C$24:$C$25)),Quantities!$A$24:$AN$25,Quantities!$Q$2)+ VLOOKUP(INDEX(Quantities!$A$24:$A$25,MATCH($A38,Quantities!$C$24:$C$25)),Quantities!$A$24:$AN$25,Quantities!$S$2), IF(OR(B38="D",B38="Q"), SUM(VLOOKUP($A38,Quantities[],Quantities!$O$2),VLOOKUP($A38,Quantities[],Quantities!$Q$2),VLOOKUP($A38,Quantities[],Quantities!$S$2)), VLOOKUP(A38,Quantities[],Quantities!$G$2) )))) -> 4200 | J38: =IF(LEFT(D38,2)="Mg", VLOOKUP(A38,Quantities[],Quantities!$H$2), IF(OR(AND(LEFT(D38,2)="Sc",B38="A",OR(C38="d",C38="f"))), (SUM(VLOOKUP($A38,Quantities[],Quantities!$P$2)*VLOOKUP($A38,Quantities[],Quantities!$O$2),VLOOKUP($A38,Quantities[],Quantities!$R$2)*VLOOKUP($A38,Quantities[],Quantities!$Q$2),VLOOKUP($A38,Quantities[],Quantities!$T$2)*VLOOKUP($A38,Quantities[],Quantities!$S$2)))/SUM(VLOOKUP($A38,Quantities[],Quantities!$O$2),VLOOKUP($A38,Quantities[],Quantities!$Q$2),VLOOKUP($A38,Quantities[],Quantities!$S$2)), IF(AND(LEFT(D38,2)="Sc",OR(C38="a",C38="f")), VLOOKUP(A38,Quantities[],Quantities!$J$2), IF(AND(B38="D",C38="b", (VLOOKUP(INDEX(Quantities!$A$24:$A$25,MATCH($A38,Quantities!$C$24:$C$25)),Quantities[],Quantities!$O$2)+VLOOKUP(INDEX(Quantities!$A$24:$A$25,MATCH($A38,Quantities!$C$24:$C$25)),Quantities[],Quantities!$Q$2)+VLOOKUP(INDEX(Quantities!$A$24:$A$25,MATCH($A38,Quantities!$C$24:$C$25)),Quantities[],Quantities!$S$2))>0), (VLOOKUP(INDEX(Quantities!$A$24:$A$25,MATCH($A38,Quantities!$C$24:$C$25)),Quantities[],Quantities!$P$2)*VLOOKUP(INDEX(Quantities!$A$24:$A$25,MATCH($A38,Quantities!$C$24:$C$25)),Quantities[],Quantities!$O$2) +VLOOKUP(INDEX(Quantities!$A$24:$A$25,MATCH($A38,Quantities!$C$24:$C$25)),Quantities[],Quantities!$R$2)*VLOOKUP(INDEX(Quantities!$A$24:$A$25,MATCH($A38,Quantities!$C$24:$C$25)),Quantities[],Quantities!$Q$2) +VLOOKUP(INDEX(Quantities!$A$24:$A$25,MATCH($A38,Quantities!$C$24:$C$25)),Quantities[],Quantities!$T$2)*VLOOKUP(INDEX(Quantities!$A$24:$A$25,MATCH($A38,Quantities!$C$24:$C$25)),Quantities[],Quantities!$S$2))/ (VLOOKUP(INDEX(Quantities!$A$24:$A$25,MATCH($A38,Quantities!$C$24:$C$25)),Quantities[],Quantities!$O$2)+VLOOKUP(INDEX(Quantities!$A$24:$A$25,MATCH($A38,Quantities!$C$24:$C$25)),Quantities[],Quantities!$Q$2)+VLOOKUP(A38,Quantities[],Quantities!$S$2)), IF(AND(B38="D", (VLOOKUP(A38,Quantities[],Quantities!$O$2)+VLOOKUP(A38,Quantities[],Quantities!$Q$2)+VLOOKUP(A38,Quantities[],Quantities!$S$2))>0), (VLOOKUP(A38,Quantities[],Quantities!$P$2)*VLOOKUP(A38,Quantities[],Quantities!$O$2) +VLOOKUP(A38,Quantities[],Quantities!$R$2)*VLOOKUP(A38,Quantities[],Quantities!$Q$2) +VLOOKUP(A38,Quantities[],Quantities!$T$2)*VLOOKUP(A38,Quantities[],Quantities!$S$2))/ (VLOOKUP(A38,Quantities[],Quantities!$O$2)+VLOOKUP(A38,Quantities[],Quantities!$Q$2)+VLOOKUP(A38,Quantities[],Quantities!$S$2)), IF($B38="Q", (SUM(VLOOKUP($A38,Quantities[],Quantities!$P$2)*VLOOKUP($A38,Quantities[],Quantities!$O$2),VLOOKUP($A38,Quantities[],Quantities!$R$2)*VLOOKUP($A38,Quantities[],Quantities!$Q$2),VLOOKUP($A38,Quantities[],Quantities!$T$2)*VLOOKUP($A38,Quantities[],Quantities!$S$2)))/SUM(VLOOKUP($A38,Quantities[],Quantities!$O$2),VLOOKUP($A38,Quantities[],Quantities!$Q$2),VLOOKUP($A38,Quantities[],Quantities!$S$2)), VLOOKUP(A38,Quantities[],Quantities!$H$2) )))))) -> 0.04942619048 | K38: =IF(LEFT(D38,1)="U","-",VLOOKUP(D38,Equipment[],Equipment!$B$2)) -> Komatsu 730E
A39: =Quantities!$A$11 -> 1201 | B39: D | C39: f | D39: Tk4 | E39: 1201-D-f-Tk4 | F39: =IF(D39="Comb1",CONCATENATE(VLOOKUP(B39,'Activity-Material_Codes'!$A$2:$B$28,Quantities!$B$2),"-",VLOOKUP(A39,Quantities[],Quantities!$D$2)), CONCATENATE( VLOOKUP(B39,'Activity-Material_Codes'!$A$2:$B$30,Quantities!$B$2), IF(AND(B39="B",C39="a"), " Scraper Grading", ""), IF(C39="b","","-"), IF(C39="b","",VLOOKUP(A39,Quantities[],Quantities!$D$2)), IF(LEFT(TEXT(A39,"0"),1)="5","","-"), IF(LEFT(TEXT(A39,"0"),1)="5","",VLOOKUP(C39,'Activity-Material_Codes'!$A$34:$B$40,Quantities!$B$2)) )) -> Haul-Oak Grove Wash Fill Removal-Fill/Stockpile Material | G39: =IF(C39="f",VLOOKUP(A39,Quantities[],Quantities!$B$2), CONCATENATE( IF(OR(RIGHT(TEXT($A39,"0"),Quantities!$B$2)="00",LEFT(TEXT($A39,"0"),1)="5",OR($C39="b",$C39="f")),"",VLOOKUP($A39,Quantities[],Quantities!$B$2)), IF(LEFT(TEXT($A39,"0"),1)="5",""," "), IF(OR(C39="a",C39="c",C39="d",C39="e"),IF(OR(RIGHT(TEXT($A39,"0"),Quantities!$B$2)="00",LEFT(TEXT($A39,"0"),1)="5"),VLOOKUP($A39,Quantities[],Quantities!$B$2),""), IF(LEFT(TEXT($A39,"0"),1)="5",VLOOKUP($A39,Quantities[],Quantities!$B$2), VLOOKUP(INDEX(Quantities!$A$24:$A$25,MATCH($A39,Quantities!$C$24:$C$25)),Quantities!$A$24:$B$25,Quantities!$B$2))))) -> Haul Roads | H39: - | I39: =IF(OR(AND(LEFT(D39,2)="Sc",B39="A",OR(C39="d",C39="f")),AND(C39="f",B39="D")), SUM(VLOOKUP($A39,Quantities[],Quantities!$O$2),VLOOKUP($A39,Quantities[],Quantities!$Q$2),VLOOKUP($A39,Quantities[],Quantities!$S$2),VLOOKUP($A39,Quantities[],Quantities!$I$2)), IF(AND(LEFT(D39,2)="Sc",OR(C39="a",C39="f")), VLOOKUP(A39,Quantities[],Quantities!$I$2), IF(AND(B39="D",C39="b"), VLOOKUP(INDEX(Quantities!$A$24:$A$25,MATCH($A39,Quantities!$C$24:$C$25)),Quantities!$A$24:$AN$25,Quantities!$O$2)+ VLOOKUP(INDEX(Quantities!$A$24:$A$25,MATCH($A39,Quantities!$C$24:$C$25)),Quantities!$A$24:$AN$25,Quantities!$Q$2)+ VLOOKUP(INDEX(Quantities!$A$24:$A$25,MATCH($A39,Quantities!$C$24:$C$25)),Quantities!$A$24:$AN$25,Quantities!$S$2), IF(OR(B39="D",B39="Q"), SUM(VLOOKUP($A39,Quantities[],Quantities!$O$2),VLOOKUP($A39,Quantities[],Quantities!$Q$2),VLOOKUP($A39,Quantities[],Quantities!$S$2)), VLOOKUP(A39,Quantities[],Quantities!$G$2) )))) -> 0 | J39: =IF(LEFT(D39,2)="Mg", VLOOKUP(A39,Quantities[],Quantities!$H$2), IF(OR(AND(LEFT(D39,2)="Sc",B39="A",OR(C39="d",C39="f"))), (SUM(VLOOKUP($A39,Quantities[],Quantities!$P$2)*VLOOKUP($A39,Quantities[],Quantities!$O$2),VLOOKUP($A39,Quantities[],Quantities!$R$2)*VLOOKUP($A39,Quantities[],Quantities!$Q$2),VLOOKUP($A39,Quantities[],Quantities!$T$2)*VLOOKUP($A39,Quantities[],Quantities!$S$2)))/SUM(VLOOKUP($A39,Quantities[],Quantities!$O$2),VLOOKUP($A39,Quantities[],Quantities!$Q$2),VLOOKUP($A39,Quantities[],Quantities!$S$2)), IF(AND(LEFT(D39,2)="Sc",OR(C39="a",C39="f")), VLOOKUP(A39,Quantities[],Quantities!$J$2), IF(AND(B39="D",C39="b", (VLOOKUP(INDEX(Quantities!$A$24:$A$25,MATCH($A39,Quantities!$C$24:$C$25)),Quantities[],Quantities!$O$2)+VLOOKUP(INDEX(Quantities!$A$24:$A$25,MATCH($A39,Quantities!$C$24:$C$25)),Quantities[],Quantities!$Q$2)+VLOOKUP(INDEX(Quantities!$A$24:$A$25,MATCH($A39,Quantities!$C$24:$C$25)),Quantities[],Quantities!$S$2))>0), (VLOOKUP(INDEX(Quantities!$A$24:$A$25,MATCH($A39,Quantities!$C$24:$C$25)),Quantities[],Quantities!$P$2)*VLOOKUP(INDEX(Quantities!$A$24:$A$25,MATCH($A39,Quantities!$C$24:$C$25)),Quantities[],Quantities!$O$2) +VLOOKUP(INDEX(Quantities!$A$24:$A$25,MATCH($A39,Quantities!$C$24:$C$25)),Quantities[],Quantities!$R$2)*VLOOKUP(INDEX(Quantities!$A$24:$A$25,MATCH($A39,Quantities!$C$24:$C$25)),Quantities[],Quantities!$Q$2) +VLOOKUP(INDEX(Quantities!$A$24:$A$25,MATCH($A39,Quantities!$C$24:$C$25)),Quantities[],Quantities!$T$2)*VLOOKUP(INDEX(Quantities!$A$24:$A$25,MATCH($A39,Quantities!$C$24:$C$25)),Quantities[],Quantities!$S$2))/ (VLOOKUP(INDEX(Quantities!$A$24:$A$25,MATCH($A39,Quantities!$C$24:$C$25)),Quantities[],Quantities!$O$2)+VLOOKUP(INDEX(Quantities!$A$24:$A$25,MATCH($A39,Quantities!$C$24:$C$25)),Quantities[],Quantities!$Q$2)+VLOOKUP(A39,Quantities[],Quantities!$S$2)), IF(AND(B39="D", (VLOOKUP(A39,Quantities[],Quantities!$O$2)+VLOOKUP(A39,Quantities[],Quantities!$Q$2)+VLOOKUP(A39,Quantities[],Quantities!$S$2))>0), (VLOOKUP(A39,Quantities[],Quantities!$P$2)*VLOOKUP(A39,Quantities[],Quantities!$O$2) +VLOOKUP(A39,Quantities[],Quantities!$R$2)*VLOOKUP(A39,Quantities[],Quantities!$Q$2) +VLOOKUP(A39,Quantities[],Quantities!$T$2)*VLOOKUP(A39,Quantities[],Quantities!$S$2))/ (VLOOKUP(A39,Quantities[],Quantities!$O$2)+VLOOKUP(A39,Quantities[],Quantities!$Q$2)+VLOOKUP(A39,Quantities[],Quantities!$S$2)), IF($B39="Q", (SUM(VLOOKUP($A39,Quantities[],Quantities!$P$2)*VLOOKUP($A39,Quantities[],Quantities!$O$2),VLOOKUP($A39,Quantities[],Quantities!$R$2)*VLOOKUP($A39,Quantities[],Quantities!$Q$2),VLOOKUP($A39,Quantities[],Quantities!$T$2)*VLOOKUP($A39,Quantities[],Quantities!$S$2)))/SUM(VLOOKUP($A39,Quantities[],Quantities!$O$2),VLOOKUP($A39,Quantities[],Quantities!$Q$2),VLOOKUP($A39,Quantities[],Quantities!$S$2)), VLOOKUP(A39,Quantities[],Quantities!$H$2) )))))) -> 0.02 | K39: =IF(LEFT(D39,1)="U","-",VLOOKUP(D39,Equipment[],Equipment!$B$2)) -> Komatsu 730E
A40: =Quantities!$A$15 -> 1300 | B40: D | C40: b | D40: Tk4 | E40: 1300-D-b-Tk4 | F40: =IF(D40="Comb1",CONCATENATE(VLOOKUP(B40,'Activity-Material_Codes'!$A$2:$B$28,Quantities!$B$2),"-",VLOOKUP(A40,Quantities[],Quantities!$D$2)), CONCATENATE( VLOOKUP(B40,'Activity-Material_Codes'!$A$2:$B$30,Quantities!$B$2), IF(AND(B40="B",C40="a"), " Scraper Grading", ""), IF(C40="b","","-"), IF(C40="b","",VLOOKUP(A40,Quantities[],Quantities!$D$2)), IF(LEFT(TEXT(A40,"0"),1)="5","","-"), IF(LEFT(TEXT(A40,"0"),1)="5","",VLOOKUP(C40,'Activity-Material_Codes'!$A$34:$B$40,Quantities!$B$2)) )) -> Haul-Cover | G40: =IF(C40="f",VLOOKUP(A40,Quantities[],Quantities!$B$2), CONCATENATE( IF(OR(RIGHT(TEXT($A40,"0"),Quantities!$B$2)="00",LEFT(TEXT($A40,"0"),1)="5",OR($C40="b",$C40="f")),"",VLOOKUP($A40,Quantities[],Quantities!$B$2)), IF(LEFT(TEXT($A40,"0"),1)="5",""," "), IF(OR(C40="a",C40="c",C40="d",C40="e"),IF(OR(RIGHT(TEXT($A40,"0"),Quantities!$B$2)="00",LEFT(TEXT($A40,"0"),1)="5"),VLOOKUP($A40,Quantities[],Quantities!$B$2),""), IF(LEFT(TEXT($A40,"0"),1)="5",VLOOKUP($A40,Quantities[],Quantities!$B$2), VLOOKUP(INDEX(Quantities!$A$24:$A$25,MATCH($A40,Quantities!$C$24:$C$25)),Quantities!$A$24:$B$25,Quantities!$B$2))))) -> Soil Stockpile | H40: =IF(LEFT(TEXT(A40,"0"),1)="5", VLOOKUP(VLOOKUP(A40,Quantities!$A$4:$D$25,Quantities!$C$2),Quantities!$A$4:$D$25,Quantities!$C$2), IF(OR(C40="a",C40="c",C40="d",C40="e"), "-", IF(RIGHT(TEXT(A40,"0"),2)="00",VLOOKUP(A40,Quantities[],Quantities!$B$2), IF(C40="f",VLOOKUP(A40,Quantities[],Quantities!$B$2), VLOOKUP(A40,Quantities[],Quantities!$C$2)) ))) -> Emma Backfill Areas | I40: =IF(OR(AND(LEFT(D40,2)="Sc",B40="A",OR(C40="d",C40="f")),AND(C40="f",B40="D")), SUM(VLOOKUP($A40,Quantities[],Quantities!$O$2),VLOOKUP($A40,Quantities[],Quantities!$Q$2),VLOOKUP($A40,Quantities[],Quantities!$S$2),VLOOKUP($A40,Quantities[],Quantities!$I$2)), IF(AND(LEFT(D40,2)="Sc",OR(C40="a",C40="f")), VLOOKUP(A40,Quantities[],Quantities!$I$2), IF(AND(B40="D",C40="b"), VLOOKUP(INDEX(Quantities!$A$24:$A$25,MATCH($A40,Quantities!$C$24:$C$25)),Quantities!$A$24:$AN$25,Quantities!$O$2)+ VLOOKUP(INDEX(Quantities!$A$24:$A$25,MATCH($A40,Quantities!$C$24:$C$25)),Quantities!$A$24:$AN$25,Quantities!$Q$2)+ VLOOKUP(INDEX(Quantities!$A$24:$A$25,MATCH($A40,Quantities!$C$24:$C$25)),Quantities!$A$24:$AN$25,Quantities!$S$2), IF(OR(B40="D",B40="Q"), SUM(VLOOKUP($A40,Quantities[],Quantities!$O$2),VLOOKUP($A40,Quantities[],Quantities!$Q$2),VLOOKUP($A40,Quantities[],Quantities!$S$2)), VLOOKUP(A40,Quantities[],Quantities!$G$2) )))) -> 4200 | J40: =IF(LEFT(D40,2)="Mg", VLOOKUP(A40,Quantities[],Quantities!$H$2), IF(OR(AND(LEFT(D40,2)="Sc",B40="A",OR(C40="d",C40="f"))), (SUM(VLOOKUP($A40,Quantities[],Quantities!$P$2)*VLOOKUP($A40,Quantities[],Quantities!$O$2),VLOOKUP($A40,Quantities[],Quantities!$R$2)*VLOOKUP($A40,Quantities[],Quantities!$Q$2),VLOOKUP($A40,Quantities[],Quantities!$T$2)*VLOOKUP($A40,Quantities[],Quantities!$S$2)))/SUM(VLOOKUP($A40,Quantities[],Quantities!$O$2),VLOOKUP($A40,Quantities[],Quantities!$Q$2),VLOOKUP($A40,Quantities[],Quantities!$S$2)), IF(AND(LEFT(D40,2)="Sc",OR(C40="a",C40="f")), VLOOKUP(A40,Quantities[],Quantities!$J$2), IF(AND(B40="D",C40="b", (VLOOKUP(INDEX(Quantities!$A$24:$A$25,MATCH($A40,Quantities!$C$24:$C$25)),Quantities[],Quantities!$O$2)+VLOOKUP(INDEX(Quantities!$A$24:$A$25,MATCH($A40,Quantities!$C$24:$C$25)),Quantities[],Quantities!$Q$2)+VLOOKUP(INDEX(Quantities!$A$24:$A$25,MATCH($A40,Quantities!$C$24:$C$25)),Quantities[],Quantities!$S$2))>0), (VLOOKUP(INDEX(Quantities!$A$24:$A$25,MATCH($A40,Quantities!$C$24:$C$25)),Quantities[],Quantities!$P$2)*VLOOKUP(INDEX(Quantities!$A$24:$A$25,MATCH($A40,Quantities!$C$24:$C$25)),Quantities[],Quantities!$O$2) +VLOOKUP(INDEX(Quantities!$A$24:$A$25,MATCH($A40,Quantities!$C$24:$C$25)),Quantities[],Quantities!$R$2)*VLOOKUP(INDEX(Quantities!$A$24:$A$25,MATCH($A40,Quantities!$C$24:$C$25)),Quantities[],Quantities!$Q$2) +VLOOKUP(INDEX(Quantities!$A$24:$A$25,MATCH($A40,Quantities!$C$24:$C$25)),Quantities[],Quantities!$T$2)*VLOOKUP(INDEX(Quantities!$A$24:$A$25,MATCH($A40,Quantities!$C$24:$C$25)),Quantities[],Quantities!$S$2))/ (VLOOKUP(INDEX(Quantities!$A$24:$A$25,MATCH($A40,Quantities!$C$24:$C$25)),Quantities[],Quantities!$O$2)+VLOOKUP(INDEX(Quantities!$A$24:$A$25,MATCH($A40,Quantities!$C$24:$C$25)),Quantities[],Quantities!$Q$2)+VLOOKUP(A40,Quantities[],Quantities!$S$2)), IF(AND(B40="D", (VLOOKUP(A40,Quantities[],Quantities!$O$2)+VLOOKUP(A40,Quantities[],Quantities!$Q$2)+VLOOKUP(A40,Quantities[],Quantities!$S$2))>0), (VLOOKUP(A40,Quantities[],Quantities!$P$2)*VLOOKUP(A40,Quantities[],Quantities!$O$2) +VLOOKUP(A40,Quantities[],Quantities!$R$2)*VLOOKUP(A40,Quantities[],Quantities!$Q$2) +VLOOKUP(A40,Quantities[],Quantities!$T$2)*VLOOKUP(A40,Quantities[],Quantities!$S$2))/ (VLOOKUP(A40,Quantities[],Quantities!$O$2)+VLOOKUP(A40,Quantities[],Quantities!$Q$2)+VLOOKUP(A40,Quantities[],Quantities!$S$2)), IF($B40="Q", (SUM(VLOOKUP($A40,Quantities[],Quantities!$P$2)*VLOOKUP($A40,Quantities[],Quantities!$O$2),VLOOKUP($A40,Quantities[],Quantities!$R$2)*VLOOKUP($A40,Quantities[],Quantities!$Q$2),VLOOKUP($A40,Quantities[],Quantities!$T$2)*VLOOKUP($A40,Quantities[],Quantities!$S$2)))/SUM(VLOOKUP($A40,Quantities[],Quantities!$O$2),VLOOKUP($A40,Quantities[],Quantities!$Q$2),VLOOKUP($A40,Quantities[],Quantities!$S$2)), VLOOKUP(A40,Quantities[],Quantities!$H$2) )))))) -> 0.1729916667 | K40: =IF(LEFT(D40,1)="U","-",VLOOKUP(D40,Equipment[],Equipment!$B$2)) -> Komatsu 730E
A41: =Quantities!$A$16 -> 1301 | B41: D | C41: f | D41: Tk4 | E41: 1301-D-f-Tk4 | F41: =IF(D41="Comb1",CONCATENATE(VLOOKUP(B41,'Activity-Material_Codes'!$A$2:$B$28,Quantities!$B$2),"-",VLOOKUP(A41,Quantities[],Quantities!$D$2)), CONCATENATE( VLOOKUP(B41,'Activity-Material_Codes'!$A$2:$B$30,Quantities!$B$2), IF(AND(B41="B",C41="a"), " Scraper Grading", ""), IF(C41="b","","-"), IF(C41="b","",VLOOKUP(A41,Quantities[],Quantities!$D$2)), IF(LEFT(TEXT(A41,"0"),1)="5","","-"), IF(LEFT(TEXT(A41,"0"),1)="5","",VLOOKUP(C41,'Activity-Material_Codes'!$A$34:$B$40,Quantities!$B$2)) )) -> Haul-Collection Sump-Fill/Stockpile Material | G41: EMW Waste | H41: =IF(LEFT(TEXT(A41,"0"),1)="5", VLOOKUP(VLOOKUP(A41,Quantities!$A$4:$D$25,Quantities!$C$2),Quantities!$A$4:$D$25,Quantities!$C$2), IF(OR(C41="a",C41="c",C41="d",C41="e"), "-", IF(RIGHT(TEXT(A41,"0"),2)="00",VLOOKUP(A41,Quantities[],Quantities!$B$2), IF(C41="f",VLOOKUP(A41,Quantities[],Quantities!$B$2), VLOOKUP(A41,Quantities[],Quantities!$C$2)) ))) -> Emma Backfill Areas | I41: =IF(OR(AND(LEFT(D41,2)="Sc",B41="A",OR(C41="d",C41="f")),AND(C41="f",B41="D")), SUM(VLOOKUP($A41,Quantities[],Quantities!$O$2),VLOOKUP($A41,Quantities[],Quantities!$Q$2),VLOOKUP($A41,Quantities[],Quantities!$S$2),VLOOKUP($A41,Quantities[],Quantities!$I$2)), IF(AND(LEFT(D41,2)="Sc",OR(C41="a",C41="f")), VLOOKUP(A41,Quantities[],Quantities!$I$2), IF(AND(B41="D",C41="b"), VLOOKUP(INDEX(Quantities!$A$24:$A$25,MATCH($A41,Quantities!$C$24:$C$25)),Quantities!$A$24:$AN$25,Quantities!$O$2)+ VLOOKUP(INDEX(Quantities!$A$24:$A$25,MATCH($A41,Quantities!$C$24:$C$25)),Quantities!$A$24:$AN$25,Quantities!$Q$2)+ VLOOKUP(INDEX(Quantities!$A$24:$A$25,MATCH($A41,Quantities!$C$24:$C$25)),Quantities!$A$24:$AN$25,Quantities!$S$2), IF(OR(B41="D",B41="Q"), SUM(VLOOKUP($A41,Quantities[],Quantities!$O$2),VLOOKUP($A41,Quantities[],Quantities!$Q$2),VLOOKUP($A41,Quantities[],Quantities!$S$2)), VLOOKUP(A41,Quantities[],Quantities!$G$2) )))) -> 11380 | J41: =IF(LEFT(D41,2)="Mg", VLOOKUP(A41,Quantities[],Quantities!$H$2), IF(OR(AND(LEFT(D41,2)="Sc",B41="A",OR(C41="d",C41="f"))), (SUM(VLOOKUP($A41,Quantities[],Quantities!$P$2)*VLOOKUP($A41,Quantities[],Quantities!$O$2),VLOOKUP($A41,Quantities[],Quantities!$R$2)*VLOOKUP($A41,Quantities[],Quantities!$Q$2),VLOOKUP($A41,Quantities[],Quantities!$T$2)*VLOOKUP($A41,Quantities[],Quantities!$S$2)))/SUM(VLOOKUP($A41,Quantities[],Quantities!$O$2),VLOOKUP($A41,Quantities[],Quantities!$Q$2),VLOOKUP($A41,Quantities[],Quantities!$S$2)), IF(AND(LEFT(D41,2)="Sc",OR(C41="a",C41="f")), VLOOKUP(A41,Quantities[],Quantities!$J$2), IF(AND(B41="D",C41="b", (VLOOKUP(INDEX(Quantities!$A$24:$A$25,MATCH($A41,Quantities!$C$24:$C$25)),Quantities[],Quantities!$O$2)+VLOOKUP(INDEX(Quantities!$A$24:$A$25,MATCH($A41,Quantities!$C$24:$C$25)),Quantities[],Quantities!$Q$2)+VLOOKUP(INDEX(Quantities!$A$24:$A$25,MATCH($A41,Quantities!$C$24:$C$25)),Quantities[],Quantities!$S$2))>0), (VLOOKUP(INDEX(Quantities!$A$24:$A$25,MATCH($A41,Quantities!$C$24:$C$25)),Quantities[],Quantities!$P$2)*VLOOKUP(INDEX(Quantities!$A$24:$A$25,MATCH($A41,Quantities!$C$24:$C$25)),Quantities[],Quantities!$O$2) +VLOOKUP(INDEX(Quantities!$A$24:$A$25,MATCH($A41,Quantities!$C$24:$C$25)),Quantities[],Quantities!$R$2)*VLOOKUP(INDEX(Quantities!$A$24:$A$25,MATCH($A41,Quantities!$C$24:$C$25)),Quantities[],Quantities!$Q$2) +VLOOKUP(INDEX(Quantities!$A$24:$A$25,MATCH($A41,Quantities!$C$24:$C$25)),Quantities[],Quantities!$T$2)*VLOOKUP(INDEX(Quantities!$A$24:$A$25,MATCH($A41,Quantities!$C$24:$C$25)),Quantities[],Quantities!$S$2))/ (VLOOKUP(INDEX(Quantities!$A$24:$A$25,MATCH($A41,Quantities!$C$24:$C$25)),Quantities[],Quantities!$O$2)+VLOOKUP(INDEX(Quantities!$A$24:$A$25,MATCH($A41,Quantities!$C$24:$C$25)),Quantities[],Quantities!$Q$2)+VLOOKUP(A41,Quantities[],Quantities!$S$2)), IF(AND(B41="D", (VLOOKUP(A41,Quantities[],Quantities!$O$2)+VLOOKUP(A41,Quantities[],Quantities!$Q$2)+VLOOKUP(A41,Quantities[],Quantities!$S$2))>0), (VLOOKUP(A41,Quantities[],Quantities!$P$2)*VLOOKUP(A41,Quantities[],Quantities!$O$2) +VLOOKUP(A41,Quantities[],Quantities!$R$2)*VLOOKUP(A41,Quantities[],Quantities!$Q$2) +VLOOKUP(A41,Quantities[],Quantities!$T$2)*VLOOKUP(A41,Quantities[],Quantities!$S$2))/ (VLOOKUP(A41,Quantities[],Quantities!$O$2)+VLOOKUP(A41,Quantities[],Quantities!$Q$2)+VLOOKUP(A41,Quantities[],Quantities!$S$2)), IF($B41="Q", (SUM(VLOOKUP($A41,Quantities[],Quantities!$P$2)*VLOOKUP($A41,Quantities[],Quantities!$O$2),VLOOKUP($A41,Quantities[],Quantities!$R$2)*VLOOKUP($A41,Quantities[],Quantities!$Q$2),VLOOKUP($A41,Quantities[],Quantities!$T$2)*VLOOKUP($A41,Quantities[],Quantities!$S$2)))/SUM(VLOOKUP($A41,Quantities[],Quantities!$O$2),VLOOKUP($A41,Quantities[],Quantities!$Q$2),VLOOKUP($A41,Quantities[],Quantities!$S$2)), VLOOKUP(A41,Quantities[],Quantities!$H$2) )))))) -> -0.05709191564 | K41: =IF(LEFT(D41,1)="U","-",VLOOKUP(D41,Equipment[],Equipment!$B$2)) -> Komatsu 730E
A42: =Quantities!$A$23 -> 1500 | B42: D | C42: b | D42: Tk4 | E42: 1500-D-b-Tk4 | F42: =IF(D42="Comb1",CONCATENATE(VLOOKUP(B42,'Activity-Material_Codes'!$A$2:$B$28,Quantities!$B$2),"-",VLOOKUP(A42,Quantities[],Quantities!$D$2)), CONCATENATE( VLOOKUP(B42,'Activity-Material_Codes'!$A$2:$B$30,Quantities!$B$2), IF(AND(B42="B",C42="a"), " Scraper Grading", ""), IF(C42="b","","-"), IF(C42="b","",VLOOKUP(A42,Quantities[],Quantities!$D$2)), IF(LEFT(TEXT(A42,"0"),1)="5","","-"), IF(LEFT(TEXT(A42,"0"),1)="5","",VLOOKUP(C42,'Activity-Material_Codes'!$A$34:$B$40,Quantities!$B$2)) )) -> Haul-Cover | G42: =IF(C42="f",VLOOKUP(A42,Quantities[],Quantities!$B$2), CONCATENATE( IF(OR(RIGHT(TEXT($A42,"0"),Quantities!$B$2)="00",LEFT(TEXT($A42,"0"),1)="5",OR($C42="b",$C42="f")),"",VLOOKUP($A42,Quantities[],Quantities!$B$2)), IF(LEFT(TEXT($A42,"0"),1)="5",""," "), IF(OR(C42="a",C42="c",C42="d",C42="e"),IF(OR(RIGHT(TEXT($A42,"0"),Quantities!$B$2)="00",LEFT(TEXT($A42,"0"),1)="5"),VLOOKUP($A42,Quantities[],Quantities!$B$2),""), IF(LEFT(TEXT($A42,"0"),1)="5",VLOOKUP($A42,Quantities[],Quantities!$B$2), VLOOKUP(INDEX(Quantities!$A$24:$A$25,MATCH($A42,Quantities!$C$24:$C$25)),Quantities!$A$24:$B$25,Quantities!$B$2))))) -> Soil Stockpile | H42: =IF(LEFT(TEXT(A42,"0"),1)="5", VLOOKUP(VLOOKUP(A42,Quantities!$A$4:$D$25,Quantities!$C$2),Quantities!$A$4:$D$25,Quantities!$C$2), IF(OR(C42="a",C42="c",C42="d",C42="e"), "-", IF(RIGHT(TEXT(A42,"0"),2)="00",VLOOKUP(A42,Quantities[],Quantities!$B$2), IF(C42="f",VLOOKUP(A42,Quantities[],Quantities!$B$2), VLOOKUP(A42,Quantities[],Quantities!$C$2)) ))) -> Allowance for Other Disturbed Areas | I42: =IF(OR(AND(LEFT(D42,2)="Sc",B42="A",OR(C42="d",C42="f")),AND(C42="f",B42="D")), SUM(VLOOKUP($A42,Quantities[],Quantities!$O$2),VLOOKUP($A42,Quantities[],Quantities!$Q$2),VLOOKUP($A42,Quantities[],Quantities!$S$2),VLOOKUP($A42,Quantities[],Quantities!$I$2)), IF(AND(LEFT(D42,2)="Sc",OR(C42="a",C42="f")), VLOOKUP(A42,Quantities[],Quantities!$I$2), IF(AND(B42="D",C42="b"), VLOOKUP(INDEX(Quantities!$A$24:$A$25,MATCH($A42,Quantities!$C$24:$C$25)),Quantities!$A$24:$AN$25,Quantities!$O$2)+ VLOOKUP(INDEX(Quantities!$A$24:$A$25,MATCH($A42,Quantities!$C$24:$C$25)),Quantities!$A$24:$AN$25,Quantities!$Q$2)+ VLOOKUP(INDEX(Quantities!$A$24:$A$25,MATCH($A42,Quantities!$C$24:$C$25)),Quantities!$A$24:$AN$25,Quantities!$S$2), IF(OR(B42="D",B42="Q"), SUM(VLOOKUP($A42,Quantities[],Quantities!$O$2),VLOOKUP($A42,Quantities[],Quantities!$Q$2),VLOOKUP($A42,Quantities[],Quantities!$S$2)), VLOOKUP(A42,Quantities[],Quantities!$G$2) )))) -> 4200 | J42: =IF(LEFT(D42,2)="Mg", VLOOKUP(A42,Quantities[],Quantities!$H$2), IF(OR(AND(LEFT(D42,2)="Sc",B42="A",OR(C42="d",C42="f"))), (SUM(VLOOKUP($A42,Quantities[],Quantities!$P$2)*VLOOKUP($A42,Quantities[],Quantities!$O$2),VLOOKUP($A42,Quantities[],Quantities!$R$2)*VLOOKUP($A42,Quantities[],Quantities!$Q$2),VLOOKUP($A42,Quantities[],Quantities!$T$2)*VLOOKUP($A42,Quantities[],Quantities!$S$2)))/SUM(VLOOKUP($A42,Quantities[],Quantities!$O$2),VLOOKUP($A42,Quantities[],Quantities!$Q$2),VLOOKUP($A42,Quantities[],Quantities!$S$2)), IF(AND(LEFT(D42,2)="Sc",OR(C42="a",C42="f")), VLOOKUP(A42,Quantities[],Quantities!$J$2), IF(AND(B42="D",C42="b", (VLOOKUP(INDEX(Quantities!$A$24:$A$25,MATCH($A42,Quantities!$C$24:$C$25)),Quantities[],Quantities!$O$2)+VLOOKUP(INDEX(Quantities!$A$24:$A$25,MATCH($A42,Quantities!$C$24:$C$25)),Quantities[],Quantities!$Q$2)+VLOOKUP(INDEX(Quantities!$A$24:$A$25,MATCH($A42,Quantities!$C$24:$C$25)),Quantities[],Quantities!$S$2))>0), (VLOOKUP(INDEX(Quantities!$A$24:$A$25,MATCH($A42,Quantities!$C$24:$C$25)),Quantities[],Quantities!$P$2)*VLOOKUP(INDEX(Quantities!$A$24:$A$25,MATCH($A42,Quantities!$C$24:$C$25)),Quantities[],Quantities!$O$2) +VLOOKUP(INDEX(Quantities!$A$24:$A$25,MATCH($A42,Quantities!$C$24:$C$25)),Quantities[],Quantities!$R$2)*VLOOKUP(INDEX(Quantities!$A$24:$A$25,MATCH($A42,Quantities!$C$24:$C$25)),Quantities[],Quantities!$Q$2) +VLOOKUP(INDEX(Quantities!$A$24:$A$25,MATCH($A42,Quantities!$C$24:$C$25)),Quantities[],Quantities!$T$2)*VLOOKUP(INDEX(Quantities!$A$24:$A$25,MATCH($A42,Quantities!$C$24:$C$25)),Quantities[],Quantities!$S$2))/ (VLOOKUP(INDEX(Quantities!$A$24:$A$25,MATCH($A42,Quantities!$C$24:$C$25)),Quantities[],Quantities!$O$2)+VLOOKUP(INDEX(Quantities!$A$24:$A$25,MATCH($A42,Quantities!$C$24:$C$25)),Quantities[],Quantities!$Q$2)+VLOOKUP(A42,Quantities[],Quantities!$S$2)), IF(AND(B42="D", (VLOOKUP(A42,Quantities[],Quantities!$O$2)+VLOOKUP(A42,Quantities[],Quantities!$Q$2)+VLOOKUP(A42,Quantities[],Quantities!$S$2))>0), (VLOOKUP(A42,Quantities[],Quantities!$P$2)*VLOOKUP(A42,Quantities[],Quantities!$O$2) +VLOOKUP(A42,Quantities[],Quantities!$R$2)*VLOOKUP(A42,Quantities[],Quantities!$Q$2) +VLOOKUP(A42,Quantities[],Quantities!$T$2)*VLOOKUP(A42,Quantities[],Quantities!$S$2))/ (VLOOKUP(A42,Quantities[],Quantities!$O$2)+VLOOKUP(A42,Quantities[],Quantities!$Q$2)+VLOOKUP(A42,Quantities[],Quantities!$S$2)), IF($B42="Q", (SUM(VLOOKUP($A42,Quantities[],Quantities!$P$2)*VLOOKUP($A42,Quantities[],Quantities!$O$2),VLOOKUP($A42,Quantities[],Quantities!$R$2)*VLOOKUP($A42,Quantities[],Quantities!$Q$2),VLOOKUP($A42,Quantities[],Quantities!$T$2)*VLOOKUP($A42,Quantities[],Quantities!$S$2)))/SUM(VLOOKUP($A42,Quantities[],Quantities!$O$2),VLOOKUP($A42,Quantities[],Quantities!$Q$2),VLOOKUP($A42,Quantities[],Quantities!$S$2)), VLOOKUP(A42,Quantities[],Quantities!$H$2) )))))) -> 0.09435909091 | K42: =IF(LEFT(D42,1)="U","-",VLOOKUP(D42,Equipment[],Equipment!$B$2)) -> Komatsu 730E
A43: =Quantities!$A$4 -> 1000 | B43: A | C43: d | D43: Mg1 | E43: 1000-A-d-Mg1 | F43: =IF(D43="Comb1",CONCATENATE(VLOOKUP(B43,'Activity-Material_Codes'!$A$2:$B$28,Quantities!$B$2),"-",VLOOKUP(A43,Quantities[],Quantities!$D$2)), CONCATENATE( VLOOKUP(B43,'Activity-Material_Codes'!$A$2:$B$30,Quantities!$B$2), IF(AND(B43="B",C43="a"), " Scraper Grading", ""), IF(C43="b","","-"), IF(C43="b","",VLOOKUP(A43,Quantities[],Quantities!$D$2)), IF(LEFT(TEXT(A43,"0"),1)="5","","-"), IF(LEFT(TEXT(A43,"0"),1)="5","",VLOOKUP(C43,'Activity-Material_Codes'!$A$34:$B$40,Quantities!$B$2)) )) -> Grade-Entire Stockpile-Placed Cover | G43: =IF(C43="f",VLOOKUP(A43,Quantities[],Quantities!$B$2), CONCATENATE( IF(OR(RIGHT(TEXT($A43,"0"),Quantities!$B$2)="00",LEFT(TEXT($A43,"0"),1)="5",OR($C43="b",$C43="f")),"",VLOOKUP($A43,Quantities[],Quantities!$B$2)), IF(LEFT(TEXT($A43,"0"),1)="5",""," "), IF(OR(C43="a",C43="c",C43="d",C43="e"),IF(OR(RIGHT(TEXT($A43,"0"),Quantities!$B$2)="00",LEFT(TEXT($A43,"0"),1)="5"),VLOOKUP($A43,Quantities[],Quantities!$B$2),""), IF(LEFT(TEXT($A43,"0"),1)="5",VLOOKUP($A43,Quantities[],Quantities!$B$2), VLOOKUP(INDEX(Quantities!$A$24:$A$25,MATCH($A43,Quantities!$C$24:$C$25)),Quantities!$A$24:$B$25,Quantities!$B$2))))) -> EMW Waste | H43: =IF(LEFT(TEXT(A43,"0"),1)="5", VLOOKUP(VLOOKUP(A43,Quantities!$A$4:$D$25,Quantities!$C$2),Quantities!$A$4:$D$25,Quantities!$C$2), IF(OR(C43="a",C43="c",C43="d",C43="e"), "-", IF(RIGHT(TEXT(A43,"0"),2)="00",VLOOKUP(A43,Quantities[],Quantities!$B$2), IF(C43="f",VLOOKUP(A43,Quantities[],Quantities!$B$2), VLOOKUP(A43,Quantities[],Quantities!$C$2)) ))) -> - | I43: =IF(OR(AND(LEFT(D43,2)="Sc",B43="A",OR(C43="d",C43="f")),AND(C43="f",B43="D")), SUM(VLOOKUP($A43,Quantities[],Quantities!$O$2),VLOOKUP($A43,Quantities[],Quantities!$Q$2),VLOOKUP($A43,Quantities[],Quantities!$S$2),VLOOKUP($A43,Quantities[],Quantities!$I$2)), IF(AND(LEFT(D43,2)="Sc",OR(C43="a",C43="f")), VLOOKUP(A43,Quantities[],Quantities!$I$2), IF(AND(B43="D",C43="b"), VLOOKUP(INDEX(Quantities!$A$24:$A$25,MATCH($A43,Quantities!$C$24:$C$25)),Quantities!$A$24:$AN$25,Quantities!$O$2)+ VLOOKUP(INDEX(Quantities!$A$24:$A$25,MATCH($A43,Quantities!$C$24:$C$25)),Quantities!$A$24:$AN$25,Quantities!$Q$2)+ VLOOKUP(INDEX(Quantities!$A$24:$A$25,MATCH($A43,Quantities!$C$24:$C$25)),Quantities!$A$24:$AN$25,Quantities!$S$2), IF(OR(B43="D",B43="Q"), SUM(VLOOKUP($A43,Quantities[],Quantities!$O$2),VLOOKUP($A43,Quantities[],Quantities!$Q$2),VLOOKUP($A43,Quantities[],Quantities!$S$2)), VLOOKUP(A43,Quantities[],Quantities!$G$2) )))) -> 0 | J43: =IF(LEFT(D43,2)="Mg", VLOOKUP(A43,Quantities[],Quantities!$H$2), IF(OR(AND(LEFT(D43,2)="Sc",B43="A",OR(C43="d",C43="f"))), (SUM(VLOOKUP($A43,Quantities[],Quantities!$P$2)*VLOOKUP($A43,Quantities[],Quantities!$O$2),VLOOKUP($A43,Quantities[],Quantities!$R$2)*VLOOKUP($A43,Quantities[],Quantities!$Q$2),VLOOKUP($A43,Quantities[],Quantities!$T$2)*VLOOKUP($A43,Quantities[],Quantities!$S$2)))/SUM(VLOOKUP($A43,Quantities[],Quantities!$O$2),VLOOKUP($A43,Quantities[],Quantities!$Q$2),VLOOKUP($A43,Quantities[],Quantities!$S$2)), IF(AND(LEFT(D43,2)="Sc",OR(C43="a",C43="f")), VLOOKUP(A43,Quantities[],Quantities!$J$2), IF(AND(B43="D",C43="b", (VLOOKUP(INDEX(Quantities!$A$24:$A$25,MATCH($A43,Quantities!$C$24:$C$25)),Quantities[],Quantities!$O$2)+VLOOKUP(INDEX(Quantities!$A$24:$A$25,MATCH($A43,Quantities!$C$24:$C$25)),Quantities[],Quantities!$Q$2)+VLOOKUP(INDEX(Quantities!$A$24:$A$25,MATCH($A43,Quantities!$C$24:$C$25)),Quantities[],Quantities!$S$2))>0), (VLOOKUP(INDEX(Quantities!$A$24:$A$25,MATCH($A43,Quantities!$C$24:$C$25)),Quantities[],Quantities!$P$2)*VLOOKUP(INDEX(Quantities!$A$24:$A$25,MATCH($A43,Quantities!$C$24:$C$25)),Quantities[],Quantities!$O$2) +VLOOKUP(INDEX(Quantities!$A$24:$A$25,MATCH($A43,Quantities!$C$24:$C$25)),Quantities[],Quantities!$R$2)*VLOOKUP(INDEX(Quantities!$A$24:$A$25,MATCH($A43,Quantities!$C$24:$C$25)),Quantities[],Quantities!$Q$2) +VLOOKUP(INDEX(Quantities!$A$24:$A$25,MATCH($A43,Quantities!$C$24:$C$25)),Quantities[],Quantities!$T$2)*VLOOKUP(INDEX(Quantities!$A$24:$A$25,MATCH($A43,Quantities!$C$24:$C$25)),Quantities[],Quantities!$S$2))/ (VLOOKUP(INDEX(Quantities!$A$24:$A$25,MATCH($A43,Quantities!$C$24:$C$25)),Quantities[],Quantities!$O$2)+VLOOKUP(INDEX(Quantities!$A$24:$A$25,MATCH($A43,Quantities!$C$24:$C$25)),Quantities[],Quantities!$Q$2)+VLOOKUP(A43,Quantities[],Quantities!$S$2)), IF(AND(B43="D", (VLOOKUP(A43,Quantities[],Quantities!$O$2)+VLOOKUP(A43,Quantities[],Quantities!$Q$2)+VLOOKUP(A43,Quantities[],Quantities!$S$2))>0), (VLOOKUP(A43,Quantities[],Quantities!$P$2)*VLOOKUP(A43,Quantities[],Quantities!$O$2) +VLOOKUP(A43,Quantities[],Quantities!$R$2)*VLOOKUP(A43,Quantities[],Quantities!$Q$2) +VLOOKUP(A43,Quantities[],Quantities!$T$2)*VLOOKUP(A43,Quantities[],Quantities!$S$2))/ (VLOOKUP(A43,Quantities[],Quantities!$O$2)+VLOOKUP(A43,Quantities[],Quantities!$Q$2)+VLOOKUP(A43,Quantities[],Quantities!$S$2)), IF($B43="Q", (SUM(VLOOKUP($A43,Quantities[],Quantities!$P$2)*VLOOKUP($A43,Quantities[],Quantities!$O$2),VLOOKUP($A43,Quantities[],Quantities!$R$2)*VLOOKUP($A43,Quantities[],Quantities!$Q$2),VLOOKUP($A43,Quantities[],Quantities!$T$2)*VLOOKUP($A43,Quantities[],Quantities!$S$2)))/SUM(VLOOKUP($A43,Quantities[],Quantities!$O$2),VLOOKUP($A43,Quantities[],Quantities!$Q$2),VLOOKUP($A43,Quantities[],Quantities!$S$2)), VLOOKUP(A43,Quantities[],Quantities!$H$2) )))))) -> - | K43: =IF(LEFT(D43,1)="U","-",VLOOKUP(D43,Equipment[],Equipment!$B$2)) -> Cat 16M - Final Grading
A44: =Quantities!$A$7 -> 1100 | B44: A | C44: d | D44: Mg1 | E44: 1100-A-d-Mg1 | F44: =IF(D44="Comb1",CONCATENATE(VLOOKUP(B44,'Activity-Material_Codes'!$A$2:$B$28,Quantities!$B$2),"-",VLOOKUP(A44,Quantities[],Quantities!$D$2)), CONCATENATE( VLOOKUP(B44,'Activity-Material_Codes'!$A$2:$B$30,Quantities!$B$2), IF(AND(B44="B",C44="a"), " Scraper Grading", ""), IF(C44="b","","-"), IF(C44="b","",VLOOKUP(A44,Quantities[],Quantities!$D$2)), IF(LEFT(TEXT(A44,"0"),1)="5","","-"), IF(LEFT(TEXT(A44,"0"),1)="5","",VLOOKUP(C44,'Activity-Material_Codes'!$A$34:$B$40,Quantities!$B$2)) )) -> Grade-Entire Stockpile-Placed Cover | G44: =IF(C44="f",VLOOKUP(A44,Quantities[],Quantities!$B$2), CONCATENATE( IF(OR(RIGHT(TEXT($A44,"0"),Quantities!$B$2)="00",LEFT(TEXT($A44,"0"),1)="5",OR($C44="b",$C44="f")),"",VLOOKUP($A44,Quantities[],Quantities!$B$2)), IF(LEFT(TEXT($A44,"0"),1)="5",""," "), IF(OR(C44="a",C44="c",C44="d",C44="e"),IF(OR(RIGHT(TEXT($A44,"0"),Quantities!$B$2)="00",LEFT(TEXT($A44,"0"),1)="5"),VLOOKUP($A44,Quantities[],Quantities!$B$2),""), IF(LEFT(TEXT($A44,"0"),1)="5",VLOOKUP($A44,Quantities[],Quantities!$B$2), VLOOKUP(INDEX(Quantities!$A$24:$A$25,MATCH($A44,Quantities!$C$24:$C$25)),Quantities!$A$24:$B$25,Quantities!$B$2))))) -> 6HW Waste | H44: =IF(LEFT(TEXT(A44,"0"),1)="5", VLOOKUP(VLOOKUP(A44,Quantities!$A$4:$D$25,Quantities!$C$2),Quantities!$A$4:$D$25,Quantities!$C$2), IF(OR(C44="a",C44="c",C44="d",C44="e"), "-", IF(RIGHT(TEXT(A44,"0"),2)="00",VLOOKUP(A44,Quantities[],Quantities!$B$2), IF(C44="f",VLOOKUP(A44,Quantities[],Quantities!$B$2), VLOOKUP(A44,Quantities[],Quantities!$C$2)) ))) -> - | I44: =IF(OR(AND(LEFT(D44,2)="Sc",B44="A",OR(C44="d",C44="f")),AND(C44="f",B44="D")), SUM(VLOOKUP($A44,Quantities[],Quantities!$O$2),VLOOKUP($A44,Quantities[],Quantities!$Q$2),VLOOKUP($A44,Quantities[],Quantities!$S$2),VLOOKUP($A44,Quantities[],Quantities!$I$2)), IF(AND(LEFT(D44,2)="Sc",OR(C44="a",C44="f")), VLOOKUP(A44,Quantities[],Quantities!$I$2), IF(AND(B44="D",C44="b"), VLOOKUP(INDEX(Quantities!$A$24:$A$25,MATCH($A44,Quantities!$C$24:$C$25)),Quantities!$A$24:$AN$25,Quantities!$O$2)+ VLOOKUP(INDEX(Quantities!$A$24:$A$25,MATCH($A44,Quantities!$C$24:$C$25)),Quantities!$A$24:$AN$25,Quantities!$Q$2)+ VLOOKUP(INDEX(Quantities!$A$24:$A$25,MATCH($A44,Quantities!$C$24:$C$25)),Quantities!$A$24:$AN$25,Quantities!$S$2), IF(OR(B44="D",B44="Q"), SUM(VLOOKUP($A44,Quantities[],Quantities!$O$2),VLOOKUP($A44,Quantities[],Quantities!$Q$2),VLOOKUP($A44,Quantities[],Quantities!$S$2)), VLOOKUP(A44,Quantities[],Quantities!$G$2) )))) -> 0 | J44: =IF(LEFT(D44,2)="Mg", VLOOKUP(A44,Quantities[],Quantities!$H$2), IF(OR(AND(LEFT(D44,2)="Sc",B44="A",OR(C44="d",C44="f"))), (SUM(VLOOKUP($A44,Quantities[],Quantities!$P$2)*VLOOKUP($A44,Quantities[],Quantities!$O$2),VLOOKUP($A44,Quantities[],Quantities!$R$2)*VLOOKUP($A44,Quantities[],Quantities!$Q$2),VLOOKUP($A44,Quantities[],Quantities!$T$2)*VLOOKUP($A44,Quantities[],Quantities!$S$2)))/SUM(VLOOKUP($A44,Quantities[],Quantities!$O$2),VLOOKUP($A44,Quantities[],Quantities!$Q$2),VLOOKUP($A44,Quantities[],Quantities!$S$2)), IF(AND(LEFT(D44,2)="Sc",OR(C44="a",C44="f")), VLOOKUP(A44,Quantities[],Quantities!$J$2), IF(AND(B44="D",C44="b", (VLOOKUP(INDEX(Quantities!$A$24:$A$25,MATCH($A44,Quantities!$C$24:$C$25)),Quantities[],Quantities!$O$2)+VLOOKUP(INDEX(Quantities!$A$24:$A$25,MATCH($A44,Quantities!$C$24:$C$25)),Quantities[],Quantities!$Q$2)+VLOOKUP(INDEX(Quantities!$A$24:$A$25,MATCH($A44,Quantities!$C$24:$C$25)),Quantities[],Quantities!$S$2))>0), (VLOOKUP(INDEX(Quantities!$A$24:$A$25,MATCH($A44,Quantities!$C$24:$C$25)),Quantities[],Quantities!$P$2)*VLOOKUP(INDEX(Quantities!$A$24:$A$25,MATCH($A44,Quantities!$C$24:$C$25)),Quantities[],Quantities!$O$2) +VLOOKUP(INDEX(Quantities!$A$24:$A$25,MATCH($A44,Quantities!$C$24:$C$25)),Quantities[],Quantities!$R$2)*VLOOKUP(INDEX(Quantities!$A$24:$A$25,MATCH($A44,Quantities!$C$24:$C$25)),Quantities[],Quantities!$Q$2) +VLOOKUP(INDEX(Quantities!$A$24:$A$25,MATCH($A44,Quantities!$C$24:$C$25)),Quantities[],Quantities!$T$2)*VLOOKUP(INDEX(Quantities!$A$24:$A$25,MATCH($A44,Quantities!$C$24:$C$25)),Quantities[],Quantities!$S$2))/ (VLOOKUP(INDEX(Quantities!$A$24:$A$25,MATCH($A44,Quantities!$C$24:$C$25)),Quantities[],Quantities!$O$2)+VLOOKUP(INDEX(Quantities!$A$24:$A$25,MATCH($A44,Quantities!$C$24:$C$25)),Quantities[],Quantities!$Q$2)+VLOOKUP(A44,Quantities[],Quantities!$S$2)), IF(AND(B44="D", (VLOOKUP(A44,Quantities[],Quantities!$O$2)+VLOOKUP(A44,Quantities[],Quantities!$Q$2)+VLOOKUP(A44,Quantities[],Quantities!$S$2))>0), (VLOOKUP(A44,Quantities[],Quantities!$P$2)*VLOOKUP(A44,Quantities[],Quantities!$O$2) +VLOOKUP(A44,Quantities[],Quantities!$R$2)*VLOOKUP(A44,Quantities[],Quantities!$Q$2) +VLOOKUP(A44,Quantities[],Quantities!$T$2)*VLOOKUP(A44,Quantities[],Quantities!$S$2))/ (VLOOKUP(A44,Quantities[],Quantities!$O$2)+VLOOKUP(A44,Quantities[],Quantities!$Q$2)+VLOOKUP(A44,Quantities[],Quantities!$S$2)), IF($B44="Q", (SUM(VLOOKUP($A44,Quantities[],Quantities!$P$2)*VLOOKUP($A44,Quantities[],Quantities!$O$2),VLOOKUP($A44,Quantities[],Quantities!$R$2)*VLOOKUP($A44,Quantities[],Quantities!$Q$2),VLOOKUP($A44,Quantities[],Quantities!$T$2)*VLOOKUP($A44,Quantities[],Quantities!$S$2)))/SUM(VLOOKUP($A44,Quantities[],Quantities!$O$2),VLOOKUP($A44,Quantities[],Quantities!$Q$2),VLOOKUP($A44,Quantities[],Quantities!$S$2)), VLOOKUP(A44,Quantities[],Quantities!$H$2) )))))) -> - | K44: =IF(LEFT(D44,1)="U","-",VLOOKUP(D44,Equipment[],Equipment!$B$2)) -> Cat 16M - Final Grading
A45: =Quantities!$A$15 -> 1300 | B45: A | C45: d | D45: Mg1 | E45: 1300-A-d-Mg1 | F45: =IF(D45="Comb1",CONCATENATE(VLOOKUP(B45,'Activity-Material_Codes'!$A$2:$B$28,Quantities!$B$2),"-",VLOOKUP(A45,Quantities[],Quantities!$D$2)), CONCATENATE( VLOOKUP(B45,'Activity-Material_Codes'!$A$2:$B$30,Quantities!$B$2), IF(AND(B45="B",C45="a"), " Scraper Grading", ""), IF(C45="b","","-"), IF(C45="b","",VLOOKUP(A45,Quantities[],Quantities!$D$2)), IF(LEFT(TEXT(A45,"0"),1)="5","","-"), IF(LEFT(TEXT(A45,"0"),1)="5","",VLOOKUP(C45,'Activity-Material_Codes'!$A$34:$B$40,Quantities!$B$2)) )) -> Grade-Open Pit-Placed Cover | G45: =IF(C45="f",VLOOKUP(A45,Quantities[],Quantities!$B$2), CONCATENATE( IF(OR(RIGHT(TEXT($A45,"0"),Quantities!$B$2)="00",LEFT(TEXT($A45,"0"),1)="5",OR($C45="b",$C45="f")),"",VLOOKUP($A45,Quantities[],Quantities!$B$2)), IF(LEFT(TEXT($A45,"0"),1)="5",""," "), IF(OR(C45="a",C45="c",C45="d",C45="e"),IF(OR(RIGHT(TEXT($A45,"0"),Quantities!$B$2)="00",LEFT(TEXT($A45,"0"),1)="5"),VLOOKUP($A45,Quantities[],Quantities!$B$2),""), IF(LEFT(TEXT($A45,"0"),1)="5",VLOOKUP($A45,Quantities[],Quantities!$B$2), VLOOKUP(INDEX(Quantities!$A$24:$A$25,MATCH($A45,Quantities!$C$24:$C$25)),Quantities!$A$24:$B$25,Quantities!$B$2))))) -> Emma Backfill Areas | H45: =IF(LEFT(TEXT(A45,"0"),1)="5", VLOOKUP(VLOOKUP(A45,Quantities!$A$4:$D$25,Quantities!$C$2),Quantities!$A$4:$D$25,Quantities!$C$2), IF(OR(C45="a",C45="c",C45="d",C45="e"), "-", IF(RIGHT(TEXT(A45,"0"),2)="00",VLOOKUP(A45,Quantities[],Quantities!$B$2), IF(C45="f",VLOOKUP(A45,Quantities[],Quantities!$B$2), VLOOKUP(A45,Quantities[],Quantities!$C$2)) ))) -> - | I45: =IF(OR(AND(LEFT(D45,2)="Sc",B45="A",OR(C45="d",C45="f")),AND(C45="f",B45="D")), SUM(VLOOKUP($A45,Quantities[],Quantities!$O$2),VLOOKUP($A45,Quantities[],Quantities!$Q$2),VLOOKUP($A45,Quantities[],Quantities!$S$2),VLOOKUP($A45,Quantities[],Quantities!$I$2)), IF(AND(LEFT(D45,2)="Sc",OR(C45="a",C45="f")), VLOOKUP(A45,Quantities[],Quantities!$I$2), IF(AND(B45="D",C45="b"), VLOOKUP(INDEX(Quantities!$A$24:$A$25,MATCH($A45,Quantities!$C$24:$C$25)),Quantities!$A$24:$AN$25,Quantities!$O$2)+ VLOOKUP(INDEX(Quantities!$A$24:$A$25,MATCH($A45,Quantities!$C$24:$C$25)),Quantities!$A$24:$AN$25,Quantities!$Q$2)+ VLOOKUP(INDEX(Quantities!$A$24:$A$25,MATCH($A45,Quantities!$C$24:$C$25)),Quantities!$A$24:$AN$25,Quantities!$S$2), IF(OR(B45="D",B45="Q"), SUM(VLOOKUP($A45,Quantities[],Quantities!$O$2),VLOOKUP($A45,Quantities[],Quantities!$Q$2),VLOOKUP($A45,Quantities[],Quantities!$S$2)), VLOOKUP(A45,Quantities[],Quantities!$G$2) )))) -> 200 | J45: =IF(LEFT(D45,2)="Mg", VLOOKUP(A45,Quantities[],Quantities!$H$2), IF(OR(AND(LEFT(D45,2)="Sc",B45="A",OR(C45="d",C45="f"))), (SUM(VLOOKUP($A45,Quantities[],Quantities!$P$2)*VLOOKUP($A45,Quantities[],Quantities!$O$2),VLOOKUP($A45,Quantities[],Quantities!$R$2)*VLOOKUP($A45,Quantities[],Quantities!$Q$2),VLOOKUP($A45,Quantities[],Quantities!$T$2)*VLOOKUP($A45,Quantities[],Quantities!$S$2)))/SUM(VLOOKUP($A45,Quantities[],Quantities!$O$2),VLOOKUP($A45,Quantities[],Quantities!$Q$2),VLOOKUP($A45,Quantities[],Quantities!$S$2)), IF(AND(LEFT(D45,2)="Sc",OR(C45="a",C45="f")), VLOOKUP(A45,Quantities[],Quantities!$J$2), IF(AND(B45="D",C45="b", (VLOOKUP(INDEX(Quantities!$A$24:$A$25,MATCH($A45,Quantities!$C$24:$C$25)),Quantities[],Quantities!$O$2)+VLOOKUP(INDEX(Quantities!$A$24:$A$25,MATCH($A45,Quantities!$C$24:$C$25)),Quantities[],Quantities!$Q$2)+VLOOKUP(INDEX(Quantities!$A$24:$A$25,MATCH($A45,Quantities!$C$24:$C$25)),Quantities[],Quantities!$S$2))>0), (VLOOKUP(INDEX(Quantities!$A$24:$A$25,MATCH($A45,Quantities!$C$24:$C$25)),Quantities[],Quantities!$P$2)*VLOOKUP(INDEX(Quantities!$A$24:$A$25,MATCH($A45,Quantities!$C$24:$C$25)),Quantities[],Quantities!$O$2) +VLOOKUP(INDEX(Quantities!$A$24:$A$25,MATCH($A45,Quantities!$C$24:$C$25)),Quantities[],Quantities!$R$2)*VLOOKUP(INDEX(Quantities!$A$24:$A$25,MATCH($A45,Quantities!$C$24:$C$25)),Quantities[],Quantities!$Q$2) +VLOOKUP(INDEX(Quantities!$A$24:$A$25,MATCH($A45,Quantities!$C$24:$C$25)),Quantities[],Quantities!$T$2)*VLOOKUP(INDEX(Quantities!$A$24:$A$25,MATCH($A45,Quantities!$C$24:$C$25)),Quantities[],Quantities!$S$2))/ (VLOOKUP(INDEX(Quantities!$A$24:$A$25,MATCH($A45,Quantities!$C$24:$C$25)),Quantities[],Quantities!$O$2)+VLOOKUP(INDEX(Quantities!$A$24:$A$25,MATCH($A45,Quantities!$C$24:$C$25)),Quantities[],Quantities!$Q$2)+VLOOKUP(A45,Quantities[],Quantities!$S$2)), IF(AND(B45="D", (VLOOKUP(A45,Quantities[],Quantities!$O$2)+VLOOKUP(A45,Quantities[],Quantities!$Q$2)+VLOOKUP(A45,Quantities[],Quantities!$S$2))>0), (VLOOKUP(A45,Quantities[],Quantities!$P$2)*VLOOKUP(A45,Quantities[],Quantities!$O$2) +VLOOKUP(A45,Quantities[],Quantities!$R$2)*VLOOKUP(A45,Quantities[],Quantities!$Q$2) +VLOOKUP(A45,Quantities[],Quantities!$T$2)*VLOOKUP(A45,Quantities[],Quantities!$S$2))/ (VLOOKUP(A45,Quantities[],Quantities!$O$2)+VLOOKUP(A45,Quantities[],Quantities!$Q$2)+VLOOKUP(A45,Quantities[],Quantities!$S$2)), IF($B45="Q", (SUM(VLOOKUP($A45,Quantities[],Quantities!$P$2)*VLOOKUP($A45,Quantities[],Quantities!$O$2),VLOOKUP($A45,Quantities[],Quantities!$R$2)*VLOOKUP($A45,Quantities[],Quantities!$Q$2),VLOOKUP($A45,Quantities[],Quantities!$T$2)*VLOOKUP($A45,Quantities[],Quantities!$S$2)))/SUM(VLOOKUP($A45,Quantities[],Quantities!$O$2),VLOOKUP($A45,Quantities[],Quantities!$Q$2),VLOOKUP($A45,Quantities[],Quantities!$S$2)), VLOOKUP(A45,Quantities[],Quantities!$H$2) )))))) -> 0 | K45: =IF(LEFT(D45,1)="U","-",VLOOKUP(D45,Equipment[],Equipment!$B$2)) -> Cat 16M - Final Grading
A46: =Quantities!$A$23 -> 1500 | B46: A | C46: d | D46: Mg1 | E46: 1500-A-d-Mg1 | F46: =IF(D46="Comb1",CONCATENATE(VLOOKUP(B46,'Activity-Material_Codes'!$A$2:$B$28,Quantities!$B$2),"-",VLOOKUP(A46,Quantities[],Quantities!$D$2)), CONCATENATE( VLOOKUP(B46,'Activity-Material_Codes'!$A$2:$B$30,Quantities!$B$2), IF(AND(B46="B",C46="a"), " Scraper Grading", ""), IF(C46="b","","-"), IF(C46="b","",VLOOKUP(A46,Quantities[],Quantities!$D$2)), IF(LEFT(TEXT(A46,"0"),1)="5","","-"), IF(LEFT(TEXT(A46,"0"),1)="5","",VLOOKUP(C46,'Activity-Material_Codes'!$A$34:$B$40,Quantities!$B$2)) )) -> Grade-Unplanned Disturbance Area-Placed Cover | G46: =IF(C46="f",VLOOKUP(A46,Quantities[],Quantities!$B$2), CONCATENATE( IF(OR(RIGHT(TEXT($A46,"0"),Quantities!$B$2)="00",LEFT(TEXT($A46,"0"),1)="5",OR($C46="b",$C46="f")),"",VLOOKUP($A46,Quantities[],Quantities!$B$2)), IF(LEFT(TEXT($A46,"0"),1)="5",""," "), IF(OR(C46="a",C46="c",C46="d",C46="e"),IF(OR(RIGHT(TEXT($A46,"0"),Quantities!$B$2)="00",LEFT(TEXT($A46,"0"),1)="5"),VLOOKUP($A46,Quantities[],Quantities!$B$2),""), IF(LEFT(TEXT($A46,"0"),1)="5",VLOOKUP($A46,Quantities[],Quantities!$B$2), VLOOKUP(INDEX(Quantities!$A$24:$A$25,MATCH($A46,Quantities!$C$24:$C$25)),Quantities!$A$24:$B$25,Quantities!$B$2))))) -> Allowance for Other Disturbed Areas | H46: =IF(LEFT(TEXT(A46,"0"),1)="5", VLOOKUP(VLOOKUP(A46,Quantities!$A$4:$D$25,Quantities!$C$2),Quantities!$A$4:$D$25,Quantities!$C$2), IF(OR(C46="a",C46="c",C46="d",C46="e"), "-", IF(RIGHT(TEXT(A46,"0"),2)="00",VLOOKUP(A46,Quantities[],Quantities!$B$2), IF(C46="f",VLOOKUP(A46,Quantities[],Quantities!$B$2), VLOOKUP(A46,Quantities[],Quantities!$C$2)) ))) -> - | I46: =IF(OR(AND(LEFT(D46,2)="Sc",B46="A",OR(C46="d",C46="f")),AND(C46="f",B46="D")), SUM(VLOOKUP($A46,Quantities[],Quantities!$O$2),VLOOKUP($A46,Quantities[],Quantities!$Q$2),VLOOKUP($A46,Quantities[],Quantities!$S$2),VLOOKUP($A46,Quantities[],Quantities!$I$2)), IF(AND(LEFT(D46,2)="Sc",OR(C46="a",C46="f")), VLOOKUP(A46,Quantities[],Quantities!$I$2), IF(AND(B46="D",C46="b"), VLOOKUP(INDEX(Quantities!$A$24:$A$25,MATCH($A46,Quantities!$C$24:$C$25)),Quantities!$A$24:$AN$25,Quantities!$O$2)+ VLOOKUP(INDEX(Quantities!$A$24:$A$25,MATCH($A46,Quantities!$C$24:$C$25)),Quantities!$A$24:$AN$25,Quantities!$Q$2)+ VLOOKUP(INDEX(Quantities!$A$24:$A$25,MATCH($A46,Quantities!$C$24:$C$25)),Quantities!$A$24:$AN$25,Quantities!$S$2), IF(OR(B46="D",B46="Q"), SUM(VLOOKUP($A46,Quantities[],Quantities!$O$2),VLOOKUP($A46,Quantities[],Quantities!$Q$2),VLOOKUP($A46,Quantities[],Quantities!$S$2)), VLOOKUP(A46,Quantities[],Quantities!$G$2) )))) -> 200 | J46: =IF(LEFT(D46,2)="Mg", VLOOKUP(A46,Quantities[],Quantities!$H$2), IF(OR(AND(LEFT(D46,2)="Sc",B46="A",OR(C46="d",C46="f"))), (SUM(VLOOKUP($A46,Quantities[],Quantities!$P$2)*VLOOKUP($A46,Quantities[],Quantities!$O$2),VLOOKUP($A46,Quantities[],Quantities!$R$2)*VLOOKUP($A46,Quantities[],Quantities!$Q$2),VLOOKUP($A46,Quantities[],Quantities!$T$2)*VLOOKUP($A46,Quantities[],Quantities!$S$2)))/SUM(VLOOKUP($A46,Quantities[],Quantities!$O$2),VLOOKUP($A46,Quantities[],Quantities!$Q$2),VLOOKUP($A46,Quantities[],Quantities!$S$2)), IF(AND(LEFT(D46,2)="Sc",OR(C46="a",C46="f")), VLOOKUP(A46,Quantities[],Quantities!$J$2), IF(AND(B46="D",C46="b", (VLOOKUP(INDEX(Quantities!$A$24:$A$25,MATCH($A46,Quantities!$C$24:$C$25)),Quantities[],Quantities!$O$2)+VLOOKUP(INDEX(Quantities!$A$24:$A$25,MATCH($A46,Quantities!$C$24:$C$25)),Quantities[],Quantities!$Q$2)+VLOOKUP(INDEX(Quantities!$A$24:$A$25,MATCH($A46,Quantities!$C$24:$C$25)),Quantities[],Quantities!$S$2))>0), (VLOOKUP(INDEX(Quantities!$A$24:$A$25,MATCH($A46,Quantities!$C$24:$C$25)),Quantities[],Quantities!$P$2)*VLOOKUP(INDEX(Quantities!$A$24:$A$25,MATCH($A46,Quantities!$C$24:$C$25)),Quantities[],Quantities!$O$2) +VLOOKUP(INDEX(Quantities!$A$24:$A$25,MATCH($A46,Quantities!$C$24:$C$25)),Quantities[],Quantities!$R$2)*VLOOKUP(INDEX(Quantities!$A$24:$A$25,MATCH($A46,Quantities!$C$24:$C$25)),Quantities[],Quantities!$Q$2) +VLOOKUP(INDEX(Quantities!$A$24:$A$25,MATCH($A46,Quantities!$C$24:$C$25)),Quantities[],Quantities!$T$2)*VLOOKUP(INDEX(Quantities!$A$24:$A$25,MATCH($A46,Quantities!$C$24:$C$25)),Quantities[],Quantities!$S$2))/ (VLOOKUP(INDEX(Quantities!$A$24:$A$25,MATCH($A46,Quantities!$C$24:$C$25)),Quantities[],Quantities!$O$2)+VLOOKUP(INDEX(Quantities!$A$24:$A$25,MATCH($A46,Quantities!$C$24:$C$25)),Quantities[],Quantities!$Q$2)+VLOOKUP(A46,Quantities[],Quantities!$S$2)), IF(AND(B46="D", (VLOOKUP(A46,Quantities[],Quantities!$O$2)+VLOOKUP(A46,Quantities[],Quantities!$Q$2)+VLOOKUP(A46,Quantities[],Quantities!$S$2))>0), (VLOOKUP(A46,Quantities[],Quantities!$P$2)*VLOOKUP(A46,Quantities[],Quantities!$O$2) +VLOOKUP(A46,Quantities[],Quantities!$R$2)*VLOOKUP(A46,Quantities[],Quantities!$Q$2) +VLOOKUP(A46,Quantities[],Quantities!$T$2)*VLOOKUP(A46,Quantities[],Quantities!$S$2))/ (VLOOKUP(A46,Quantities[],Quantities!$O$2)+VLOOKUP(A46,Quantities[],Quantities!$Q$2)+VLOOKUP(A46,Quantities[],Quantities!$S$2)), IF($B46="Q", (SUM(VLOOKUP($A46,Quantities[],Quantities!$P$2)*VLOOKUP($A46,Quantities[],Quantities!$O$2),VLOOKUP($A46,Quantities[],Quantities!$R$2)*VLOOKUP($A46,Quantities[],Quantities!$Q$2),VLOOKUP($A46,Quantities[],Quantities!$T$2)*VLOOKUP($A46,Quantities[],Quantities!$S$2)))/SUM(VLOOKUP($A46,Quantities[],Quantities!$O$2),VLOOKUP($A46,Quantities[],Quantities!$Q$2),VLOOKUP($A46,Quantities[],Quantities!$S$2)), VLOOKUP(A46,Quantities[],Quantities!$H$2) )))))) -> 0.01 | K46: =IF(LEFT(D46,1)="U","-",VLOOKUP(D46,Equipment[],Equipment!$B$2)) -> Cat 16M - Final Grading
A47: =Quantities!$A$4 -> 1000 | B47: J | C47: e | D47: ='Unit Rates'!$A$12 -> U2a | E47: 1000-J-e-U2a | F47: =IF(D47="Comb1",CONCATENATE(VLOOKUP(B47,'Activity-Material_Codes'!$A$2:$B$28,Quantities!$B$2),"-",VLOOKUP(A47,Quantities[],Quantities!$D$2)), CONCATENATE( VLOOKUP(B47,'Activity-Material_Codes'!$A$2:$B$30,Quantities!$B$2), IF(AND(B47="B",C47="a"), " Scraper Grading", ""), IF(C47="b","","-"), IF(C47="b","",VLOOKUP(A47,Quantities[],Quantities!$D$2)), IF(LEFT(TEXT(A47,"0"),1)="5","","-"), IF(LEFT(TEXT(A47,"0"),1)="5","",VLOOKUP(C47,'Activity-Material_Codes'!$A$34:$B$40,Quantities!$B$2)) )) -> Revegetate-Entire Stockpile-Final Grade | G47: =IF(C47="f",VLOOKUP(A47,Quantities[],Quantities!$B$2), CONCATENATE( IF(OR(RIGHT(TEXT($A47,"0"),Quantities!$B$2)="00",LEFT(TEXT($A47,"0"),1)="5",OR($C47="b",$C47="f")),"",VLOOKUP($A47,Quantities[],Quantities!$B$2)), IF(LEFT(TEXT($A47,"0"),1)="5",""," "), IF(OR(C47="a",C47="c",C47="d",C47="e"),IF(OR(RIGHT(TEXT($A47,"0"),Quantities!$B$2)="00",LEFT(TEXT($A47,"0"),1)="5"),VLOOKUP($A47,Quantities[],Quantities!$B$2),""), IF(LEFT(TEXT($A47,"0"),1)="5",VLOOKUP($A47,Quantities[],Quantities!$B$2), VLOOKUP(INDEX(Quantities!$A$24:$A$25,MATCH($A47,Quantities!$C$24:$C$25)),Quantities!$A$24:$B$25,Quantities!$B$2))))) -> EMW Waste | H47: =IF(LEFT(TEXT(A47,"0"),1)="5", VLOOKUP(VLOOKUP(A47,Quantities!$A$4:$D$25,Quantities!$C$2),Quantities!$A$4:$D$25,Quantities!$C$2), IF(OR(C47="a",C47="c",C47="d",C47="e"), "-", IF(RIGHT(TEXT(A47,"0"),2)="00",VLOOKUP(A47,Quantities[],Quantities!$B$2), IF(C47="f",VLOOKUP(A47,Quantities[],Quantities!$B$2), VLOOKUP(A47,Quantities[],Quantities!$C$2)) ))) -> - | I47: =IF(OR(AND(LEFT(D47,2)="Sc",B47="A",OR(C47="d",C47="f")),AND(C47="f",B47="D")), SUM(VLOOKUP($A47,Quantities[],Quantities!$O$2),VLOOKUP($A47,Quantities[],Quantities!$Q$2),VLOOKUP($A47,Quantities[],Quantities!$S$2),VLOOKUP($A47,Quantities[],Quantities!$I$2)), IF(AND(LEFT(D47,2)="Sc",OR(C47="a",C47="f")), VLOOKUP(A47,Quantities[],Quantities!$I$2), IF(AND(B47="D",C47="b"), VLOOKUP(INDEX(Quantities!$A$24:$A$25,MATCH($A47,Quantities!$C$24:$C$25)),Quantities!$A$24:$AN$25,Quantities!$O$2)+ VLOOKUP(INDEX(Quantities!$A$24:$A$25,MATCH($A47,Quantities!$C$24:$C$25)),Quantities!$A$24:$AN$25,Quantities!$Q$2)+ VLOOKUP(INDEX(Quantities!$A$24:$A$25,MATCH($A47,Quantities!$C$24:$C$25)),Quantities!$A$24:$AN$25,Quantities!$S$2), IF(OR(B47="D",B47="Q"), SUM(VLOOKUP($A47,Quantities[],Quantities!$O$2),VLOOKUP($A47,Quantities[],Quantities!$Q$2),VLOOKUP($A47,Quantities[],Quantities!$S$2)), VLOOKUP(A47,Quantities[],Quantities!$G$2) )))) -> 0 | J47: =IF(LEFT(D47,2)="Mg", VLOOKUP(A47,Quantities[],Quantities!$H$2), IF(OR(AND(LEFT(D47,2)="Sc",B47="A",OR(C47="d",C47="f"))), (SUM(VLOOKUP($A47,Quantities[],Quantities!$P$2)*VLOOKUP($A47,Quantities[],Quantities!$O$2),VLOOKUP($A47,Quantities[],Quantities!$R$2)*VLOOKUP($A47,Quantities[],Quantities!$Q$2),VLOOKUP($A47,Quantities[],Quantities!$T$2)*VLOOKUP($A47,Quantities[],Quantities!$S$2)))/SUM(VLOOKUP($A47,Quantities[],Quantities!$O$2),VLOOKUP($A47,Quantities[],Quantities!$Q$2),VLOOKUP($A47,Quantities[],Quantities!$S$2)), IF(AND(LEFT(D47,2)="Sc",OR(C47="a",C47="f")), VLOOKUP(A47,Quantities[],Quantities!$J$2), IF(AND(B47="D",C47="b", (VLOOKUP(INDEX(Quantities!$A$24:$A$25,MATCH($A47,Quantities!$C$24:$C$25)),Quantities[],Quantities!$O$2)+VLOOKUP(INDEX(Quantities!$A$24:$A$25,MATCH($A47,Quantities!$C$24:$C$25)),Quantities[],Quantities!$Q$2)+VLOOKUP(INDEX(Quantities!$A$24:$A$25,MATCH($A47,Quantities!$C$24:$C$25)),Quantities[],Quantities!$S$2))>0), (VLOOKUP(INDEX(Quantities!$A$24:$A$25,MATCH($A47,Quantities!$C$24:$C$25)),Quantities[],Quantities!$P$2)*VLOOKUP(INDEX(Quantities!$A$24:$A$25,MATCH($A47,Quantities!$C$24:$C$25)),Quantities[],Quantities!$O$2) +VLOOKUP(INDEX(Quantities!$A$24:$A$25,MATCH($A47,Quantities!$C$24:$C$25)),Quantities[],Quantities!$R$2)*VLOOKUP(INDEX(Quantities!$A$24:$A$25,MATCH($A47,Quantities!$C$24:$C$25)),Quantities[],Quantities!$Q$2) +VLOOKUP(INDEX(Quantities!$A$24:$A$25,MATCH($A47,Quantities!$C$24:$C$25)),Quantities[],Quantities!$T$2)*VLOOKUP(INDEX(Quantities!$A$24:$A$25,MATCH($A47,Quantities!$C$24:$C$25)),Quantities[],Quantities!$S$2))/ (VLOOKUP(INDEX(Quantities!$A$24:$A$25,MATCH($A47,Quantities!$C$24:$C$25)),Quantities[],Quantities!$O$2)+VLOOKUP(INDEX(Quantities!$A$24:$A$25,MATCH($A47,Quantities!$C$24:$C$25)),Quantities[],Quantities!$Q$2)+VLOOKUP(A47,Quantities[],Quantities!$S$2)), IF(AND(B47="D", (VLOOKUP(A47,Quantities[],Quantities!$O$2)+VLOOKUP(A47,Quantities[],Quantities!$Q$2)+VLOOKUP(A47,Quantities[],Quantities!$S$2))>0), (VLOOKUP(A47,Quantities[],Quantities!$P$2)*VLOOKUP(A47,Quantities[],Quantities!$O$2) +VLOOKUP(A47,Quantities[],Quantities!$R$2)*VLOOKUP(A47,Quantities[],Quantities!$Q$2) +VLOOKUP(A47,Quantities[],Quantities!$T$2)*VLOOKUP(A47,Quantities[],Quantities!$S$2))/ (VLOOKUP(A47,Quantities[],Quantities!$O$2)+VLOOKUP(A47,Quantities[],Quantities!$Q$2)+VLOOKUP(A47,Quantities[],Quantities!$S$2)), IF($B47="Q", (SUM(VLOOKUP($A47,Quantities[],Quantities!$P$2)*VLOOKUP($A47,Quantities[],Quantities!$O$2),VLOOKUP($A47,Quantities[],Quantities!$R$2)*VLOOKUP($A47,Quantities[],Quantities!$Q$2),VLOOKUP($A47,Quantities[],Quantities!$T$2)*VLOOKUP($A47,Quantities[],Quantities!$S$2)))/SUM(VLOOKUP($A47,Quantities[],Quantities!$O$2),VLOOKUP($A47,Quantities[],Quantities!$Q$2),VLOOKUP($A47,Quantities[],Quantities!$S$2)), VLOOKUP(A47,Quantities[],Quantities!$H$2) )))))) -> - | K47: =IF(LEFT(D47,1)="U","-",VLOOKUP(D47,Equipment[],Equipment!$B$2)) -> -
A48: =Quantities!$A$7 -> 1100 | B48: J | C48: e | D48: ='Unit Rates'!$A$12 -> U2a | E48: 1100-J-e-U2a | F48: =IF(D48="Comb1",CONCATENATE(VLOOKUP(B48,'Activity-Material_Codes'!$A$2:$B$28,Quantities!$B$2),"-",VLOOKUP(A48,Quantities[],Quantities!$D$2)), CONCATENATE( VLOOKUP(B48,'Activity-Material_Codes'!$A$2:$B$30,Quantities!$B$2), IF(AND(B48="B",C48="a"), " Scraper Grading", ""), IF(C48="b","","-"), IF(C48="b","",VLOOKUP(A48,Quantities[],Quantities!$D$2)), IF(LEFT(TEXT(A48,"0"),1)="5","","-"), IF(LEFT(TEXT(A48,"0"),1)="5","",VLOOKUP(C48,'Activity-Material_Codes'!$A$34:$B$40,Quantities!$B$2)) )) -> Revegetate-Entire Stockpile-Final Grade | G48: =IF(C48="f",VLOOKUP(A48,Quantities[],Quantities!$B$2), CONCATENATE( IF(OR(RIGHT(TEXT($A48,"0"),Quantities!$B$2)="00",LEFT(TEXT($A48,"0"),1)="5",OR($C48="b",$C48="f")),"",VLOOKUP($A48,Quantities[],Quantities!$B$2)), IF(LEFT(TEXT($A48,"0"),1)="5",""," "), IF(OR(C48="a",C48="c",C48="d",C48="e"),IF(OR(RIGHT(TEXT($A48,"0"),Quantities!$B$2)="00",LEFT(TEXT($A48,"0"),1)="5"),VLOOKUP($A48,Quantities[],Quantities!$B$2),""), IF(LEFT(TEXT($A48,"0"),1)="5",VLOOKUP($A48,Quantities[],Quantities!$B$2), VLOOKUP(INDEX(Quantities!$A$24:$A$25,MATCH($A48,Quantities!$C$24:$C$25)),Quantities!$A$24:$B$25,Quantities!$B$2))))) -> 6HW Waste | H48: =IF(LEFT(TEXT(A48,"0"),1)="5", VLOOKUP(VLOOKUP(A48,Quantities!$A$4:$D$25,Quantities!$C$2),Quantities!$A$4:$D$25,Quantities!$C$2), IF(OR(C48="a",C48="c",C48="d",C48="e"), "-", IF(RIGHT(TEXT(A48,"0"),2)="00",VLOOKUP(A48,Quantities[],Quantities!$B$2), IF(C48="f",VLOOKUP(A48,Quantities[],Quantities!$B$2), VLOOKUP(A48,Quantities[],Quantities!$C$2)) ))) -> - | I48: =IF(OR(AND(LEFT(D48,2)="Sc",B48="A",OR(C48="d",C48="f")),AND(C48="f",B48="D")), SUM(VLOOKUP($A48,Quantities[],Quantities!$O$2),VLOOKUP($A48,Quantities[],Quantities!$Q$2),VLOOKUP($A48,Quantities[],Quantities!$S$2),VLOOKUP($A48,Quantities[],Quantities!$I$2)), IF(AND(LEFT(D48,2)="Sc",OR(C48="a",C48="f")), VLOOKUP(A48,Quantities[],Quantities!$I$2), IF(AND(B48="D",C48="b"), VLOOKUP(INDEX(Quantities!$A$24:$A$25,MATCH($A48,Quantities!$C$24:$C$25)),Quantities!$A$24:$AN$25,Quantities!$O$2)+ VLOOKUP(INDEX(Quantities!$A$24:$A$25,MATCH($A48,Quantities!$C$24:$C$25)),Quantities!$A$24:$AN$25,Quantities!$Q$2)+ VLOOKUP(INDEX(Quantities!$A$24:$A$25,MATCH($A48,Quantities!$C$24:$C$25)),Quantities!$A$24:$AN$25,Quantities!$S$2), IF(OR(B48="D",B48="Q"), SUM(VLOOKUP($A48,Quantities[],Quantities!$O$2),VLOOKUP($A48,Quantities[],Quantities!$Q$2),VLOOKUP($A48,Quantities[],Quantities!$S$2)), VLOOKUP(A48,Quantities[],Quantities!$G$2) )))) -> 0 | J48: =IF(LEFT(D48,2)="Mg", VLOOKUP(A48,Quantities[],Quantities!$H$2), IF(OR(AND(LEFT(D48,2)="Sc",B48="A",OR(C48="d",C48="f"))), (SUM(VLOOKUP($A48,Quantities[],Quantities!$P$2)*VLOOKUP($A48,Quantities[],Quantities!$O$2),VLOOKUP($A48,Quantities[],Quantities!$R$2)*VLOOKUP($A48,Quantities[],Quantities!$Q$2),VLOOKUP($A48,Quantities[],Quantities!$T$2)*VLOOKUP($A48,Quantities[],Quantities!$S$2)))/SUM(VLOOKUP($A48,Quantities[],Quantities!$O$2),VLOOKUP($A48,Quantities[],Quantities!$Q$2),VLOOKUP($A48,Quantities[],Quantities!$S$2)), IF(AND(LEFT(D48,2)="Sc",OR(C48="a",C48="f")), VLOOKUP(A48,Quantities[],Quantities!$J$2), IF(AND(B48="D",C48="b", (VLOOKUP(INDEX(Quantities!$A$24:$A$25,MATCH($A48,Quantities!$C$24:$C$25)),Quantities[],Quantities!$O$2)+VLOOKUP(INDEX(Quantities!$A$24:$A$25,MATCH($A48,Quantities!$C$24:$C$25)),Quantities[],Quantities!$Q$2)+VLOOKUP(INDEX(Quantities!$A$24:$A$25,MATCH($A48,Quantities!$C$24:$C$25)),Quantities[],Quantities!$S$2))>0), (VLOOKUP(INDEX(Quantities!$A$24:$A$25,MATCH($A48,Quantities!$C$24:$C$25)),Quantities[],Quantities!$P$2)*VLOOKUP(INDEX(Quantities!$A$24:$A$25,MATCH($A48,Quantities!$C$24:$C$25)),Quantities[],Quantities!$O$2) +VLOOKUP(INDEX(Quantities!$A$24:$A$25,MATCH($A48,Quantities!$C$24:$C$25)),Quantities[],Quantities!$R$2)*VLOOKUP(INDEX(Quantities!$A$24:$A$25,MATCH($A48,Quantities!$C$24:$C$25)),Quantities[],Quantities!$Q$2) +VLOOKUP(INDEX(Quantities!$A$24:$A$25,MATCH($A48,Quantities!$C$24:$C$25)),Quantities[],Quantities!$T$2)*VLOOKUP(INDEX(Quantities!$A$24:$A$25,MATCH($A48,Quantities!$C$24:$C$25)),Quantities[],Quantities!$S$2))/ (VLOOKUP(INDEX(Quantities!$A$24:$A$25,MATCH($A48,Quantities!$C$24:$C$25)),Quantities[],Quantities!$O$2)+VLOOKUP(INDEX(Quantities!$A$24:$A$25,MATCH($A48,Quantities!$C$24:$C$25)),Quantities[],Quantities!$Q$2)+VLOOKUP(A48,Quantities[],Quantities!$S$2)), IF(AND(B48="D", (VLOOKUP(A48,Quantities[],Quantities!$O$2)+VLOOKUP(A48,Quantities[],Quantities!$Q$2)+VLOOKUP(A48,Quantities[],Quantities!$S$2))>0), (VLOOKUP(A48,Quantities[],Quantities!$P$2)*VLOOKUP(A48,Quantities[],Quantities!$O$2) +VLOOKUP(A48,Quantities[],Quantities!$R$2)*VLOOKUP(A48,Quantities[],Quantities!$Q$2) +VLOOKUP(A48,Quantities[],Quantities!$T$2)*VLOOKUP(A48,Quantities[],Quantities!$S$2))/ (VLOOKUP(A48,Quantities[],Quantities!$O$2)+VLOOKUP(A48,Quantities[],Quantities!$Q$2)+VLOOKUP(A48,Quantities[],Quantities!$S$2)), IF($B48="Q", (SUM(VLOOKUP($A48,Quantities[],Quantities!$P$2)*VLOOKUP($A48,Quantities[],Quantities!$O$2),VLOOKUP($A48,Quantities[],Quantities!$R$2)*VLOOKUP($A48,Quantities[],Quantities!$Q$2),VLOOKUP($A48,Quantities[],Quantities!$T$2)*VLOOKUP($A48,Quantities[],Quantities!$S$2)))/SUM(VLOOKUP($A48,Quantities[],Quantities!$O$2),VLOOKUP($A48,Quantities[],Quantities!$Q$2),VLOOKUP($A48,Quantities[],Quantities!$S$2)), VLOOKUP(A48,Quantities[],Quantities!$H$2) )))))) -> - | K48: =IF(LEFT(D48,1)="U","-",VLOOKUP(D48,Equipment[],Equipment!$B$2)) -> -
A49: =Quantities!$A$10 -> 1200 | B49: J | C49: e | D49: ='Unit Rates'!$A$12 -> U2a | E49: 1200-J-e-U2a | F49: =IF(D49="Comb1",CONCATENATE(VLOOKUP(B49,'Activity-Material_Codes'!$A$2:$B$28,Quantities!$B$2),"-",VLOOKUP(A49,Quantities[],Quantities!$D$2)), CONCATENATE( VLOOKUP(B49,'Activity-Material_Codes'!$A$2:$B$30,Quantities!$B$2), IF(AND(B49="B",C49="a"), " Scraper Grading", ""), IF(C49="b","","-"), IF(C49="b","",VLOOKUP(A49,Quantities[],Quantities!$D$2)), IF(LEFT(TEXT(A49,"0"),1)="5","","-"), IF(LEFT(TEXT(A49,"0"),1)="5","",VLOOKUP(C49,'Activity-Material_Codes'!$A$34:$B$40,Quantities!$B$2)) )) -> Revegetate-Haul Roads-Final Grade | G49: =IF(C49="f",VLOOKUP(A49,Quantities[],Quantities!$B$2), CONCATENATE( IF(OR(RIGHT(TEXT($A49,"0"),Quantities!$B$2)="00",LEFT(TEXT($A49,"0"),1)="5",OR($C49="b",$C49="f")),"",VLOOKUP($A49,Quantities[],Quantities!$B$2)), IF(LEFT(TEXT($A49,"0"),1)="5",""," "), IF(OR(C49="a",C49="c",C49="d",C49="e"),IF(OR(RIGHT(TEXT($A49,"0"),Quantities!$B$2)="00",LEFT(TEXT($A49,"0"),1)="5"),VLOOKUP($A49,Quantities[],Quantities!$B$2),""), IF(LEFT(TEXT($A49,"0"),1)="5",VLOOKUP($A49,Quantities[],Quantities!$B$2), VLOOKUP(INDEX(Quantities!$A$24:$A$25,MATCH($A49,Quantities!$C$24:$C$25)),Quantities!$A$24:$B$25,Quantities!$B$2))))) -> Haul Roads | H49: =IF(LEFT(TEXT(A49,"0"),1)="5", VLOOKUP(VLOOKUP(A49,Quantities!$A$4:$D$25,Quantities!$C$2),Quantities!$A$4:$D$25,Quantities!$C$2), IF(OR(C49="a",C49="c",C49="d",C49="e"), "-", IF(RIGHT(TEXT(A49,"0"),2)="00",VLOOKUP(A49,Quantities[],Quantities!$B$2), IF(C49="f",VLOOKUP(A49,Quantities[],Quantities!$B$2), VLOOKUP(A49,Quantities[],Quantities!$C$2)) ))) -> - | I49: =IF(OR(AND(LEFT(D49,2)="Sc",B49="A",OR(C49="d",C49="f")),AND(C49="f",B49="D")), SUM(VLOOKUP($A49,Quantities[],Quantities!$O$2),VLOOKUP($A49,Quantities[],Quantities!$Q$2),VLOOKUP($A49,Quantities[],Quantities!$S$2),VLOOKUP($A49,Quantities[],Quantities!$I$2)), IF(AND(LEFT(D49,2)="Sc",OR(C49="a",C49="f")), VLOOKUP(A49,Quantities[],Quantities!$I$2), IF(AND(B49="D",C49="b"), VLOOKUP(INDEX(Quantities!$A$24:$A$25,MATCH($A49,Quantities!$C$24:$C$25)),Quantities!$A$24:$AN$25,Quantities!$O$2)+ VLOOKUP(INDEX(Quantities!$A$24:$A$25,MATCH($A49,Quantities!$C$24:$C$25)),Quantities!$A$24:$AN$25,Quantities!$Q$2)+ VLOOKUP(INDEX(Quantities!$A$24:$A$25,MATCH($A49,Quantities!$C$24:$C$25)),Quantities!$A$24:$AN$25,Quantities!$S$2), IF(OR(B49="D",B49="Q"), SUM(VLOOKUP($A49,Quantities[],Quantities!$O$2),VLOOKUP($A49,Quantities[],Quantities!$Q$2),VLOOKUP($A49,Quantities[],Quantities!$S$2)), VLOOKUP(A49,Quantities[],Quantities!$G$2) )))) -> 200 | J49: =IF(LEFT(D49,2)="Mg", VLOOKUP(A49,Quantities[],Quantities!$H$2), IF(OR(AND(LEFT(D49,2)="Sc",B49="A",OR(C49="d",C49="f"))), (SUM(VLOOKUP($A49,Quantities[],Quantities!$P$2)*VLOOKUP($A49,Quantities[],Quantities!$O$2),VLOOKUP($A49,Quantities[],Quantities!$R$2)*VLOOKUP($A49,Quantities[],Quantities!$Q$2),VLOOKUP($A49,Quantities[],Quantities!$T$2)*VLOOKUP($A49,Quantities[],Quantities!$S$2)))/SUM(VLOOKUP($A49,Quantities[],Quantities!$O$2),VLOOKUP($A49,Quantities[],Quantities!$Q$2),VLOOKUP($A49,Quantities[],Quantities!$S$2)), IF(AND(LEFT(D49,2)="Sc",OR(C49="a",C49="f")), VLOOKUP(A49,Quantities[],Quantities!$J$2), IF(AND(B49="D",C49="b", (VLOOKUP(INDEX(Quantities!$A$24:$A$25,MATCH($A49,Quantities!$C$24:$C$25)),Quantities[],Quantities!$O$2)+VLOOKUP(INDEX(Quantities!$A$24:$A$25,MATCH($A49,Quantities!$C$24:$C$25)),Quantities[],Quantities!$Q$2)+VLOOKUP(INDEX(Quantities!$A$24:$A$25,MATCH($A49,Quantities!$C$24:$C$25)),Quantities[],Quantities!$S$2))>0), (VLOOKUP(INDEX(Quantities!$A$24:$A$25,MATCH($A49,Quantities!$C$24:$C$25)),Quantities[],Quantities!$P$2)*VLOOKUP(INDEX(Quantities!$A$24:$A$25,MATCH($A49,Quantities!$C$24:$C$25)),Quantities[],Quantities!$O$2) +VLOOKUP(INDEX(Quantities!$A$24:$A$25,MATCH($A49,Quantities!$C$24:$C$25)),Quantities[],Quantities!$R$2)*VLOOKUP(INDEX(Quantities!$A$24:$A$25,MATCH($A49,Quantities!$C$24:$C$25)),Quantities[],Quantities!$Q$2) +VLOOKUP(INDEX(Quantities!$A$24:$A$25,MATCH($A49,Quantities!$C$24:$C$25)),Quantities[],Quantities!$T$2)*VLOOKUP(INDEX(Quantities!$A$24:$A$25,MATCH($A49,Quantities!$C$24:$C$25)),Quantities[],Quantities!$S$2))/ (VLOOKUP(INDEX(Quantities!$A$24:$A$25,MATCH($A49,Quantities!$C$24:$C$25)),Quantities[],Quantities!$O$2)+VLOOKUP(INDEX(Quantities!$A$24:$A$25,MATCH($A49,Quantities!$C$24:$C$25)),Quantities[],Quantities!$Q$2)+VLOOKUP(A49,Quantities[],Quantities!$S$2)), IF(AND(B49="D", (VLOOKUP(A49,Quantities[],Quantities!$O$2)+VLOOKUP(A49,Quantities[],Quantities!$Q$2)+VLOOKUP(A49,Quantities[],Quantities!$S$2))>0), (VLOOKUP(A49,Quantities[],Quantities!$P$2)*VLOOKUP(A49,Quantities[],Quantities!$O$2) +VLOOKUP(A49,Quantities[],Quantities!$R$2)*VLOOKUP(A49,Quantities[],Quantities!$Q$2) +VLOOKUP(A49,Quantities[],Quantities!$T$2)*VLOOKUP(A49,Quantities[],Quantities!$S$2))/ (VLOOKUP(A49,Quantities[],Quantities!$O$2)+VLOOKUP(A49,Quantities[],Quantities!$Q$2)+VLOOKUP(A49,Quantities[],Quantities!$S$2)), IF($B49="Q", (SUM(VLOOKUP($A49,Quantities[],Quantities!$P$2)*VLOOKUP($A49,Quantities[],Quantities!$O$2),VLOOKUP($A49,Quantities[],Quantities!$R$2)*VLOOKUP($A49,Quantities[],Quantities!$Q$2),VLOOKUP($A49,Quantities[],Quantities!$T$2)*VLOOKUP($A49,Quantities[],Quantities!$S$2)))/SUM(VLOOKUP($A49,Quantities[],Quantities!$O$2),VLOOKUP($A49,Quantities[],Quantities!$Q$2),VLOOKUP($A49,Quantities[],Quantities!$S$2)), VLOOKUP(A49,Quantities[],Quantities!$H$2) )))))) -> 0.02 | K49: =IF(LEFT(D49,1)="U","-",VLOOKUP(D49,Equipment[],Equipment!$B$2)) -> -
A50: =Quantities!$A$15 -> 1300 | B50: J | C50: e | D50: ='Unit Rates'!$A$12 -> U2a | E50: 1300-J-e-U2a | F50: =IF(D50="Comb1",CONCATENATE(VLOOKUP(B50,'Activity-Material_Codes'!$A$2:$B$28,Quantities!$B$2),"-",VLOOKUP(A50,Quantities[],Quantities!$D$2)), CONCATENATE( VLOOKUP(B50,'Activity-Material_Codes'!$A$2:$B$30,Quantities!$B$2), IF(AND(B50="B",C50="a"), " Scraper Grading", ""), IF(C50="b","","-"), IF(C50="b","",VLOOKUP(A50,Quantities[],Quantities!$D$2)), IF(LEFT(TEXT(A50,"0"),1)="5","","-"), IF(LEFT(TEXT(A50,"0"),1)="5","",VLOOKUP(C50,'Activity-Material_Codes'!$A$34:$B$40,Quantities!$B$2)) )) -> Revegetate-Open Pit-Final Grade | G50: =IF(C50="f",VLOOKUP(A50,Quantities[],Quantities!$B$2), CONCATENATE( IF(OR(RIGHT(TEXT($A50,"0"),Quantities!$B$2)="00",LEFT(TEXT($A50,"0"),1)="5",OR($C50="b",$C50="f")),"",VLOOKUP($A50,Quantities[],Quantities!$B$2)), IF(LEFT(TEXT($A50,"0"),1)="5",""," "), IF(OR(C50="a",C50="c",C50="d",C50="e"),IF(OR(RIGHT(TEXT($A50,"0"),Quantities!$B$2)="00",LEFT(TEXT($A50,"0"),1)="5"),VLOOKUP($A50,Quantities[],Quantities!$B$2),""), IF(LEFT(TEXT($A50,"0"),1)="5",VLOOKUP($A50,Quantities[],Quantities!$B$2), VLOOKUP(INDEX(Quantities!$A$24:$A$25,MATCH($A50,Quantities!$C$24:$C$25)),Quantities!$A$24:$B$25,Quantities!$B$2))))) -> Emma Backfill Areas | H50: =IF(LEFT(TEXT(A50,"0"),1)="5", VLOOKUP(VLOOKUP(A50,Quantities!$A$4:$D$25,Quantities!$C$2),Quantities!$A$4:$D$25,Quantities!$C$2), IF(OR(C50="a",C50="c",C50="d",C50="e"), "-", IF(RIGHT(TEXT(A50,"0"),2)="00",VLOOKUP(A50,Quantities[],Quantities!$B$2), IF(C50="f",VLOOKUP(A50,Quantities[],Quantities!$B$2), VLOOKUP(A50,Quantities[],Quantities!$C$2)) ))) -> - | I50: =IF(OR(AND(LEFT(D50,2)="Sc",B50="A",OR(C50="d",C50="f")),AND(C50="f",B50="D")), SUM(VLOOKUP($A50,Quantities[],Quantities!$O$2),VLOOKUP($A50,Quantities[],Quantities!$Q$2),VLOOKUP($A50,Quantities[],Quantities!$S$2),VLOOKUP($A50,Quantities[],Quantities!$I$2)), IF(AND(LEFT(D50,2)="Sc",OR(C50="a",C50="f")), VLOOKUP(A50,Quantities[],Quantities!$I$2), IF(AND(B50="D",C50="b"), VLOOKUP(INDEX(Quantities!$A$24:$A$25,MATCH($A50,Quantities!$C$24:$C$25)),Quantities!$A$24:$AN$25,Quantities!$O$2)+ VLOOKUP(INDEX(Quantities!$A$24:$A$25,MATCH($A50,Quantities!$C$24:$C$25)),Quantities!$A$24:$AN$25,Quantities!$Q$2)+ VLOOKUP(INDEX(Quantities!$A$24:$A$25,MATCH($A50,Quantities!$C$24:$C$25)),Quantities!$A$24:$AN$25,Quantities!$S$2), IF(OR(B50="D",B50="Q"), SUM(VLOOKUP($A50,Quantities[],Quantities!$O$2),VLOOKUP($A50,Quantities[],Quantities!$Q$2),VLOOKUP($A50,Quantities[],Quantities!$S$2)), VLOOKUP(A50,Quantities[],Quantities!$G$2) )))) -> 200 | J50: =IF(LEFT(D50,2)="Mg", VLOOKUP(A50,Quantities[],Quantities!$H$2), IF(OR(AND(LEFT(D50,2)="Sc",B50="A",OR(C50="d",C50="f"))), (SUM(VLOOKUP($A50,Quantities[],Quantities!$P$2)*VLOOKUP($A50,Quantities[],Quantities!$O$2),VLOOKUP($A50,Quantities[],Quantities!$R$2)*VLOOKUP($A50,Quantities[],Quantities!$Q$2),VLOOKUP($A50,Quantities[],Quantities!$T$2)*VLOOKUP($A50,Quantities[],Quantities!$S$2)))/SUM(VLOOKUP($A50,Quantities[],Quantities!$O$2),VLOOKUP($A50,Quantities[],Quantities!$Q$2),VLOOKUP($A50,Quantities[],Quantities!$S$2)), IF(AND(LEFT(D50,2)="Sc",OR(C50="a",C50="f")), VLOOKUP(A50,Quantities[],Quantities!$J$2), IF(AND(B50="D",C50="b", (VLOOKUP(INDEX(Quantities!$A$24:$A$25,MATCH($A50,Quantities!$C$24:$C$25)),Quantities[],Quantities!$O$2)+VLOOKUP(INDEX(Quantities!$A$24:$A$25,MATCH($A50,Quantities!$C$24:$C$25)),Quantities[],Quantities!$Q$2)+VLOOKUP(INDEX(Quantities!$A$24:$A$25,MATCH($A50,Quantities!$C$24:$C$25)),Quantities[],Quantities!$S$2))>0), (VLOOKUP(INDEX(Quantities!$A$24:$A$25,MATCH($A50,Quantities!$C$24:$C$25)),Quantities[],Quantities!$P$2)*VLOOKUP(INDEX(Quantities!$A$24:$A$25,MATCH($A50,Quantities!$C$24:$C$25)),Quantities[],Quantities!$O$2) +VLOOKUP(INDEX(Quantities!$A$24:$A$25,MATCH($A50,Quantities!$C$24:$C$25)),Quantities[],Quantities!$R$2)*VLOOKUP(INDEX(Quantities!$A$24:$A$25,MATCH($A50,Quantities!$C$24:$C$25)),Quantities[],Quantities!$Q$2) +VLOOKUP(INDEX(Quantities!$A$24:$A$25,MATCH($A50,Quantities!$C$24:$C$25)),Quantities[],Quantities!$T$2)*VLOOKUP(INDEX(Quantities!$A$24:$A$25,MATCH($A50,Quantities!$C$24:$C$25)),Quantities[],Quantities!$S$2))/ (VLOOKUP(INDEX(Quantities!$A$24:$A$25,MATCH($A50,Quantities!$C$24:$C$25)),Quantities[],Quantities!$O$2)+VLOOKUP(INDEX(Quantities!$A$24:$A$25,MATCH($A50,Quantities!$C$24:$C$25)),Quantities[],Quantities!$Q$2)+VLOOKUP(A50,Quantities[],Quantities!$S$2)), IF(AND(B50="D", (VLOOKUP(A50,Quantities[],Quantities!$O$2)+VLOOKUP(A50,Quantities[],Quantities!$Q$2)+VLOOKUP(A50,Quantities[],Quantities!$S$2))>0), (VLOOKUP(A50,Quantities[],Quantities!$P$2)*VLOOKUP(A50,Quantities[],Quantities!$O$2) +VLOOKUP(A50,Quantities[],Quantities!$R$2)*VLOOKUP(A50,Quantities[],Quantities!$Q$2) +VLOOKUP(A50,Quantities[],Quantities!$T$2)*VLOOKUP(A50,Quantities[],Quantities!$S$2))/ (VLOOKUP(A50,Quantities[],Quantities!$O$2)+VLOOKUP(A50,Quantities[],Quantities!$Q$2)+VLOOKUP(A50,Quantities[],Quantities!$S$2)), IF($B50="Q", (SUM(VLOOKUP($A50,Quantities[],Quantities!$P$2)*VLOOKUP($A50,Quantities[],Quantities!$O$2),VLOOKUP($A50,Quantities[],Quantities!$R$2)*VLOOKUP($A50,Quantities[],Quantities!$Q$2),VLOOKUP($A50,Quantities[],Quantities!$T$2)*VLOOKUP($A50,Quantities[],Quantities!$S$2)))/SUM(VLOOKUP($A50,Quantities[],Quantities!$O$2),VLOOKUP($A50,Quantities[],Quantities!$Q$2),VLOOKUP($A50,Quantities[],Quantities!$S$2)), VLOOKUP(A50,Quantities[],Quantities!$H$2) )))))) -> 0 | K50: =IF(LEFT(D50,1)="U","-",VLOOKUP(D50,Equipment[],Equipment!$B$2)) -> -
A51: =Quantities!$A$22 -> 1400 | B51: J | C51: e | D51: ='Unit Rates'!$A$12 -> U2a | E51: 1400-J-e-U2a | F51: =IF(D51="Comb1",CONCATENATE(VLOOKUP(B51,'Activity-Material_Codes'!$A$2:$B$28,Quantities!$B$2),"-",VLOOKUP(A51,Quantities[],Quantities!$D$2)), CONCATENATE( VLOOKUP(B51,'Activity-Material_Codes'!$A$2:$B$30,Quantities!$B$2), IF(AND(B51="B",C51="a"), " Scraper Grading", ""), IF(C51="b","","-"), IF(C51="b","",VLOOKUP(A51,Quantities[],Quantities!$D$2)), IF(LEFT(TEXT(A51,"0"),1)="5","","-"), IF(LEFT(TEXT(A51,"0"),1)="5","",VLOOKUP(C51,'Activity-Material_Codes'!$A$34:$B$40,Quantities!$B$2)) )) -> Revegetate-Entire Footprint-Final Grade | G51: =IF(C51="f",VLOOKUP(A51,Quantities[],Quantities!$B$2), CONCATENATE( IF(OR(RIGHT(TEXT($A51,"0"),Quantities!$B$2)="00",LEFT(TEXT($A51,"0"),1)="5",OR($C51="b",$C51="f")),"",VLOOKUP($A51,Quantities[],Quantities!$B$2)), IF(LEFT(TEXT($A51,"0"),1)="5",""," "), IF(OR(C51="a",C51="c",C51="d",C51="e"),IF(OR(RIGHT(TEXT($A51,"0"),Quantities!$B$2)="00",LEFT(TEXT($A51,"0"),1)="5"),VLOOKUP($A51,Quantities[],Quantities!$B$2),""), IF(LEFT(TEXT($A51,"0"),1)="5",VLOOKUP($A51,Quantities[],Quantities!$B$2), VLOOKUP(INDEX(Quantities!$A$24:$A$25,MATCH($A51,Quantities!$C$24:$C$25)),Quantities!$A$24:$B$25,Quantities!$B$2))))) -> Soil Stockpile | H51: =IF(LEFT(TEXT(A51,"0"),1)="5", VLOOKUP(VLOOKUP(A51,Quantities!$A$4:$D$25,Quantities!$C$2),Quantities!$A$4:$D$25,Quantities!$C$2), IF(OR(C51="a",C51="c",C51="d",C51="e"), "-", IF(RIGHT(TEXT(A51,"0"),2)="00",VLOOKUP(A51,Quantities[],Quantities!$B$2), IF(C51="f",VLOOKUP(A51,Quantities[],Quantities!$B$2), VLOOKUP(A51,Quantities[],Quantities!$C$2)) ))) -> - | I51: =IF(OR(AND(LEFT(D51,2)="Sc",B51="A",OR(C51="d",C51="f")),AND(C51="f",B51="D")), SUM(VLOOKUP($A51,Quantities[],Quantities!$O$2),VLOOKUP($A51,Quantities[],Quantities!$Q$2),VLOOKUP($A51,Quantities[],Quantities!$S$2),VLOOKUP($A51,Quantities[],Quantities!$I$2)), IF(AND(LEFT(D51,2)="Sc",OR(C51="a",C51="f")), VLOOKUP(A51,Quantities[],Quantities!$I$2), IF(AND(B51="D",C51="b"), VLOOKUP(INDEX(Quantities!$A$24:$A$25,MATCH($A51,Quantities!$C$24:$C$25)),Quantities!$A$24:$AN$25,Quantities!$O$2)+ VLOOKUP(INDEX(Quantities!$A$24:$A$25,MATCH($A51,Quantities!$C$24:$C$25)),Quantities!$A$24:$AN$25,Quantities!$Q$2)+ VLOOKUP(INDEX(Quantities!$A$24:$A$25,MATCH($A51,Quantities!$C$24:$C$25)),Quantities!$A$24:$AN$25,Quantities!$S$2), IF(OR(B51="D",B51="Q"), SUM(VLOOKUP($A51,Quantities[],Quantities!$O$2),VLOOKUP($A51,Quantities[],Quantities!$Q$2),VLOOKUP($A51,Quantities[],Quantities!$S$2)), VLOOKUP(A51,Quantities[],Quantities!$G$2) )))) -> 200 | J51: =IF(LEFT(D51,2)="Mg", VLOOKUP(A51,Quantities[],Quantities!$H$2), IF(OR(AND(LEFT(D51,2)="Sc",B51="A",OR(C51="d",C51="f"))), (SUM(VLOOKUP($A51,Quantities[],Quantities!$P$2)*VLOOKUP($A51,Quantities[],Quantities!$O$2),VLOOKUP($A51,Quantities[],Quantities!$R$2)*VLOOKUP($A51,Quantities[],Quantities!$Q$2),VLOOKUP($A51,Quantities[],Quantities!$T$2)*VLOOKUP($A51,Quantities[],Quantities!$S$2)))/SUM(VLOOKUP($A51,Quantities[],Quantities!$O$2),VLOOKUP($A51,Quantities[],Quantities!$Q$2),VLOOKUP($A51,Quantities[],Quantities!$S$2)), IF(AND(LEFT(D51,2)="Sc",OR(C51="a",C51="f")), VLOOKUP(A51,Quantities[],Quantities!$J$2), IF(AND(B51="D",C51="b", (VLOOKUP(INDEX(Quantities!$A$24:$A$25,MATCH($A51,Quantities!$C$24:$C$25)),Quantities[],Quantities!$O$2)+VLOOKUP(INDEX(Quantities!$A$24:$A$25,MATCH($A51,Quantities!$C$24:$C$25)),Quantities[],Quantities!$Q$2)+VLOOKUP(INDEX(Quantities!$A$24:$A$25,MATCH($A51,Quantities!$C$24:$C$25)),Quantities[],Quantities!$S$2))>0), (VLOOKUP(INDEX(Quantities!$A$24:$A$25,MATCH($A51,Quantities!$C$24:$C$25)),Quantities[],Quantities!$P$2)*VLOOKUP(INDEX(Quantities!$A$24:$A$25,MATCH($A51,Quantities!$C$24:$C$25)),Quantities[],Quantities!$O$2) +VLOOKUP(INDEX(Quantities!$A$24:$A$25,MATCH($A51,Quantities!$C$24:$C$25)),Quantities[],Quantities!$R$2)*VLOOKUP(INDEX(Quantities!$A$24:$A$25,MATCH($A51,Quantities!$C$24:$C$25)),Quantities[],Quantities!$Q$2) +VLOOKUP(INDEX(Quantities!$A$24:$A$25,MATCH($A51,Quantities!$C$24:$C$25)),Quantities[],Quantities!$T$2)*VLOOKUP(INDEX(Quantities!$A$24:$A$25,MATCH($A51,Quantities!$C$24:$C$25)),Quantities[],Quantities!$S$2))/ (VLOOKUP(INDEX(Quantities!$A$24:$A$25,MATCH($A51,Quantities!$C$24:$C$25)),Quantities[],Quantities!$O$2)+VLOOKUP(INDEX(Quantities!$A$24:$A$25,MATCH($A51,Quantities!$C$24:$C$25)),Quantities[],Quantities!$Q$2)+VLOOKUP(A51,Quantities[],Quantities!$S$2)), IF(AND(B51="D", (VLOOKUP(A51,Quantities[],Quantities!$O$2)+VLOOKUP(A51,Quantities[],Quantities!$Q$2)+VLOOKUP(A51,Quantities[],Quantities!$S$2))>0), (VLOOKUP(A51,Quantities[],Quantities!$P$2)*VLOOKUP(A51,Quantities[],Quantities!$O$2) +VLOOKUP(A51,Quantities[],Quantities!$R$2)*VLOOKUP(A51,Quantities[],Quantities!$Q$2) +VLOOKUP(A51,Quantities[],Quantities!$T$2)*VLOOKUP(A51,Quantities[],Quantities!$S$2))/ (VLOOKUP(A51,Quantities[],Quantities!$O$2)+VLOOKUP(A51,Quantities[],Quantities!$Q$2)+VLOOKUP(A51,Quantities[],Quantities!$S$2)), IF($B51="Q", (SUM(VLOOKUP($A51,Quantities[],Quantities!$P$2)*VLOOKUP($A51,Quantities[],Quantities!$O$2),VLOOKUP($A51,Quantities[],Quantities!$R$2)*VLOOKUP($A51,Quantities[],Quantities!$Q$2),VLOOKUP($A51,Quantities[],Quantities!$T$2)*VLOOKUP($A51,Quantities[],Quantities!$S$2)))/SUM(VLOOKUP($A51,Quantities[],Quantities!$O$2),VLOOKUP($A51,Quantities[],Quantities!$Q$2),VLOOKUP($A51,Quantities[],Quantities!$S$2)), VLOOKUP(A51,Quantities[],Quantities!$H$2) )))))) -> 0.01 | K51: =IF(LEFT(D51,1)="U","-",VLOOKUP(D51,Equipment[],Equipment!$B$2)) -> -
A52: =Quantities!$A$23 -> 1500 | B52: J | C52: e | D52: ='Unit Rates'!$A$12 -> U2a | E52: 1500-J-e-U2a | F52: =IF(D52="Comb1",CONCATENATE(VLOOKUP(B52,'Activity-Material_Codes'!$A$2:$B$28,Quantities!$B$2),"-",VLOOKUP(A52,Quantities[],Quantities!$D$2)), CONCATENATE( VLOOKUP(B52,'Activity-Material_Codes'!$A$2:$B$30,Quantities!$B$2), IF(AND(B52="B",C52="a"), " Scraper Grading", ""), IF(C52="b","","-"), IF(C52="b","",VLOOKUP(A52,Quantities[],Quantities!$D$2)), IF(LEFT(TEXT(A52,"0"),1)="5","","-"), IF(LEFT(TEXT(A52,"0"),1)="5","",VLOOKUP(C52,'Activity-Material_Codes'!$A$34:$B$40,Quantities!$B$2)) )) -> Revegetate-Unplanned Disturbance Area-Final Grade | G52: =IF(C52="f",VLOOKUP(A52,Quantities[],Quantities!$B$2), CONCATENATE( IF(OR(RIGHT(TEXT($A52,"0"),Quantities!$B$2)="00",LEFT(TEXT($A52,"0"),1)="5",OR($C52="b",$C52="f")),"",VLOOKUP($A52,Quantities[],Quantities!$B$2)), IF(LEFT(TEXT($A52,"0"),1)="5",""," "), IF(OR(C52="a",C52="c",C52="d",C52="e"),IF(OR(RIGHT(TEXT($A52,"0"),Quantities!$B$2)="00",LEFT(TEXT($A52,"0"),1)="5"),VLOOKUP($A52,Quantities[],Quantities!$B$2),""), IF(LEFT(TEXT($A52,"0"),1)="5",VLOOKUP($A52,Quantities[],Quantities!$B$2), VLOOKUP(INDEX(Quantities!$A$24:$A$25,MATCH($A52,Quantities!$C$24:$C$25)),Quantities!$A$24:$B$25,Quantities!$B$2))))) -> Allowance for Other Disturbed Areas | H52: =IF(LEFT(TEXT(A52,"0"),1)="5", VLOOKUP(VLOOKUP(A52,Quantities!$A$4:$D$25,Quantities!$C$2),Quantities!$A$4:$D$25,Quantities!$C$2), IF(OR(C52="a",C52="c",C52="d",C52="e"), "-", IF(RIGHT(TEXT(A52,"0"),2)="00",VLOOKUP(A52,Quantities[],Quantities!$B$2), IF(C52="f",VLOOKUP(A52,Quantities[],Quantities!$B$2), VLOOKUP(A52,Quantities[],Quantities!$C$2)) ))) -> - | I52: =IF(OR(AND(LEFT(D52,2)="Sc",B52="A",OR(C52="d",C52="f")),AND(C52="f",B52="D")), SUM(VLOOKUP($A52,Quantities[],Quantities!$O$2),VLOOKUP($A52,Quantities[],Quantities!$Q$2),VLOOKUP($A52,Quantities[],Quantities!$S$2),VLOOKUP($A52,Quantities[],Quantities!$I$2)), IF(AND(LEFT(D52,2)="Sc",OR(C52="a",C52="f")), VLOOKUP(A52,Quantities[],Quantities!$I$2), IF(AND(B52="D",C52="b"), VLOOKUP(INDEX(Quantities!$A$24:$A$25,MATCH($A52,Quantities!$C$24:$C$25)),Quantities!$A$24:$AN$25,Quantities!$O$2)+ VLOOKUP(INDEX(Quantities!$A$24:$A$25,MATCH($A52,Quantities!$C$24:$C$25)),Quantities!$A$24:$AN$25,Quantities!$Q$2)+ VLOOKUP(INDEX(Quantities!$A$24:$A$25,MATCH($A52,Quantities!$C$24:$C$25)),Quantities!$A$24:$AN$25,Quantities!$S$2), IF(OR(B52="D",B52="Q"), SUM(VLOOKUP($A52,Quantities[],Quantities!$O$2),VLOOKUP($A52,Quantities[],Quantities!$Q$2),VLOOKUP($A52,Quantities[],Quantities!$S$2)), VLOOKUP(A52,Quantities[],Quantities!$G$2) )))) -> 200 | J52: =IF(LEFT(D52,2)="Mg", VLOOKUP(A52,Quantities[],Quantities!$H$2), IF(OR(AND(LEFT(D52,2)="Sc",B52="A",OR(C52="d",C52="f"))), (SUM(VLOOKUP($A52,Quantities[],Quantities!$P$2)*VLOOKUP($A52,Quantities[],Quantities!$O$2),VLOOKUP($A52,Quantities[],Quantities!$R$2)*VLOOKUP($A52,Quantities[],Quantities!$Q$2),VLOOKUP($A52,Quantities[],Quantities!$T$2)*VLOOKUP($A52,Quantities[],Quantities!$S$2)))/SUM(VLOOKUP($A52,Quantities[],Quantities!$O$2),VLOOKUP($A52,Quantities[],Quantities!$Q$2),VLOOKUP($A52,Quantities[],Quantities!$S$2)), IF(AND(LEFT(D52,2)="Sc",OR(C52="a",C52="f")), VLOOKUP(A52,Quantities[],Quantities!$J$2), IF(AND(B52="D",C52="b", (VLOOKUP(INDEX(Quantities!$A$24:$A$25,MATCH($A52,Quantities!$C$24:$C$25)),Quantities[],Quantities!$O$2)+VLOOKUP(INDEX(Quantities!$A$24:$A$25,MATCH($A52,Quantities!$C$24:$C$25)),Quantities[],Quantities!$Q$2)+VLOOKUP(INDEX(Quantities!$A$24:$A$25,MATCH($A52,Quantities!$C$24:$C$25)),Quantities[],Quantities!$S$2))>0), (VLOOKUP(INDEX(Quantities!$A$24:$A$25,MATCH($A52,Quantities!$C$24:$C$25)),Quantities[],Quantities!$P$2)*VLOOKUP(INDEX(Quantities!$A$24:$A$25,MATCH($A52,Quantities!$C$24:$C$25)),Quantities[],Quantities!$O$2) +VLOOKUP(INDEX(Quantities!$A$24:$A$25,MATCH($A52,Quantities!$C$24:$C$25)),Quantities[],Quantities!$R$2)*VLOOKUP(INDEX(Quantities!$A$24:$A$25,MATCH($A52,Quantities!$C$24:$C$25)),Quantities[],Quantities!$Q$2) +VLOOKUP(INDEX(Quantities!$A$24:$A$25,MATCH($A52,Quantities!$C$24:$C$25)),Quantities[],Quantities!$T$2)*VLOOKUP(INDEX(Quantities!$A$24:$A$25,MATCH($A52,Quantities!$C$24:$C$25)),Quantities[],Quantities!$S$2))/ (VLOOKUP(INDEX(Quantities!$A$24:$A$25,MATCH($A52,Quantities!$C$24:$C$25)),Quantities[],Quantities!$O$2)+VLOOKUP(INDEX(Quantities!$A$24:$A$25,MATCH($A52,Quantities!$C$24:$C$25)),Quantities[],Quantities!$Q$2)+VLOOKUP(A52,Quantities[],Quantities!$S$2)), IF(AND(B52="D", (VLOOKUP(A52,Quantities[],Quantities!$O$2)+VLOOKUP(A52,Quantities[],Quantities!$Q$2)+VLOOKUP(A52,Quantities[],Quantities!$S$2))>0), (VLOOKUP(A52,Quantities[],Quantities!$P$2)*VLOOKUP(A52,Quantities[],Quantities!$O$2) +VLOOKUP(A52,Quantities[],Quantities!$R$2)*VLOOKUP(A52,Quantities[],Quantities!$Q$2) +VLOOKUP(A52,Quantities[],Quantities!$T$2)*VLOOKUP(A52,Quantities[],Quantities!$S$2))/ (VLOOKUP(A52,Quantities[],Quantities!$O$2)+VLOOKUP(A52,Quantities[],Quantities!$Q$2)+VLOOKUP(A52,Quantities[],Quantities!$S$2)), IF($B52="Q", (SUM(VLOOKUP($A52,Quantities[],Quantities!$P$2)*VLOOKUP($A52,Quantities[],Quantities!$O$2),VLOOKUP($A52,Quantities[],Quantities!$R$2)*VLOOKUP($A52,Quantities[],Quantities!$Q$2),VLOOKUP($A52,Quantities[],Quantities!$T$2)*VLOOKUP($A52,Quantities[],Quantities!$S$2)))/SUM(VLOOKUP($A52,Quantities[],Quantities!$O$2),VLOOKUP($A52,Quantities[],Quantities!$Q$2),VLOOKUP($A52,Quantities[],Quantities!$S$2)), VLOOKUP(A52,Quantities[],Quantities!$H$2) )))))) -> 0.01 | K52: =IF(LEFT(D52,1)="U","-",VLOOKUP(D52,Equipment[],Equipment!$B$2)) -> -
A53: =Quantities!$A$4 -> 1000 | B53: P | C53: b | D53: Comb1 | E53: 1000-P-b-Comb1 | F53: =IF(D53="Comb1",CONCATENATE(VLOOKUP(B53,'Activity-Material_Codes'!$A$2:$B$28,Quantities!$B$2),"-",VLOOKUP(A53,Quantities[],Quantities!$D$2)), CONCATENATE( VLOOKUP(B53,'Activity-Material_Codes'!$A$2:$B$30,Quantities!$B$2), IF(AND(B53="B",C53="a"), " Scraper Grading", ""), IF(C53="b","","-"), IF(C53="b","",VLOOKUP(A53,Quantities[],Quantities!$D$2)), IF(LEFT(TEXT(A53,"0"),1)="5","","-"), IF(LEFT(TEXT(A53,"0"),1)="5","",VLOOKUP(C53,'Activity-Material_Codes'!$A$34:$B$40,Quantities!$B$2)) )) -> Road Maintenance-Entire Stockpile | G53: =IF(C53="f",VLOOKUP(A53,Quantities[],Quantities!$B$2), CONCATENATE( IF(OR(RIGHT(TEXT($A53,"0"),Quantities!$B$2)="00",LEFT(TEXT($A53,"0"),1)="5",OR($C53="b",$C53="f")),"",VLOOKUP($A53,Quantities[],Quantities!$B$2)), IF(LEFT(TEXT($A53,"0"),1)="5",""," "), IF(OR(C53="a",C53="c",C53="d",C53="e"),IF(OR(RIGHT(TEXT($A53,"0"),Quantities!$B$2)="00",LEFT(TEXT($A53,"0"),1)="5"),VLOOKUP($A53,Quantities[],Quantities!$B$2),""), IF(LEFT(TEXT($A53,"0"),1)="5",VLOOKUP($A53,Quantities[],Quantities!$B$2), VLOOKUP(INDEX(Quantities!$A$24:$A$25,MATCH($A53,Quantities!$C$24:$C$25)),Quantities!$A$24:$B$25,Quantities!$B$2))))) -> Soil Stockpile | H53: =IF(LEFT(TEXT(A53,"0"),1)="5", VLOOKUP(VLOOKUP(A53,Quantities!$A$4:$D$25,Quantities!$C$2),Quantities!$A$4:$D$25,Quantities!$C$2), IF(OR(C53="a",C53="c",C53="d",C53="e"), "-", IF(RIGHT(TEXT(A53,"0"),2)="00",VLOOKUP(A53,Quantities[],Quantities!$B$2), IF(C53="f",VLOOKUP(A53,Quantities[],Quantities!$B$2), VLOOKUP(A53,Quantities[],Quantities!$C$2)) ))) -> EMW Waste | I53: =IF(OR(AND(LEFT(D53,2)="Sc",B53="A",OR(C53="d",C53="f")),AND(C53="f",B53="D")), SUM(VLOOKUP($A53,Quantities[],Quantities!$O$2),VLOOKUP($A53,Quantities[],Quantities!$Q$2),VLOOKUP($A53,Quantities[],Quantities!$S$2),VLOOKUP($A53,Quantities[],Quantities!$I$2)), IF(AND(LEFT(D53,2)="Sc",OR(C53="a",C53="f")), VLOOKUP(A53,Quantities[],Quantities!$I$2), IF(AND(B53="D",C53="b"), VLOOKUP(INDEX(Quantities!$A$24:$A$25,MATCH($A53,Quantities!$C$24:$C$25)),Quantities!$A$24:$AN$25,Quantities!$O$2)+ VLOOKUP(INDEX(Quantities!$A$24:$A$25,MATCH($A53,Quantities!$C$24:$C$25)),Quantities!$A$24:$AN$25,Quantities!$Q$2)+ VLOOKUP(INDEX(Quantities!$A$24:$A$25,MATCH($A53,Quantities!$C$24:$C$25)),Quantities!$A$24:$AN$25,Quantities!$S$2), IF(OR(B53="D",B53="Q"), SUM(VLOOKUP($A53,Quantities[],Quantities!$O$2),VLOOKUP($A53,Quantities[],Quantities!$Q$2),VLOOKUP($A53,Quantities[],Quantities!$S$2)), VLOOKUP(A53,Quantities[],Quantities!$G$2) )))) -> 0 | J53: =IF(LEFT(D53,2)="Mg", VLOOKUP(A53,Quantities[],Quantities!$H$2), IF(OR(AND(LEFT(D53,2)="Sc",B53="A",OR(C53="d",C53="f"))), (SUM(VLOOKUP($A53,Quantities[],Quantities!$P$2)*VLOOKUP($A53,Quantities[],Quantities!$O$2),VLOOKUP($A53,Quantities[],Quantities!$R$2)*VLOOKUP($A53,Quantities[],Quantities!$Q$2),VLOOKUP($A53,Quantities[],Quantities!$T$2)*VLOOKUP($A53,Quantities[],Quantities!$S$2)))/SUM(VLOOKUP($A53,Quantities[],Quantities!$O$2),VLOOKUP($A53,Quantities[],Quantities!$Q$2),VLOOKUP($A53,Quantities[],Quantities!$S$2)), IF(AND(LEFT(D53,2)="Sc",OR(C53="a",C53="f")), VLOOKUP(A53,Quantities[],Quantities!$J$2), IF(AND(B53="D",C53="b", (VLOOKUP(INDEX(Quantities!$A$24:$A$25,MATCH($A53,Quantities!$C$24:$C$25)),Quantities[],Quantities!$O$2)+VLOOKUP(INDEX(Quantities!$A$24:$A$25,MATCH($A53,Quantities!$C$24:$C$25)),Quantities[],Quantities!$Q$2)+VLOOKUP(INDEX(Quantities!$A$24:$A$25,MATCH($A53,Quantities!$C$24:$C$25)),Quantities[],Quantities!$S$2))>0), (VLOOKUP(INDEX(Quantities!$A$24:$A$25,MATCH($A53,Quantities!$C$24:$C$25)),Quantities[],Quantities!$P$2)*VLOOKUP(INDEX(Quantities!$A$24:$A$25,MATCH($A53,Quantities!$C$24:$C$25)),Quantities[],Quantities!$O$2) +VLOOKUP(INDEX(Quantities!$A$24:$A$25,MATCH($A53,Quantities!$C$24:$C$25)),Quantities[],Quantities!$R$2)*VLOOKUP(INDEX(Quantities!$A$24:$A$25,MATCH($A53,Quantities!$C$24:$C$25)),Quantities[],Quantities!$Q$2) +VLOOKUP(INDEX(Quantities!$A$24:$A$25,MATCH($A53,Quantities!$C$24:$C$25)),Quantities[],Quantities!$T$2)*VLOOKUP(INDEX(Quantities!$A$24:$A$25,MATCH($A53,Quantities!$C$24:$C$25)),Quantities[],Quantities!$S$2))/ (VLOOKUP(INDEX(Quantities!$A$24:$A$25,MATCH($A53,Quantities!$C$24:$C$25)),Quantities[],Quantities!$O$2)+VLOOKUP(INDEX(Quantities!$A$24:$A$25,MATCH($A53,Quantities!$C$24:$C$25)),Quantities[],Quantities!$Q$2)+VLOOKUP(A53,Quantities[],Quantities!$S$2)), IF(AND(B53="D", (VLOOKUP(A53,Quantities[],Quantities!$O$2)+VLOOKUP(A53,Quantities[],Quantities!$Q$2)+VLOOKUP(A53,Quantities[],Quantities!$S$2))>0), (VLOOKUP(A53,Quantities[],Quantities!$P$2)*VLOOKUP(A53,Quantities[],Quantities!$O$2) +VLOOKUP(A53,Quantities[],Quantities!$R$2)*VLOOKUP(A53,Quantities[],Quantities!$Q$2) +VLOOKUP(A53,Quantities[],Quantities!$T$2)*VLOOKUP(A53,Quantities[],Quantities!$S$2))/ (VLOOKUP(A53,Quantities[],Quantities!$O$2)+VLOOKUP(A53,Quantities[],Quantities!$Q$2)+VLOOKUP(A53,Quantities[],Quantities!$S$2)), IF($B53="Q", (SUM(VLOOKUP($A53,Quantities[],Quantities!$P$2)*VLOOKUP($A53,Quantities[],Quantities!$O$2),VLOOKUP($A53,Quantities[],Quantities!$R$2)*VLOOKUP($A53,Quantities[],Quantities!$Q$2),VLOOKUP($A53,Quantities[],Quantities!$T$2)*VLOOKUP($A53,Quantities[],Quantities!$S$2)))/SUM(VLOOKUP($A53,Quantities[],Quantities!$O$2),VLOOKUP($A53,Quantities[],Quantities!$Q$2),VLOOKUP($A53,Quantities[],Quantities!$S$2)), VLOOKUP(A53,Quantities[],Quantities!$H$2) )))))) -> - | K53: =IF(LEFT(D53,1)="U","-",VLOOKUP(D53,Equipment[],Equipment!$B$2)) -> Cat 14M, Off-Hwy Water Tanker Truck,6,000-gal.
A54: =Quantities!$A$7 -> 1100 | B54: P | C54: b | D54: Comb1 | E54: 1100-P-b-Comb1 | F54: =IF(D54="Comb1",CONCATENATE(VLOOKUP(B54,'Activity-Material_Codes'!$A$2:$B$28,Quantities!$B$2),"-",VLOOKUP(A54,Quantities[],Quantities!$D$2)), CONCATENATE( VLOOKUP(B54,'Activity-Material_Codes'!$A$2:$B$30,Quantities!$B$2), IF(AND(B54="B",C54="a"), " Scraper Grading", ""), IF(C54="b","","-"), IF(C54="b","",VLOOKUP(A54,Quantities[],Quantities!$D$2)), IF(LEFT(TEXT(A54,"0"),1)="5","","-"), IF(LEFT(TEXT(A54,"0"),1)="5","",VLOOKUP(C54,'Activity-Material_Codes'!$A$34:$B$40,Quantities!$B$2)) )) -> Road Maintenance-Entire Stockpile | G54: =IF(C54="f",VLOOKUP(A54,Quantities[],Quantities!$B$2), CONCATENATE( IF(OR(RIGHT(TEXT($A54,"0"),Quantities!$B$2)="00",LEFT(TEXT($A54,"0"),1)="5",OR($C54="b",$C54="f")),"",VLOOKUP($A54,Quantities[],Quantities!$B$2)), IF(LEFT(TEXT($A54,"0"),1)="5",""," "), IF(OR(C54="a",C54="c",C54="d",C54="e"),IF(OR(RIGHT(TEXT($A54,"0"),Quantities!$B$2)="00",LEFT(TEXT($A54,"0"),1)="5"),VLOOKUP($A54,Quantities[],Quantities!$B$2),""), IF(LEFT(TEXT($A54,"0"),1)="5",VLOOKUP($A54,Quantities[],Quantities!$B$2), VLOOKUP(INDEX(Quantities!$A$24:$A$25,MATCH($A54,Quantities!$C$24:$C$25)),Quantities!$A$24:$B$25,Quantities!$B$2))))) -> Soil Stockpile | H54: =IF(LEFT(TEXT(A54,"0"),1)="5", VLOOKUP(VLOOKUP(A54,Quantities!$A$4:$D$25,Quantities!$C$2),Quantities!$A$4:$D$25,Quantities!$C$2), IF(OR(C54="a",C54="c",C54="d",C54="e"), "-", IF(RIGHT(TEXT(A54,"0"),2)="00",VLOOKUP(A54,Quantities[],Quantities!$B$2), IF(C54="f",VLOOKUP(A54,Quantities[],Quantities!$B$2), VLOOKUP(A54,Quantities[],Quantities!$C$2)) ))) -> 6HW Waste | I54: =IF(OR(AND(LEFT(D54,2)="Sc",B54="A",OR(C54="d",C54="f")),AND(C54="f",B54="D")), SUM(VLOOKUP($A54,Quantities[],Quantities!$O$2),VLOOKUP($A54,Quantities[],Quantities!$Q$2),VLOOKUP($A54,Quantities[],Quantities!$S$2),VLOOKUP($A54,Quantities[],Quantities!$I$2)), IF(AND(LEFT(D54,2)="Sc",OR(C54="a",C54="f")), VLOOKUP(A54,Quantities[],Quantities!$I$2), IF(AND(B54="D",C54="b"), VLOOKUP(INDEX(Quantities!$A$24:$A$25,MATCH($A54,Quantities!$C$24:$C$25)),Quantities!$A$24:$AN$25,Quantities!$O$2)+ VLOOKUP(INDEX(Quantities!$A$24:$A$25,MATCH($A54,Quantities!$C$24:$C$25)),Quantities!$A$24:$AN$25,Quantities!$Q$2)+ VLOOKUP(INDEX(Quantities!$A$24:$A$25,MATCH($A54,Quantities!$C$24:$C$25)),Quantities!$A$24:$AN$25,Quantities!$S$2), IF(OR(B54="D",B54="Q"), SUM(VLOOKUP($A54,Quantities[],Quantities!$O$2),VLOOKUP($A54,Quantities[],Quantities!$Q$2),VLOOKUP($A54,Quantities[],Quantities!$S$2)), VLOOKUP(A54,Quantities[],Quantities!$G$2) )))) -> 0 | J54: =IF(LEFT(D54,2)="Mg", VLOOKUP(A54,Quantities[],Quantities!$H$2), IF(OR(AND(LEFT(D54,2)="Sc",B54="A",OR(C54="d",C54="f"))), (SUM(VLOOKUP($A54,Quantities[],Quantities!$P$2)*VLOOKUP($A54,Quantities[],Quantities!$O$2),VLOOKUP($A54,Quantities[],Quantities!$R$2)*VLOOKUP($A54,Quantities[],Quantities!$Q$2),VLOOKUP($A54,Quantities[],Quantities!$T$2)*VLOOKUP($A54,Quantities[],Quantities!$S$2)))/SUM(VLOOKUP($A54,Quantities[],Quantities!$O$2),VLOOKUP($A54,Quantities[],Quantities!$Q$2),VLOOKUP($A54,Quantities[],Quantities!$S$2)), IF(AND(LEFT(D54,2)="Sc",OR(C54="a",C54="f")), VLOOKUP(A54,Quantities[],Quantities!$J$2), IF(AND(B54="D",C54="b", (VLOOKUP(INDEX(Quantities!$A$24:$A$25,MATCH($A54,Quantities!$C$24:$C$25)),Quantities[],Quantities!$O$2)+VLOOKUP(INDEX(Quantities!$A$24:$A$25,MATCH($A54,Quantities!$C$24:$C$25)),Quantities[],Quantities!$Q$2)+VLOOKUP(INDEX(Quantities!$A$24:$A$25,MATCH($A54,Quantities!$C$24:$C$25)),Quantities[],Quantities!$S$2))>0), (VLOOKUP(INDEX(Quantities!$A$24:$A$25,MATCH($A54,Quantities!$C$24:$C$25)),Quantities[],Quantities!$P$2)*VLOOKUP(INDEX(Quantities!$A$24:$A$25,MATCH($A54,Quantities!$C$24:$C$25)),Quantities[],Quantities!$O$2) +VLOOKUP(INDEX(Quantities!$A$24:$A$25,MATCH($A54,Quantities!$C$24:$C$25)),Quantities[],Quantities!$R$2)*VLOOKUP(INDEX(Quantities!$A$24:$A$25,MATCH($A54,Quantities!$C$24:$C$25)),Quantities[],Quantities!$Q$2) +VLOOKUP(INDEX(Quantities!$A$24:$A$25,MATCH($A54,Quantities!$C$24:$C$25)),Quantities[],Quantities!$T$2)*VLOOKUP(INDEX(Quantities!$A$24:$A$25,MATCH($A54,Quantities!$C$24:$C$25)),Quantities[],Quantities!$S$2))/ (VLOOKUP(INDEX(Quantities!$A$24:$A$25,MATCH($A54,Quantities!$C$24:$C$25)),Quantities[],Quantities!$O$2)+VLOOKUP(INDEX(Quantities!$A$24:$A$25,MATCH($A54,Quantities!$C$24:$C$25)),Quantities[],Quantities!$Q$2)+VLOOKUP(A54,Quantities[],Quantities!$S$2)), IF(AND(B54="D", (VLOOKUP(A54,Quantities[],Quantities!$O$2)+VLOOKUP(A54,Quantities[],Quantities!$Q$2)+VLOOKUP(A54,Quantities[],Quantities!$S$2))>0), (VLOOKUP(A54,Quantities[],Quantities!$P$2)*VLOOKUP(A54,Quantities[],Quantities!$O$2) +VLOOKUP(A54,Quantities[],Quantities!$R$2)*VLOOKUP(A54,Quantities[],Quantities!$Q$2) +VLOOKUP(A54,Quantities[],Quantities!$T$2)*VLOOKUP(A54,Quantities[],Quantities!$S$2))/ (VLOOKUP(A54,Quantities[],Quantities!$O$2)+VLOOKUP(A54,Quantities[],Quantities!$Q$2)+VLOOKUP(A54,Quantities[],Quantities!$S$2)), IF($B54="Q", (SUM(VLOOKUP($A54,Quantities[],Quantities!$P$2)*VLOOKUP($A54,Quantities[],Quantities!$O$2),VLOOKUP($A54,Quantities[],Quantities!$R$2)*VLOOKUP($A54,Quantities[],Quantities!$Q$2),VLOOKUP($A54,Quantities[],Quantities!$T$2)*VLOOKUP($A54,Quantities[],Quantities!$S$2)))/SUM(VLOOKUP($A54,Quantities[],Quantities!$O$2),VLOOKUP($A54,Quantities[],Quantities!$Q$2),VLOOKUP($A54,Quantities[],Quantities!$S$2)), VLOOKUP(A54,Quantities[],Quantities!$H$2) )))))) -> - | K54: =IF(LEFT(D54,1)="U","-",VLOOKUP(D54,Equipment[],Equipment!$B$2)) -> Cat 14M, Off-Hwy Water Tanker Truck,6,000-gal.
A55: =Quantities!$A$10 -> 1200 | B55: P | C55: b | D55: Comb1 | E55: 1200-P-b-Comb1 | F55: =IF(D55="Comb1",CONCATENATE(VLOOKUP(B55,'Activity-Material_Codes'!$A$2:$B$28,Quantities!$B$2),"-",VLOOKUP(A55,Quantities[],Quantities!$D$2)), CONCATENATE( VLOOKUP(B55,'Activity-Material_Codes'!$A$2:$B$30,Quantities!$B$2), IF(AND(B55="B",C55="a"), " Scraper Grading", ""), IF(C55="b","","-"), IF(C55="b","",VLOOKUP(A55,Quantities[],Quantities!$D$2)), IF(LEFT(TEXT(A55,"0"),1)="5","","-"), IF(LEFT(TEXT(A55,"0"),1)="5","",VLOOKUP(C55,'Activity-Material_Codes'!$A$34:$B$40,Quantities!$B$2)) )) -> Road Maintenance-Haul Roads | G55: =IF(C55="f",VLOOKUP(A55,Quantities[],Quantities!$B$2), CONCATENATE( IF(OR(RIGHT(TEXT($A55,"0"),Quantities!$B$2)="00",LEFT(TEXT($A55,"0"),1)="5",OR($C55="b",$C55="f")),"",VLOOKUP($A55,Quantities[],Quantities!$B$2)), IF(LEFT(TEXT($A55,"0"),1)="5",""," "), IF(OR(C55="a",C55="c",C55="d",C55="e"),IF(OR(RIGHT(TEXT($A55,"0"),Quantities!$B$2)="00",LEFT(TEXT($A55,"0"),1)="5"),VLOOKUP($A55,Quantities[],Quantities!$B$2),""), IF(LEFT(TEXT($A55,"0"),1)="5",VLOOKUP($A55,Quantities[],Quantities!$B$2), VLOOKUP(INDEX(Quantities!$A$24:$A$25,MATCH($A55,Quantities!$C$24:$C$25)),Quantities!$A$24:$B$25,Quantities!$B$2))))) -> Soil Stockpile | H55: =IF(LEFT(TEXT(A55,"0"),1)="5", VLOOKUP(VLOOKUP(A55,Quantities!$A$4:$D$25,Quantities!$C$2),Quantities!$A$4:$D$25,Quantities!$C$2), IF(OR(C55="a",C55="c",C55="d",C55="e"), "-", IF(RIGHT(TEXT(A55,"0"),2)="00",VLOOKUP(A55,Quantities[],Quantities!$B$2), IF(C55="f",VLOOKUP(A55,Quantities[],Quantities!$B$2), VLOOKUP(A55,Quantities[],Quantities!$C$2)) ))) -> Haul Roads | I55: =IF(OR(AND(LEFT(D55,2)="Sc",B55="A",OR(C55="d",C55="f")),AND(C55="f",B55="D")), SUM(VLOOKUP($A55,Quantities[],Quantities!$O$2),VLOOKUP($A55,Quantities[],Quantities!$Q$2),VLOOKUP($A55,Quantities[],Quantities!$S$2),VLOOKUP($A55,Quantities[],Quantities!$I$2)), IF(AND(LEFT(D55,2)="Sc",OR(C55="a",C55="f")), VLOOKUP(A55,Quantities[],Quantities!$I$2), IF(AND(B55="D",C55="b"), VLOOKUP(INDEX(Quantities!$A$24:$A$25,MATCH($A55,Quantities!$C$24:$C$25)),Quantities!$A$24:$AN$25,Quantities!$O$2)+ VLOOKUP(INDEX(Quantities!$A$24:$A$25,MATCH($A55,Quantities!$C$24:$C$25)),Quantities!$A$24:$AN$25,Quantities!$Q$2)+ VLOOKUP(INDEX(Quantities!$A$24:$A$25,MATCH($A55,Quantities!$C$24:$C$25)),Quantities!$A$24:$AN$25,Quantities!$S$2), IF(OR(B55="D",B55="Q"), SUM(VLOOKUP($A55,Quantities[],Quantities!$O$2),VLOOKUP($A55,Quantities[],Quantities!$Q$2),VLOOKUP($A55,Quantities[],Quantities!$S$2)), VLOOKUP(A55,Quantities[],Quantities!$G$2) )))) -> 200 | J55: =IF(LEFT(D55,2)="Mg", VLOOKUP(A55,Quantities[],Quantities!$H$2), IF(OR(AND(LEFT(D55,2)="Sc",B55="A",OR(C55="d",C55="f"))), (SUM(VLOOKUP($A55,Quantities[],Quantities!$P$2)*VLOOKUP($A55,Quantities[],Quantities!$O$2),VLOOKUP($A55,Quantities[],Quantities!$R$2)*VLOOKUP($A55,Quantities[],Quantities!$Q$2),VLOOKUP($A55,Quantities[],Quantities!$T$2)*VLOOKUP($A55,Quantities[],Quantities!$S$2)))/SUM(VLOOKUP($A55,Quantities[],Quantities!$O$2),VLOOKUP($A55,Quantities[],Quantities!$Q$2),VLOOKUP($A55,Quantities[],Quantities!$S$2)), IF(AND(LEFT(D55,2)="Sc",OR(C55="a",C55="f")), VLOOKUP(A55,Quantities[],Quantities!$J$2), IF(AND(B55="D",C55="b", (VLOOKUP(INDEX(Quantities!$A$24:$A$25,MATCH($A55,Quantities!$C$24:$C$25)),Quantities[],Quantities!$O$2)+VLOOKUP(INDEX(Quantities!$A$24:$A$25,MATCH($A55,Quantities!$C$24:$C$25)),Quantities[],Quantities!$Q$2)+VLOOKUP(INDEX(Quantities!$A$24:$A$25,MATCH($A55,Quantities!$C$24:$C$25)),Quantities[],Quantities!$S$2))>0), (VLOOKUP(INDEX(Quantities!$A$24:$A$25,MATCH($A55,Quantities!$C$24:$C$25)),Quantities[],Quantities!$P$2)*VLOOKUP(INDEX(Quantities!$A$24:$A$25,MATCH($A55,Quantities!$C$24:$C$25)),Quantities[],Quantities!$O$2) +VLOOKUP(INDEX(Quantities!$A$24:$A$25,MATCH($A55,Quantities!$C$24:$C$25)),Quantities[],Quantities!$R$2)*VLOOKUP(INDEX(Quantities!$A$24:$A$25,MATCH($A55,Quantities!$C$24:$C$25)),Quantities[],Quantities!$Q$2) +VLOOKUP(INDEX(Quantities!$A$24:$A$25,MATCH($A55,Quantities!$C$24:$C$25)),Quantities[],Quantities!$T$2)*VLOOKUP(INDEX(Quantities!$A$24:$A$25,MATCH($A55,Quantities!$C$24:$C$25)),Quantities[],Quantities!$S$2))/ (VLOOKUP(INDEX(Quantities!$A$24:$A$25,MATCH($A55,Quantities!$C$24:$C$25)),Quantities[],Quantities!$O$2)+VLOOKUP(INDEX(Quantities!$A$24:$A$25,MATCH($A55,Quantities!$C$24:$C$25)),Quantities[],Quantities!$Q$2)+VLOOKUP(A55,Quantities[],Quantities!$S$2)), IF(AND(B55="D", (VLOOKUP(A55,Quantities[],Quantities!$O$2)+VLOOKUP(A55,Quantities[],Quantities!$Q$2)+VLOOKUP(A55,Quantities[],Quantities!$S$2))>0), (VLOOKUP(A55,Quantities[],Quantities!$P$2)*VLOOKUP(A55,Quantities[],Quantities!$O$2) +VLOOKUP(A55,Quantities[],Quantities!$R$2)*VLOOKUP(A55,Quantities[],Quantities!$Q$2) +VLOOKUP(A55,Quantities[],Quantities!$T$2)*VLOOKUP(A55,Quantities[],Quantities!$S$2))/ (VLOOKUP(A55,Quantities[],Quantities!$O$2)+VLOOKUP(A55,Quantities[],Quantities!$Q$2)+VLOOKUP(A55,Quantities[],Quantities!$S$2)), IF($B55="Q", (SUM(VLOOKUP($A55,Quantities[],Quantities!$P$2)*VLOOKUP($A55,Quantities[],Quantities!$O$2),VLOOKUP($A55,Quantities[],Quantities!$R$2)*VLOOKUP($A55,Quantities[],Quantities!$Q$2),VLOOKUP($A55,Quantities[],Quantities!$T$2)*VLOOKUP($A55,Quantities[],Quantities!$S$2)))/SUM(VLOOKUP($A55,Quantities[],Quantities!$O$2),VLOOKUP($A55,Quantities[],Quantities!$Q$2),VLOOKUP($A55,Quantities[],Quantities!$S$2)), VLOOKUP(A55,Quantities[],Quantities!$H$2) )))))) -> 0.02 | K55: =IF(LEFT(D55,1)="U","-",VLOOKUP(D55,Equipment[],Equipment!$B$2)) -> Cat 14M, Off-Hwy Water Tanker Truck,6,000-gal.
